Workbook

Sheet ELD metalog
B2: Metalog distributions. Prepared by Thomas Keelin, July, 2022. | AB2: reference probabilities y in use for quantile parameters q
C3: To generate metalog distributions, To generate metalog distributions, paste your x-data into the yellow-highlighed cells in C34:C10033 below. Your data may contain 2-10,000 entries (all cells below your last entry must be blank). The metalog panel dispalys feasible metalog distributions for 2-16 terms (a blank graph is infeasible or not applicable). This workbook is licensed under the Creative Commons Attribution 4.0. International License, CC-BY. So long as you provide attribution to Thomas Keelin and www.metalogs.org, you may copy it, make derivative works, and use it freely, including for commercial purposes. This workbook contains no macros or named ranges. This worksheet may be safely copied into other Excel workbooks while retaining its full functionality by right clicking "ELD metalog" sheet name at bottom. While we believe all calculations are correct, we assume no liability for errors. | AB3: n=2 | AC3: n=3 | AD3: n=4 | AE3: n=5 | AF3: n=6 | AG3: n=7 | AH3: n=8 | AI3: n=9 | AJ3: n=10 | AK3: n=11 | AL3: n=12 | AM3: n=13 | AN3: n=14 | AO3: n=15 | AP3: n=16
AB4: 0.25 | AC4: 0.1 | AD4: 0.1 | AE4: 0.1 | AF4: 0.01 | AG4: 0.01 | AH4: 0.001 | AI4: 0.001 | AJ4: 0.001 | AK4: 0.001 | AL4: 0.001 | AM4: 0.001 | AN4: 0.001 | AO4: 0.001 | AP4: 0.001
AB5: 0.75 | AC5: 0.5 | AD5: 0.25 | AE5: 0.25 | AF5: 0.1 | AG5: 0.1 | AH5: 0.02 | AI5: 0.02 | AJ5: 0.01 | AK5: 0.01 | AL5: 0.01 | AM5: 0.01 | AN5: 0.01 | AO5: 0.005 | AP5: 0.005
B6: light yellow: required inputs | J6: light blue: optional inputs | S6: light green: do not modify cell contents | AC6: 0.9 | AD6: 0.5 | AE6: 0.5 | AF6: 0.25 | AG6: 0.25 | AH6: 0.1 | AI6: 0.1 | AJ6: 0.05 | AK6: 0.05 | AL6: 0.05 | AM6: 0.05 | AN6: 0.03 | AO6: 0.01 | AP6: 0.01
AD7: 0.75 | AE7: 0.75 | AF7: 0.5 | AG7: 0.5 | AH7: 0.25 | AI7: 0.25 | AJ7: 0.1 | AK7: 0.1 | AL7: 0.1 | AM7: 0.1 | AN7: 0.05 | AO7: 0.05 | AP7: 0.05
B8: bounds (u = unbounded, sl = semibounded lower, su = semibounded upper, b = bounded). | N8: messages | X8: information | AE8: 0.9 | AF8: 0.75 | AG8: 0.75 | AH8: 0.5 | AI8: 0.5 | AJ8: 0.25 | AK8: 0.25 | AL8: 0.25 | AM8: 0.25 | AN8: 0.1 | AO8: 0.1 | AP8: 0.1
N9: =ED40 -> (none) | X9: quantile parameters | AF9: 0.99 | AG9: 0.9 | AH9: 0.75 | AI9: 0.75 | AJ9: 0.5 | AK9: 0.5 | AL9: 0.35 | AM9: 0.35 | AN9: 0.25 | AO9: 0.25 | AP9: 0.25
X10: y | Y10: x | AG10: 0.99 | AH10: 0.9 | AI10: 0.9 | AJ10: 0.75 | AK10: 0.66 | AL10: 0.5 | AM10: 0.5 | AN10: 0.35 | AO10: 0.35 | AP10: 0.35
B11: sl | N11: metalog panel | X11: =IF(ROW()-ROW(X$10)>$C$17,"",INDEX($AB$4:$AP$19,ROW()-ROW(X$10),$C$17-1)) -> 0.001 | Y11: =IF(Z11="","",IF($B$11="u",Z11,IF($B$11="sl",$C$19+EXP(Z11),IF($B$11="su",$C$20-EXP(-Z11),IF($B$11="b",($C$19+$C$20*EXP(Z11))/(1+EXP(Z11)),""))))) -> 2.714963223 | Z11: =IF(OR($N$9<>"(none)",ROW()-ROW(Z$10)>$C$17),"",$Y$28+$Y$29*LN(X11/(1-X11))+$Y$30*(X11-0.5)*LN(X11/(1-X11))+$Y$31*(X11-0.5)+$Y$32*(X11-0.5)^2+$Y$33*(X11-0.5)^2*LN(X11/(1-X11))+$Y$34*(X11-0.5)^3+$Y$35*(X11-0.5)^3*LN(X11/(1-X11))+$Y$36*(X11-0.5)^4+$Y$37*(X11-0.5)^4*LN(X11/(1-X11))+$Y$38*(X11-0.5)^5+Y$39*(X11-0.5)^5*LN(X11/(1-X11))+$Y$40*(X11-0.5)^6+$Y$41*(X11-0.5)^6*LN(X11/(1-X11))+$Y$42*(X11-0.5)^7+$Y$43*(X11-0.5)^7*LN(X11/(1-X11))) -> 0.9987784073 | AH11: 0.99 | AI11: 0.98 | AJ11: 0.9 | AK11: 0.75 | AL11: 0.65 | AM11: 0.65 | AN11: 0.5 | AO11: 0.5 | AP11: 0.5
B12: boundedness | X12: =IF(ROW()-ROW(X$10)>$C$17,"",INDEX($AB$4:$AP$19,ROW()-ROW(X$10),$C$17-1)) -> 0.01 | Y12: 3.694468333 | Z12: 1.306836656 | AI12: 0.999 | AJ12: 0.95 | AK12: 0.9 | AL12: 0.75 | AM12: 0.75 | AN12: 0.65 | AO12: 0.65 | AP12: 0.65
B13: metalog specifications | X13: =IF(ROW()-ROW(X$10)>$C$17,"",INDEX($AB$4:$AP$19,ROW()-ROW(X$10),$C$17-1)) -> 0.05 | Y13: 4.497646641 | Z13: 1.503554291 | AJ13: 0.999 | AK13: 0.95 | AL13: 0.9 | AM13: 0.9 | AN13: 0.75 | AO13: 0.75 | AP13: 0.75
B14: m | C14: n terms | X14: =IF(ROW()-ROW(X$10)>$C$17,"",INDEX($AB$4:$AP$19,ROW()-ROW(X$10),$C$17-1)) -> 0.1 | Y14: 5.124493578 | Z14: 1.634031706 | AK14: 0.999 | AL14: 0.95 | AM14: 0.95 | AN14: 0.8 | AO14: 0.9 | AP14: 0.9
B15: parameters | C15: for display | X15: =IF(ROW()-ROW(X$10)>$C$17,"",INDEX($AB$4:$AP$19,ROW()-ROW(X$10),$C$17-1)) -> 0.25 | Y15: 7.237294252 | Z15: 1.979247414 | AL15: 0.999 | AM15: 0.98 | AN15: 0.9 | AO15: 0.95 | AP15: 0.95
B16: ="(2-" & ROWS(AB28:AC10027) & ")" -> (2-10000) | C16: (2-16) | X16: =IF(ROW()-ROW(X$10)>$C$17,"",INDEX($AB$4:$AP$19,ROW()-ROW(X$10),$C$17-1)) -> 0.5 | Y16: 9.817972685 | Z16: 2.284214653 | AM16: 0.999 | AN16: 0.95 | AO16: 0.97 | AP16: 0.97
B17: =SUM(IF(ISNUMBER(C34:C10033),1,0)) -> 3474 | C17: 10 | X17: =IF(ROW()-ROW(X$10)>$C$17,"",INDEX($AB$4:$AP$19,ROW()-ROW(X$10),$C$17-1)) -> 0.75 | Y17: 12.09896872 | Z17: 2.493120219 | AN17: 0.999 | AO17: 0.99 | AP17: 0.99
C18: terms | X18: =IF(ROW()-ROW(X$10)>$C$17,"",INDEX($AB$4:$AP$19,ROW()-ROW(X$10),$C$17-1)) -> 0.9 | Y18: 15.25053382 | Z18: 2.724614507 | AO18: 0.999 | AP18: 0.995
B19: =IF(OR(B11="b",B11="sl"),"lower bound","") -> lower bound | C19: 0 | D19: bl | X19: =IF(ROW()-ROW(X$10)>$C$17,"",INDEX($AB$4:$AP$19,ROW()-ROW(X$10),$C$17-1)) -> 0.95 | Y19: 17.97152531 | Z19: 2.888788578 | AP19: 0.999
B20: =IF(OR(B11="su",B11="b"),"upper bound","") ->  | C20: 40 | D20: bu | X20: =IF(ROW()-ROW(X$10)>$C$17,"",INDEX($AB$4:$AP$19,ROW()-ROW(X$10),$C$17-1)) -> 0.999 | Y20: 30.89198133 | Z20: 3.430496646
X21: =IF(ROW()-ROW(X$10)>$C$17,"",INDEX($AB$4:$AP$19,ROW()-ROW(X$10),$C$17-1)) ->  | AB21: intermediate calcualations (do not modify)
B22: regularization | X22: =IF(ROW()-ROW(X$10)>$C$17,"",INDEX($AB$4:$AP$19,ROW()-ROW(X$10),$C$17-1)) -> 
B23: (0,1, …, 10) | C23: 0 | X23: =IF(ROW()-ROW(X$10)>$C$17,"",INDEX($AB$4:$AP$19,ROW()-ROW(X$10),$C$17-1)) -> 
X24: =IF(ROW()-ROW(X$10)>$C$17,"",INDEX($AB$4:$AP$19,ROW()-ROW(X$10),$C$17-1)) ->  | AB24: metalog distributions (y = probability, Mn = x = quantile function, mn = y' = probability density function)
B25: source | C25: Tom Keelin | X25: =IF(ROW()-ROW(X$10)>$C$17,"",INDEX($AB$4:$AP$19,ROW()-ROW(X$10),$C$17-1)) ->  | AB25: input parameters | AG25: metalog quantile functions Mn and density functions mn with user-specified bounds | BL25: unbounded metalog | CQ25: feasibility requirement (mn>0 for all yi) satisfied | DH25: matrix inversion successful | DY25: validity of input data | EB25: messages
B26: field | C26: fish biology | X26: =IF(ROW()-ROW(X$10)>$C$17,"",INDEX($AB$4:$AP$19,ROW()-ROW(X$10),$C$17-1)) ->  | AB26: y | AC26: x | AE26: ="large plots (n = " & C17 & ")" -> large plots (n = 10) | AG26: =IF($B$11="u","",IF($B$11="sl"," log",IF($B$11="b"," logit",""))) -> log | AH26: log | AI26: log | AJ26: log | AK26: log | AL26: log | AM26: log | AN26: log | AO26: log | AP26: log | AQ26: log | AR26: log | AS26: log | AT26: log | AU26: log | AV26: log | AW26: log | AX26: log | AY26: log | AZ26: log | BA26: log | BB26: log | BC26: log | BD26: log | BE26: log | BF26: log | BG26: log | BH26: log | BI26: log | BJ26: log | BL26: quantile functons | CA26: density functions | CQ26: =IF(OR(DH26="",DH26="no"),"",IF(AND(DH26="yes",MIN(CQ31:CQ135)>0),"yes","no")) -> yes | CR26: yes | CS26: yes | CT26: yes | CU26: yes | CV26: yes | CW26: yes | CX26: yes | CY26: yes | CZ26: yes | DA26: yes | DB26: yes | DC26: yes | DD26: yes | DE26: yes | DH26: =IF(EC90="","",IF(OR(EC90="determ",EC90="error"),"no","yes")) -> yes | DI26: yes | DJ26: yes | DK26: yes | DL26: yes | DM26: yes | DN26: yes | DO26: yes | DP26: yes | DQ26: yes | DR26: yes | DS26: =IF(EN90="","",IF(OR(EN90="determ",EN90="error"),"no","yes")) -> yes | DT26: =IF(EO90="","",IF(OR(EO90="determ",EO90="error"),"no","yes")) -> yes | DU26: =IF(EP90="","",IF(OR(EP90="determ",EP90="error"),"no","yes")) -> yes | DV26: =IF(EQ90="","",IF(OR(EQ90="determ",EQ90="error"),"no","yes")) -> yes | DY26: (values below should be equal) | EB26: condition | EC26: global | ED26: content
B27: short name | C27: steelhead weight | X27: coefficients | AC27: (sorted) | AD27: y | AE27: cdf | AF27: pdf | AG27: M2 | AH27: M3 | AI27: M4 | AJ27: M5 | AK27: M6 | AL27: M7 | AM27: M8 | AN27: M9 | AO27: M10 | AP27: M11 | AQ27: M12 | AR27: M13 | AS27: M14 | AT27: M15 | AU27: M16 | AV27: m2 | AW27: m3 | AX27: m4 | AY27: m5 | AZ27: m6 | BA27: m7 | BB27: m8 | BC27: m9 | BD27: m10 | BE27: m11 | BF27: m12 | BG27: m13 | BH27: m14 | BI27: m15 | BJ27: m16 | BL27: M2 | BM27: M3 | BN27: M4 | BO27: M5 | BP27: M6 | BQ27: M7 | BR27: M8 | BS27: M9 | BT27: M10 | BU27: M11 | BV27: M12 | BW27: M13 | BX27: M14 | BY27: M15 | BZ27: M16 | CA27: m2 | CB27: m3 | CC27: m4 | CD27: m5 | CE27: m6 | CF27: m7 | CG27: m8 | CH27: m9 | CI27: m10 | CJ27: m11 | CK27: m12 | CL27: m13 | CM27: m14 | CN27: m15 | CO27: m16 | CQ27: (if "no", inputs (x,y) are not feasible for this n) | DG27: dererminant | DH27: =MDETERM(MMULT(TRANSPOSE(INDEX($DG$30:$DP$10029,1,1):INDEX($DG$30:$DP$10029,$B$17,EC89)),INDEX($DG$30:$DP$10029,1,1):INDEX($DG$30:$DP$10029,$B$17,EC89))) -> 39366788.55 | DI27: =MDETERM(MMULT(TRANSPOSE(INDEX($DG$30:$DP$10029,1,1):INDEX($DG$30:$DP$10029,$B$17,ED89)),INDEX($DG$30:$DP$10029,1,1):INDEX($DG$30:$DP$10029,$B$17,ED89))) -> 4.810243029e+10 | DJ27: =MDETERM(MMULT(TRANSPOSE(INDEX($DG$30:$DP$10029,1,1):INDEX($DG$30:$DP$10029,$B$17,EE89)),INDEX($DG$30:$DP$10029,1,1):INDEX($DG$30:$DP$10029,$B$17,EE89))) -> 1.17627879e+12 | DK27: =MDETERM(MMULT(TRANSPOSE(INDEX($DG$30:$DP$10029,1,1):INDEX($DG$30:$DP$10029,$B$17,EF89)),INDEX($DG$30:$DP$10029,1,1):INDEX($DG$30:$DP$10029,$B$17,EF89))) -> 2.702537679e+12 | DL27: =MDETERM(MMULT(TRANSPOSE(INDEX($DG$30:$DP$10029,1,1):INDEX($DG$30:$DP$10029,$B$17,EG89)),INDEX($DG$30:$DP$10029,1,1):INDEX($DG$30:$DP$10029,$B$17,EG89))) -> 1.083869199e+13 | DM27: =MDETERM(MMULT(TRANSPOSE(INDEX($DG$30:$DP$10029,1,1):INDEX($DG$30:$DP$10029,$B$17,EH89)),INDEX($DG$30:$DP$10029,1,1):INDEX($DG$30:$DP$10029,$B$17,EH89))) -> 6.874717156e+10 | DN27: =MDETERM(MMULT(TRANSPOSE(INDEX($DG$30:$DP$10029,1,1):INDEX($DG$30:$DP$10029,$B$17,EI89)),INDEX($DG$30:$DP$10029,1,1):INDEX($DG$30:$DP$10029,$B$17,EI89))) -> 2.52110972e+10 | DO27: =MDETERM(MMULT(TRANSPOSE(INDEX($DG$30:$DP$10029,1,1):INDEX($DG$30:$DP$10029,$B$17,EJ89)),INDEX($DG$30:$DP$10029,1,1):INDEX($DG$30:$DP$10029,$B$17,EJ89))) -> 14476098.39 | DP27: =MDETERM(MMULT(TRANSPOSE(INDEX($DG$30:$DV$10029,1,1):INDEX($DG$30:$DV$10029,$B$17,EK89)),INDEX($DG$30:$DV$10029,1,1):INDEX($DG$30:$DV$10029,$B$17,EK89))) -> 13788.90276 | DQ27: =MDETERM(MMULT(TRANSPOSE(INDEX($DG$30:$DV$10029,1,1):INDEX($DG$30:$DV$10029,$B$17,EL89)),INDEX($DG$30:$DV$10029,1,1):INDEX($DG$30:$DV$10029,$B$17,EL89))) -> 0.01998704624 | DR27: =MDETERM(MMULT(TRANSPOSE(INDEX($DG$30:$DV$10029,1,1):INDEX($DG$30:$DV$10029,$B$17,EM89)),INDEX($DG$30:$DV$10029,1,1):INDEX($DG$30:$DV$10029,$B$17,EM89))) -> 1.715281321e-06 | DS27: =MDETERM(MMULT(TRANSPOSE(INDEX($DG$30:$DV$10029,1,1):INDEX($DG$30:$DV$10029,$B$17,EN89)),INDEX($DG$30:$DV$10029,1,1):INDEX($DG$30:$DV$10029,$B$17,EN89))) -> 2.233923907e-13 | DT27: =MDETERM(MMULT(TRANSPOSE(INDEX($DG$30:$DV$10029,1,1):INDEX($DG$30:$DV$10029,$B$17,EO89)),INDEX($DG$30:$DV$10029,1,1):INDEX($DG$30:$DV$10029,$B$17,EO89))) -> 4.761802646e-20 | DU27: =MDETERM(MMULT(TRANSPOSE(INDEX($DG$30:$DV$10029,1,1):INDEX($DG$30:$DV$10029,$B$17,EP89)),INDEX($DG$30:$DV$10029,1,1):INDEX($DG$30:$DV$10029,$B$17,EP89))) -> 1.5235233e-29 | DV27: =MDETERM(MMULT(TRANSPOSE(INDEX($DG$30:$DV$10029,1,1):INDEX($DG$30:$DV$10029,$B$17,EQ89)),INDEX($DG$30:$DV$10029,1,1):INDEX($DG$30:$DV$10029,$B$17,EQ89))) -> 2.912453488e-37 | DZ27: x data | EB27: =IF(AND(B11<>"u",B11<>"sl",B11<>"su",B11<>"b"),1,0) -> 0 | EC27: =EB27 -> 0 | ED27: you must enter either u, sl, sb, or b for metalog bounds.
B28: description | C28: Catch-and-release steelhead weights during 2010-2014, Babine River, B.C. | X28: a1 | Y28: =INDEX(EC90:EQ90,C$17-1) -> 2.284214653 | AB28: =IF(AC28="","",(ROW()-ROW($AB$27))/($B$17+1)) -> 0.0002877697842 | AC28: =IF(C$34="","",IF(ROW()-ROW(S$27)>B$17,"",SMALL(INDEX($C$34:$C$10033,1,1):INDEX($C$34:$C$10033,B$17,1),ROW()-ROW(S$27)))) -> 2 | AD28: =IF(OR($B$11="b",$B$11="sl"),0,NA()) -> 0 | AE28: =IF(OR($B$11="b",$B$11="sl"),IF(INDEX(AG28:AU28,1,$C$17-1)="",NA(),INDEX(AG28:AU28,1,$C$17-1)),NA()) -> 0 | AF28: =IF(OR($B$11="b",$B$11="sl"),IF(INDEX(AV28:BJ28,1,$C$17-1)="",NA(),INDEX(AV28:BJ28,1,$C$17-1)),NA()) -> 0 | AG28: =IF(OR($B$11="b",$B$11="sl"),IF(BL29="",NA(),$C$19),NA()) -> 0 | AH28: 0 | AI28: 0 | AJ28: 0 | AK28: 0 | AL28: 0 | AM28: 0 | AN28: 0 | AO28: 0 | AP28: 0 | AQ28: 0 | AR28: 0 | AS28: 0 | AT28: 0 | AU28: 0 | AV28: =IF(OR($B$11="b",$B$11="sl"),IF(CA29="",NA(),0),NA()) -> 0 | AW28: 0 | AX28: 0 | AY28: 0 | AZ28: 0 | BA28: 0 | BB28: 0 | BC28: 0 | BD28: 0 | BE28: 0 | BF28: 0 | BG28: 0 | BH28: 0 | BI28: 0 | BJ28: 0 | DY28: total | DZ28: =COUNTA(INDEX(AC28:AC10027,1,1):INDEX(AC28:AC10027,B17,1)) -> 3474 | EB28: =IF(AND(OR(B11="sl",B11="b"),NOT(ISNUMBER(C19))),1,0) -> 0 | EC28: 0 | ED28: you must enter a numeric lower bound | EM28: regularization
X29: a2 | Y29: =INDEX(EC91:EQ91,C$17-1) -> -1.171264816 | AB29: 0.0005755395683 | AC29: =IF(C$34="","",IF(ROW()-ROW(S$27)>B$17,"",SMALL(INDEX($C$34:$C$10033,1,1):INDEX($C$34:$C$10033,B$17,1),ROW()-ROW(S$27)))) -> 3 | AD29: 0.001 | AE29: =INDEX(AG29:AU29,1,$C$17-1) -> 2.714963223 | AF29: =INDEX(AV29:BJ29,1,$C$17-1) -> 0.00263714619 | AG29: =IF(BL29="",NA(),IF($B$11="u",BL29,IF($B$11="sl",$C$19+EXP(BL29),IF($B$11="su",$C$20-EXP(-BL29),IF($B$11="b",($C$19+$C$20*EXP(BL29))/(1+EXP(BL29)),NA()))))) -> 1.968623821 | AH29: =IF(BM29="",NA(),IF($B$11="u",BM29,IF($B$11="sl",$C$19+EXP(BM29),IF($B$11="su",$C$20-EXP(-BM29),IF($B$11="b",($C$19+$C$20*EXP(BM29))/(1+EXP(BM29)),NA()))))) -> 1.779762585 | AI29: =IF(BN29="",NA(),IF($B$11="u",BN29,IF($B$11="sl",$C$19+EXP(BN29),IF($B$11="su",$C$20-EXP(-BN29),IF($B$11="b",($C$19+$C$20*EXP(BN29))/(1+EXP(BN29)),NA()))))) -> 2.18668701 | AJ29: =IF(BO29="",NA(),IF($B$11="u",BO29,IF($B$11="sl",$C$19+EXP(BO29),IF($B$11="su",$C$20-EXP(-BO29),IF($B$11="b",($C$19+$C$20*EXP(BO29))/(1+EXP(BO29)),NA()))))) -> 2.663359508 | AK29: =IF(BP29="",NA(),IF($B$11="u",BP29,IF($B$11="sl",$C$19+EXP(BP29),IF($B$11="su",$C$20-EXP(-BP29),IF($B$11="b",($C$19+$C$20*EXP(BP29))/(1+EXP(BP29)),NA()))))) -> 3.147073161 | AL29: =IF(BQ29="",NA(),IF($B$11="u",BQ29,IF($B$11="sl",$C$19+EXP(BQ29),IF($B$11="su",$C$20-EXP(-BQ29),IF($B$11="b",($C$19+$C$20*EXP(BQ29))/(1+EXP(BQ29)),NA()))))) -> 3.00526564 | AM29: =IF(BR29="",NA(),IF($B$11="u",BR29,IF($B$11="sl",$C$19+EXP(BR29),IF($B$11="su",$C$20-EXP(-BR29),IF($B$11="b",($C$19+$C$20*EXP(BR29))/(1+EXP(BR29)),NA()))))) -> 2.778452401 | AN29: =IF(BS29="",NA(),IF($B$11="u",BS29,IF($B$11="sl",$C$19+EXP(BS29),IF($B$11="su",$C$20-EXP(-BS29),IF($B$11="b",($C$19+$C$20*EXP(BS29))/(1+EXP(BS29)),NA()))))) -> 2.669206207 | AO29: =IF(BT29="",NA(),IF($B$11="u",BT29,IF($B$11="sl",$C$19+EXP(BT29),IF($B$11="su",$C$20-EXP(-BT29),IF($B$11="b",($C$19+$C$20*EXP(BT29))/(1+EXP(BT29)),NA()))))) -> 2.714963223 | AP29: =IF(BU29="",NA(),IF($B$11="u",BU29,IF($B$11="sl",$C$19+EXP(BU29),IF($B$11="su",$C$20-EXP(-BU29),IF($B$11="b",($C$19+$C$20*EXP(BU29))/(1+EXP(BU29)),NA()))))) -> 2.714480759 | AQ29: =IF(BV29="",NA(),IF($B$11="u",BV29,IF($B$11="sl",$C$19+EXP(BV29),IF($B$11="su",$C$20-EXP(-BV29),IF($B$11="b",($C$19+$C$20*EXP(BV29))/(1+EXP(BV29)),NA()))))) -> 2.738549546 | AR29: =IF(BW29="",NA(),IF($B$11="u",BW29,IF($B$11="sl",$C$19+EXP(BW29),IF($B$11="su",$C$20-EXP(-BW29),IF($B$11="b",($C$19+$C$20*EXP(BW29))/(1+EXP(BW29)),NA()))))) -> 2.739121091 | AS29: =IF(BX29="",NA(),IF($B$11="u",BX29,IF($B$11="sl",$C$19+EXP(BX29),IF($B$11="su",$C$20-EXP(-BX29),IF($B$11="b",($C$19+$C$20*EXP(BX29))/(1+EXP(BX29)),NA()))))) -> 2.751394626 | AT29: =IF(BY29="",NA(),IF($B$11="u",BY29,IF($B$11="sl",$C$19+EXP(BY29),IF($B$11="su",$C$20-EXP(-BY29),IF($B$11="b",($C$19+$C$20*EXP(BY29))/(1+EXP(BY29)),NA()))))) -> 2.756680706 | AU29: =IF(BZ29="",NA(),IF($B$11="u",BZ29,IF($B$11="sl",$C$19+EXP(BZ29),IF($B$11="su",$C$20-EXP(-BZ29),IF($B$11="b",($C$19+$C$20*EXP(BZ29))/(1+EXP(BZ29)),NA()))))) -> 2.798057534 | AV29: =IF(CA29="",NA(),IF($B$11="u",CA29,IF($B$11="sl",CA29*EXP(-BL29),IF($B$11="su",CA29*EXP(BL29),IF($B$11="b",CA29*(1+EXP(BL29))^2/(($C$20-$C$19)*EXP(BL29)),NA()))))) -> 0.002247396996 | AW29: =IF(CB29="",NA(),IF($B$11="u",CB29,IF($B$11="sl",CB29*EXP(-BM29),IF($B$11="su",CB29*EXP(BM29),IF($B$11="b",CB29*(1+EXP(BM29))^2/(($C$20-$C$19)*EXP(BM29)),NA()))))) -> 0.002308891708 | AX29: =IF(CC29="",NA(),IF($B$11="u",CC29,IF($B$11="sl",CC29*EXP(-BN29),IF($B$11="su",CC29*EXP(BN29),IF($B$11="b",CC29*(1+EXP(BN29))^2/(($C$20-$C$19)*EXP(BN29)),NA()))))) -> 0.002443663042 | AY29: =IF(CD29="",NA(),IF($B$11="u",CD29,IF($B$11="sl",CD29*EXP(-BO29),IF($B$11="su",CD29*EXP(BO29),IF($B$11="b",CD29*(1+EXP(BO29))^2/(($C$20-$C$19)*EXP(BO29)),NA()))))) -> 0.003041119794 | AZ29: =IF(CE29="",NA(),IF($B$11="u",CE29,IF($B$11="sl",CE29*EXP(-BP29),IF($B$11="su",CE29*EXP(BP29),IF($B$11="b",CE29*(1+EXP(BP29))^2/(($C$20-$C$19)*EXP(BP29)),NA()))))) -> 0.00723723291 | BA29: =IF(CF29="",NA(),IF($B$11="u",CF29,IF($B$11="sl",CF29*EXP(-BQ29),IF($B$11="su",CF29*EXP(BQ29),IF($B$11="b",CF29*(1+EXP(BQ29))^2/(($C$20-$C$19)*EXP(BQ29)),NA()))))) -> 0.004020547047 | BB29: =IF(CG29="",NA(),IF($B$11="u",CG29,IF($B$11="sl",CG29*EXP(-BR29),IF($B$11="su",CG29*EXP(BR29),IF($B$11="b",CG29*(1+EXP(BR29))^2/(($C$20-$C$19)*EXP(BR29)),NA()))))) -> 0.002830921793 | BC29: =IF(CH29="",NA(),IF($B$11="u",CH29,IF($B$11="sl",CH29*EXP(-BS29),IF($B$11="su",CH29*EXP(BS29),IF($B$11="b",CH29*(1+EXP(BS29))^2/(($C$20-$C$19)*EXP(BS29)),NA()))))) -> 0.002228171612 | BD29: =IF(CI29="",NA(),IF($B$11="u",CI29,IF($B$11="sl",CI29*EXP(-BT29),IF($B$11="su",CI29*EXP(BT29),IF($B$11="b",CI29*(1+EXP(BT29))^2/(($C$20-$C$19)*EXP(BT29)),NA()))))) -> 0.00263714619 | BE29: =IF(CJ29="",NA(),IF($B$11="u",CJ29,IF($B$11="sl",CJ29*EXP(-BU29),IF($B$11="su",CJ29*EXP(BU29),IF($B$11="b",CJ29*(1+EXP(BU29))^2/(($C$20-$C$19)*EXP(BU29)),NA()))))) -> 0.002617476724 | BF29: =IF(CK29="",NA(),IF($B$11="u",CK29,IF($B$11="sl",CK29*EXP(-BV29),IF($B$11="su",CK29*EXP(BV29),IF($B$11="b",CK29*(1+EXP(BV29))^2/(($C$20-$C$19)*EXP(BV29)),NA()))))) -> 0.003013066639 | BG29: =IF(CL29="",NA(),IF($B$11="u",CL29,IF($B$11="sl",CL29*EXP(-BW29),IF($B$11="su",CL29*EXP(BW29),IF($B$11="b",CL29*(1+EXP(BW29))^2/(($C$20-$C$19)*EXP(BW29)),NA()))))) -> 0.003128953346 | BH29: =IF(CM29="",NA(),IF($B$11="u",CM29,IF($B$11="sl",CM29*EXP(-BX29),IF($B$11="su",CM29*EXP(BX29),IF($B$11="b",CM29*(1+EXP(BX29))^2/(($C$20-$C$19)*EXP(BX29)),NA()))))) -> 0.002654359503 | BI29: =IF(CN29="",NA(),IF($B$11="u",CN29,IF($B$11="sl",CN29*EXP(-BY29),IF($B$11="su",CN29*EXP(BY29),IF($B$11="b",CN29*(1+EXP(BY29))^2/(($C$20-$C$19)*EXP(BY29)),NA()))))) -> 0.002599067557 | BJ29: =IF(CO29="",NA(),IF($B$11="u",CO29,IF($B$11="sl",CO29*EXP(-BZ29),IF($B$11="su",CO29*EXP(BZ29),IF($B$11="b",CO29*(1+EXP(BZ29))^2/(($C$20-$C$19)*EXP(BZ29)),NA()))))) -> 0.001963458654 | BL29: =IF(CA29="","",EC$90+EC$91*LN($AD29/(1-$AD29))) -> 0.6773347304 | BM29: =IF(CB29="","",ED$90+ED$91*LN($AD29/(1-$AD29))+ED$92*($AD29-0.5)*LN($AD29/(1-$AD29))) -> 0.5764799761 | BN29: =IF(CC29="","",EE$90+EE$91*LN($AD29/(1-$AD29))+EE$92*($AD29-0.5)*LN($AD29/(1-$AD29))+EE$93*($AD29-0.5)) -> 0.7823876175 | BO29: =IF(CD29="","",EF$90+EF$91*LN($AD29/(1-$AD29))+EF$92*($AD29-0.5)*LN($AD29/(1-$AD29))+EF$93*($AD29-0.5)+EF$94*($AD29-0.5)^2) -> 0.9795882989 | BP29: =IF(CE29="","",EG$90+EG$91*LN($AD29/(1-$AD29))+EG$92*($AD29-0.5)*LN($AD29/(1-$AD29))+EG$93*($AD29-0.5)+EG$94*($AD29-0.5)^2+EG$95*($AD29-0.5)^2*LN($AD29/(1-$AD29))) -> 1.146472866 | BQ29: =IF(CF29="","",EH$90+EH$91*LN($AD29/(1-$AD29))+EH$92*($AD29-0.5)*LN($AD29/(1-$AD29))+EH$93*($AD29-0.5)+EH$94*($AD29-0.5)^2+EH$95*($AD29-0.5)^2*LN($AD29/(1-$AD29))+EH$96*($AD29-0.5)^3) -> 1.100365963 | BR29: =IF(CG29="","",EI$90+EI$91*LN($AD29/(1-$AD29))+EI$92*($AD29-0.5)*LN($AD29/(1-$AD29))+EI$93*($AD29-0.5)+EI$94*($AD29-0.5)^2+EI$95*($AD29-0.5)^2*LN($AD29/(1-$AD29))+EI$96*($AD29-0.5)^3+EI$97*($AD29-0.5)^3*LN($AD29/(1-$AD29))) -> 1.021894082 | BS29: =IF(CH29="","",EJ$90+EJ$91*LN($AD29/(1-$AD29))+EJ$92*($AD29-0.5)*LN($AD29/(1-$AD29))+EJ$93*($AD29-0.5)+EJ$94*($AD29-0.5)^2+EJ$95*($AD29-0.5)^2*LN($AD29/(1-$AD29))+EJ$96*($AD29-0.5)^3+EJ$97*($AD29-0.5)^3*LN($AD29/(1-$AD29))+EJ$98*($AD29-0.5)^4) -> 0.9817811274 | BT29: =IF(CI29="","",EK$90+EK$91*LN($AD29/(1-$AD29))+EK$92*($AD29-0.5)*LN($AD29/(1-$AD29))+EK$93*($AD29-0.5)+EK$94*($AD29-0.5)^2+EK$95*($AD29-0.5)^2*LN($AD29/(1-$AD29))+EK$96*($AD29-0.5)^3+EK$97*($AD29-0.5)^3*LN($AD29/(1-$AD29))+EK$98*($AD29-0.5)^4+EK$99*($AD29-0.5)^4*LN($AD29/(1-$AD29))+EK$100*($AD29-0.5)^5+EK$101*($AD29-0.5)^5*LN($AD29/(1-$AD29))+EK$102*($AD29-0.5)^6+EK$103*($AD29-0.5)^6*LN($AD29/(1-$AD29))+EK$104*($AD29-0.5)^7+EK$105*($AD29-0.5)^7*LN($AD29/(1-$AD29))) -> 0.9987784073 | BU29: 0.9986006862 | BV29: 1.007428417 | BW29: =IF(CL29="","",EN$90+EN$91*LN($AD29/(1-$AD29))+EN$92*($AD29-0.5)*LN($AD29/(1-$AD29))+EN$93*($AD29-0.5)+EN$94*($AD29-0.5)^2+EN$95*($AD29-0.5)^2*LN($AD29/(1-$AD29))+EN$96*($AD29-0.5)^3+EN$97*($AD29-0.5)^3*LN($AD29/(1-$AD29))+EN$98*($AD29-0.5)^4+EN$99*($AD29-0.5)^4*LN($AD29/(1-$AD29))+EN$100*($AD29-0.5)^5+EN$101*($AD29-0.5)^5*LN($AD29/(1-$AD29))+EN$102*($AD29-0.5)^6+EN$103*($AD29-0.5)^6*LN($AD29/(1-$AD29))+EN$104*($AD29-0.5)^7+EN$105*($AD29-0.5)^7*LN($AD29/(1-$AD29))) -> 1.007637099 | BX29: =IF(CM29="","",EO$90+EO$91*LN($AD29/(1-$AD29))+EO$92*($AD29-0.5)*LN($AD29/(1-$AD29))+EO$93*($AD29-0.5)+EO$94*($AD29-0.5)^2+EO$95*($AD29-0.5)^2*LN($AD29/(1-$AD29))+EO$96*($AD29-0.5)^3+EO$97*($AD29-0.5)^3*LN($AD29/(1-$AD29))+EO$98*($AD29-0.5)^4+EO$99*($AD29-0.5)^4*LN($AD29/(1-$AD29))+EO$100*($AD29-0.5)^5+EO$101*($AD29-0.5)^5*LN($AD29/(1-$AD29))+EO$102*($AD29-0.5)^6+EO$103*($AD29-0.5)^6*LN($AD29/(1-$AD29))+EO$104*($AD29-0.5)^7+EO$105*($AD29-0.5)^7*LN($AD29/(1-$AD29))) -> 1.01210792 | BY29: =IF(CN29="","",EP$90+EP$91*LN($AD29/(1-$AD29))+EP$92*($AD29-0.5)*LN($AD29/(1-$AD29))+EP$93*($AD29-0.5)+EP$94*($AD29-0.5)^2+EP$95*($AD29-0.5)^2*LN($AD29/(1-$AD29))+EP$96*($AD29-0.5)^3+EP$97*($AD29-0.5)^3*LN($AD29/(1-$AD29))+EP$98*($AD29-0.5)^4+EP$99*($AD29-0.5)^4*LN($AD29/(1-$AD29))+EP$100*($AD29-0.5)^5+EP$101*($AD29-0.5)^5*LN($AD29/(1-$AD29))+EP$102*($AD29-0.5)^6+EP$103*($AD29-0.5)^6*LN($AD29/(1-$AD29))+EP$104*($AD29-0.5)^7+EP$105*($AD29-0.5)^7*LN($AD29/(1-$AD29))) -> 1.014027313 | BZ29: =IF(CO29="","",EQ$90+EQ$91*LN($AD29/(1-$AD29))+EQ$92*($AD29-0.5)*LN($AD29/(1-$AD29))+EQ$93*($AD29-0.5)+EQ$94*($AD29-0.5)^2+EQ$95*($AD29-0.5)^2*LN($AD29/(1-$AD29))+EQ$96*($AD29-0.5)^3+EQ$97*($AD29-0.5)^3*LN($AD29/(1-$AD29))+EQ$98*($AD29-0.5)^4+EQ$99*($AD29-0.5)^4*LN($AD29/(1-$AD29))+EQ$100*($AD29-0.5)^5+EQ$101*($AD29-0.5)^5*LN($AD29/(1-$AD29))+EQ$102*($AD29-0.5)^6+EQ$103*($AD29-0.5)^6*LN($AD29/(1-$AD29))+EQ$104*($AD29-0.5)^7+EQ$105*($AD29-0.5)^7*LN($AD29/(1-$AD29))) -> 1.028925438 | CA29: =IF(AND($EC$41=0,CQ$26="yes"),CQ31,"") -> 0.004424279261 | CB29: 0.004109279074 | CC29: 0.00534352623 | CD29: 0.008099595318 | CE29: 0.02277610145 | CF29: 0.0120828119 | CG29: 0.007865581453 | CH29: 0.005947449497 | CI29: 0.00715975492 | CJ29: 0.007105090205 | CK29: 0.008251432275 | CL29: 0.008570582104 | CM29: 0.007303190473 | CN29: 0.007164799388 | CO29: 0.00549387028 | CQ29: m2 | CR29: m3 | CS29: m4 | CT29: m5 | CU29: m6 | CV29: m7 | CW29: m8 | CX29: m9 | CY29: m10 | CZ29: m11 | DA29: m12 | DB29: m13 | DC29: m14 | DD29: m15 | DE29: m16 | DG29: Y16 | DW29: z | DY29: numeric | DZ29: =SUM(IF(ISNUMBER(AC28:AC10027),1,0)) -> 3474 | EB29: =IF(AND(OR(B11="su",B11="b"),NOT(ISNUMBER(C20))),1,0) -> 0 | EC29: 0 | ED29: you must enter a numeric upper bound | EM29: l list
X30: a3 | Y30: =INDEX(EC92:EQ92,C$17-1) -> -1.553818093 | AB30: 0.0008633093525 | AC30: =IF(C$34="","",IF(ROW()-ROW(S$27)>B$17,"",SMALL(INDEX($C$34:$C$10033,1,1):INDEX($C$34:$C$10033,B$17,1),ROW()-ROW(S$27)))) -> 3 | AD30: 0.003 | AE30: 3.158791348 | AF30: 0.007022648044 | AG30: 2.524021162 | AH30: 2.326084662 | AI30: 2.687533718 | AJ30: 3.05342792 | AK30: 3.31718124 | AL30: 3.290284121 | AM30: 3.185792177 | AN30: 3.181562339 | AO30: 3.158791348 | AP30: 3.160475587 | AQ30: 3.139031334 | AR30: 3.131382404 | AS30: 3.169754067 | AT30: 3.174917799 | AU30: 3.258380629 | AV30: 0.005248080221 | AW30: 0.005282918188 | AX30: 0.005920356235 | AY30: 0.007809785726 | AZ30: 0.01692753563 | BA30: 0.01105085258 | BB30: 0.007754840594 | BC30: 0.006305987256 | BD30: 0.007022648044 | BE30: 0.007009657019 | BF30: 0.007499729842 | BG30: 0.007528218243 | BH30: 0.007792054071 | BI30: 0.007948765965 | BJ30: 0.00930068232 | BL30: 0.9258533288 | BM30: 0.8441864516 | BN30: 0.9886239398 | BO30: 1.116264868 | BP30: 1.199115398 | BQ30: 1.19097392 | BR30: 1.158700979 | BS30: 1.157372378 | BT30: 1.15018947 | BU30: 1.150722519 | BV30: 1.14391426 | BW30: 1.14147457 | BX30: 1.153654004 | BY30: 1.155281742 | BZ30: 1.181230332 | CA30: 0.01324626554 | CB30: 0.01228851497 | CC30: 0.01591115701 | CD30: 0.02384661778 | CE30: 0.05615170362 | CF30: 0.03636044477 | CG30: 0.0247053105 | CH30: 0.02006289156 | CI30: 0.02218307988 | CJ30: 0.02215384988 | CK30: 0.02354188697 | CL30: 0.02357373014 | CM30: 0.02469889509 | CN30: 0.02523667855 | CO30: 0.0303051631 | DG30: =IF(AB28="","",1) -> 1 | DH30: =IF(AB28="","",LN(AB28/(1-AB28))) -> -8.153061947 | DI30: =IF(AB28="","",(AB28-0.5)*DH30) -> 4.074184769 | DJ30: =IF(AB28="","",AB28-0.5) -> -0.4997122302 | DK30: =IF(AB28="","",DJ30^2) -> 0.249712313 | DL30: =IF(AB28="","",DH30*DK30) -> -2.035919957 | DM30: =IF(AB28="","",DJ30^3) -> -0.1247842969 | DN30: =IF(AB28="","",DH30*DM30) -> 1.017374102 | DO30: =IF(AB28="","",DJ30^4) -> 0.06235623928 | DP30: =IF($AB28="","",$DH30*DO30) -> -0.5083942816 | DQ30: =IF(AB28="","",DJ30^5) -> -0.0311601754 | DR30: =IF($AB28="","",DH30*DQ30) -> 0.2540508403 | DS30: =IF(AB28="","",DJ30^6) -> 0.01557112074 | DT30: =IF($AB28="","",DH30*DS30) -> -0.126952312 | DU30: =IF(AB28="","",DJ30^7) -> -0.007781079473 | DV30: =IF($AB28="","",DH30*DU30) -> 0.06343962295 | DW30: =IF(AB28="","",IF($B$11="u",AC28,IF($B$11="sl",LN(AC28-$C$19),IF($B$11="su",-LN($C$20-AC28),IF($B$11="b",LN((AC28-$C$19)/($C$20-AC28)),""))))) -> 0.6931471806 | DY30: contiguous | EB30: =IF(DZ28<>DZ29,1,0) -> 0 | EC30: 0 | ED30: invalid input parameters: x data must be numeric | EM30: 0
X31: a4 | Y31: =INDEX(EC93:EQ93,C$17-1) -> 5.43612836 | AB31: 0.001151079137 | AC31: =IF(C$34="","",IF(ROW()-ROW(S$27)>B$17,"",SMALL(INDEX($C$34:$C$10033,1,1):INDEX($C$34:$C$10033,B$17,1),ROW()-ROW(S$27)))) -> 3 | AD31: 0.006 | AE31: 3.462905572 | AF31: 0.01337683529 | AG31: 2.953662925 | AH31: 2.755892784 | AI31: 3.064668197 | AJ31: 3.335416743 | AK31: 3.456033862 | AL31: 3.485899834 | AM31: 3.459988253 | AN31: 3.507902296 | AO31: 3.462905572 | AP31: 3.464469481 | AQ31: 3.433060906 | AR31: 3.427372465 | AS31: 3.442217088 | AT31: 3.44090872 | AU31: 3.457498895 | AV31: 0.008942392886 | AW31: 0.008878540213 | AX31: 0.01027339247 | AY31: 0.01388847369 | AZ31: 0.02625320483 | BA31: 0.02031522527 | BB31: 0.01484725618 | BC31: 0.01300890667 | BD31: 0.01337683529 | BE31: 0.01341098583 | BF31: 0.01338578195 | BG31: 0.01318214832 | BH31: 0.01478319904 | BI31: 0.01512055506 | BJ31: 0.02171851882 | BL31: 1.08304607 | BM31: 1.01374145 | BN31: 1.119939308 | BO31: 1.204597632 | BP31: 1.240121649 | BQ31: 1.248726213 | BR31: 1.241265194 | BS31: 1.255018222 | BT31: 1.242107997 | BU31: 1.242559513 | BV31: 1.233452256 | BW31: 1.231793923 | BX31: 1.236115766 | BY31: 1.235735599 | BZ31: 1.240545465 | CA31: 0.02641281433 | CB31: 0.0244683049 | CC31: 0.03148453919 | CD31: 0.04632384768 | CE31: 0.09073196486 | CF31: 0.0708168404 | CG31: 0.05137133197 | CH31: 0.04563397358 | CI31: 0.04632271745 | CJ31: 0.04646195111 | CK31: 0.04595420472 | CL31: 0.04518013219 | CM31: 0.05088698034 | CN31: 0.05202844976 | CO31: 0.07509175484 | CQ31: =IF(OR(DH$26="",DH$26="no"),"",(EC$91/($AD29*(1-$AD29)))^-1) -> 0.004424279261 | CR31: =IF(OR(DI$26="",DI$26="no"),"",(ED$91/($AD29*(1-$AD29))+ED$92*(($AD29-0.5)/($AD29*(1-$AD29))+LN($AD29/(1-$AD29))))^-1) -> 0.004109279074 | CS31: =IF(OR(DJ$26="",DJ$26="no"),"",(EE$91/($AD29*(1-$AD29))+EE$92*(($AD29-0.5)/($AD29*(1-$AD29))+LN($AD29/(1-$AD29)))+EE$93)^-1) -> 0.00534352623 | CT31: =IF(OR(DK$26="",DK$26="no"),"",(EF$91/($AD29*(1-$AD29))+EF$92*(($AD29-0.5)/($AD29*(1-$AD29))+LN($AD29/(1-$AD29)))+EF$93+2*EF$94*($AD29-0.5))^-1) -> 0.008099595318 | CU31: =IF(OR(DL$26="",DL$26="no"),"",(EG$91/($AD29*(1-$AD29))+EG$92*(($AD29-0.5)/($AD29*(1-$AD29))+LN($AD29/(1-$AD29)))+EG$93+2*EG$94*($AD29-0.5)+EG$95*(($AD29-0.5)^2/($AD29*(1-$AD29))+2*($AD29-0.5)*LN($AD29/(1-$AD29))))^-1) -> 0.02277610145 | CV31: =IF(OR(DM$26="",DM$26="no"),"",(EH$91/($AD29*(1-$AD29))+EH$92*(($AD29-0.5)/($AD29*(1-$AD29))+LN($AD29/(1-$AD29)))+EH$93+2*EH$94*($AD29-0.5)+EH$95*(($AD29-0.5)^2/($AD29*(1-$AD29))+2*($AD29-0.5)*LN($AD29/(1-$AD29)))+3*EH$96*($AD29-0.5)^2)^-1) -> 0.0120828119 | CW31: =IF(OR(DN$26="",DN$26="no"),"",(EI$91/($AD29*(1-$AD29))+EI$92*(($AD29-0.5)/($AD29*(1-$AD29))+LN($AD29/(1-$AD29)))+EI$93+2*EI$94*($AD29-0.5)+EI$95*(($AD29-0.5)^2/($AD29*(1-$AD29))+2*($AD29-0.5)*LN($AD29/(1-$AD29)))+3*EI$96*($AD29-0.5)^2+EI$97*(($AD29-0.5)^3/($AD29*(1-$AD29))+3*($AD29-0.5)^2*LN($AD29/(1-$AD29))))^-1) -> 0.007865581453 | CX31: =IF(OR(DO$26="",DO$26="no"),"",(EJ$91/($AD29*(1-$AD29))+EJ$92*(($AD29-0.5)/($AD29*(1-$AD29))+LN($AD29/(1-$AD29)))+EJ$93+2*EJ$94*($AD29-0.5)+EJ$95*(($AD29-0.5)^2/($AD29*(1-$AD29))+2*($AD29-0.5)*LN($AD29/(1-$AD29)))+3*EJ$96*($AD29-0.5)^2+EJ$97*(($AD29-0.5)^3/($AD29*(1-$AD29))+3*($AD29-0.5)^2*LN($AD29/(1-$AD29)))+4*EJ$98*($AD29-0.5)^3)^-1) -> 0.005947449497 | CY31: =IF(OR(DP$26="",DP$26="no"),"",(EK$91/($AD29*(1-$AD29))+EK$92*(($AD29-0.5)/($AD29*(1-$AD29))+LN($AD29/(1-$AD29)))+EK$93+2*EK$94*($AD29-0.5)+EK$95*(($AD29-0.5)^2/($AD29*(1-$AD29))+2*($AD29-0.5)*LN($AD29/(1-$AD29)))+3*EK$96*($AD29-0.5)^2+EK$97*(($AD29-0.5)^3/($AD29*(1-$AD29))+3*($AD29-0.5)^2*LN($AD29/(1-$AD29)))+4*EK$98*($AD29-0.5)^3+EK$99*(($AD29-0.5)^4/($AD29*(1-$AD29))+4*($AD29-0.5)^3*LN($AD29/(1-$AD29)))+5*EK$100*($AD29-0.5)^4+EK$101*(($AD29-0.5)^5/($AD29*(1-$AD29))+5*($AD29-0.5)^4*LN($AD29/(1-$AD29)))+6*EK$102*($AD29-0.5)^5+EK$103*(($AD29-0.5)^6/($AD29*(1-$AD29))+6*($AD29-0.5)^5*LN($AD29/(1-$AD29)))+7*EK$104*($AD29-0.5)^6+EK$105*(($AD29-0.5)^7/($AD29*(1-$AD29))+7*($AD29-0.5)^6*LN($AD29/(1-$AD29))))^-1) -> 0.00715975492 | CZ31: 0.007105090205 | DA31: 0.008251432275 | DB31: =IF(OR(DS$26="",DS$26="no"),"",(EN$91/($AD29*(1-$AD29))+EN$92*(($AD29-0.5)/($AD29*(1-$AD29))+LN($AD29/(1-$AD29)))+EN$93+2*EN$94*($AD29-0.5)+EN$95*(($AD29-0.5)^2/($AD29*(1-$AD29))+2*($AD29-0.5)*LN($AD29/(1-$AD29)))+3*EN$96*($AD29-0.5)^2+EN$97*(($AD29-0.5)^3/($AD29*(1-$AD29))+3*($AD29-0.5)^2*LN($AD29/(1-$AD29)))+4*EN$98*($AD29-0.5)^3+EN$99*(($AD29-0.5)^4/($AD29*(1-$AD29))+4*($AD29-0.5)^3*LN($AD29/(1-$AD29)))+5*EN$100*($AD29-0.5)^4+EN$101*(($AD29-0.5)^5/($AD29*(1-$AD29))+5*($AD29-0.5)^4*LN($AD29/(1-$AD29)))+6*EN$102*($AD29-0.5)^5+EN$103*(($AD29-0.5)^6/($AD29*(1-$AD29))+6*($AD29-0.5)^5*LN($AD29/(1-$AD29)))+7*EN$104*($AD29-0.5)^6+EN$105*(($AD29-0.5)^7/($AD29*(1-$AD29))+7*($AD29-0.5)^6*LN($AD29/(1-$AD29))))^-1) -> 0.008570582104 | DC31: =IF(OR(DT$26="",DT$26="no"),"",(EO$91/($AD29*(1-$AD29))+EO$92*(($AD29-0.5)/($AD29*(1-$AD29))+LN($AD29/(1-$AD29)))+EO$93+2*EO$94*($AD29-0.5)+EO$95*(($AD29-0.5)^2/($AD29*(1-$AD29))+2*($AD29-0.5)*LN($AD29/(1-$AD29)))+3*EO$96*($AD29-0.5)^2+EO$97*(($AD29-0.5)^3/($AD29*(1-$AD29))+3*($AD29-0.5)^2*LN($AD29/(1-$AD29)))+4*EO$98*($AD29-0.5)^3+EO$99*(($AD29-0.5)^4/($AD29*(1-$AD29))+4*($AD29-0.5)^3*LN($AD29/(1-$AD29)))+5*EO$100*($AD29-0.5)^4+EO$101*(($AD29-0.5)^5/($AD29*(1-$AD29))+5*($AD29-0.5)^4*LN($AD29/(1-$AD29)))+6*EO$102*($AD29-0.5)^5+EO$103*(($AD29-0.5)^6/($AD29*(1-$AD29))+6*($AD29-0.5)^5*LN($AD29/(1-$AD29)))+7*EO$104*($AD29-0.5)^6+EO$105*(($AD29-0.5)^7/($AD29*(1-$AD29))+7*($AD29-0.5)^6*LN($AD29/(1-$AD29))))^-1) -> 0.007303190473 | DD31: =IF(OR(DU$26="",DU$26="no"),"",(EP$91/($AD29*(1-$AD29))+EP$92*(($AD29-0.5)/($AD29*(1-$AD29))+LN($AD29/(1-$AD29)))+EP$93+2*EP$94*($AD29-0.5)+EP$95*(($AD29-0.5)^2/($AD29*(1-$AD29))+2*($AD29-0.5)*LN($AD29/(1-$AD29)))+3*EP$96*($AD29-0.5)^2+EP$97*(($AD29-0.5)^3/($AD29*(1-$AD29))+3*($AD29-0.5)^2*LN($AD29/(1-$AD29)))+4*EP$98*($AD29-0.5)^3+EP$99*(($AD29-0.5)^4/($AD29*(1-$AD29))+4*($AD29-0.5)^3*LN($AD29/(1-$AD29)))+5*EP$100*($AD29-0.5)^4+EP$101*(($AD29-0.5)^5/($AD29*(1-$AD29))+5*($AD29-0.5)^4*LN($AD29/(1-$AD29)))+6*EP$102*($AD29-0.5)^5+EP$103*(($AD29-0.5)^6/($AD29*(1-$AD29))+6*($AD29-0.5)^5*LN($AD29/(1-$AD29)))+7*EP$104*($AD29-0.5)^6+EP$105*(($AD29-0.5)^7/($AD29*(1-$AD29))+7*($AD29-0.5)^6*LN($AD29/(1-$AD29))))^-1) -> 0.007164799388 | DE31: =IF(OR(DV$26="",DV$26="no"),"",(EQ$91/($AD29*(1-$AD29))+EQ$92*(($AD29-0.5)/($AD29*(1-$AD29))+LN($AD29/(1-$AD29)))+EQ$93+2*EQ$94*($AD29-0.5)+EQ$95*(($AD29-0.5)^2/($AD29*(1-$AD29))+2*($AD29-0.5)*LN($AD29/(1-$AD29)))+3*EQ$96*($AD29-0.5)^2+EQ$97*(($AD29-0.5)^3/($AD29*(1-$AD29))+3*($AD29-0.5)^2*LN($AD29/(1-$AD29)))+4*EQ$98*($AD29-0.5)^3+EQ$99*(($AD29-0.5)^4/($AD29*(1-$AD29))+4*($AD29-0.5)^3*LN($AD29/(1-$AD29)))+5*EQ$100*($AD29-0.5)^4+EQ$101*(($AD29-0.5)^5/($AD29*(1-$AD29))+5*($AD29-0.5)^4*LN($AD29/(1-$AD29)))+6*EQ$102*($AD29-0.5)^5+EQ$103*(($AD29-0.5)^6/($AD29*(1-$AD29))+6*($AD29-0.5)^5*LN($AD29/(1-$AD29)))+7*EQ$104*($AD29-0.5)^6+EQ$105*(($AD29-0.5)^7/($AD29*(1-$AD29))+7*($AD29-0.5)^6*LN($AD29/(1-$AD29))))^-1) -> 0.00549387028 | DG31: 1 | DH31: -7.459626872 | DI31: 3.725520126 | DJ31: -0.4994244604 | DK31: 0.2494247917 | DL31: -1.860615879 | DM31: -0.124568842 | DN31: 0.9292370812 | DO31: 0.0622127267 | DP31: =IF(AB29="","",DH31*DO31) -> -0.4640837279 | DQ31: -0.03107055747 | DR31: 0.2317747654 | DS31: 0.0155173964 | DT31: -0.1157539872 | DU31: -0.007749767323 | DV31: 0.05781037258 | DW31: 1.098612289 | DY31: numeric | DZ31: =SUM(IF(ISNUMBER(INDEX(AC28:AC10027,1,1):INDEX(AC28:AC10027,B17,1)),1,0)) -> 3474 | EB31: =IF(DZ29<>DZ31,1,0) -> 0 | EC31: 0 | ED31: invalid input parameters: x data must be contiguous and start in row 21 | EM31: 1e-08
X32: a5 | Y32: =INDEX(EC94:EQ94,C$17-1) -> 5.546202598 | AB32: 0.001438848921 | AC32: =IF(C$34="","",IF(ROW()-ROW(S$27)>B$17,"",SMALL(INDEX($C$34:$C$10033,1,1):INDEX($C$34:$C$10033,B$17,1),ROW()-ROW(S$27)))) -> 3 | AD32: 0.01 | AE32: 3.694468333 | AF32: 0.02187319544 | AG32: 3.317796036 | AH32: 3.124664582 | AI32: 3.380090739 | AJ32: 3.567816704 | AK32: 3.587858269 | AL32: 3.644239215 | AM32: 3.670034228 | AN32: 3.737300221 | AO32: 3.694468333 | AP32: 3.695151479 | AQ32: 3.670382393 | AR32: 3.669250632 | AS32: 3.658525976 | AT32: 3.654154391 | AU32: 3.6154641 | AV32: 0.01321485963 | AW32: 0.0129785753 | AX32: 0.01531392348 | AY32: 0.02081596334 | AZ32: 0.03419670043 | BA32: 0.03050691368 | BB32: 0.02384807752 | BC32: 0.02295295844 | BD32: 0.02187319544 | BE32: 0.02197792722 | BF32: 0.02084231538 | BG32: 0.02041143754 | BH32: 0.02246882308 | BI32: 0.02256425532 | BJ32: 0.02763930781 | BL32: 1.199300718 | BM32: 1.139326944 | BN32: 1.217902555 | BO32: 1.271953841 | BP32: 1.277555442 | BQ32: 1.293147624 | BR32: 1.300200989 | BS32: 1.318363485 | BT32: 1.306836656 | BU32: 1.307021549 | BV32: 1.300295851 | BW32: 1.299987454 | BX32: 1.297060328 | BY32: 1.29586471 | BZ32: 1.285220229 | CA32: 0.04384420889 | CB32: 0.04055369458 | CC32: 0.05176245094 | CD32: 0.07426754171 | CE32: 0.1226929144 | CF32: 0.1111744912 | CG32: 0.08752326077 | CH32: 0.08578209664 | CI32: 0.08080982792 | CJ32: 0.08121177025 | CK32: 0.07649926739 | CL32: 0.07489468008 | CM32: 0.08220277288 | CN32: 0.08245327266 | CO32: 0.09992892511 | CQ32: 0.01324626554 | CR32: 0.01228851497 | CS32: 0.01591115701 | CT32: 0.02384661778 | CU32: 0.05615170362 | CV32: 0.03636044477 | CW32: 0.0247053105 | CX32: 0.02006289156 | CY32: 0.02218307988 | CZ32: 0.02215384988 | DA32: 0.02354188697 | DB32: 0.02357373014 | DC32: 0.02469889509 | DD32: 0.02523667855 | DE32: 0.0303051631 | DG32: 1 | DH32: -7.053873787 | DI32: 3.520847218 | DJ32: -0.4991366906 | DK32: 0.249137436 | DL32: -1.757384029 | DM32: -0.1243536353 | DN32: 0.8771748484 | DO32: 0.06206946199 | DP32: -0.4378301509 | DQ32: -0.03098114585 | DR32: 0.2185370926 | DS32: 0.01546382661 | DT32: -0.1090798812 | DU32: -0.00771856324 | DV32: 0.05444577091 | DW32: 1.098612289 | EB32: =IF(DY36<>0,1,0) -> 0 | EC32: 0 | ED32: invalid input parameters: x data must be non-decreasing | EM32: 5e-08
B33: data (2-10,000) | X33: a6 | Y33: =INDEX(EC95:EQ95,C$17-1) -> 7.018055009 | AB33: 0.001726618705 | AC33: =IF(C$34="","",IF(ROW()-ROW(S$27)>B$17,"",SMALL(INDEX($C$34:$C$10033,1,1):INDEX($C$34:$C$10033,B$17,1),ROW()-ROW(S$27)))) -> 3 | AD33: 0.02 | AE33: 4.014940998 | AF33: 0.04249060039 | AG33: 3.888818554 | AH33: 3.710823729 | AI33: 3.872011907 | AJ33: 3.932596682 | AK33: 3.837260684 | AL33: 3.899344814 | AM33: 3.973904715 | AN33: 4.02890271 | AO33: 4.014940998 | AP33: 4.014142813 | AQ33: 4.014099938 | AR33: 4.018657047 | AS33: 3.995053597 | AT33: 3.993929628 | AU33: 3.950267391 | AV33: 0.02232109186 | AW33: 0.02157334611 | AX33: 0.02588505203 | AY33: 0.0344131386 | AZ33: 0.04515151261 | BA33: 0.04738746141 | BB33: 0.04291191079 | BC33: 0.04831173524 | BD33: 0.04249060039 | BE33: 0.0426357094 | BF33: 0.03921763559 | BG33: 0.03891833711 | BH33: 0.03776769667 | BI33: 0.03708684733 | BJ33: 0.03253002278 | BL33: 1.358105398 | BM33: 1.311253881 | BN33: 1.353774244 | BO33: 1.369299941 | BP33: 1.344758749 | BQ33: 1.360808543 | BR33: 1.379749167 | BS33: 1.393494058 | BT33: 1.390022652 | BU33: 1.389823828 | BV33: 1.389813147 | BW33: 1.390947779 | BX33: 1.385056995 | BY33: 1.384775615 | BZ33: 1.373783271 | CA33: 0.0868026762 | CB33: 0.08005488467 | CC33: 0.1002272297 | CD33: 0.1353329947 | CE33: 0.1732581242 | CF33: 0.1847800519 | CG33: 0.1705278446 | CH33: 0.194643281 | CI33: 0.1705972535 | CJ33: 0.1711458264 | CK33: 0.1574235086 | CL33: 0.1563994497 | CM33: 0.1508839724 | CN33: 0.1481222583 | CO33: 0.1285022882 | CQ33: 0.02641281433 | CR33: 0.0244683049 | CS33: 0.03148453919 | CT33: 0.04632384768 | CU33: 0.09073196486 | CV33: 0.0708168404 | CW33: 0.05137133197 | CX33: 0.04563397358 | CY33: 0.04632271745 | CZ33: 0.04646195111 | DA33: 0.04595420472 | DB33: 0.04518013219 | DC33: 0.05088698034 | DD33: 0.05202844976 | DE33: 0.07509175484 | DG33: 1 | DH33: -6.765903655 | DI33: 3.375163737 | DJ33: -0.4988489209 | DK33: 0.2488502458 | DL33: -1.683696788 | DM33: -0.1241386766 | DN33: 0.8399103257 | DO33: 0.06192644486 | DP33: -0.4189883596 | DQ33: -0.03089194019 | DR33: 0.209011891 | DS33: 0.01541041103 | DT33: -0.1042653563 | DU33: -0.007687466911 | DV33: 0.05201266047 | DW33: 1.098612289 | DY33: count of | EB33: =IF(B17<2,1,0) -> 0 | EC33: 0 | ED33: at least two x input parameters are required | EM33: 2.5e-07
B34: 1 | C34: 2 | X34: a7 | Y34: =INDEX(EC96:EQ96,C$17-1) -> -16.85195215 | AB34: 0.002014388489 | AC34: =IF(C$34="","",IF(ROW()-ROW(S$27)>B$17,"",SMALL(INDEX($C$34:$C$10033,1,1):INDEX($C$34:$C$10033,B$17,1),ROW()-ROW(S$27)))) -> 3 | AD34: 0.03 | AE34: 4.211275394 | AF34: 0.05950603462 | AG34: 4.27154302 | AH34: 4.108837721 | AI34: 4.203257942 | AJ34: 4.18592256 | AK34: 4.044270337 | AL34: 4.090739143 | AM34: 4.174889042 | AN34: 4.201838764 | AO34: 4.211275394 | AP34: 4.210141931 | AQ34: 4.224849428 | AR34: 4.229262142 | AS34: 4.22007512 | AT34: 4.222668464 | AU34: 4.223308428 | AV34: 0.03017069038 | AW34: 0.02886715241 | AX34: 0.03468942668 | AY34: 0.04450362065 | AZ34: 0.05109791039 | BA34: 0.0564467355 | BB34: 0.05628655258 | BC34: 0.0667517327 | BD34: 0.05950603462 | BE34: 0.05949670587 | BF34: 0.05631770413 | BG34: 0.05683684392 | BH34: 0.05179198503 | BI34: 0.05119384548 | BJ34: 0.04207871747 | BL34: 1.451975125 | BM34: 1.413140196 | BN34: 1.435859925 | BO34: 1.431727124 | BP34: 1.397301148 | BQ34: 1.408725673 | BR34: 1.429087781 | BS34: 1.435522231 | BT34: 1.437765546 | BU34: 1.43749636 | BV34: 1.440983622 | BW34: 1.442027543 | BX34: 1.439852929 | BY34: 1.440467266 | BZ34: 1.440618809 | CA34: 0.1288754019 | CB34: 0.1186104447 | CC34: 0.1458086082 | CD34: 0.1862887097 | CE34: 0.2066537632 | CF34: 0.2309088704 | CG34: 0.2349901115 | CH34: 0.280480018 | CI34: 0.2505962994 | CJ34: 0.2504895761 | CK34: 0.2379338201 | CL34: 0.2403779122 | CM34: 0.2185660675 | CN34: 0.2161746369 | CO34: 0.1777114021 | CQ34: 0.04384420889 | CR34: 0.04055369458 | CS34: 0.05176245094 | CT34: 0.07426754171 | CU34: 0.1226929144 | CV34: 0.1111744912 | CW34: 0.08752326077 | CX34: 0.08578209664 | CY34: 0.08080982792 | CZ34: 0.08121177025 | DA34: 0.07649926739 | DB34: 0.07489468008 | DC34: 0.08220277288 | DD34: 0.08245327266 | DE34: 0.09992892511 | DG34: 1 | DH34: -6.542471961 | DI34: 3.261822352 | DJ34: -0.4985611511 | DK34: 0.2485632214 | DL34: -1.626217906 | DM34: -0.1239239658 | DN34: 0.8107690712 | DO34: 0.06178367502 | DP34: -0.4042179614 | DQ34: -0.03080294013 | DR34: 0.2015273721 | DS34: 0.01535714929 | DT34: -0.1004737186 | DU34: -0.007656478027 | DV34: 0.05009229281 | DW34: 1.098612289 | DY34: non-decreasing | EB34: =IF(AND(OR(B11="sl",B11="b"),C19>=MIN(INDEX(AC28:AC10027,1,1):INDEX(AC28:AC10027,B17,1))),1,0) -> 0 | EC34: 0 | ED34: lower bound must be strictly less than all x input data | EM34: 1.25e-06
B35: =B34+1 -> 2 | C35: 3 | X35: a8 | Y35: =INDEX(EC97:EQ97,C$17-1) -> 5.79673462 | AB35: 0.002302158273 | AC35: =IF(C$34="","",IF(ROW()-ROW(S$27)>B$17,"",SMALL(INDEX($C$34:$C$10033,1,1):INDEX($C$34:$C$10033,B$17,1),ROW()-ROW(S$27)))) -> 3 | AD35: 0.04 | AE35: 4.363738505 | AF35: 0.07109180821 | AG35: 4.56890469 | AH35: 4.420791015 | AI35: 4.463303196 | AJ35: 4.392360405 | AK35: 4.232477677 | AL35: 4.259856697 | AM35: 4.339370684 | AN35: 4.340716506 | AO35: 4.363738505 | AP35: 4.362834222 | AQ35: 4.382933365 | AR35: 4.38512237 | AS35: 4.39152394 | AT35: 4.394981564 | AU35: 4.428006071 | AV35: 0.03722169701 | AW35: 0.03535107085 | AX35: 0.04230105114 | AY35: 0.05226285971 | AZ35: 0.05498002955 | BA35: 0.06139975857 | BB35: 0.0648210216 | BC35: 0.07614986018 | BD35: 0.07109180821 | BE35: 0.07090305765 | BF35: 0.06997158485 | BG35: 0.07123617602 | BH35: 0.06518363261 | BI35: 0.06532494198 | BJ35: 0.05734295257 | BL35: 1.519273502 | BM35: 1.486318643 | BN35: 1.495889119 | BO35: 1.47986676 | BP35: 1.442787561 | BQ35: 1.449235521 | BR35: 1.467729334 | BS35: 1.468039428 | BT35: 1.473329145 | BU35: 1.473121897 | BV35: 1.477718218 | BW35: 1.478217532 | BX35: 1.479676306 | BY35: 1.480463336 | BZ35: 1.487949386 | CA35: 0.170062386 | CB35: 0.1562796964 | CC35: 0.1888024168 | CD35: 0.2295573157 | CE35: 0.2327017477 | CF35: 0.2615541727 | CG35: 0.2812824408 | CH35: 0.3305449551 | CI35: 0.3102260609 | CJ35: 0.3093382864 | CK35: 0.3066807939 | CL35: 0.3123793491 | CM35: 0.2862554831 | CN35: 0.2871019157 | CO35: 0.2539149421 | CQ35: 0.0868026762 | CR35: 0.08005488467 | CS35: 0.1002272297 | CT35: 0.1353329947 | CU35: 0.1732581242 | CV35: 0.1847800519 | CW35: 0.1705278446 | CX35: 0.194643281 | CY35: 0.1705972535 | CZ35: 0.1711458264 | DA35: 0.1574235086 | DB35: 0.1563994497 | DC35: 0.1508839724 | DD35: 0.1481222583 | DE35: =IF(OR(DV$26="",DV$26="no"),"",(EQ$91/($AD33*(1-$AD33))+EQ$92*(($AD33-0.5)/($AD33*(1-$AD33))+LN($AD33/(1-$AD33)))+EQ$93+2*EQ$94*($AD33-0.5)+EQ$95*(($AD33-0.5)^2/($AD33*(1-$AD33))+2*($AD33-0.5)*LN($AD33/(1-$AD33)))+3*EQ$96*($AD33-0.5)^2+EQ$97*(($AD33-0.5)^3/($AD33*(1-$AD33))+3*($AD33-0.5)^2*LN($AD33/(1-$AD33)))+4*EQ$98*($AD33-0.5)^3+EQ$99*(($AD33-0.5)^4/($AD33*(1-$AD33))+4*($AD33-0.5)^3*LN($AD33/(1-$AD33)))+5*EQ$100*($AD33-0.5)^4+EQ$101*(($AD33-0.5)^5/($AD33*(1-$AD33))+5*($AD33-0.5)^4*LN($AD33/(1-$AD33)))+6*EQ$102*($AD33-0.5)^5+EQ$103*(($AD33-0.5)^6/($AD33*(1-$AD33))+6*($AD33-0.5)^5*LN($AD33/(1-$AD33)))+7*EQ$104*($AD33-0.5)^6+EQ$105*(($AD33-0.5)^7/($AD33*(1-$AD33))+7*($AD33-0.5)^6*LN($AD33/(1-$AD33))))^-1) -> 0.1285022882 | DG35: 1 | DH35: -6.359862178 | DI35: 3.168950032 | DJ35: -0.4982733813 | DK35: 0.2482763625 | DL35: -1.579003448 | DM35: -0.1237095026 | DN35: 0.7867753869 | DO35: 0.06164115218 | DP35: -0.3920292323 | DQ35: -0.03071414532 | DR35: 0.1953377312 | DS35: 0.01530404104 | DT35: -0.0973315918 | DU35: -0.007625596278 | DV35: 0.04849774135 | DW35: 1.098612289 | DY35: x input data | EB35: =IF(AND(OR(B11="su",B11="b"),C20<=MAX(INDEX(AC28:AC10027,1,1):INDEX(AC28:AC10027,B17,1))),1,0) -> 0 | EC35: 0 | ED35: upper bound must be strictly greater than all x input data | EM35: 6.25e-06
B36: =B35+1 -> 3 | C36: 3 | X36: a9 | Y36: =INDEX(EC98:EQ98,C$17-1) -> -17.25779764 | AB36: 0.002589928058 | AC36: =IF(C$34="","",IF(ROW()-ROW(S$27)>B$17,"",SMALL(INDEX($C$34:$C$10033,1,1):INDEX($C$34:$C$10033,B$17,1),ROW()-ROW(S$27)))) -> 3 | AD36: 0.05 | AE36: 4.497646641 | AF36: 0.07762203654 | AG36: 4.816384854 | AH36: 4.682128891 | AI36: 4.682423715 | AJ36: 4.572943741 | AK36: 4.409654454 | AL36: 4.41881093 | AM36: 4.487350461 | AN36: 4.468689007 | AO36: 4.497646641 | AP36: 4.497178711 | AQ36: 4.5166576 | AR36: 4.516376948 | AS36: 4.532430983 | AT36: 4.534803674 | AU36: 4.578439984 | AV36: 0.04367666515 | AW36: 0.04124285521 | AX36: 0.04900183827 | AY36: 0.05836754403 | AZ36: 0.05779297991 | BA36: 0.06418358928 | BB36: 0.06993872232 | BC36: 0.07941938415 | BD36: 0.07762203654 | BE36: 0.07734049415 | BF36: 0.07898368263 | BG36: 0.0804355214 | BH36: 0.0765928814 | BI36: 0.07755990823 | BJ36: 0.07703494223 | BL36: 1.572023616 | BM36: 1.543752898 | BN36: 1.543815864 | BO36: 1.520157142 | BP36: 1.483796331 | BQ36: 1.48587064 | BR36: 1.50126243 | BS36: 1.497095079 | BT36: 1.503554291 | BU36: 1.503450247 | BV36: 1.507772251 | BW36: 1.507710112 | BX36: 1.511258436 | BY36: 1.511781791 | BZ36: 1.521358325 | CA36: 0.2103636285 | CB36: 0.1931043639 | CC36: 0.2294473696 | CD36: 0.2669114952 | CE36: 0.2548470712 | CF36: 0.2836151458 | CG36: 0.3138395578 | CH36: 0.3549005289 | CI36: 0.3491164919 | CJ36: 0.3478140238 | CK36: 0.3567422504 | CL36: 0.3632771346 | CM36: 0.3471519487 | CN36: 0.3517189568 | CO36: 0.3526998597 | CQ36: 0.1288754019 | CR36: 0.1186104447 | CS36: 0.1458086082 | CT36: 0.1862887097 | CU36: 0.2066537632 | CV36: 0.2309088704 | CW36: 0.2349901115 | CX36: 0.280480018 | CY36: 0.2505962994 | CZ36: 0.2504895761 | DA36: 0.2379338201 | DB36: 0.2403779122 | DC36: 0.2185660675 | DD36: 0.2161746369 | DE36: 0.1777114021 | DG36: 1 | DH36: -6.205423189 | DI36: 3.090211461 | DJ36: -0.4979856115 | DK36: 0.2479896693 | DL36: -1.538880844 | DM36: -0.1234952871 | DN36: 0.7663405183 | DO36: 0.06149887607 | DP36: -0.3816265516 | DQ36: -0.0306255554 | DR36: 0.1900445317 | DS36: 0.01525108594 | DT36: -0.09463944232 | DU36: -0.007594821356 | DV36: 0.04712908056 | DW36: 1.098612289 | DY36: =IF(B17<2,0,SUM(IF(INDEX(AC28:AC10027,1,1):INDEX(AC28:AC10027,B17-1,1)>INDEX(AC28:AC10027,2,1):INDEX(AC28:AC10027,B17,1),1,0))) -> 0 | EB36: =IF(OR(C17<2,C17>16),1,0) -> 0 | EC36: 0 | ED36: n must be in the range of 2 to 16 | EM36: 3.125e-05
B37: 4 | C37: 3 | X37: a10 | Y37: =INDEX(EC99:EQ99,C$17-1) -> -7.899561574 | AB37: 0.002877697842 | AC37: =IF(C$34="","",IF(ROW()-ROW(S$27)>B$17,"",SMALL(INDEX($C$34:$C$10033,1,1):INDEX($C$34:$C$10033,B$17,1),ROW()-ROW(S$27)))) -> 3 | AD37: 0.06 | AE37: 4.623770684 | AF37: 0.08048166442 | AG37: 5.030810809 | AH37: 4.909744273 | AI37: 4.874796744 | AJ37: 4.737239965 | AK37: 4.579375322 | AL37: 4.572528116 | AM37: 4.62716695 | AN37: 4.59423353 | AO37: 4.623770684 | AP37: 4.623762889 | AQ37: 4.63919133 | AR37: 4.636949891 | AS37: 4.65613561 | AT37: 4.656688934 | AU37: 4.693932928 | AV37: 0.04964987532 | AW37: 0.04666562838 | AX37: 0.05496518104 | AY37: 0.06325434306 | AZ37: 0.05998012979 | BA37: 0.06578899265 | BB37: 0.07283500455 | BC37: 0.07954691431 | BD37: 0.08048166442 | BE37: 0.08019946312 | BF37: 0.08363486687 | BG37: 0.0847700583 | BH37: 0.08456084535 | BI37: 0.08592189034 | BJ37: 0.09612706237 | BL37: 1.615581166 | BM37: 1.591221858 | BN37: 1.58407841 | BO37: 1.55545468 | BP37: 1.521562596 | BQ37: 1.52006625 | BR37: 1.531944791 | BS37: 1.524801937 | BT37: 1.531210538 | BU37: 1.531208852 | BV37: 1.534540069 | BW37: 1.534056799 | BX37: 1.538185836 | BY37: 1.538304666 | BZ37: 1.546270808 | CA37: 0.2497791295 | CB37: 0.2291163017 | CC37: 0.2679440856 | CD37: 0.2996510019 | CE37: 0.2746715262 | CF37: 0.3008220186 | CG37: 0.3370197258 | CH37: 0.365457101 | CI37: 0.3721287606 | CJ37: 0.3708233013 | CK37: 0.3879981493 | CL37: 0.3930745126 | CM37: 0.3937267633 | CN37: 0.4001115159 | CO37: 0.4512139833 | CQ37: 0.170062386 | CR37: 0.1562796964 | CS37: 0.1888024168 | CT37: 0.2295573157 | CU37: 0.2327017477 | CV37: 0.2615541727 | CW37: 0.2812824408 | CX37: 0.3305449551 | CY37: 0.3102260609 | CZ37: 0.3093382864 | DA37: 0.3066807939 | DB37: 0.3123793491 | DC37: 0.2862554831 | DD37: 0.2871019157 | DE37: 0.2539149421 | DG37: 1 | DH37: -6.071603404 | DI37: 3.02182391 | DJ37: -0.4976978417 | DK37: 0.2477031417 | DL37: -1.503955238 | DM37: -0.123281319 | DN37: 0.748515276 | DO37: 0.06135684639 | DP37: -0.3725344374 | DQ37: -0.03053717002 | DR37: 0.1854095855 | DS37: 0.01519828361 | DT37: -0.09227795052 | DU37: -0.007564152952 | DV37: 0.04592653681 | DW37: 1.098612289 | EB37: =IF(C17>B17,1,0) -> 0 | ED37: n must less than or equal to m | EM37: 0.00015625
B38: 5 | C38: 3 | X38: a11 | Y38: =INDEX(EC100:EQ100,C$17-1) -> 0 | AB38: 0.003165467626 | AC38: =IF(C$34="","",IF(ROW()-ROW(S$27)>B$17,"",SMALL(INDEX($C$34:$C$10033,1,1):INDEX($C$34:$C$10033,B$17,1),ROW()-ROW(S$27)))) -> 3 | AD38: 0.07 | AE38: 4.747367387 | AF38: 0.08105069088 | AG38: 5.22159704 | AH38: 5.113124261 | AI38: 5.048275237 | AJ38: 4.890415395 | AK38: 4.743583283 | AL38: 4.723349849 | AM38: 4.762897225 | AN38: 4.720819278 | AO38: 4.747367387 | AP38: 4.747754896 | AQ38: 4.757462306 | AR38: 4.754005483 | AS38: 4.771253658 | AT38: 4.770082839 | AU38: 4.791451934 | AV38: 0.05521469515 | AW38: 0.05169850643 | AX38: 0.06031067257 | AY38: 0.06722155198 | AZ38: 0.06177289792 | BA38: 0.06674024815 | BB38: 0.07434205506 | BC38: 0.07832121896 | BD38: 0.08105069088 | BE38: 0.08082304904 | BF38: 0.0850362078 | BG38: 0.08564258877 | BH38: 0.08856307898 | BI38: 0.08976023035 | BJ38: 0.1074134089 | BL38: 1.652803302 | BM38: 1.631810619 | BN38: 1.619046648 | BO38: 1.587277248 | BP38: 1.556792817 | BQ38: 1.552518262 | BR38: 1.560856144 | BS38: 1.55198236 | BT38: 1.55759023 | BU38: 1.557671853 | BV38: 1.559714397 | BW38: 1.558987522 | BX38: 1.562609092 | BY38: 1.562363671 | BZ38: 1.566833483 | CA38: 0.2883088888 | CB38: 0.2643408875 | CC38: 0.3044648748 | CD38: 0.3287413127 | CE38: 0.2930248859 | CF38: 0.315237541 | CG38: 0.3540835677 | CH38: 0.3697403203 | CI38: 0.3847774066 | CJ38: 0.3837280268 | CK38: 0.4045565532 | CL38: 0.4071453366 | CM38: 0.4225569145 | CN38: 0.4281637344 | CO38: 0.5146661859 | CQ38: 0.2103636285 | CR38: 0.1931043639 | CS38: 0.2294473696 | CT38: 0.2669114952 | CU38: 0.2548470712 | CV38: 0.2836151458 | CW38: 0.3138395578 | CX38: 0.3549005289 | CY38: 0.3491164919 | CZ38: 0.3478140238 | DA38: 0.3567422504 | DB38: 0.3632771346 | DC38: 0.3471519487 | DD38: 0.3517189568 | DE38: 0.3526998597 | DG38: 1 | DH38: -5.953531893 | DI38: 2.961346727 | DJ38: -0.4974100719 | DK38: 0.2474167797 | DL38: -1.473003689 | DM38: -0.1230675982 | DN38: 0.7326868707 | DO38: 0.06121506286 | DP38: -0.3644458291 | DQ38: -0.03044898882 | DR38: 0.1812790261 | DS38: 0.01514563372 | DT38: -0.09017001339 | DU38: -0.007533590759 | DV38: 0.04485147285 | DW38: 1.098612289 | DY38: bounds (large plot) | EB38: =IF(EB36<>0,"",IF(INDEX(DH26:DV26,1,C17-1)<>"yes",1,0)) -> 0 | ED38: matrix did not invert for this n (see documentation sheet) | EM38: 0.00078125
B39: 6 | C39: 3 | X39: a12 | Y39: =INDEX(EC101:EQ101,C$17-1) -> 0 | AB39: 0.00345323741 | AC39: =IF(C$34="","",IF(ROW()-ROW(S$27)>B$17,"",SMALL(INDEX($C$34:$C$10033,1,1):INDEX($C$34:$C$10033,B$17,1),ROW()-ROW(S$27)))) -> 3 | AD39: 0.08 | AE39: 4.871175357 | AF39: 0.08034151009 | AG39: 5.394585262 | AH39: 5.298173975 | AI39: 5.207691416 | AJ39: 5.035574051 | AK39: 4.903446052 | AL39: 4.872480377 | AM39: 4.896721765 | AN39: 4.849863138 | AO39: 4.871175357 | AP39: 4.87185577 | AQ39: 4.875331473 | AR39: 4.871399076 | AS39: 4.883488904 | AT39: 4.881116362 | AU39: 4.883569113 | AV39: 0.06042223651 | AW39: 0.05639657234 | AX39: 0.06512671096 | AY39: 0.0704806837 | AZ39: 0.06330535239 | BA39: 0.0673271789 | BB39: 0.07500015012 | BC39: 0.07663965647 | BD39: 0.08034151009 | BE39: 0.08018891185 | BF39: 0.08439194586 | BG39: 0.0844905073 | BH39: 0.08915068307 | BI39: 0.08985260304 | BJ39: 0.1080940241 | BL39: 1.685395721 | BM39: 1.667362228 | BN39: 1.650136651 | BO39: 1.616527532 | BP39: 1.589938234 | BQ39: 1.583603125 | BR39: 1.588565954 | BS39: 1.578950486 | BT39: 1.583335254 | BU39: 1.583474926 | BV39: 1.584188097 | BW39: 1.58338118 | BX39: 1.585859904 | BY39: 1.585373956 | BZ39: 1.585876328 | CA39: 0.3259529065 | CB39: 0.2987988518 | CC39: 0.3391598136 | CD39: 0.3549107019 | CE39: 0.3104143803 | CF39: 0.3280503581 | CG39: 0.3672548674 | CH39: 0.3716918448 | CI39: 0.3913575841 | CJ39: 0.3906688129 | CK39: 0.4114387097 | CL39: 0.4115869792 | CM39: 0.4353663715 | CN39: 0.4385810109 | CO39: 0.5278846374 | CQ39: 0.2497791295 | CR39: 0.2291163017 | CS39: 0.2679440856 | CT39: 0.2996510019 | CU39: 0.2746715262 | CV39: 0.3008220186 | CW39: 0.3370197258 | CX39: 0.365457101 | CY39: 0.3721287606 | CZ39: 0.3708233013 | DA39: 0.3879981493 | DB39: 0.3930745126 | DC39: 0.3937267633 | DD39: 0.4001115159 | DE39: 0.4512139833 | DG39: 1 | DH39: -5.847882819 | DI39: 2.90711297 | DJ39: -0.4971223022 | DK39: 0.2471305833 | DL39: -1.445190692 | DM39: -0.1228541245 | DN39: 0.7184365239 | DO39: 0.0610735252 | DP39: -0.3571508187 | DQ39: -0.03036101145 | DR39: 0.1775476372 | DS39: 0.01509313591 | DT39: -0.08826289016 | DU39: -0.007503134469 | DV39: 0.04387745115 | DW39: 1.098612289 | DY39: y | DZ39: x | EB39: =IF(EB36<>0,"",IF(INDEX(CQ26:DE26,1,C17-1)<>"yes",1,0)) -> 0 | ED39: inputs (x,y) not feasible for this n | EM39: 0.00390625
B40: 7 | C40: 3 | X40: a13 | Y40: =INDEX(EC102:EQ102,C$17-1) -> 0 | AB40: 0.003741007194 | AC40: =IF(C$34="","",IF(ROW()-ROW(S$27)>B$17,"",SMALL(INDEX($C$34:$C$10033,1,1):INDEX($C$34:$C$10033,B$17,1),ROW()-ROW(S$27)))) -> 3 | AD40: 0.09 | AE40: 4.996641276 | AF40: 0.07900143587 | AG40: 5.553669326 | AH40: 5.46883995 | AI40: 5.356242986 | AJ40: 5.174722484 | AK40: 5.059713248 | AL40: 5.020555339 | AM40: 5.029864133 | AN40: 4.981842595 | AO40: 4.996641276 | AP40: 4.997502336 | AQ40: 4.99498347 | AR40: 4.991203363 | AS40: 4.996576213 | AT40: 4.993663231 | AU40: 4.978631592 | AV40: 0.06531018708 | AW40: 0.06080035127 | AX40: 0.06948170967 | AY40: 0.0731859551 | AZ40: 0.06466115905 | BA40: 0.06771687544 | BB40: 0.07515160898 | BC40: 0.0749190238 | BD40: 0.07900143587 | BE40: 0.07892324886 | BF40: 0.0826423345 | BG40: 0.08235839656 | BH40: 0.08741967951 | BI40: 0.08758214848 | BJ40: 0.1016008302 | BL40: 1.714458849 | BM40: 1.699066519 | BN40: 1.678262794 | BO40: 1.643785711 | BP40: 1.621309811 | BQ40: 1.613540553 | BR40: 1.615392972 | BS40: 1.605799822 | BT40: 1.608765942 | BU40: 1.608938255 | BV40: 1.608434103 | BW40: 1.607677036 | BX40: 1.608752921 | BY40: 1.608169755 | BZ40: 1.605155073 | CA40: 0.3627111827 | CB40: 0.33250739 | CC40: 0.3721609201 | CD40: 0.3787170074 | CE40: 0.327166923 | CF40: 0.3399763205 | CG40: 0.3780023826 | CH40: 0.373234784 | CI40: 0.3947418354 | CJ40: 0.3944191205 | CK40: 0.4127970948 | CL40: 0.4110675059 | CM40: 0.4367990912 | CN40: 0.4373557545 | CO40: 0.505833103 | CQ40: 0.2883088888 | CR40: 0.2643408875 | CS40: 0.3044648748 | CT40: 0.3287413127 | CU40: 0.2930248859 | CV40: 0.315237541 | CW40: 0.3540835677 | CX40: 0.3697403203 | CY40: 0.3847774066 | CZ40: 0.3837280268 | DA40: 0.4045565532 | DB40: 0.4071453366 | DC40: 0.4225569145 | DD40: 0.4281637344 | DE40: 0.5146661859 | DG40: 1 | DH40: -5.752283997 | DI40: 2.85793333 | DJ40: -0.4968345324 | DK40: 0.2468445526 | DL40: -1.419919969 | DM40: -0.1226408978 | DN40: 0.705465274 | DO40: 0.06093223313 | DP40: -0.3504995095 | DQ40: -0.03027323755 | DR40: 0.1741402599 | DS40: 0.01504078982 | DT40: -0.0865188946 | DU40: -0.007472783778 | DV40: 0.04298557454 | DW40: 1.098612289 | DY40: =DY45 -> 0 | DZ40: =DZ45 -> 0 | EA40: bl | EB40: =SUM(EB27:EB39) -> 0 | EC40: =SUM(EC27:EC39) -> 0 | ED40: =IF(EB40=0,"(none)",VLOOKUP(1,EB27:EK39,3,0)) -> (none) | EM40: 0.01953125
B41: 8 | C41: 3 | X41: a14 | Y41: =INDEX(EC103:EQ103,C$17-1) -> 0 | AB41: 0.004028776978 | AC41: =IF(C$34="","",IF(ROW()-ROW(S$27)>B$17,"",SMALL(INDEX($C$34:$C$10033,1,1):INDEX($C$34:$C$10033,B$17,1),ROW()-ROW(S$27)))) -> 3 | AD41: 0.1 | AE41: 5.124493578 | AF41: 0.07741563101 | AG41: 5.701585233 | AH41: 5.627901561 | AI41: 5.496162383 | AJ41: 5.309228755 | AK41: 5.21288842 | AL41: 5.167899966 | AM41: 5.163020709 | AN41: 5.116774188 | AO41: 5.124493578 | AP41: 5.125428158 | AQ41: 5.11761834 | AR41: 5.11446771 | AS41: 5.112868689 | AT41: 5.110039362 | AU41: 5.081599577 | AV41: 0.06990752588 | AW41: 0.0649408824 | AX41: 0.07343036528 | AY41: 0.07545234795 | AZ41: 0.06589553046 | BA41: 0.0680093572 | BB41: 0.07501238651 | BC41: 0.07334201001 | BD41: 0.07741563101 | BE41: 0.07740132865 | BF41: 0.08041080858 | BG41: 0.07988689622 | BH41: 0.08444691744 | BI41: 0.08419312883 | BJ41: 0.09267008157 | BL41: 1.740744247 | BM41: 1.727736648 | BN41: 1.7040501 | BO41: 1.669446581 | BP41: 1.651134101 | BQ41: 1.64246641 | BR41: 1.641521817 | BS41: 1.632524199 | BT41: 1.634031706 | BU41: 1.634214065 | BV41: 1.632689163 | BW41: 1.63207333 | BX41: 1.631760634 | BY41: 1.631207107 | BZ41: 1.625626089 | CA41: 0.3985837172 | CB41: 0.3654808934 | CC41: 0.4035852114 | CD41: 0.4005937754 | CE41: 0.3435060476 | CF41: 0.3514655548 | CG41: 0.387290505 | CH41: 0.3752745037 | CI41: 0.396715904 | CJ41: 0.3967149493 | CK41: 0.4115118287 | CL41: 0.4085789512 | CM41: 0.4317660001 | CN41: 0.4302302023 | CO41: 0.4709122473 | CQ41: 0.3259529065 | CR41: 0.2987988518 | CS41: 0.3391598136 | CT41: 0.3549107019 | CU41: 0.3104143803 | CV41: 0.3280503581 | CW41: 0.3672548674 | CX41: 0.3716918448 | CY41: 0.3913575841 | CZ41: 0.3906688129 | DA41: 0.4114387097 | DB41: 0.4115869792 | DC41: 0.4353663715 | DD41: 0.4385810109 | DE41: 0.5278846374 | DG41: 1 | DH41: -5.664983895 | DI41: 2.812929413 | DJ41: -0.4965467626 | DK41: 0.2465586874 | DL41: -1.396750993 | DM41: -0.122427918 | DN41: 0.6935521839 | DO41: 0.06079118635 | DP41: -0.3443810916 | DQ41: -0.03018566678 | DR41: 0.1710013161 | DS41: 0.01498859511 | DT41: -0.08491014993 | DU41: -0.00744253838 | DV41: 0.04216186006 | DW41: 1.098612289 | DY41: =DY10046 ->  | DZ41: =DZ10046 ->  | EA41: bu
B42: 9 | C42: 3 | X42: a15 | Y42: =INDEX(EC104:EQ104,C$17-1) -> 0 | AB42: 0.004316546763 | AC42: =IF(C$34="","",IF(ROW()-ROW(S$27)>B$17,"",SMALL(INDEX($C$34:$C$10033,1,1):INDEX($C$34:$C$10033,B$17,1),ROW()-ROW(S$27)))) -> 3 | AD42: 0.11 | AE42: 5.255037205 | AF42: 0.07580341112 | AG42: 5.840335026 | AH42: 5.777396674 | AI42: 5.629073701 | AJ42: 5.440063995 | AK42: 5.363320796 | AL42: 5.314659031 | AM42: 5.296577782 | AN42: 5.254439178 | AO42: 5.255037205 | AP42: 5.255951152 | AQ42: 5.243826909 | AR42: 5.241627281 | AS42: 5.23373361 | AT42: 5.23148212 | AU42: 5.194936231 | AV42: 0.07423726691 | AW42: 0.0688426781 | AX42: 0.07701747408 | AY42: 0.07736720409 | AZ42: 0.06704652629 | BA42: 0.06826650312 | BB42: 0.07471934696 | BC42: 0.07198135678 | BD42: 0.07580341112 | BE42: 0.07583923335 | BF42: 0.07807208229 | BG42: 0.07742992191 | BH42: 0.08102495904 | BI42: 0.08052239552 | BJ42: 0.08412380072 | BL42: 1.764788163 | BM42: 1.753953179 | BN42: 1.727944899 | BO42: 1.693790825 | BP42: 1.679583335 | BQ42: 1.670468858 | BR42: 1.667060911 | BS42: 1.659073277 | BT42: 1.659187084 | BU42: 1.659360987 | BV42: 1.657051558 | BW42: 1.656632 | BX42: 1.655124907 | BY42: 1.654694626 | BZ42: 1.647684349 | CA42: 0.4335705102 | CB42: 0.3977314595 | CC42: 0.4335370378 | CD42: 0.4208825414 | CE42: 0.3595920287 | CF42: 0.3628131873 | CG42: 0.395756833 | CH42: 0.3782216611 | CI42: 0.3983497457 | CJ42: 0.3986073059 | CK42: 0.409396486 | CL42: 0.4058587911 | CM42: 0.4240630514 | CN42: 0.4212514724 | CO42: 0.4370177803 | CQ42: 0.3627111827 | CR42: 0.33250739 | CS42: 0.3721609201 | CT42: 0.3787170074 | CU42: 0.327166923 | CV42: 0.3399763205 | CW42: 0.3780023826 | CX42: 0.373234784 | CY42: 0.3947418354 | CZ42: 0.3944191205 | DA42: 0.4127970948 | DB42: 0.4110675059 | DC42: 0.4367990912 | DD42: 0.4373557545 | DE42: 0.505833103 | DG42: 1 | DH42: -5.584652378 | DI42: 2.771433964 | DJ42: -0.4962589928 | DK42: 0.2462729879 | DL42: -1.375349028 | DM42: -0.122215185 | DN42: 0.6825293233 | DO42: 0.06065038459 | DP42: -0.3387113145 | DQ42: -0.03009829877 | DR42: 0.1680885358 | DS42: 0.01493655143 | DT42: -0.08341544748 | DU42: -0.00741239797 | DV42: 0.04139566595 | DW42: 1.098612289 | EB42: regularization (lI)
B43: 10 | C43: 3 | X43: a16 | Y43: =INDEX(EC105:EQ105,C$17-1) -> 0 | AB43: 0.004604316547 | AC43: =IF(C$34="","",IF(ROW()-ROW(S$27)>B$17,"",SMALL(INDEX($C$34:$C$10033,1,1):INDEX($C$34:$C$10033,B$17,1),ROW()-ROW(S$27)))) -> 3 | AD43: 0.12 | AE43: 5.388316095 | AF43: 0.07428522093 | AG43: 5.97143174 | AH43: 5.918868116 | AI43: 5.756197818 | AJ43: 5.567939558 | AK43: 5.51125809 | AL43: 5.46086757 | AM43: 5.43072978 | AN43: 5.394497635 | AO43: 5.388316095 | AP43: 5.389131956 | AQ43: 5.373807982 | AR43: 5.372736748 | AS43: 5.359829449 | AT43: 5.358482768 | AU43: 5.319350531 | AV43: 0.07831816253 | AW43: 0.07252556637 | AX43: 0.08028040962 | AY43: 0.07899793648 | AZ43: 0.06814131679 | BA43: 0.06852772905 | BB43: 0.07435994818 | BC43: 0.07085925953 | BD43: 0.07428522093 | BE43: 0.07435749032 | BF43: 0.0758357895 | BG43: 0.07516678114 | BH43: 0.07764266783 | BI43: 0.07703813999 | BJ43: 0.07700037768 | BL43: 1.786986721 | BM43: 1.778145234 | BN43: 1.750277156 | BO43: 1.717025068 | BP43: 1.706792926 | BQ43: 1.697607673 | BR43: 1.692073523 | BS43: 1.685379478 | BT43: 1.684232923 | BU43: 1.684384325 | BV43: 1.681536779 | BW43: 1.681337415 | BX43: 1.678932155 | BY43: 1.678680869 | BZ43: 1.671351215 | CA43: 0.4676715615 | CB43: 0.4292692624 | CC43: 0.4621099187 | CD43: 0.4398557355 | CE43: 0.3755443834 | CF43: 0.3742208532 | CG43: 0.403828785 | CH43: 0.382250108 | CI43: 0.4002722515 | CJ43: 0.4007223273 | CK43: 0.4075269709 | CL43: 0.4038513272 | CM43: 0.4161514575 | CN43: 0.4128075456 | CO43: 0.4095919999 | CQ43: 0.3985837172 | CR43: 0.3654808934 | CS43: 0.4035852114 | CT43: 0.4005937754 | CU43: 0.3435060476 | CV43: 0.3514655548 | CW43: 0.387290505 | CX43: 0.3752745037 | CY43: 0.396715904 | CZ43: 0.3967149493 | DA43: 0.4115118287 | DB43: 0.4085789512 | DC43: 0.4317660001 | DD43: 0.4302302023 | DE43: 0.4709122473 | DG43: 1 | DH43: -5.510255514 | DI43: 2.732928166 | DJ43: -0.495971223 | DK43: 0.2459874541 | DL43: -1.355453725 | DM43: -0.1220026984 | DN43: 0.6722660418 | DO43: 0.06050982756 | DP43: -0.333424611 | DQ43: -0.03001113318 | DR43: 0.1653690121 | DS43: 0.01488465843 | DT43: -0.08201827117 | DU43: -0.007382362244 | DV43: 0.04067870226 | DW43: 1.098612289 | DY43: input data (large plot) | EB43: 0 | EC43: =IF(COLUMN()-COLUMN($EB42)+1=ROW()-ROW(EC$42),INDEX($EM$30:$EM$40,$C$23+1,1),0) -> 0 | ED43: =IF(COLUMN()-COLUMN($EB42)+1=ROW()-ROW(ED$42),INDEX($EM$30:$EM$40,$C$23+1,1),0) -> 0 | EE43: =IF(COLUMN()-COLUMN($EB42)+1=ROW()-ROW(EE$42),INDEX($EM$30:$EM$40,$C$23+1,1),0) -> 0 | EF43: =IF(COLUMN()-COLUMN($EB42)+1=ROW()-ROW(EF$42),INDEX($EM$30:$EM$40,$C$23+1,1),0) -> 0 | EG43: =IF(COLUMN()-COLUMN($EB42)+1=ROW()-ROW(EG$42),INDEX($EM$30:$EM$40,$C$23+1,1),0) -> 0 | EH43: =IF(COLUMN()-COLUMN($EB42)+1=ROW()-ROW(EH$42),INDEX($EM$30:$EM$40,$C$23+1,1),0) -> 0 | EI43: =IF(COLUMN()-COLUMN($EB42)+1=ROW()-ROW(EI$42),INDEX($EM$30:$EM$40,$C$23+1,1),0) -> 0 | EJ43: =IF(COLUMN()-COLUMN($EB42)+1=ROW()-ROW(EJ$42),INDEX($EM$30:$EM$40,$C$23+1,1),0) -> 0 | EK43: =IF(COLUMN()-COLUMN($EB42)+1=ROW()-ROW(EK$42),INDEX($EM$30:$EM$40,$C$23+1,1),0) -> 0 | EL43: =IF(COLUMN()-COLUMN($EB42)+1=ROW()-ROW(EL$42),INDEX($EM$30:$EM$40,$C$23+1,1),0) -> 0 | EM43: =IF(COLUMN()-COLUMN($EB42)+1=ROW()-ROW(EM$42),INDEX($EM$30:$EM$40,$C$23+1,1),0) -> 0 | EN43: =IF(COLUMN()-COLUMN($EB42)+1=ROW()-ROW(EN$42),INDEX($EM$30:$EM$40,$C$23+1,1),0) -> 0 | EO43: =IF(COLUMN()-COLUMN($EB42)+1=ROW()-ROW(EO$42),INDEX($EM$30:$EM$40,$C$23+1,1),0) -> 0 | EP43: =IF(COLUMN()-COLUMN($EB42)+1=ROW()-ROW(EP$42),INDEX($EM$30:$EM$40,$C$23+1,1),0) -> 0 | EQ43: =IF(COLUMN()-COLUMN($EB42)+1=ROW()-ROW(EQ$42),INDEX($EM$30:$EM$40,$C$23+1,1),0) -> 0
B44: 11 | C44: 3 | X44: moments | AB44: 0.004892086331 | AC44: =IF(C$34="","",IF(ROW()-ROW(S$27)>B$17,"",SMALL(INDEX($C$34:$C$10033,1,1):INDEX($C$34:$C$10033,B$17,1),ROW()-ROW(S$27)))) -> 3 | AD44: 0.13 | AE44: 5.524207938 | AF44: 0.07292436624 | AG44: 6.096049371 | AH44: 6.053514861 | AI44: 5.878477395 | AJ44: 5.69338966 | AK44: 5.656878775 | AL44: 5.606491867 | AM44: 5.565547577 | AN44: 5.536549378 | AO44: 5.524207938 | AP44: 5.524866263 | AQ44: 5.507500546 | AR44: 5.507610101 | AS44: 5.491303834 | AT44: 5.491018965 | AU44: 5.45436348 | AV44: 0.08216581606 | AW44: 0.07600589782 | AX44: 0.08325081251 | AY44: 0.08039730361 | AZ44: 0.06919986294 | BA44: 0.06881881533 | BB44: 0.07399060116 | BC44: 0.06997543523 | BD44: 0.07292436624 | BE44: 0.07302087919 | BF44: 0.07381114053 | BG44: 0.07317874988 | BH44: 0.07456270335 | BI44: 0.07396303475 | BJ44: 0.07145764817 | BL44: 1.807640917 | BM44: 1.800639072 | BN44: 1.771297782 | BO44: 1.739305793 | BP44: 1.732872287 | BQ44: 1.723925188 | BR44: 1.716595377 | BS44: 1.711371451 | BT44: 1.709139877 | BU44: 1.709259041 | BV44: 1.706110899 | BW44: 1.706130791 | BX44: 1.70316572 | BY44: 1.703113842 | BZ44: 1.696415927 | CA44: 0.5008868713 | CB44: 0.460102832 | CC44: 0.4893880195 | CD44: 0.4577331771 | CE44: 0.3914552359 | CF44: 0.3858321284 | CG44: 0.411798211 | CH44: 0.3874224524 | CI44: 0.4028493628 | CJ44: 0.4034305919 | CK44: 0.4065148968 | CL44: 0.4030400221 | CM44: 0.4094464588 | CN44: 0.4061324265 | CO44: 0.3897559865 | CQ44: 0.4335705102 | CR44: 0.3977314595 | CS44: 0.4335370378 | CT44: 0.4208825414 | CU44: 0.3595920287 | CV44: 0.3628131873 | CW44: 0.395756833 | CX44: 0.3782216611 | CY44: 0.3983497457 | CZ44: 0.3986073059 | DA44: 0.409396486 | DB44: 0.4058587911 | DC44: 0.4240630514 | DD44: 0.4212514724 | DE44: 0.4370177803 | DG44: 1 | DH44: -5.440973667 | DI44: 2.697000616 | DJ44: -0.4956834532 | DK44: 0.2457020858 | DL44: -1.336858579 | DM44: -0.1217904584 | DN44: 0.6626586768 | DO44: 0.06036951497 | DP44: -0.3284689413 | DQ44: -0.02992416965 | DR44: 0.1628166191 | DS44: 0.01483291575 | DT44: -0.08070550399 | DU44: -0.0073524309 | DV44: 0.04000438291 | DW44: 1.098612289 | DY44: y | DZ44: x | EB44: =IF(COLUMN()-COLUMN($EB43)+1=ROW()-ROW(EB$42),INDEX($EM$30:$EM$40,$C$23+1,1),0) -> 0 | EC44: =IF(COLUMN()-COLUMN($EB43)+1=ROW()-ROW(EC$42),INDEX($EM$30:$EM$40,$C$23+1,1),0) -> 0 | ED44: =IF(COLUMN()-COLUMN($EB43)+1=ROW()-ROW(ED$42),INDEX($EM$30:$EM$40,$C$23+1,1),0) -> 0 | EE44: =IF(COLUMN()-COLUMN($EB43)+1=ROW()-ROW(EE$42),INDEX($EM$30:$EM$40,$C$23+1,1),0) -> 0 | EF44: =IF(COLUMN()-COLUMN($EB43)+1=ROW()-ROW(EF$42),INDEX($EM$30:$EM$40,$C$23+1,1),0) -> 0 | EG44: =IF(COLUMN()-COLUMN($EB43)+1=ROW()-ROW(EG$42),INDEX($EM$30:$EM$40,$C$23+1,1),0) -> 0 | EH44: =IF(COLUMN()-COLUMN($EB43)+1=ROW()-ROW(EH$42),INDEX($EM$30:$EM$40,$C$23+1,1),0) -> 0 | EI44: =IF(COLUMN()-COLUMN($EB43)+1=ROW()-ROW(EI$42),INDEX($EM$30:$EM$40,$C$23+1,1),0) -> 0 | EJ44: =IF(COLUMN()-COLUMN($EB43)+1=ROW()-ROW(EJ$42),INDEX($EM$30:$EM$40,$C$23+1,1),0) -> 0 | EK44: =IF(COLUMN()-COLUMN($EB43)+1=ROW()-ROW(EK$42),INDEX($EM$30:$EM$40,$C$23+1,1),0) -> 0 | EL44: =IF(COLUMN()-COLUMN($EB43)+1=ROW()-ROW(EL$42),INDEX($EM$30:$EM$40,$C$23+1,1),0) -> 0 | EM44: =IF(COLUMN()-COLUMN($EB43)+1=ROW()-ROW(EM$42),INDEX($EM$30:$EM$40,$C$23+1,1),0) -> 0 | EN44: =IF(COLUMN()-COLUMN($EB43)+1=ROW()-ROW(EN$42),INDEX($EM$30:$EM$40,$C$23+1,1),0) -> 0 | EO44: =IF(COLUMN()-COLUMN($EB43)+1=ROW()-ROW(EO$42),INDEX($EM$30:$EM$40,$C$23+1,1),0) -> 0 | EP44: =IF(COLUMN()-COLUMN($EB43)+1=ROW()-ROW(EP$42),INDEX($EM$30:$EM$40,$C$23+1,1),0) -> 0 | EQ44: =IF(COLUMN()-COLUMN($EB43)+1=ROW()-ROW(EQ$42),INDEX($EM$30:$EM$40,$C$23+1,1),0) -> 0
B45: 12 | C45: 3 | X45: (unbounded only) | Z45: data | AB45: 0.005179856115 | AC45: =IF(C$34="","",IF(ROW()-ROW(S$27)>B$17,"",SMALL(INDEX($C$34:$C$10033,1,1):INDEX($C$34:$C$10033,B$17,1),ROW()-ROW(S$27)))) -> 3 | AD45: 0.14 | AE45: 5.662482144 | AF45: 0.07175179816 | AG45: 6.215119096 | AH45: 6.182289185 | AI45: 5.996656698 | AJ45: 5.816823607 | AK45: 5.800312766 | AL45: 5.751454477 | AM45: 5.701019938 | AN45: 5.680168057 | AO45: 5.662482144 | AP45: 5.662941343 | AQ45: 5.644667825 | AR45: 5.645907643 | AS45: 5.627937474 | AT45: 5.628718923 | AU45: 5.598724901 | AV45: 0.08579343876 | AW45: 0.07929736949 | AX45: 0.08595578937 | AY45: 0.08160710263 | AZ45: 0.07023718331 | BA45: 0.06915705043 | BB45: 0.07364803187 | BC45: 0.06932035665 | BD45: 0.07175179816 | BE45: 0.07186223974 | BF45: 0.07204946088 | BG45: 0.07149501003 | BH45: 0.07190586805 | BI45: 0.07138002948 | BJ45: 0.06734457005 | BL45: 1.826984887 | BM45: 1.821688621 | BN45: 1.791202097 | BO45: 1.760754341 | BP45: 1.757911841 | BQ45: 1.749452775 | BR45: 1.740645095 | BS45: 1.73698082 | BT45: 1.733862337 | BU45: 1.733943429 | BV45: 1.730711352 | BW45: 1.730930972 | BX45: 1.727743029 | BY45: 1.727881872 | BZ45: 1.722538876 | CA45: 0.5332164395 | CB45: 0.4902392698 | CC45: 0.5154473601 | CD45: 0.4746941211 | CE45: 0.407397631 | CF45: 0.3977536273 | CG45: 0.4198688981 | CH45: 0.3937512755 | CI45: 0.4062932759 | CJ45: 0.4069516485 | CK45: 0.4066952736 | CL45: 0.4036542235 | CM45: 0.4046817294 | CN45: 0.4017781227 | CO45: 0.3770437213 | CQ45: 0.4676715615 | CR45: 0.4292692624 | CS45: 0.4621099187 | CT45: 0.4398557355 | CU45: 0.3755443834 | CV45: 0.3742208532 | CW45: 0.403828785 | CX45: 0.382250108 | CY45: 0.4002722515 | CZ45: 0.4007223273 | DA45: 0.4075269709 | DB45: 0.4038513272 | DC45: 0.4161514575 | DD45: 0.4128075456 | DE45: 0.4095919999 | DG45: 1 | DH45: -5.376146087 | DI45: 2.663319565 | DJ45: -0.4953956835 | DK45: 0.2454168832 | DL45: -1.319397016 | DM45: -0.1215784646 | DN45: 0.6536235866 | DO45: 0.06022944655 | DP45: -0.3238023034 | DQ45: -0.02983740784 | DR45: 0.1604102634 | DS45: 0.01478132305 | DT45: -0.07946655206 | DU45: -0.007322603634 | DV45: 0.03936738687 | DW45: 1.098612289 | DY45: =IF(OR($B$11="sl",$B$11="b"),0,NA()) -> 0 | DZ45: =IF(OR($B$11="sl",$B$11="b"),C$19,NA()) -> 0 | EB45: =IF(COLUMN()-COLUMN($EB44)+1=ROW()-ROW(EB$42),INDEX($EM$30:$EM$40,$C$23+1,1),0) -> 0 | EC45: =IF(COLUMN()-COLUMN($EB44)+1=ROW()-ROW(EC$42),INDEX($EM$30:$EM$40,$C$23+1,1),0) -> 0 | ED45: =IF(COLUMN()-COLUMN($EB44)+1=ROW()-ROW(ED$42),INDEX($EM$30:$EM$40,$C$23+1,1),0) -> 0 | EE45: =IF(COLUMN()-COLUMN($EB44)+1=ROW()-ROW(EE$42),INDEX($EM$30:$EM$40,$C$23+1,1),0) -> 0 | EF45: =IF(COLUMN()-COLUMN($EB44)+1=ROW()-ROW(EF$42),INDEX($EM$30:$EM$40,$C$23+1,1),0) -> 0 | EG45: =IF(COLUMN()-COLUMN($EB44)+1=ROW()-ROW(EG$42),INDEX($EM$30:$EM$40,$C$23+1,1),0) -> 0 | EH45: =IF(COLUMN()-COLUMN($EB44)+1=ROW()-ROW(EH$42),INDEX($EM$30:$EM$40,$C$23+1,1),0) -> 0 | EI45: =IF(COLUMN()-COLUMN($EB44)+1=ROW()-ROW(EI$42),INDEX($EM$30:$EM$40,$C$23+1,1),0) -> 0 | EJ45: =IF(COLUMN()-COLUMN($EB44)+1=ROW()-ROW(EJ$42),INDEX($EM$30:$EM$40,$C$23+1,1),0) -> 0 | EK45: =IF(COLUMN()-COLUMN($EB44)+1=ROW()-ROW(EK$42),INDEX($EM$30:$EM$40,$C$23+1,1),0) -> 0 | EL45: =IF(COLUMN()-COLUMN($EB44)+1=ROW()-ROW(EL$42),INDEX($EM$30:$EM$40,$C$23+1,1),0) -> 0 | EM45: =IF(COLUMN()-COLUMN($EB44)+1=ROW()-ROW(EM$42),INDEX($EM$30:$EM$40,$C$23+1,1),0) -> 0 | EN45: =IF(COLUMN()-COLUMN($EB44)+1=ROW()-ROW(EN$42),INDEX($EM$30:$EM$40,$C$23+1,1),0) -> 0 | EO45: =IF(COLUMN()-COLUMN($EB44)+1=ROW()-ROW(EO$42),INDEX($EM$30:$EM$40,$C$23+1,1),0) -> 0 | EP45: =IF(COLUMN()-COLUMN($EB44)+1=ROW()-ROW(EP$42),INDEX($EM$30:$EM$40,$C$23+1,1),0) -> 0 | EQ45: =IF(COLUMN()-COLUMN($EB44)+1=ROW()-ROW(EQ$42),INDEX($EM$30:$EM$40,$C$23+1,1),0) -> 0
B46: 13 | C46: 3 | N46: chart titles | X46: mean | Y46: =INDEX(EC109:EQ109,C$17-1) ->  | Z46: =ER109 -> 10.17587795 | AB46: 0.005467625899 | AC46: =IF(C$34="","",IF(ROW()-ROW(S$27)>B$17,"",SMALL(INDEX($C$34:$C$10033,1,1):INDEX($C$34:$C$10033,B$17,1),ROW()-ROW(S$27)))) -> 3 | AD46: 0.15 | AE46: 5.802836885 | AF46: 0.07078052057 | AG46: 6.329393401 | AH46: 6.305961527 | AI46: 6.111334593 | AJ46: 5.93856012 | AK46: 5.94165522 | AL46: 5.895650201 | AM46: 5.837079735 | AN46: 5.824921053 | AO46: 5.802836885 | AP46: 5.803072215 | AQ46: 5.784952898 | AR46: 5.787192082 | AS46: 5.769250738 | AT46: 5.77097881 | AU46: 5.750718621 | AV46: 0.08921238265 | AW46: 0.08241160638 | AX46: 0.08841879117 | AY46: 0.08266080768 | AZ46: 0.07126480535 | BA46: 0.06955431955 | BB46: 0.07335636829 | BC46: 0.06888145186 | BD46: 0.07078052057 | BE46: 0.07089643434 | BF46: 0.07057012249 | BG46: 0.07011853151 | BH46: 0.06971318331 | BI46: 0.06930082272 | BJ46: 0.06444606151 | BL46: 1.845204402 | BM46: 1.84149546 | BN46: 1.810145177 | BO46: 1.7814667 | BP46: 1.781987751 | BQ46: 1.774214825 | BR46: 1.764230626 | BS46: 1.762145446 | BT46: 1.758346916 | BU46: 1.75838747 | BV46: 1.755260219 | BW46: 1.755647214 | BX46: 1.752542217 | BY46: 1.752841704 | BZ46: 1.749324825 | CA46: =IF(AND($EC$41=0,CQ$26="yes"),CQ48,"") -> 0.5646602661 | CB46: 0.5196844192 | CC46: 0.5403568172 | CD46: 0.490886176 | CE46: 0.4234309027 | CF46: 0.410067938 | CG46: 0.4281869708 | CH46: 0.4012290191 | CI46: 0.4107278155 | CJ46: 0.4114171283 | CK46: 0.4082448346 | CL46: 0.4057894104 | CM46: 0.4021928342 | CN46: 0.3999335794 | CO46: 0.370611166 | CQ46: 0.5008868713 | CR46: 0.460102832 | CS46: 0.4893880195 | CT46: 0.4577331771 | CU46: 0.3914552359 | CV46: 0.3858321284 | CW46: 0.411798211 | CX46: 0.3874224524 | CY46: 0.4028493628 | CZ46: 0.4034305919 | DA46: 0.4065148968 | DB46: 0.4030400221 | DC46: 0.4094464588 | DD46: 0.4061324265 | DE46: 0.3897559865 | DG46: 1 | DH46: -5.315232322 | DI46: 2.631613586 | DJ46: -0.4951079137 | DK46: 0.2451318462 | DL46: -1.302932712 | DM46: -0.1213667169 | DN46: 0.6450922967 | DO46: 0.06008962201 | DP46: -0.3193903011 | DQ46: -0.02975084739 | DR46: 0.1581326656 | DS46: 0.01472987998 | DT46: -0.07829273417 | DU46: -0.007292880145 | DV46: 0.03876335227 | DW46: 1.098612289 | DY46: =IF(AB28="",NA(),AB28) -> 0.0002877697842 | DZ46: =IF(AC28="",NA(),AC28) -> 2 | EB46: =IF(COLUMN()-COLUMN($EB45)+1=ROW()-ROW(EB$42),INDEX($EM$30:$EM$40,$C$23+1,1),0) -> 0 | EC46: =IF(COLUMN()-COLUMN($EB45)+1=ROW()-ROW(EC$42),INDEX($EM$30:$EM$40,$C$23+1,1),0) -> 0 | ED46: =IF(COLUMN()-COLUMN($EB45)+1=ROW()-ROW(ED$42),INDEX($EM$30:$EM$40,$C$23+1,1),0) -> 0 | EE46: =IF(COLUMN()-COLUMN($EB45)+1=ROW()-ROW(EE$42),INDEX($EM$30:$EM$40,$C$23+1,1),0) -> 0 | EF46: =IF(COLUMN()-COLUMN($EB45)+1=ROW()-ROW(EF$42),INDEX($EM$30:$EM$40,$C$23+1,1),0) -> 0 | EG46: =IF(COLUMN()-COLUMN($EB45)+1=ROW()-ROW(EG$42),INDEX($EM$30:$EM$40,$C$23+1,1),0) -> 0 | EH46: =IF(COLUMN()-COLUMN($EB45)+1=ROW()-ROW(EH$42),INDEX($EM$30:$EM$40,$C$23+1,1),0) -> 0 | EI46: =IF(COLUMN()-COLUMN($EB45)+1=ROW()-ROW(EI$42),INDEX($EM$30:$EM$40,$C$23+1,1),0) -> 0 | EJ46: =IF(COLUMN()-COLUMN($EB45)+1=ROW()-ROW(EJ$42),INDEX($EM$30:$EM$40,$C$23+1,1),0) -> 0 | EK46: =IF(COLUMN()-COLUMN($EB45)+1=ROW()-ROW(EK$42),INDEX($EM$30:$EM$40,$C$23+1,1),0) -> 0 | EL46: =IF(COLUMN()-COLUMN($EB45)+1=ROW()-ROW(EL$42),INDEX($EM$30:$EM$40,$C$23+1,1),0) -> 0 | EM46: =IF(COLUMN()-COLUMN($EB45)+1=ROW()-ROW(EM$42),INDEX($EM$30:$EM$40,$C$23+1,1),0) -> 0 | EN46: =IF(COLUMN()-COLUMN($EB45)+1=ROW()-ROW(EN$42),INDEX($EM$30:$EM$40,$C$23+1,1),0) -> 0 | EO46: =IF(COLUMN()-COLUMN($EB45)+1=ROW()-ROW(EO$42),INDEX($EM$30:$EM$40,$C$23+1,1),0) -> 0 | EP46: =IF(COLUMN()-COLUMN($EB45)+1=ROW()-ROW(EP$42),INDEX($EM$30:$EM$40,$C$23+1,1),0) -> 0 | EQ46: =IF(COLUMN()-COLUMN($EB45)+1=ROW()-ROW(EQ$42),INDEX($EM$30:$EM$40,$C$23+1,1),0) -> 0
B47: 14 | C47: 3 | N47: =C27 & " cumulative" -> steelhead weight cumulative | R47: =C27 & " density" -> steelhead weight density | X47: std dev | Y47: =INDEX(EC110:EQ110,C$17-1) ->  | Z47: =ER110 -> 4.2286553 | AB47: 0.005755395683 | AC47: =IF(C$34="","",IF(ROW()-ROW(S$27)>B$17,"",SMALL(INDEX($C$34:$C$10033,1,1):INDEX($C$34:$C$10033,B$17,1),ROW()-ROW(S$27)))) -> 3 | AD47: 0.16 | AE47: 5.944923778 | AF47: 0.07001388603 | AG47: 6.439490242 | AH47: 6.425165208 | AI47: 6.223000893 | AJ47: 6.058850661 | AK47: 6.080976045 | AL47: 6.0389567 | AM47: 5.973621163 | AN47: 5.970381545 | AO47: 5.944923778 | AP47: 5.944925804 | AQ47: 5.927917006 | AR47: 5.930965997 | AS47: 5.91458421 | AT47: 5.917048024 | AU47: 5.908388296 | AV47: 0.09243252628 | AW47: 0.08535858381 | AX47: 0.09066027379 | AY47: 0.0835854879 | AZ47: 0.07229172497 | BA47: 0.07001900806 | BB47: 0.07313161115 | BC47: 0.06864593958 | BD47: 0.07001388603 | BE47: 0.07012846987 | BF47: 0.06937571423 | BG47: 0.06904014381 | BH47: 0.0679847779 | BI47: 0.06770473432 | BJ47: 0.06256612878 | BL47: 1.862449382 | BM47: 1.860222344 | BN47: 1.828252249 | BO47: 1.801520122 | BP47: 1.805165217 | BQ47: 1.798231265 | BR47: 1.787353304 | BS47: 1.786810836 | BT47: 1.782537709 | BU47: 1.78253805 | BV47: 1.779672888 | BW47: 1.7801871 | BX47: 1.777421201 | BY47: 1.77783768 | BZ47: 1.776373086 | CA47: 0.5952183511 | CB47: 0.5484430029 | CC47: 0.5641789647 | CD47: 0.5064319887 | CE47: 0.4396042478 | CF47: 0.4228417579 | CG47: 0.4368605401 | CH47: 0.4098424508 | CI47: 0.4162272159 | CJ47: 0.4169085501 | CK47: 0.4112534762 | CL47: 0.4094747453 | CM47: 0.4021016939 | CN47: 0.4006121644 | CO47: 0.3696649831 | CQ47: 0.5332164395 | CR47: 0.4902392698 | CS47: 0.5154473601 | CT47: 0.4746941211 | CU47: 0.407397631 | CV47: 0.3977536273 | CW47: 0.4198688981 | CX47: 0.3937512755 | CY47: =IF(OR(DP$26="",DP$26="no"),"",(EK$91/($AD45*(1-$AD45))+EK$92*(($AD45-0.5)/($AD45*(1-$AD45))+LN($AD45/(1-$AD45)))+EK$93+2*EK$94*($AD45-0.5)+EK$95*(($AD45-0.5)^2/($AD45*(1-$AD45))+2*($AD45-0.5)*LN($AD45/(1-$AD45)))+3*EK$96*($AD45-0.5)^2+EK$97*(($AD45-0.5)^3/($AD45*(1-$AD45))+3*($AD45-0.5)^2*LN($AD45/(1-$AD45)))+4*EK$98*($AD45-0.5)^3+EK$99*(($AD45-0.5)^4/($AD45*(1-$AD45))+4*($AD45-0.5)^3*LN($AD45/(1-$AD45)))+5*EK$100*($AD45-0.5)^4+EK$101*(($AD45-0.5)^5/($AD45*(1-$AD45))+5*($AD45-0.5)^4*LN($AD45/(1-$AD45)))+6*EK$102*($AD45-0.5)^5+EK$103*(($AD45-0.5)^6/($AD45*(1-$AD45))+6*($AD45-0.5)^5*LN($AD45/(1-$AD45)))+7*EK$104*($AD45-0.5)^6+EK$105*(($AD45-0.5)^7/($AD45*(1-$AD45))+7*($AD45-0.5)^6*LN($AD45/(1-$AD45))))^-1) -> 0.4062932759 | CZ47: 0.4069516485 | DA47: 0.4066952736 | DB47: 0.4036542235 | DC47: 0.4046817294 | DD47: 0.4017781227 | DE47: 0.3770437213 | DG47: 1 | DH47: -5.257784682 | DI47: 2.601657773 | DJ47: -0.4948201439 | DK47: 0.2448469748 | DL47: -1.287352674 | DM47: -0.1211552153 | DN47: 0.6370080351 | DO47: 0.05995004107 | DP47: -0.3152044076 | DQ47: -0.02966448795 | DR47: 0.1559694903 | DS47: 0.01467858619 | DT47: -0.07717684564 | DU47: -0.007263260132 | DV47: 0.03818865787 | DW47: 1.098612289 | DY47: 0.0005755395683 | DZ47: 3 | EB47: =IF(COLUMN()-COLUMN($EB46)+1=ROW()-ROW(EB$42),INDEX($EM$30:$EM$40,$C$23+1,1),0) -> 0 | EC47: =IF(COLUMN()-COLUMN($EB46)+1=ROW()-ROW(EC$42),INDEX($EM$30:$EM$40,$C$23+1,1),0) -> 0 | ED47: =IF(COLUMN()-COLUMN($EB46)+1=ROW()-ROW(ED$42),INDEX($EM$30:$EM$40,$C$23+1,1),0) -> 0 | EE47: =IF(COLUMN()-COLUMN($EB46)+1=ROW()-ROW(EE$42),INDEX($EM$30:$EM$40,$C$23+1,1),0) -> 0 | EF47: =IF(COLUMN()-COLUMN($EB46)+1=ROW()-ROW(EF$42),INDEX($EM$30:$EM$40,$C$23+1,1),0) -> 0 | EG47: =IF(COLUMN()-COLUMN($EB46)+1=ROW()-ROW(EG$42),INDEX($EM$30:$EM$40,$C$23+1,1),0) -> 0 | EH47: =IF(COLUMN()-COLUMN($EB46)+1=ROW()-ROW(EH$42),INDEX($EM$30:$EM$40,$C$23+1,1),0) -> 0 | EI47: =IF(COLUMN()-COLUMN($EB46)+1=ROW()-ROW(EI$42),INDEX($EM$30:$EM$40,$C$23+1,1),0) -> 0 | EJ47: =IF(COLUMN()-COLUMN($EB46)+1=ROW()-ROW(EJ$42),INDEX($EM$30:$EM$40,$C$23+1,1),0) -> 0 | EK47: =IF(COLUMN()-COLUMN($EB46)+1=ROW()-ROW(EK$42),INDEX($EM$30:$EM$40,$C$23+1,1),0) -> 0 | EL47: =IF(COLUMN()-COLUMN($EB46)+1=ROW()-ROW(EL$42),INDEX($EM$30:$EM$40,$C$23+1,1),0) -> 0 | EM47: =IF(COLUMN()-COLUMN($EB46)+1=ROW()-ROW(EM$42),INDEX($EM$30:$EM$40,$C$23+1,1),0) -> 0 | EN47: =IF(COLUMN()-COLUMN($EB46)+1=ROW()-ROW(EN$42),INDEX($EM$30:$EM$40,$C$23+1,1),0) -> 0 | EO47: =IF(COLUMN()-COLUMN($EB46)+1=ROW()-ROW(EO$42),INDEX($EM$30:$EM$40,$C$23+1,1),0) -> 0 | EP47: =IF(COLUMN()-COLUMN($EB46)+1=ROW()-ROW(EP$42),INDEX($EM$30:$EM$40,$C$23+1,1),0) -> 0 | EQ47: =IF(COLUMN()-COLUMN($EB46)+1=ROW()-ROW(EQ$42),INDEX($EM$30:$EM$40,$C$23+1,1),0) -> 0
B48: 15 | C48: 3 | X48: skewness | Y48: =INDEX(EC111:EQ111,C$17-1) ->  | Z48: =ER111 -> 1.188935786 | AB48: 0.006043165468 | AC48: =IF(C$34="","",IF(ROW()-ROW(S$27)>B$17,"",SMALL(INDEX($C$34:$C$10033,1,1):INDEX($C$34:$C$10033,B$17,1),ROW()-ROW(S$27)))) -> 3 | AD48: 0.17 | AE48: 6.088365037 | AF48: 0.06945034731 | AG48: 6.545924279 | AH48: 6.540428111 | AI48: 6.332061975 | AJ48: 6.177895736 | AK48: 6.218326647 | AL48: 6.181241802 | AM48: 6.110511435 | AN48: 6.116136133 | AO48: 6.088365037 | AP48: 6.088137789 | AQ48: 6.073067 | AR48: 6.076697739 | AS48: 6.063160947 | AT48: 6.066092206 | AU48: 6.069706977 | AV48: 0.09546256079 | AW48: 0.08814694167 | AX48: 0.092698206 | AY48: 0.08440322357 | AZ48: 0.07332505792 | BA48: 0.07055720045 | BB48: 0.07298448925 | BC48: 0.06860204453 | BD48: 0.06945034731 | BE48: 0.06955820459 | BF48: 0.06846069041 | BG48: 0.06824598222 | BH48: 0.06670215831 | BI48: 0.06655907354 | BJ48: 0.06154730057 | BL48: 1.878842609 | BM48: 1.878002624 | BN48: 1.84562593 | BO48: 1.820977718 | BP48: 1.827500843 | BQ48: 1.82151919 | BR48: 1.810010474 | BS48: 1.810930546 | BT48: 1.806379579 | BU48: 1.806342253 | BV48: 1.803863749 | BW48: 1.804461413 | BX48: 1.802231273 | BY48: 1.80271461 | BZ48: 1.80331033 | CA48: 0.6248906945 | CB48: 0.5765187352 | CC48: 0.5869707854 | CD48: 0.521434315 | CE48: 0.4559591616 | CF48: 0.4361311168 | CG48: 0.4459725561 | CH48: 0.4195794434 | CI48: 0.4228390664 | CJ48: 0.4234799339 | CK48: 0.4157663597 | CL48: 0.4147102059 | CM48: 0.4044259214 | CN48: 0.4037534772 | CO48: 0.3735740797 | CQ48: 0.5646602661 | CR48: 0.5196844192 | CS48: 0.5403568172 | CT48: 0.490886176 | CU48: 0.4234309027 | CV48: 0.410067938 | CW48: 0.4281869708 | CX48: 0.4012290191 | CY48: 0.4107278155 | CZ48: 0.4114171283 | DA48: 0.4082448346 | DB48: 0.4057894104 | DC48: 0.4021928342 | DD48: 0.3999335794 | DE48: 0.370611166 | DG48: 1 | DH48: -5.203428151 | DI48: 2.573263677 | DJ48: -0.4945323741 | DK48: 0.244562269 | DL48: -1.272562195 | DM48: -0.1209439595 | DN48: 0.6293232036 | DO48: 0.05981070343 | DP48: -0.311220698 | DQ48: -0.02957832917 | DR48: 0.1539087106 | DS48: 0.01462744134 | DT48: -0.07611284007 | DU48: -0.007233743295 | DV48: 0.0376402635 | DW48: 1.098612289 | DY48: 0.0008633093525 | DZ48: 3 | EB48: =IF(COLUMN()-COLUMN($EB47)+1=ROW()-ROW(EB$42),INDEX($EM$30:$EM$40,$C$23+1,1),0) -> 0 | EC48: =IF(COLUMN()-COLUMN($EB47)+1=ROW()-ROW(EC$42),INDEX($EM$30:$EM$40,$C$23+1,1),0) -> 0 | ED48: =IF(COLUMN()-COLUMN($EB47)+1=ROW()-ROW(ED$42),INDEX($EM$30:$EM$40,$C$23+1,1),0) -> 0 | EE48: =IF(COLUMN()-COLUMN($EB47)+1=ROW()-ROW(EE$42),INDEX($EM$30:$EM$40,$C$23+1,1),0) -> 0 | EF48: =IF(COLUMN()-COLUMN($EB47)+1=ROW()-ROW(EF$42),INDEX($EM$30:$EM$40,$C$23+1,1),0) -> 0 | EG48: =IF(COLUMN()-COLUMN($EB47)+1=ROW()-ROW(EG$42),INDEX($EM$30:$EM$40,$C$23+1,1),0) -> 0 | EH48: =IF(COLUMN()-COLUMN($EB47)+1=ROW()-ROW(EH$42),INDEX($EM$30:$EM$40,$C$23+1,1),0) -> 0 | EI48: =IF(COLUMN()-COLUMN($EB47)+1=ROW()-ROW(EI$42),INDEX($EM$30:$EM$40,$C$23+1,1),0) -> 0 | EJ48: =IF(COLUMN()-COLUMN($EB47)+1=ROW()-ROW(EJ$42),INDEX($EM$30:$EM$40,$C$23+1,1),0) -> 0 | EK48: =IF(COLUMN()-COLUMN($EB47)+1=ROW()-ROW(EK$42),INDEX($EM$30:$EM$40,$C$23+1,1),0) -> 0 | EL48: =IF(COLUMN()-COLUMN($EB47)+1=ROW()-ROW(EL$42),INDEX($EM$30:$EM$40,$C$23+1,1),0) -> 0 | EM48: =IF(COLUMN()-COLUMN($EB47)+1=ROW()-ROW(EM$42),INDEX($EM$30:$EM$40,$C$23+1,1),0) -> 0 | EN48: =IF(COLUMN()-COLUMN($EB47)+1=ROW()-ROW(EN$42),INDEX($EM$30:$EM$40,$C$23+1,1),0) -> 0 | EO48: =IF(COLUMN()-COLUMN($EB47)+1=ROW()-ROW(EO$42),INDEX($EM$30:$EM$40,$C$23+1,1),0) -> 0 | EP48: =IF(COLUMN()-COLUMN($EB47)+1=ROW()-ROW(EP$42),INDEX($EM$30:$EM$40,$C$23+1,1),0) -> 0 | EQ48: =IF(COLUMN()-COLUMN($EB47)+1=ROW()-ROW(EQ$42),INDEX($EM$30:$EM$40,$C$23+1,1),0) -> 0
B49: 16 | C49: 3 | X49: kurtosis | Y49: =INDEX(EC115:EQ115,C$17-1) ->  | Z49: =ER115 -> 5.659496007 | AB49: 0.006330935252 | AC49: =IF(C$34="","",IF(ROW()-ROW(S$27)>B$17,"",SMALL(INDEX($C$34:$C$10033,1,1):INDEX($C$34:$C$10033,B$17,1),ROW()-ROW(S$27)))) -> 3 | AD49: 0.18 | AE49: 6.232765901 | AF49: 0.06908616211 | AG49: 6.649129516 | AH49: 6.652195665 | AI49: 6.438859286 | AJ49: 6.295856566 | AK49: 6.353744829 | AL49: 6.322368701 | AM49: 6.247599001 | AN49: 6.26178983 | AO49: 6.232765901 | AP49: 6.232324866 | AQ49: 6.219875837 | AR49: 6.223839989 | AS49: 6.21413564 | AT49: 6.217240536 | AU49: 6.23270532 | AV49: 0.09831020657 | AW49: 0.09078422303 | AX49: 0.09454846739 | AY49: 0.08513216609 | AZ49: 0.07437049179 | BA49: 0.07117344859 | BB49: 0.07292230605 | BC49: 0.06873943292 | BD49: 0.06908616211 | BE49: 0.06918306452 | BF49: 0.06781619619 | BG49: 0.06772130767 | BH49: 0.0658401661 | BI49: 0.06582909742 | BJ49: 0.06126841395 | BL49: 1.894485946 | BM49: 1.894946975 | BN49: 1.862351395 | BO49: 1.839891729 | BP49: 1.849044376 | BQ49: 1.844093932 | BR49: 1.83219723 | BS49: 1.83446606 | BT49: 1.829820199 | BU49: 1.829749436 | BV49: 1.827749945 | BW49: 1.828387078 | BX49: 1.826826639 | BY49: 1.827326165 | BZ49: 1.829810479 | CA49: 0.6536772963 | CB49: 0.6039144149 | CC49: 0.6087842773 | CD49: 0.5359799069 | CE49: 0.4725311276 | CF49: 0.4499847837 | CG49: 0.4555893264 | CH49: 0.430431882 | CI49: 0.4305978754 | CJ49: 0.4311713333 | CK49: 0.42180832 | CL49: 0.4214865828 | CM49: 0.4091397227 | CN49: 0.4092753329 | CO49: 0.3818679696 | CQ49: 0.5952183511 | CR49: 0.5484430029 | CS49: 0.5641789647 | CT49: 0.5064319887 | CU49: 0.4396042478 | CV49: 0.4228417579 | CW49: 0.4368605401 | CX49: 0.4098424508 | CY49: 0.4162272159 | CZ49: 0.4169085501 | DA49: 0.4112534762 | DB49: 0.4094747453 | DC49: 0.4021016939 | DD49: 0.4006121644 | DE49: 0.3696649831 | DG49: 1 | DH49: -5.151845463 | DI49: 2.546271822 | DJ49: -0.4942446043 | DK49: 0.2442777289 | DL49: -1.258481109 | DM49: -0.1207329495 | DN49: 0.6219974979 | DO49: 0.05967160883 | DP49: -0.3074189072 | DQ49: -0.0294923707 | DR49: 0.1519401362 | DS49: 0.01457644509 | DT49: -0.07509559248 | DU49: -0.007204329334 | DV49: 0.03711559139 | DW49: 1.098612289 | DY49: 0.001151079137 | DZ49: 3 | EB49: =IF(COLUMN()-COLUMN($EB48)+1=ROW()-ROW(EB$42),INDEX($EM$30:$EM$40,$C$23+1,1),0) -> 0 | EC49: =IF(COLUMN()-COLUMN($EB48)+1=ROW()-ROW(EC$42),INDEX($EM$30:$EM$40,$C$23+1,1),0) -> 0 | ED49: =IF(COLUMN()-COLUMN($EB48)+1=ROW()-ROW(ED$42),INDEX($EM$30:$EM$40,$C$23+1,1),0) -> 0 | EE49: =IF(COLUMN()-COLUMN($EB48)+1=ROW()-ROW(EE$42),INDEX($EM$30:$EM$40,$C$23+1,1),0) -> 0 | EF49: =IF(COLUMN()-COLUMN($EB48)+1=ROW()-ROW(EF$42),INDEX($EM$30:$EM$40,$C$23+1,1),0) -> 0 | EG49: =IF(COLUMN()-COLUMN($EB48)+1=ROW()-ROW(EG$42),INDEX($EM$30:$EM$40,$C$23+1,1),0) -> 0 | EH49: =IF(COLUMN()-COLUMN($EB48)+1=ROW()-ROW(EH$42),INDEX($EM$30:$EM$40,$C$23+1,1),0) -> 0 | EI49: =IF(COLUMN()-COLUMN($EB48)+1=ROW()-ROW(EI$42),INDEX($EM$30:$EM$40,$C$23+1,1),0) -> 0 | EJ49: =IF(COLUMN()-COLUMN($EB48)+1=ROW()-ROW(EJ$42),INDEX($EM$30:$EM$40,$C$23+1,1),0) -> 0 | EK49: =IF(COLUMN()-COLUMN($EB48)+1=ROW()-ROW(EK$42),INDEX($EM$30:$EM$40,$C$23+1,1),0) -> 0 | EL49: =IF(COLUMN()-COLUMN($EB48)+1=ROW()-ROW(EL$42),INDEX($EM$30:$EM$40,$C$23+1,1),0) -> 0 | EM49: =IF(COLUMN()-COLUMN($EB48)+1=ROW()-ROW(EM$42),INDEX($EM$30:$EM$40,$C$23+1,1),0) -> 0 | EN49: =IF(COLUMN()-COLUMN($EB48)+1=ROW()-ROW(EN$42),INDEX($EM$30:$EM$40,$C$23+1,1),0) -> 0 | EO49: =IF(COLUMN()-COLUMN($EB48)+1=ROW()-ROW(EO$42),INDEX($EM$30:$EM$40,$C$23+1,1),0) -> 0 | EP49: =IF(COLUMN()-COLUMN($EB48)+1=ROW()-ROW(EP$42),INDEX($EM$30:$EM$40,$C$23+1,1),0) -> 0 | EQ49: =IF(COLUMN()-COLUMN($EB48)+1=ROW()-ROW(EQ$42),INDEX($EM$30:$EM$40,$C$23+1,1),0) -> 0
B50: 17 | C50: 3 | X50: (skewness, kurtosis standardized) | AB50: 0.006618705036 | AC50: =IF(C$34="","",IF(ROW()-ROW(S$27)>B$17,"",SMALL(INDEX($C$34:$C$10033,1,1):INDEX($C$34:$C$10033,B$17,1),ROW()-ROW(S$27)))) -> 3 | AD50: 0.19 | AE50: 6.377724021 | AF50: 0.06891691443 | AG50: 6.749476038 | AH50: 6.760847861 | AI50: 6.543682981 | AJ50: 6.412863628 | AK50: 6.487258428 | AL50: 6.462199764 | AM50: 6.384719504 | AN50: 6.406969439 | AO50: 6.377724021 | AP50: 6.377094067 | AQ50: 6.36779849 | AR50: 6.371843498 | AS50: 6.366634112 | AT50: 6.369621675 | AU50: 6.395567445 | AV50: 0.1009823804 | AW50: 0.09327705881 | AX50: 0.09622516514 | AY50: 0.08578734142 | AZ50: 0.07543260502 | BA50: 0.07187126999 | BB50: 0.07295014785 | BC50: 0.069049277 | BD50: 0.06891691443 | BE50: 0.06899959783 | BF50: 0.06743269019 | BG50: 0.06745236927 | BH50: 0.06537298528 | BI50: 0.06548244344 | BJ50: 0.06163644933 | BL50: 1.909464878 | BM50: 1.911148305 | BN50: 1.878500154 | BO50: 1.858305915 | BP50: 1.869840011 | BQ50: 1.865969781 | BR50: 1.853907558 | BS50: 1.857386373 | BT50: 1.852811297 | BU50: 1.852712518 | BV50: 1.851253804 | BW50: 1.851888831 | BX50: 1.851070933 | BY50: 1.851540076 | BZ50: 1.855605164 | CA50: 0.6815781565 | CB50: 0.6306320036 | CC50: 0.6296669755 | CD50: 0.5501425216 | CE50: 0.4893508027 | CF50: 0.4644465039 | CG50: 0.4657662318 | CH50: 0.4423966075 | CI50: 0.4395330606 | CJ50: 0.440016926 | CK50: 0.4293977827 | CL50: 0.4297959406 | CM50: 0.4162058781 | CN50: 0.4170983911 | CO50: 0.3942000687 | CQ50: 0.6248906945 | CR50: 0.5765187352 | CS50: 0.5869707854 | CT50: 0.521434315 | CU50: 0.4559591616 | CV50: 0.4361311168 | CW50: 0.4459725561 | CX50: 0.4195794434 | CY50: 0.4228390664 | CZ50: 0.4234799339 | DA50: 0.4157663597 | DB50: 0.4147102059 | DC50: 0.4044259214 | DD50: 0.4037534772 | DE50: 0.3735740797 | DG50: 1 | DH50: -5.102765821 | DI50: 2.520546052 | DJ50: -0.4939568345 | DK50: 0.2439933544 | DL50: -1.245040949 | DM50: -0.120522185 | DN50: 0.6149964862 | DO50: 0.05953275698 | DP50: -0.3037817176 | DQ50: -0.02940661219 | DR50: 0.1500550556 | DS50: 0.01452559707 | DT50: -0.07412072027 | DU50: -0.007175017949 | DV50: 0.03661243636 | DW50: 1.098612289 | DY50: 0.001438848921 | DZ50: 3 | EB50: =IF(COLUMN()-COLUMN($EB49)+1=ROW()-ROW(EB$42),INDEX($EM$30:$EM$40,$C$23+1,1),0) -> 0 | EC50: =IF(COLUMN()-COLUMN($EB49)+1=ROW()-ROW(EC$42),INDEX($EM$30:$EM$40,$C$23+1,1),0) -> 0 | ED50: =IF(COLUMN()-COLUMN($EB49)+1=ROW()-ROW(ED$42),INDEX($EM$30:$EM$40,$C$23+1,1),0) -> 0 | EE50: =IF(COLUMN()-COLUMN($EB49)+1=ROW()-ROW(EE$42),INDEX($EM$30:$EM$40,$C$23+1,1),0) -> 0 | EF50: =IF(COLUMN()-COLUMN($EB49)+1=ROW()-ROW(EF$42),INDEX($EM$30:$EM$40,$C$23+1,1),0) -> 0 | EG50: =IF(COLUMN()-COLUMN($EB49)+1=ROW()-ROW(EG$42),INDEX($EM$30:$EM$40,$C$23+1,1),0) -> 0 | EH50: =IF(COLUMN()-COLUMN($EB49)+1=ROW()-ROW(EH$42),INDEX($EM$30:$EM$40,$C$23+1,1),0) -> 0 | EI50: =IF(COLUMN()-COLUMN($EB49)+1=ROW()-ROW(EI$42),INDEX($EM$30:$EM$40,$C$23+1,1),0) -> 0 | EJ50: =IF(COLUMN()-COLUMN($EB49)+1=ROW()-ROW(EJ$42),INDEX($EM$30:$EM$40,$C$23+1,1),0) -> 0 | EK50: =IF(COLUMN()-COLUMN($EB49)+1=ROW()-ROW(EK$42),INDEX($EM$30:$EM$40,$C$23+1,1),0) -> 0 | EL50: =IF(COLUMN()-COLUMN($EB49)+1=ROW()-ROW(EL$42),INDEX($EM$30:$EM$40,$C$23+1,1),0) -> 0 | EM50: =IF(COLUMN()-COLUMN($EB49)+1=ROW()-ROW(EM$42),INDEX($EM$30:$EM$40,$C$23+1,1),0) -> 0 | EN50: =IF(COLUMN()-COLUMN($EB49)+1=ROW()-ROW(EN$42),INDEX($EM$30:$EM$40,$C$23+1,1),0) -> 0 | EO50: =IF(COLUMN()-COLUMN($EB49)+1=ROW()-ROW(EO$42),INDEX($EM$30:$EM$40,$C$23+1,1),0) -> 0 | EP50: =IF(COLUMN()-COLUMN($EB49)+1=ROW()-ROW(EP$42),INDEX($EM$30:$EM$40,$C$23+1,1),0) -> 0 | EQ50: =IF(COLUMN()-COLUMN($EB49)+1=ROW()-ROW(EQ$42),INDEX($EM$30:$EM$40,$C$23+1,1),0) -> 0
B51: 18 | C51: 3 | E51: metalog quantile function (QF) | K51: example | X51: calculate y given x | AB51: 0.00690647482 | AC51: =IF(C$34="","",IF(ROW()-ROW(S$27)>B$17,"",SMALL(INDEX($C$34:$C$10033,1,1):INDEX($C$34:$C$10033,B$17,1),ROW()-ROW(S$27)))) -> 4 | AD51: 0.2 | AE51: 6.52283683 | AF51: 0.06893834938 | AG51: 6.847282623 | AH51: 6.866712085 | AI51: 6.646782164 | AJ51: 6.529023024 | AK51: 6.618888066 | AL51: 6.600599389 | AM51: 6.521700243 | AN51: 6.5513259 | AO51: 6.52283683 | AP51: 6.52205013 | AQ51: 6.516284738 | AR51: 6.520167611 | AS51: 6.519785432 | AT51: 6.522391203 | AU51: 6.55669972 | AV51: 0.1034853261 | AW51: 0.09563131284 | AX51: 0.09774088963 | AY51: 0.08638126587 | AZ51: 0.07651509494 | BA51: 0.07265347205 | BB51: 0.07307168243 | BC51: 0.06952414904 | BD51: 0.06893834938 | BE51: 0.06900434765 | BF51: 0.06730131006 | BG51: 0.06742722262 | BH51: 0.06527685956 | BI51: 0.06549074389 | BJ51: 0.06257765916 | BL51: 1.923851876 | BM51: 1.926685401 | BN51: 1.894132853 | BO51: 1.876257319 | BP51: 1.88992739 | BQ51: 1.887160461 | BR51: 1.875135115 | BS51: 1.879667457 | BT51: 1.875309378 | BU51: 1.875188764 | BV51: 1.874304388 | BW51: 1.874900083 | BX51: 1.874841466 | BY51: 1.875241058 | BZ51: 1.880487385 | CA51: 0.7085932751 | CB51: 0.6566726916 | CC51: 0.6496624019 | CD51: 0.5639852737 | CE51: 0.5064448488 | CF51: 0.4795564632 | CG51: 0.4765516091 | CH51: 0.4554753583 | CI51: 0.4496736043 | CJ51: 0.4500498145 | CK51: 0.4385544996 | CL51: 0.439636793 | CM51: 0.425591118 | CN51: 0.4271562518 | CO51: 0.4103029203 | CQ51: 0.6536772963 | CR51: 0.6039144149 | CS51: 0.6087842773 | CT51: 0.5359799069 | CU51: 0.4725311276 | CV51: 0.4499847837 | CW51: 0.4555893264 | CX51: 0.430431882 | CY51: 0.4305978754 | CZ51: 0.4311713333 | DA51: 0.42180832 | DB51: 0.4214865828 | DC51: 0.4091397227 | DD51: 0.4092753329 | DE51: 0.3818679696 | DG51: 1 | DH51: -5.055956244 | DI51: 2.49596919 | DJ51: -0.4936690647 | DK51: 0.2437091455 | DL51: -1.232182776 | DM51: -0.1203116659 | DN51: 0.6082905186 | DO51: 0.0593941476 | DP51: -0.3002942114 | DQ51: -0.02932105329 | DR51: 0.1482459625 | DS51: 0.01447489696 | DT51: -0.07318444565 | DU51: -0.007145808843 | DV51: 0.03612889684 | DW51: 1.098612289 | DY51: 0.001726618705 | DZ51: 3 | EB51: =IF(COLUMN()-COLUMN($EB50)+1=ROW()-ROW(EB$42),INDEX($EM$30:$EM$40,$C$23+1,1),0) -> 0 | EC51: =IF(COLUMN()-COLUMN($EB50)+1=ROW()-ROW(EC$42),INDEX($EM$30:$EM$40,$C$23+1,1),0) -> 0 | ED51: =IF(COLUMN()-COLUMN($EB50)+1=ROW()-ROW(ED$42),INDEX($EM$30:$EM$40,$C$23+1,1),0) -> 0 | EE51: =IF(COLUMN()-COLUMN($EB50)+1=ROW()-ROW(EE$42),INDEX($EM$30:$EM$40,$C$23+1,1),0) -> 0 | EF51: =IF(COLUMN()-COLUMN($EB50)+1=ROW()-ROW(EF$42),INDEX($EM$30:$EM$40,$C$23+1,1),0) -> 0 | EG51: =IF(COLUMN()-COLUMN($EB50)+1=ROW()-ROW(EG$42),INDEX($EM$30:$EM$40,$C$23+1,1),0) -> 0 | EH51: =IF(COLUMN()-COLUMN($EB50)+1=ROW()-ROW(EH$42),INDEX($EM$30:$EM$40,$C$23+1,1),0) -> 0 | EI51: =IF(COLUMN()-COLUMN($EB50)+1=ROW()-ROW(EI$42),INDEX($EM$30:$EM$40,$C$23+1,1),0) -> 0 | EJ51: =IF(COLUMN()-COLUMN($EB50)+1=ROW()-ROW(EJ$42),INDEX($EM$30:$EM$40,$C$23+1,1),0) -> 0 | EK51: =IF(COLUMN()-COLUMN($EB50)+1=ROW()-ROW(EK$42),INDEX($EM$30:$EM$40,$C$23+1,1),0) -> 0 | EL51: =IF(COLUMN()-COLUMN($EB50)+1=ROW()-ROW(EL$42),INDEX($EM$30:$EM$40,$C$23+1,1),0) -> 0 | EM51: =IF(COLUMN()-COLUMN($EB50)+1=ROW()-ROW(EM$42),INDEX($EM$30:$EM$40,$C$23+1,1),0) -> 0 | EN51: =IF(COLUMN()-COLUMN($EB50)+1=ROW()-ROW(EN$42),INDEX($EM$30:$EM$40,$C$23+1,1),0) -> 0 | EO51: =IF(COLUMN()-COLUMN($EB50)+1=ROW()-ROW(EO$42),INDEX($EM$30:$EM$40,$C$23+1,1),0) -> 0 | EP51: =IF(COLUMN()-COLUMN($EB50)+1=ROW()-ROW(EP$42),INDEX($EM$30:$EM$40,$C$23+1,1),0) -> 0 | EQ51: =IF(COLUMN()-COLUMN($EB50)+1=ROW()-ROW(EQ$42),INDEX($EM$30:$EM$40,$C$23+1,1),0) -> 0
B52: 19 | C52: 3 | E52: To make functions that correspond to the above graphs, click button above. To use formulas, 1) replace y with reference to a cumulative-probability cell and then 2) remove initial apostrophe. Formula is valid for 0<y<1; and for y=0 and y=1 when corresponding bounds have been specified. To plot the PDF above, plot the quantile function on the x-axis and the density function on the y-axis, varying y over its valid range. | X52: y | Y52: x | AB52: 0.007194244604 | AC52: =IF(C$34="","",IF(ROW()-ROW(S$27)>B$17,"",SMALL(INDEX($C$34:$C$10033,1,1):INDEX($C$34:$C$10033,B$17,1),ROW()-ROW(S$27)))) -> 4 | AD52: 0.21 | AE52: 6.667707526 | AF52: 0.06914680749 | AG52: 6.942826394 | AH52: 6.970072948 | AI52: 6.748372705 | AJ52: 6.644421309 | AK52: 6.74864926 | AL52: 6.737436208 | AM52: 6.658363619 | AN52: 6.694535931 | AO52: 6.667707526 | AP52: 6.666801525 | AQ52: 6.66478976 | AR52: 6.668288509 | AS52: 6.672748039 | AT52: 6.674752457 | AU52: 6.714775801 | AV52: 0.105824719 | AW52: 0.09785219754 | AX52: 0.09910692334 | AY52: 0.08692442276 | AZ52: 0.077620942 | BA52: 0.07352236153 | BB52: 0.07328969136 | BC52: 0.07015784236 | BD52: 0.06914680749 | BE52: 0.06919432253 | BF52: 0.06741452411 | BG52: 0.06763599776 | BH52: 0.06553103973 | BI52: 0.0658298552 | BJ52: 0.06402946063 | BL52: 1.937708953 | BM52: 1.941625691 | BN52: 1.909301395 | BO52: 1.893777602 | BP52: 1.909342375 | BQ52: 1.907679468 | BR52: 1.895873752 | BS52: 1.901291661 | BT52: 1.897276102 | BU52: 1.897140213 | BV52: 1.896838409 | BW52: 1.897363232 | BX52: 1.898031775 | BY52: 1.898332119 | BZ52: 1.904310442 | CA52: 0.7347226521 | CB52: 0.682036955 | CC52: 0.6688104563 | CD52: 0.5775624868 | CE52: 0.5238365128 | CF52: 0.4953522206 | CG52: 0.4879894147 | CH52: 0.4696741965 | CI52: 0.4610506887 | CJ52: 0.461304815 | CK52: 0.44930363 | CL52: 0.4510163467 | CM52: 0.4372721168 | CN52: 0.4393979877 | CO52: 0.4299434728 | CQ52: 0.6815781565 | CR52: 0.6306320036 | CS52: 0.6296669755 | CT52: 0.5501425216 | CU52: 0.4893508027 | CV52: 0.4644465039 | CW52: 0.4657662318 | CX52: 0.4423966075 | CY52: 0.4395330606 | CZ52: 0.440016926 | DA52: 0.4293977827 | DB52: 0.4297959406 | DC52: 0.4162058781 | DD52: 0.4170983911 | DE52: 0.3942000687 | DG52: 1 | DH52: -5.011214836 | DI52: 2.472439665 | DJ52: -0.493381295 | DK52: 0.2434251022 | DL52: -1.219855484 | DM52: -0.1201013922 | DN52: 0.6018538783 | DO52: 0.05925578039 | DP52: -0.2969434458 | DQ52: -0.02923569366 | DR52: 0.1465063418 | DS52: 0.0144243444 | DT52: -0.07228348865 | DU52: -0.007116701719 | DV52: 0.03566332124 | DW52: 1.098612289 | DY52: 0.002014388489 | DZ52: 3 | EB52: =IF(COLUMN()-COLUMN($EB51)+1=ROW()-ROW(EB$42),INDEX($EM$30:$EM$40,$C$23+1,1),0) -> 0 | EC52: =IF(COLUMN()-COLUMN($EB51)+1=ROW()-ROW(EC$42),INDEX($EM$30:$EM$40,$C$23+1,1),0) -> 0 | ED52: =IF(COLUMN()-COLUMN($EB51)+1=ROW()-ROW(ED$42),INDEX($EM$30:$EM$40,$C$23+1,1),0) -> 0 | EE52: =IF(COLUMN()-COLUMN($EB51)+1=ROW()-ROW(EE$42),INDEX($EM$30:$EM$40,$C$23+1,1),0) -> 0 | EF52: =IF(COLUMN()-COLUMN($EB51)+1=ROW()-ROW(EF$42),INDEX($EM$30:$EM$40,$C$23+1,1),0) -> 0 | EG52: =IF(COLUMN()-COLUMN($EB51)+1=ROW()-ROW(EG$42),INDEX($EM$30:$EM$40,$C$23+1,1),0) -> 0 | EH52: =IF(COLUMN()-COLUMN($EB51)+1=ROW()-ROW(EH$42),INDEX($EM$30:$EM$40,$C$23+1,1),0) -> 0 | EI52: =IF(COLUMN()-COLUMN($EB51)+1=ROW()-ROW(EI$42),INDEX($EM$30:$EM$40,$C$23+1,1),0) -> 0 | EJ52: =IF(COLUMN()-COLUMN($EB51)+1=ROW()-ROW(EJ$42),INDEX($EM$30:$EM$40,$C$23+1,1),0) -> 0 | EK52: =IF(COLUMN()-COLUMN($EB51)+1=ROW()-ROW(EK$42),INDEX($EM$30:$EM$40,$C$23+1,1),0) -> 0 | EL52: =IF(COLUMN()-COLUMN($EB51)+1=ROW()-ROW(EL$42),INDEX($EM$30:$EM$40,$C$23+1,1),0) -> 0 | EM52: =IF(COLUMN()-COLUMN($EB51)+1=ROW()-ROW(EM$42),INDEX($EM$30:$EM$40,$C$23+1,1),0) -> 0 | EN52: =IF(COLUMN()-COLUMN($EB51)+1=ROW()-ROW(EN$42),INDEX($EM$30:$EM$40,$C$23+1,1),0) -> 0 | EO52: =IF(COLUMN()-COLUMN($EB51)+1=ROW()-ROW(EO$42),INDEX($EM$30:$EM$40,$C$23+1,1),0) -> 0 | EP52: =IF(COLUMN()-COLUMN($EB51)+1=ROW()-ROW(EP$42),INDEX($EM$30:$EM$40,$C$23+1,1),0) -> 0 | EQ52: =IF(COLUMN()-COLUMN($EB51)+1=ROW()-ROW(EQ$42),INDEX($EM$30:$EM$40,$C$23+1,1),0) -> 0
B53: 20 | C53: 3 | L53: QF | M53: PDF | X53: =IF(ISERROR(EC138),"",EC138) ->  | AB53: 0.007482014388 | AC53: =IF(C$34="","",IF(ROW()-ROW(S$27)>B$17,"",SMALL(INDEX($C$34:$C$10033,1,1):INDEX($C$34:$C$10033,B$17,1),ROW()-ROW(S$27)))) -> 4 | AD53: 0.22 | AE53: 6.811950056 | AF53: 0.06953942378 | AG53: 7.036350313 | AH53: 7.071179928 | AI53: 6.848643291 | AJ53: 6.759129208 | AK53: 6.876554074 | AL53: 6.872584806 | AM53: 6.794529877 | AN53: 6.836303163 | AO53: 6.811950056 | AP53: 6.810965539 | AQ53: 6.812783083 | AR53: 6.815705822 | AS53: 6.824730809 | AT53: 6.825972044 | AU53: 6.868760476 | AV53: 0.1080057492 | AW53: 0.09994436728 | AX53: 0.1003334132 | AY53: 0.08742563498 | AZ53: 0.07875252823 | BA53: 0.0744798759 | BB53: 0.07360642669 | BC53: 0.0709451657 | BD53: 0.06953942378 | BE53: 0.06956722737 | BF53: 0.06776637778 | BG53: 0.06807088196 | BH53: 0.06611779722 | BI53: 0.0664794379 | BJ53: 0.0659333666 | BL53: 1.951089614 | BM53: 1.956027358 | BN53: 1.924050573 | BO53: 1.910894066 | BP53: 1.928117665 | BQ53: 1.927540281 | BR53: 1.916117859 | BS53: 1.922247112 | BT53: 1.918678431 | BU53: 1.918533893 | BV53: 1.918800713 | BW53: 1.919229629 | BX53: 1.920552898 | BY53: 1.920734755 | BZ53: 1.926983664 | CA53: 0.7599662875 | CB53: 0.7067246039 | CC53: 0.6871477569 | CD53: 0.5909211629 | CE53: 0.5415460188 | CF53: 0.5118692634 | CG53: 0.5001210653 | CH53: 0.4850026607 | CI53: 0.4736990817 | CJ53: 0.4738199883 | CK53: 0.4616776321 | CL53: 0.4639511064 | CM53: 0.4512361677 | CN53: 0.4537867846 | CO53: 0.4528805026 | CQ53: 0.7085932751 | CR53: 0.6566726916 | CS53: 0.6496624019 | CT53: 0.5639852737 | CU53: 0.5064448488 | CV53: 0.4795564632 | CW53: 0.4765516091 | CX53: 0.4554753583 | CY53: 0.4496736043 | CZ53: 0.4500498145 | DA53: 0.4385544996 | DB53: 0.439636793 | DC53: 0.425591118 | DD53: 0.4271562518 | DE53: 0.4103029203 | DG53: 1 | DH53: -4.968365493 | DI53: 2.449868855 | DJ53: -0.4930935252 | DK53: 0.2431412246 | DL53: -1.20801447 | DM53: -0.1198913635 | DN53: 0.5956641135 | DO53: 0.05911765509 | DP53: -0.2937181175 | DQ53: -0.02915053295 | DR53: 0.144830502 | DS53: 0.01437393905 | DT53: -0.07141498278 | DU53: -0.007087696278 | DV53: 0.03521426561 | DW53: 1.386294361 | DY53: 0.002302158273 | DZ53: 3 | EB53: =IF(COLUMN()-COLUMN($EB52)+1=ROW()-ROW(EB$42),INDEX($EM$30:$EM$40,$C$23+1,1),0) -> 0 | EC53: =IF(COLUMN()-COLUMN($EB52)+1=ROW()-ROW(EC$42),INDEX($EM$30:$EM$40,$C$23+1,1),0) -> 0 | ED53: =IF(COLUMN()-COLUMN($EB52)+1=ROW()-ROW(ED$42),INDEX($EM$30:$EM$40,$C$23+1,1),0) -> 0 | EE53: =IF(COLUMN()-COLUMN($EB52)+1=ROW()-ROW(EE$42),INDEX($EM$30:$EM$40,$C$23+1,1),0) -> 0 | EF53: =IF(COLUMN()-COLUMN($EB52)+1=ROW()-ROW(EF$42),INDEX($EM$30:$EM$40,$C$23+1,1),0) -> 0 | EG53: =IF(COLUMN()-COLUMN($EB52)+1=ROW()-ROW(EG$42),INDEX($EM$30:$EM$40,$C$23+1,1),0) -> 0 | EH53: =IF(COLUMN()-COLUMN($EB52)+1=ROW()-ROW(EH$42),INDEX($EM$30:$EM$40,$C$23+1,1),0) -> 0 | EI53: =IF(COLUMN()-COLUMN($EB52)+1=ROW()-ROW(EI$42),INDEX($EM$30:$EM$40,$C$23+1,1),0) -> 0 | EJ53: =IF(COLUMN()-COLUMN($EB52)+1=ROW()-ROW(EJ$42),INDEX($EM$30:$EM$40,$C$23+1,1),0) -> 0 | EK53: =IF(COLUMN()-COLUMN($EB52)+1=ROW()-ROW(EK$42),INDEX($EM$30:$EM$40,$C$23+1,1),0) -> 0 | EL53: =IF(COLUMN()-COLUMN($EB52)+1=ROW()-ROW(EL$42),INDEX($EM$30:$EM$40,$C$23+1,1),0) -> 0 | EM53: =IF(COLUMN()-COLUMN($EB52)+1=ROW()-ROW(EM$42),INDEX($EM$30:$EM$40,$C$23+1,1),0) -> 0 | EN53: =IF(COLUMN()-COLUMN($EB52)+1=ROW()-ROW(EN$42),INDEX($EM$30:$EM$40,$C$23+1,1),0) -> 0 | EO53: =IF(COLUMN()-COLUMN($EB52)+1=ROW()-ROW(EO$42),INDEX($EM$30:$EM$40,$C$23+1,1),0) -> 0 | EP53: =IF(COLUMN()-COLUMN($EB52)+1=ROW()-ROW(EP$42),INDEX($EM$30:$EM$40,$C$23+1,1),0) -> 0 | EQ53: =IF(COLUMN()-COLUMN($EB52)+1=ROW()-ROW(EQ$42),INDEX($EM$30:$EM$40,$C$23+1,1),0) -> 0
B54: 21 | C54: 3 | K54: y | L54: x | M54: y' | X54: simulate | AB54: 0.007769784173 | AC54: =IF(C$34="","",IF(ROW()-ROW(S$27)>B$17,"",SMALL(INDEX($C$34:$C$10033,1,1):INDEX($C$34:$C$10033,B$17,1),ROW()-ROW(S$27)))) -> 4 | AD54: 0.23 | AE54: 6.955193357 | AF54: 0.07011418644 | AG54: 7.128069083 | AH54: 7.170253393 | AI54: 6.94776018 | AJ54: 6.873204522 | AK54: 7.002612416 | AL54: 7.005927093 | AM54: 6.930019348 | AN54: 6.976358884 | AO54: 6.955193357 | AP54: 6.954172629 | AQ54: 6.95975623 | AR54: 6.961947953 | AS54: 6.975009629 | AT54: 6.97539091 | AU54: 7.017914823 | AV54: 0.1100331902 | AW54: 0.1019119946 | AX54: 0.1014295141 | AY54: 0.08789235845 | AZ54: 0.07991172212 | BA54: 0.07552765981 | BB54: 0.07402384983 | BC54: 0.07188173199 | BD54: 0.07011418644 | BE54: 0.07012154919 | BF54: 0.06835250832 | BG54: 0.06872595693 | BH54: 0.06702195105 | BI54: 0.06742225443 | BJ54: 0.06822899643 | BL54: 1.964040382 | BM54: 1.969940995 | BN54: 1.938419331 | BO54: 1.927630449 | BP54: 1.946283282 | BQ54: 1.946756518 | BR54: 1.935862605 | BS54: 1.942527131 | BT54: 1.939488626 | BU54: 1.939341858 | BV54: 1.940144449 | BW54: 1.940459314 | BX54: 1.942333708 | BY54: 1.942388371 | BZ54: 1.94846614 | CA54: 0.7843241813 | CB54: 0.7307348254 | CC54: 0.7047079389 | CD54: 0.6041021556 | CE54: 0.5595908175 | CF54: 0.5291412782 | CG54: 0.5129867115 | CH54: 0.5014727596 | CI54: 0.4876577237 | CJ54: 0.487637358 | CK54: 0.4757167956 | CL54: 0.4784665352 | CM54: 0.4674787539 | CN54: 0.4702965807 | CO54: 0.4788252854 | CQ54: 0.7347226521 | CR54: 0.682036955 | CS54: 0.6688104563 | CT54: 0.5775624868 | CU54: 0.5238365128 | CV54: 0.4953522206 | CW54: 0.4879894147 | CX54: 0.4696741965 | CY54: 0.4610506887 | CZ54: 0.461304815 | DA54: 0.44930363 | DB54: 0.4510163467 | DC54: 0.4372721168 | DD54: 0.4393979877 | DE54: 0.4299434728 | DG54: 1 | DH54: -4.927253685 | DI54: 2.428178974 | DJ54: -0.4928057554 | DK54: 0.2428575126 | DL54: -1.196620574 | DM54: -0.1196815799 | DN54: 0.5897015057 | DO54: 0.0589797714 | DP54: -0.290608296 | DQ54: -0.0290655708 | DR54: 0.1432134408 | DS54: 0.01432368057 | DT54: -0.07057640789 | DU54: -0.007058792225 | DV54: 0.03478046 | DW54: 1.386294361 | DY54: 0.002589928058 | DZ54: 3 | EB54: =IF(COLUMN()-COLUMN($EB53)+1=ROW()-ROW(EB$42),INDEX($EM$30:$EM$40,$C$23+1,1),0) -> 0 | EC54: =IF(COLUMN()-COLUMN($EB53)+1=ROW()-ROW(EC$42),INDEX($EM$30:$EM$40,$C$23+1,1),0) -> 0 | ED54: =IF(COLUMN()-COLUMN($EB53)+1=ROW()-ROW(ED$42),INDEX($EM$30:$EM$40,$C$23+1,1),0) -> 0 | EE54: =IF(COLUMN()-COLUMN($EB53)+1=ROW()-ROW(EE$42),INDEX($EM$30:$EM$40,$C$23+1,1),0) -> 0 | EF54: =IF(COLUMN()-COLUMN($EB53)+1=ROW()-ROW(EF$42),INDEX($EM$30:$EM$40,$C$23+1,1),0) -> 0 | EG54: =IF(COLUMN()-COLUMN($EB53)+1=ROW()-ROW(EG$42),INDEX($EM$30:$EM$40,$C$23+1,1),0) -> 0 | EH54: =IF(COLUMN()-COLUMN($EB53)+1=ROW()-ROW(EH$42),INDEX($EM$30:$EM$40,$C$23+1,1),0) -> 0 | EI54: =IF(COLUMN()-COLUMN($EB53)+1=ROW()-ROW(EI$42),INDEX($EM$30:$EM$40,$C$23+1,1),0) -> 0 | EJ54: =IF(COLUMN()-COLUMN($EB53)+1=ROW()-ROW(EJ$42),INDEX($EM$30:$EM$40,$C$23+1,1),0) -> 0 | EK54: =IF(COLUMN()-COLUMN($EB53)+1=ROW()-ROW(EK$42),INDEX($EM$30:$EM$40,$C$23+1,1),0) -> 0 | EL54: =IF(COLUMN()-COLUMN($EB53)+1=ROW()-ROW(EL$42),INDEX($EM$30:$EM$40,$C$23+1,1),0) -> 0 | EM54: =IF(COLUMN()-COLUMN($EB53)+1=ROW()-ROW(EM$42),INDEX($EM$30:$EM$40,$C$23+1,1),0) -> 0 | EN54: =IF(COLUMN()-COLUMN($EB53)+1=ROW()-ROW(EN$42),INDEX($EM$30:$EM$40,$C$23+1,1),0) -> 0 | EO54: =IF(COLUMN()-COLUMN($EB53)+1=ROW()-ROW(EO$42),INDEX($EM$30:$EM$40,$C$23+1,1),0) -> 0 | EP54: =IF(COLUMN()-COLUMN($EB53)+1=ROW()-ROW(EP$42),INDEX($EM$30:$EM$40,$C$23+1,1),0) -> 0 | EQ54: =IF(COLUMN()-COLUMN($EB53)+1=ROW()-ROW(EQ$42),INDEX($EM$30:$EM$40,$C$23+1,1),0) -> 0
B55: 22 | C55: 3 | K55: 0.25 | L55: =IF(K55=0,0,IF(AND(K55>0,K55<1),0+EXP(2.28421465348733+-1.17126481622616*LN(K55/(1-K55))+-1.55381809260157*(K55-0.5)*LN(K55/(1-K55))+5.43612836023054*(K55-0.5)+5.54620259847493*(K55-0.5)^2+7.01805500937502*(K55-0.5)^2*LN(K55/(1-K55))+-16.8519521518132*(K55-0.5)^3+5.79673462024699*(K55-0.5)^3*LN(K55/(1-K55))+-17.2577976441278*(K55-0.5)^4+-7.89956157442085*(K55-0.5)^4*LN(K55/(1-K55))),"n/a")) -> 7.237294252 | M55: =IF(K55=0,0,IF(AND(K55>0,K55<1),(-1.17126481622616/(K55*(1-K55))+-1.55381809260157*((K55-0.5)/(K55*(1-K55))+LN(K55/(1-K55)))+5.43612836023054+2*5.54620259847493*(K55-0.5)+7.01805500937502*((K55-0.5)^2/(K55*(1-K55))+2*(K55-0.5)*LN(K55/(1-K55)))+3*-16.8519521518132*(K55-0.5)^2+5.79673462024699*((K55-0.5)^3/(K55*(1-K55))+3*(K55-0.5)^2*LN(K55/(1-K55)))+4*-17.2577976441278*(K55-0.5)^3+-7.89956157442085*((K55-0.5)^4/(K55*(1-K55))+4*(K55-0.5)^3*LN(K55/(1-K55))))^-1*EXP(-(2.28421465348733+-1.17126481622616*LN(K55/(1-K55))+-1.55381809260157*(K55-0.5)*LN(K55/(1-K55))+5.43612836023054*(K55-0.5)+5.54620259847493*(K55-0.5)^2+7.01805500937502*(K55-0.5)^2*LN(K55/(1-K55))+-16.8519521518132*(K55-0.5)^3+5.79673462024699*(K55-0.5)^3*LN(K55/(1-K55))+-17.2577976441278*(K55-0.5)^4+-7.89956157442085*(K55-0.5)^4*LN(K55/(1-K55)))),"n/a")) -> 0.07180614807 | X55: y | Y55: x | AB55: 0.008057553957 | AC55: =IF(C$34="","",IF(ROW()-ROW(S$27)>B$17,"",SMALL(INDEX($C$34:$C$10033,1,1):INDEX($C$34:$C$10033,B$17,1),ROW()-ROW(S$27)))) -> 4 | AD55: 0.24 | AE55: 7.097084986 | AF55: 0.07086990931 | AG55: 7.218173842 | AH55: 7.267489392 | AI55: 7.045870971 | AJ55: 6.986694426 | AK55: 7.126833083 | AL55: 7.137353397 | AM55: 7.064654334 | AN55: 7.114462466 | AO55: 7.097084986 | AP55: 7.096070208 | AQ55: 7.105229274 | AR55: 7.106576404 | AS55: 7.122939864 | AT55: 7.122431643 | AU55: 7.161785431 | AV55: 0.1119114545 | AW55: 0.1037588333 | AX55: 0.1024035098 | AY55: 0.08833091496 | AZ55: 0.08109993831 | BA55: 0.07666710159 | BB55: 0.0745437903 | BC55: 0.07296374944 | BD55: 0.07086990931 | BE55: 0.07085655223 | BF55: 0.06917002286 | BG55: 0.06959696224 | BH55: 0.068230141 | BI55: 0.06864336177 | BJ55: 0.07084932501 | BL55: 1.97660199 | BM55: 1.983410894 | BN55: 1.952441767 | BO55: 1.944007544 | BP55: 1.963866968 | BQ55: 1.965342035 | BR55: 1.955104088 | BS55: 1.962129679 | BT55: 1.959684134 | BU55: 1.959541139 | BV55: 1.96083103 | BW55: 1.961020609 | BX55: 1.963320542 | BY55: 1.96324919 | BZ55: 1.968759312 | CA55: 0.8077963336 | CB55: 0.7540662204 | CC55: 0.7215219167 | CD55: 0.6171411111 | CE55: 0.5779857234 | CF55: 0.5472001979 | CG55: 0.5266261112 | CH55: 0.5190978567 | CI55: 0.5029697693 | CJ55: 0.5028030693 | CK55: 0.4914688713 | CL55: 0.4945961297 | CM55: 0.4859991912 | CN55: 0.488907652 | CO55: 0.5074076636 | CQ55: 0.7599662875 | CR55: 0.7067246039 | CS55: 0.6871477569 | CT55: 0.5909211629 | CU55: 0.5415460188 | CV55: 0.5118692634 | CW55: 0.5001210653 | CX55: 0.4850026607 | CY55: 0.4736990817 | CZ55: 0.4738199883 | DA55: 0.4616776321 | DB55: 0.4639511064 | DC55: 0.4512361677 | DD55: 0.4537867846 | DE55: 0.4528805026 | DG55: 1 | DH55: -4.887743075 | DI55: 2.407301373 | DJ55: -0.4925179856 | DK55: 0.2425739662 | DL55: -1.185639223 | DM55: -0.1194720412 | DN55: 0.5839486419 | DO55: 0.05884212905 | DP55: -0.2876052088 | DQ55: -0.02898080687 | DR55: 0.1416507381 | DS55: 0.01427356862 | DT55: -0.06976553618 | DU55: -0.007029989265 | DV55: 0.03436078135 | DW55: 1.386294361 | DY55: 0.002877697842 | DZ55: 3 | EB55: =IF(COLUMN()-COLUMN($EB54)+1=ROW()-ROW(EB$42),INDEX($EM$30:$EM$40,$C$23+1,1),0) -> 0 | EC55: =IF(COLUMN()-COLUMN($EB54)+1=ROW()-ROW(EC$42),INDEX($EM$30:$EM$40,$C$23+1,1),0) -> 0 | ED55: =IF(COLUMN()-COLUMN($EB54)+1=ROW()-ROW(ED$42),INDEX($EM$30:$EM$40,$C$23+1,1),0) -> 0 | EE55: =IF(COLUMN()-COLUMN($EB54)+1=ROW()-ROW(EE$42),INDEX($EM$30:$EM$40,$C$23+1,1),0) -> 0 | EF55: =IF(COLUMN()-COLUMN($EB54)+1=ROW()-ROW(EF$42),INDEX($EM$30:$EM$40,$C$23+1,1),0) -> 0 | EG55: =IF(COLUMN()-COLUMN($EB54)+1=ROW()-ROW(EG$42),INDEX($EM$30:$EM$40,$C$23+1,1),0) -> 0 | EH55: =IF(COLUMN()-COLUMN($EB54)+1=ROW()-ROW(EH$42),INDEX($EM$30:$EM$40,$C$23+1,1),0) -> 0 | EI55: =IF(COLUMN()-COLUMN($EB54)+1=ROW()-ROW(EI$42),INDEX($EM$30:$EM$40,$C$23+1,1),0) -> 0 | EJ55: =IF(COLUMN()-COLUMN($EB54)+1=ROW()-ROW(EJ$42),INDEX($EM$30:$EM$40,$C$23+1,1),0) -> 0 | EK55: =IF(COLUMN()-COLUMN($EB54)+1=ROW()-ROW(EK$42),INDEX($EM$30:$EM$40,$C$23+1,1),0) -> 0 | EL55: =IF(COLUMN()-COLUMN($EB54)+1=ROW()-ROW(EL$42),INDEX($EM$30:$EM$40,$C$23+1,1),0) -> 0 | EM55: =IF(COLUMN()-COLUMN($EB54)+1=ROW()-ROW(EM$42),INDEX($EM$30:$EM$40,$C$23+1,1),0) -> 0 | EN55: =IF(COLUMN()-COLUMN($EB54)+1=ROW()-ROW(EN$42),INDEX($EM$30:$EM$40,$C$23+1,1),0) -> 0 | EO55: =IF(COLUMN()-COLUMN($EB54)+1=ROW()-ROW(EO$42),INDEX($EM$30:$EM$40,$C$23+1,1),0) -> 0 | EP55: =IF(COLUMN()-COLUMN($EB54)+1=ROW()-ROW(EP$42),INDEX($EM$30:$EM$40,$C$23+1,1),0) -> 0 | EQ55: =IF(COLUMN()-COLUMN($EB54)+1=ROW()-ROW(EQ$42),INDEX($EM$30:$EM$40,$C$23+1,1),0) -> 0
B56: 23 | C56: 3 | E56: =IF(y=0,0,IF(AND(y>0,y<1),0+EXP(2.28421465348733+-1.17126481622616*LN(y/(1-y))+-1.55381809260157*(y-0.5)*LN(y/(1-y))+5.43612836023054*(y-0.5)+5.54620259847493*(y-0.5)^2+7.01805500937502*(y-0.5)^2*LN(y/(1-y))+-16.8519521518132*(y-0.5)^3+5.79673462024699*(y-0.5)^3*LN(y/(1-y))+-17.2577976441278*(y-0.5)^4+-7.89956157442085*(y-0.5)^4*LN(y/(1-y))),"n/a")) | L56: m_QF | M56: m_PDF | X56: =RAND() -> 0.263312358 | Y56: =IF(Z56="","",IF($B$11="u",Z56,IF($B$11="sl",$C$19+EXP(Z56),IF($B$11="su",$C$20-EXP(-Z56),IF($B$11="b",($C$19+$C$20*EXP(Z56))/(1+EXP(Z56)),""))))) -> 7.420811363 | Z56: =IF($N$9<>"(none)","",$Y$28+$Y$29*LN(X56/(1-X56))+$Y$30*(X56-0.5)*LN(X56/(1-X56))+$Y$31*(X56-0.5)+$Y$32*(X56-0.5)^2+$Y$33*(X56-0.5)^2*LN(X56/(1-X56))+$Y$34*(X56-0.5)^3+$Y$35*(X56-0.5)^3*LN(X56/(1-X56))+$Y$36*(X56-0.5)^4+$Y$37*(X56-0.5)^4*LN(X56/(1-X56))+$Y$38*(X56-0.5)^5+$Y$39*(X56-0.5)^5*LN(X56/(1-X56))+$Y$40*(X56-0.5)^6+$Y$41*(X56-0.5)^6*LN(X56/(1-X56))+$Y$42*(X56-0.5)^7+$Y$43*(X56-0.5)^7*LN(X56/(1-X56))) -> 2.004288399 | AB56: 0.008345323741 | AC56: =IF(C$34="","",IF(ROW()-ROW(S$27)>B$17,"",SMALL(INDEX($C$34:$C$10033,1,1):INDEX($C$34:$C$10033,B$17,1),ROW()-ROW(S$27)))) -> 4 | AD56: 0.25 | AE56: 7.237294252 | AF56: 0.07180614807 | AG56: 7.30683595 | AH56: 7.363063526 | AI56: 7.143107633 | AJ56: 7.099637305 | AK56: 7.249224597 | AL56: 7.266763349 | AM56: 7.198260729 | AN56: 7.250401509 | AO56: 7.237294252 | AP56: 7.236325944 | AQ56: 7.248756407 | AR56: 7.249189214 | AS56: 7.267965051 | AT56: 7.266602515 | AU56: 7.30018077 | AV56: 0.1136446404 | AW56: 0.1054882705 | AX56: 0.1032629148 | AY56: 0.08874667827 | AZ56: 0.08231817798 | BA56: 0.07789933892 | BB56: 0.07516804858 | BC56: 0.07418781701 | BD56: 0.07180614807 | BE56: 0.07177221308 | BF56: 0.07021728954 | BG56: 0.07068101852 | BH56: 0.06972996717 | BI56: 0.07012928119 | BJ56: 0.07371753964 | BL56: 1.988810341 | BM56: 1.996476086 | BN56: 1.966147924 | BO56: 1.960043699 | BP56: 1.980894511 | BQ56: 1.983310986 | BR56: 1.973839431 | BS56: 1.981056848 | BT56: 1.979247414 | BU56: 1.979113611 | BV56: 1.980829924 | BW56: 1.98088963 | BX56: 1.983476342 | BY56: 1.983288853 | BZ56: 1.987899111 | CA56: 0.8303827442 | CB56: 0.7767168368 | CC56: 0.7376181146 | CD56: 0.6300692278 | CE56: 0.5967429606 | CF56: 0.566076061 | CG56: 0.5410792122 | CH56: 0.5378914604 | CI56: 0.5196822227 | CJ56: 0.5193671276 | CK56: 0.5089880274 | CL56: 0.5123800771 | CM56: 0.5067949644 | CN56: 0.5096016111 | CO56: 0.5381513653 | CQ56: 0.7843241813 | CR56: 0.7307348254 | CS56: 0.7047079389 | CT56: 0.6041021556 | CU56: 0.5595908175 | CV56: 0.5291412782 | CW56: 0.5129867115 | CX56: 0.5014727596 | CY56: 0.4876577237 | CZ56: 0.487637358 | DA56: 0.4757167956 | DB56: 0.4784665352 | DC56: 0.4674787539 | DD56: 0.4702965807 | DE56: 0.4788252854 | DG56: 1 | DH56: -4.849712766 | DI56: 2.387175161 | DJ56: -0.4922302158 | DK56: 0.2422905854 | DL56: -1.175039745 | DM56: -0.1192627471 | DN56: 0.5783900672 | DO56: 0.05870472776 | DP56: -0.2847010676 | DQ56: -0.02889624082 | DR56: 0.140138468 | DS56: 0.01422360285 | DT56: -0.06898038833 | DU56: -0.007001287102 | DV56: 0.03395423144 | DW56: 1.386294361 | DY56: 0.003165467626 | DZ56: 3 | EB56: =IF(COLUMN()-COLUMN($EB55)+1=ROW()-ROW(EB$42),INDEX($EM$30:$EM$40,$C$23+1,1),0) -> 0 | EC56: =IF(COLUMN()-COLUMN($EB55)+1=ROW()-ROW(EC$42),INDEX($EM$30:$EM$40,$C$23+1,1),0) -> 0 | ED56: =IF(COLUMN()-COLUMN($EB55)+1=ROW()-ROW(ED$42),INDEX($EM$30:$EM$40,$C$23+1,1),0) -> 0 | EE56: =IF(COLUMN()-COLUMN($EB55)+1=ROW()-ROW(EE$42),INDEX($EM$30:$EM$40,$C$23+1,1),0) -> 0 | EF56: =IF(COLUMN()-COLUMN($EB55)+1=ROW()-ROW(EF$42),INDEX($EM$30:$EM$40,$C$23+1,1),0) -> 0 | EG56: =IF(COLUMN()-COLUMN($EB55)+1=ROW()-ROW(EG$42),INDEX($EM$30:$EM$40,$C$23+1,1),0) -> 0 | EH56: =IF(COLUMN()-COLUMN($EB55)+1=ROW()-ROW(EH$42),INDEX($EM$30:$EM$40,$C$23+1,1),0) -> 0 | EI56: =IF(COLUMN()-COLUMN($EB55)+1=ROW()-ROW(EI$42),INDEX($EM$30:$EM$40,$C$23+1,1),0) -> 0 | EJ56: =IF(COLUMN()-COLUMN($EB55)+1=ROW()-ROW(EJ$42),INDEX($EM$30:$EM$40,$C$23+1,1),0) -> 0 | EK56: =IF(COLUMN()-COLUMN($EB55)+1=ROW()-ROW(EK$42),INDEX($EM$30:$EM$40,$C$23+1,1),0) -> 0 | EL56: =IF(COLUMN()-COLUMN($EB55)+1=ROW()-ROW(EL$42),INDEX($EM$30:$EM$40,$C$23+1,1),0) -> 0 | EM56: =IF(COLUMN()-COLUMN($EB55)+1=ROW()-ROW(EM$42),INDEX($EM$30:$EM$40,$C$23+1,1),0) -> 0 | EN56: =IF(COLUMN()-COLUMN($EB55)+1=ROW()-ROW(EN$42),INDEX($EM$30:$EM$40,$C$23+1,1),0) -> 0 | EO56: =IF(COLUMN()-COLUMN($EB55)+1=ROW()-ROW(EO$42),INDEX($EM$30:$EM$40,$C$23+1,1),0) -> 0 | EP56: =IF(COLUMN()-COLUMN($EB55)+1=ROW()-ROW(EP$42),INDEX($EM$30:$EM$40,$C$23+1,1),0) -> 0 | EQ56: =IF(COLUMN()-COLUMN($EB55)+1=ROW()-ROW(EQ$42),INDEX($EM$30:$EM$40,$C$23+1,1),0) -> 0
B57: 24 | C57: 4 | L57: (range names) | AB57: 0.008633093525 | AC57: =IF(C$34="","",IF(ROW()-ROW(S$27)>B$17,"",SMALL(INDEX($C$34:$C$10033,1,1):INDEX($C$34:$C$10033,B$17,1),ROW()-ROW(S$27)))) -> 4 | AD57: 0.26 | AE57: 7.375514889 | AF57: 0.0729230756 | AG57: 7.39421006 | AH57: 7.457134086 | AI57: 7.239588963 | AJ57: 7.21206425 | AK57: 7.369795892 | AL57: 7.394066598 | AM57: 7.330669425 | AN57: 7.383991755 | AO57: 7.375514889 | AP57: 7.374630621 | AQ57: 7.389930603 | AR57: 7.389423655 | AS57: 7.409622083 | AT57: 7.407498748 | AU57: 7.433137965 | AV57: 0.1152365711 | AW57: 0.1071033709 | AX57: 0.1040145615 | AY57: 0.08914422361 | AZ57: 0.08356705408 | BA57: 0.07922523998 | BB57: 0.07589845888 | BC57: 0.07555072313 | BD57: 0.0729230756 | BE57: 0.0728691115 | BF57: 0.07149366496 | BG57: 0.07197632393 | BH57: 0.07150905909 | BI57: 0.07186718166 | BJ57: 0.07674603551 | BL57: 2.00069727 | BM57: 2.00917117 | BN57: 1.979564432 | BO57: 1.975755214 | BP57: 1.997390011 | BQ57: 2.000677868 | BR57: 1.992066838 | BS57: 1.999314381 | BT57: 1.998165715 | BU57: 1.998045816 | BV57: 2.000118344 | BW57: 2.000049742 | BX57: 2.002779437 | BY57: 2.002492831 | BZ57: 2.005948107 | CA57: 0.8520834133 | CB57: 0.798684198 | CC57: 0.7530226712 | CD57: 0.6429138682 | CE57: 0.6158721319 | CF57: 0.5857967007 | CG57: 0.5563865119 | CH57: 0.5578659167 | CI57: 0.5378452298 | CJ57: 0.537382781 | CK57: 0.5283332226 | CL57: 0.5318635506 | CM57: 0.5298551033 | CN57: 0.5323560581 | CO57: 0.5704638702 | CQ57: 0.8077963336 | CR57: 0.7540662204 | CS57: 0.7215219167 | CT57: 0.6171411111 | CU57: 0.5779857234 | CV57: 0.5472001979 | CW57: 0.5266261112 | CX57: 0.5190978567 | CY57: 0.5029697693 | CZ57: 0.5028030693 | DA57: 0.4914688713 | DB57: 0.4945961297 | DC57: 0.4859991912 | DD57: 0.488907652 | DE57: 0.5074076636 | DG57: 1 | DH57: -4.813055056 | DI57: 2.367746077 | DJ57: -0.491942446 | DK57: 0.2420073702 | DL57: -1.164794797 | DM57: -0.1190536977 | DN57: 0.5730120015 | DO57: 0.05856756724 | DP57: -0.2818889256 | DQ57: -0.02881187229 | DR57: 0.1386731276 | DS57: 0.01417378293 | DT57: -0.06821919759 | DU57: -0.006972685443 | DV57: 0.03355991893 | DW57: 1.386294361 | DY57: 0.00345323741 | DZ57: 3 | EB57: =IF(COLUMN()-COLUMN($EB56)+1=ROW()-ROW(EB$42),INDEX($EM$30:$EM$40,$C$23+1,1),0) -> 0 | EC57: =IF(COLUMN()-COLUMN($EB56)+1=ROW()-ROW(EC$42),INDEX($EM$30:$EM$40,$C$23+1,1),0) -> 0 | ED57: =IF(COLUMN()-COLUMN($EB56)+1=ROW()-ROW(ED$42),INDEX($EM$30:$EM$40,$C$23+1,1),0) -> 0 | EE57: =IF(COLUMN()-COLUMN($EB56)+1=ROW()-ROW(EE$42),INDEX($EM$30:$EM$40,$C$23+1,1),0) -> 0 | EF57: =IF(COLUMN()-COLUMN($EB56)+1=ROW()-ROW(EF$42),INDEX($EM$30:$EM$40,$C$23+1,1),0) -> 0 | EG57: =IF(COLUMN()-COLUMN($EB56)+1=ROW()-ROW(EG$42),INDEX($EM$30:$EM$40,$C$23+1,1),0) -> 0 | EH57: =IF(COLUMN()-COLUMN($EB56)+1=ROW()-ROW(EH$42),INDEX($EM$30:$EM$40,$C$23+1,1),0) -> 0 | EI57: =IF(COLUMN()-COLUMN($EB56)+1=ROW()-ROW(EI$42),INDEX($EM$30:$EM$40,$C$23+1,1),0) -> 0 | EJ57: =IF(COLUMN()-COLUMN($EB56)+1=ROW()-ROW(EJ$42),INDEX($EM$30:$EM$40,$C$23+1,1),0) -> 0 | EK57: =IF(COLUMN()-COLUMN($EB56)+1=ROW()-ROW(EK$42),INDEX($EM$30:$EM$40,$C$23+1,1),0) -> 0 | EL57: =IF(COLUMN()-COLUMN($EB56)+1=ROW()-ROW(EL$42),INDEX($EM$30:$EM$40,$C$23+1,1),0) -> 0 | EM57: =IF(COLUMN()-COLUMN($EB56)+1=ROW()-ROW(EM$42),INDEX($EM$30:$EM$40,$C$23+1,1),0) -> 0 | EN57: =IF(COLUMN()-COLUMN($EB56)+1=ROW()-ROW(EN$42),INDEX($EM$30:$EM$40,$C$23+1,1),0) -> 0 | EO57: =IF(COLUMN()-COLUMN($EB56)+1=ROW()-ROW(EO$42),INDEX($EM$30:$EM$40,$C$23+1,1),0) -> 0 | EP57: =IF(COLUMN()-COLUMN($EB56)+1=ROW()-ROW(EP$42),INDEX($EM$30:$EM$40,$C$23+1,1),0) -> 0 | EQ57: =IF(COLUMN()-COLUMN($EB56)+1=ROW()-ROW(EQ$42),INDEX($EM$30:$EM$40,$C$23+1,1),0) -> 0
B58: 25 | C58: 4 | AB58: 0.008920863309 | AC58: =IF(C$34="","",IF(ROW()-ROW(S$27)>B$17,"",SMALL(INDEX($C$34:$C$10033,1,1):INDEX($C$34:$C$10033,B$17,1),ROW()-ROW(S$27)))) -> 4 | AD58: 0.27 | AE58: 7.51146731 | AF58: 0.07422132292 | AG58: 7.480436648 | AH58: 7.549844641 | AI58: 7.335422598 | AJ58: 7.324000272 | AK58: 7.488556879 | AL58: 7.519183374 | AM58: 7.461717563 | AN58: 7.515076773 | AO58: 7.51146731 | AP58: 7.510700592 | AQ58: 7.528387401 | AR58: 7.526958227 | AS58: 7.547543201 | AT58: 7.544801398 | AU58: 7.560883261 | AV58: 0.1166908273 | AW58: 0.1086069142 | AX58: 0.1046646747 | AY58: 0.08952744827 | AZ58: 0.08484680444 | BA58: 0.08064536335 | BB58: 0.07673692199 | BC58: 0.07704924577 | BD58: 0.07422132292 | BE58: 0.07414828423 | BF58: 0.07299916559 | BG58: 0.07348182541 | BH58: 0.07355411407 | BI58: 0.07384409482 | BJ58: 0.07983807138 | BL58: 2.012291166 | BM58: 2.021526986 | BN58: 1.992715024 | BO58: 1.991156664 | BP58: 2.013376106 | BQ58: 2.017457538 | BR58: 2.009785624 | BS58: 2.016911239 | BT58: 2.016430828 | BU58: 2.016328749 | BV58: 2.018680862 | BW58: 2.018491006 | BX58: 2.021222106 | BY58: 2.02085877 | BZ58: 2.022988017 | CA58: 0.8728983407 | CB58: 0.8199653292 | CC58: 0.7677596197 | CD58: 0.6556990555 | CE58: 0.6353801211 | CF58: 0.6063872753 | CG58: 0.5725892386 | CH58: 0.5790309973 | CI58: 0.5575110408 | CJ58: 0.5569055623 | CK58: 0.5495659985 | CL58: 0.5530946303 | CM58: 0.5551528536 | CN58: 0.5571390298 | CO58: 0.6036463375 | CQ58: 0.8303827442 | CR58: 0.7767168368 | CS58: 0.7376181146 | CT58: 0.6300692278 | CU58: 0.5967429606 | CV58: 0.566076061 | CW58: 0.5410792122 | CX58: 0.5378914604 | CY58: 0.5196822227 | CZ58: 0.5193671276 | DA58: 0.5089880274 | DB58: 0.5123800771 | DC58: 0.5067949644 | DD58: 0.5096016111 | DE58: 0.5381513653 | DG58: 1 | DH58: -4.777673587 | DI58: 2.348965561 | DJ58: -0.4916546763 | DK58: 0.2417243207 | DL58: -1.154879902 | DM58: -0.1188448926 | DN58: 0.5678021045 | DO58: 0.05843064721 | DP58: -0.2791625599 | DQ58: -0.02872770094 | DR58: 0.137251578 | DS58: 0.0141241085 | DT58: -0.06748038014 | DU58: -0.006944183994 | DV58: 0.03317704445 | DW58: 1.386294361 | DY58: 0.003741007194 | DZ58: 3 | EB58: =IF(COLUMN()-COLUMN($EB57)+1=ROW()-ROW(EB$42),INDEX($EM$30:$EM$40,$C$23+1,1),0) -> 0 | EC58: =IF(COLUMN()-COLUMN($EB57)+1=ROW()-ROW(EC$42),INDEX($EM$30:$EM$40,$C$23+1,1),0) -> 0 | ED58: =IF(COLUMN()-COLUMN($EB57)+1=ROW()-ROW(ED$42),INDEX($EM$30:$EM$40,$C$23+1,1),0) -> 0 | EE58: =IF(COLUMN()-COLUMN($EB57)+1=ROW()-ROW(EE$42),INDEX($EM$30:$EM$40,$C$23+1,1),0) -> 0 | EF58: =IF(COLUMN()-COLUMN($EB57)+1=ROW()-ROW(EF$42),INDEX($EM$30:$EM$40,$C$23+1,1),0) -> 0 | EG58: =IF(COLUMN()-COLUMN($EB57)+1=ROW()-ROW(EG$42),INDEX($EM$30:$EM$40,$C$23+1,1),0) -> 0 | EH58: =IF(COLUMN()-COLUMN($EB57)+1=ROW()-ROW(EH$42),INDEX($EM$30:$EM$40,$C$23+1,1),0) -> 0 | EI58: =IF(COLUMN()-COLUMN($EB57)+1=ROW()-ROW(EI$42),INDEX($EM$30:$EM$40,$C$23+1,1),0) -> 0 | EJ58: =IF(COLUMN()-COLUMN($EB57)+1=ROW()-ROW(EJ$42),INDEX($EM$30:$EM$40,$C$23+1,1),0) -> 0 | EK58: =IF(COLUMN()-COLUMN($EB57)+1=ROW()-ROW(EK$42),INDEX($EM$30:$EM$40,$C$23+1,1),0) -> 0 | EL58: =IF(COLUMN()-COLUMN($EB57)+1=ROW()-ROW(EL$42),INDEX($EM$30:$EM$40,$C$23+1,1),0) -> 0 | EM58: =IF(COLUMN()-COLUMN($EB57)+1=ROW()-ROW(EM$42),INDEX($EM$30:$EM$40,$C$23+1,1),0) -> 0 | EN58: =IF(COLUMN()-COLUMN($EB57)+1=ROW()-ROW(EN$42),INDEX($EM$30:$EM$40,$C$23+1,1),0) -> 0 | EO58: =IF(COLUMN()-COLUMN($EB57)+1=ROW()-ROW(EO$42),INDEX($EM$30:$EM$40,$C$23+1,1),0) -> 0 | EP58: =IF(COLUMN()-COLUMN($EB57)+1=ROW()-ROW(EP$42),INDEX($EM$30:$EM$40,$C$23+1,1),0) -> 0 | EQ58: =IF(COLUMN()-COLUMN($EB57)+1=ROW()-ROW(EQ$42),INDEX($EM$30:$EM$40,$C$23+1,1),0) -> 0
B59: 26 | C59: 4 | AB59: 0.009208633094 | AC59: =IF(C$34="","",IF(ROW()-ROW(S$27)>B$17,"",SMALL(INDEX($C$34:$C$10033,1,1):INDEX($C$34:$C$10033,B$17,1),ROW()-ROW(S$27)))) -> 4 | AD59: 0.28 | AE59: 7.644900464 | AF59: 0.07570178705 | AG59: 7.565644104 | AH59: 7.641326178 | AI59: 7.430706679 | AJ59: 7.435465319 | AK59: 7.605518913 | AL59: 7.64204494 | AM59: 7.591249658 | AN59: 7.643527457 | AO59: 7.644900464 | AP59: 7.644279845 | AQ59: 7.663807838 | AR59: 7.66151403 | AS59: 7.681455128 | AT59: 7.678274273 | AU59: 7.683789247 | AV59: 0.1180107753 | AW59: 0.1100014266 | AX59: 0.1052189358 | AY59: 0.08989966941 | AZ59: 0.08615729488 | BA59: 0.08215989913 | BB59: 0.07768541471 | BC59: 0.07867995164 | BD59: 0.07570178705 | BE59: 0.07561104296 | BF59: 0.07473408149 | BG59: 0.07519686028 | BH59: 0.07584993984 | BI59: 0.07604617422 | BJ59: 0.08289233533 | BL59: 2.023617486 | BM59: 2.033571172 | BN59: 2.005620966 | BO59: 2.006261163 | BP59: 2.028874156 | BQ59: 2.03366523 | BR59: 2.026996223 | BS59: 2.033859206 | BT59: 2.03403882 | BU59: 2.033957635 | BV59: 2.036508967 | BW59: 2.036209618 | BX59: 2.038808999 | BY59: 2.038394818 | BZ59: 2.039112817 | CA59: 0.8928275266 | CB59: 0.8405567809 | CC59: 0.7818510488 | CD59: 0.6684458741 | CE59: 0.6552709357 | CF59: 0.6278696414 | CG59: 0.5897293779 | CH59: 0.6013923707 | CI59: 0.578732627 | CJ59: 0.5779919718 | CK59: 0.5727476395 | CL59: 0.5761218001 | CM59: 0.5826379094 | CN59: 0.5839033831 | CO59: 0.6369272349 | CQ59: 0.8520834133 | CR59: 0.798684198 | CS59: 0.7530226712 | CT59: 0.6429138682 | CU59: 0.6158721319 | CV59: 0.5857967007 | CW59: 0.5563865119 | CX59: 0.5578659167 | CY59: 0.5378452298 | CZ59: 0.537382781 | DA59: 0.5283332226 | DB59: 0.5318635506 | DC59: 0.5298551033 | DD59: 0.5323560581 | DE59: 0.5704638702 | DG59: 1 | DH59: -4.743481802 | DI59: 2.330789979 | DJ59: -0.4913669065 | DK59: 0.2414414368 | DL59: -1.145273062 | DM59: -0.1186363319 | DN59: 0.5627492813 | DO59: 0.05829396739 | DP59: -0.2765163735 | DQ59: -0.02864372642 | DR59: 0.135870995 | DS59: 0.01407457924 | DT59: -0.06676251051 | DU59: -0.006915782463 | DV59: 0.03280488826 | DW59: 1.386294361 | DY59: 0.004028776978 | DZ59: 3
B60: 27 | C60: 4 | AB60: 0.009496402878 | AC60: =IF(C$34="","",IF(ROW()-ROW(S$27)>B$17,"",SMALL(INDEX($C$34:$C$10033,1,1):INDEX($C$34:$C$10033,B$17,1),ROW()-ROW(S$27)))) -> 4 | AD60: 0.29 | AE60: 7.775593308 | AF60: 0.07736540328 | AG60: 7.649950481 | AH60: 7.731698889 | AI60: 7.525531233 | AJ60: 7.546475114 | AK60: 7.720695181 | AL60: 7.762593934 | AM60: 7.719118601 | AN60: 7.769241337 | AO60: 7.775593308 | AP60: 7.775141684 | AQ60: 7.79592056 | AR60: 7.792855543 | AS60: 7.811175708 | AT60: 7.807759258 | AU60: 7.802331561 | AV60: 0.1191995913 | AW60: 0.1112892085 | AX60: 0.1056825385 | AY60: 0.09026370343 | AZ60: 0.0874980141 | BA60: 0.08376859233 | BB60: 0.07874597944 | BC60: 0.08043899295 | BD60: 0.07736540328 | BE60: 0.0772587542 | BF60: 0.07669852576 | BG60: 0.07712076032 | BH60: 0.07837854271 | BI60: 0.07845801351 | BJ60: 0.0858101206 | BL60: 2.034699175 | BM60: 2.045328617 | BN60: 2.018301404 | BO60: 2.021080582 | BP60: 2.043904409 | BQ60: 2.049316548 | BR60: 2.043700187 | BS60: 2.05017252 | BT60: 2.050989765 | BU60: 2.050931681 | BV60: 2.053600592 | BW60: 2.053207358 | BX60: 2.055555491 | BY60: 2.055118016 | BZ60: 2.054422607 | CA60: 0.9118709709 | CB60: 0.8604546495 | CC60: 0.7953172446 | CD60: 0.6811727916 | CE60: 0.6755454958 | CF60: 0.6502615667 | CG60: 0.6078495547 | CH60: 0.6249499492 | CI60: 0.601561912 | CJ60: 0.6006977602 | CK60: 0.5979356138 | CL60: 0.6009909446 | CM60: 0.6122285689 | CN60: 0.6125812814 | CO60: 0.6695190122 | CQ60: 0.8728983407 | CR60: 0.8199653292 | CS60: 0.7677596197 | CT60: 0.6556990555 | CU60: 0.6353801211 | CV60: 0.6063872753 | CW60: 0.5725892386 | CX60: 0.5790309973 | CY60: 0.5575110408 | CZ60: 0.5569055623 | DA60: 0.5495659985 | DB60: 0.5530946303 | DC60: 0.5551528536 | DD60: 0.5571390298 | DE60: 0.6036463375 | DG60: 1 | DH60: -4.710401661 | DI60: 2.313179981 | DJ60: -0.4910791367 | DK60: 0.2411587185 | DL60: -1.135954428 | DM60: -0.1184280153 | DN60: 0.5578435199 | DO60: 0.05815752751 | DP60: -0.2739453142 | DQ60: -0.0285599484 | DR60: 0.1345288284 | DS60: 0.0140251948 | DT60: -0.0660643009 | DU60: -0.006887480556 | DV60: 0.03244279985 | DW60: 1.386294361 | DY60: 0.004316546763 | DZ60: 3 | EC60: quantiles
B61: 28 | C61: 4 | AB61: 0.009784172662 | AC61: =IF(C$34="","",IF(ROW()-ROW(S$27)>B$17,"",SMALL(INDEX($C$34:$C$10033,1,1):INDEX($C$34:$C$10033,B$17,1),ROW()-ROW(S$27)))) -> 4 | AD61: 0.3 | AE61: =INDEX(AG61:AU61,1,$C$17-1) -> 7.903355907 | AF61: =INDEX(AV61:BJ61,1,$C$17-1) -> 0.07921287739 | AG61: =IF(BL61="",NA(),IF($B$11="u",BL61,IF($B$11="sl",$C$19+EXP(BL61),IF($B$11="su",$C$20-EXP(-BL61),IF($B$11="b",($C$19+$C$20*EXP(BL61))/(1+EXP(BL61)),NA()))))) -> 7.733464964 | AH61: =IF(BM61="",NA(),IF($B$11="u",BM61,IF($B$11="sl",$C$19+EXP(BM61),IF($B$11="su",$C$20-EXP(-BM61),IF($B$11="b",($C$19+$C$20*EXP(BM61))/(1+EXP(BM61)),NA()))))) -> 7.821073677 | AI61: =IF(BN61="",NA(),IF($B$11="u",BN61,IF($B$11="sl",$C$19+EXP(BN61),IF($B$11="su",$C$20-EXP(-BN61),IF($B$11="b",($C$19+$C$20*EXP(BN61))/(1+EXP(BN61)),NA()))))) -> 7.61997934 | AJ61: =IF(BO61="",NA(),IF($B$11="u",BO61,IF($B$11="sl",$C$19+EXP(BO61),IF($B$11="su",$C$20-EXP(-BO61),IF($B$11="b",($C$19+$C$20*EXP(BO61))/(1+EXP(BO61)),NA()))))) -> 7.657041876 | AK61: =IF(BP61="",NA(),IF($B$11="u",BP61,IF($B$11="sl",$C$19+EXP(BP61),IF($B$11="su",$C$20-EXP(-BP61),IF($B$11="b",($C$19+$C$20*EXP(BP61))/(1+EXP(BP61)),NA()))))) -> 7.834101037 | AL61: =IF(BQ61="",NA(),IF($B$11="u",BQ61,IF($B$11="sl",$C$19+EXP(BQ61),IF($B$11="su",$C$20-EXP(-BQ61),IF($B$11="b",($C$19+$C$20*EXP(BQ61))/(1+EXP(BQ61)),NA()))))) -> 7.88078462 | AM61: =IF(BR61="",NA(),IF($B$11="u",BR61,IF($B$11="sl",$C$19+EXP(BR61),IF($B$11="su",$C$20-EXP(-BR61),IF($B$11="b",($C$19+$C$20*EXP(BR61))/(1+EXP(BR61)),NA()))))) -> 7.845186573 | AN61: =IF(BS61="",NA(),IF($B$11="u",BS61,IF($B$11="sl",$C$19+EXP(BS61),IF($B$11="su",$C$20-EXP(-BS61),IF($B$11="b",($C$19+$C$20*EXP(BS61))/(1+EXP(BS61)),NA()))))) -> 7.892141737 | AO61: =IF(BT61="",NA(),IF($B$11="u",BT61,IF($B$11="sl",$C$19+EXP(BT61),IF($B$11="su",$C$20-EXP(-BT61),IF($B$11="b",($C$19+$C$20*EXP(BT61))/(1+EXP(BT61)),NA()))))) -> 7.903355907 | AP61: =IF(BU61="",NA(),IF($B$11="u",BU61,IF($B$11="sl",$C$19+EXP(BU61),IF($B$11="su",$C$20-EXP(-BU61),IF($B$11="b",($C$19+$C$20*EXP(BU61))/(1+EXP(BU61)),NA()))))) -> 7.90309004 | AQ61: =IF(BV61="",NA(),IF($B$11="u",BV61,IF($B$11="sl",$C$19+EXP(BV61),IF($B$11="su",$C$20-EXP(-BV61),IF($B$11="b",($C$19+$C$20*EXP(BV61))/(1+EXP(BV61)),NA()))))) -> 7.924503128 | AR61: =IF(BW61="",NA(),IF($B$11="u",BW61,IF($B$11="sl",$C$19+EXP(BW61),IF($B$11="su",$C$20-EXP(-BW61),IF($B$11="b",($C$19+$C$20*EXP(BW61))/(1+EXP(BW61)),NA()))))) -> 7.920790866 | AS61: =IF(BX61="",NA(),IF($B$11="u",BX61,IF($B$11="sl",$C$19+EXP(BX61),IF($B$11="su",$C$20-EXP(-BX61),IF($B$11="b",($C$19+$C$20*EXP(BX61))/(1+EXP(BX61)),NA()))))) -> 7.936608462 | AT61: =IF(BY61="",NA(),IF($B$11="u",BY61,IF($B$11="sl",$C$19+EXP(BY61),IF($B$11="su",$C$20-EXP(-BY61),IF($B$11="b",($C$19+$C$20*EXP(BY61))/(1+EXP(BY61)),NA()))))) -> 7.933170412 | AU61: =IF(BZ61="",NA(),IF($B$11="u",BZ61,IF($B$11="sl",$C$19+EXP(BZ61),IF($B$11="su",$C$20-EXP(-BZ61),IF($B$11="b",($C$19+$C$20*EXP(BZ61))/(1+EXP(BZ61)),NA()))))) -> 7.917047318 | AV61: =IF(CA61="",NA(),IF($B$11="u",CA61,IF($B$11="sl",CA61*EXP(-BL61),IF($B$11="su",CA61*EXP(BL61),IF($B$11="b",CA61*(1+EXP(BL61))^2/(($C$20-$C$19)*EXP(BL61)),NA()))))) -> 0.1202602815 | AW61: =IF(CB61="",NA(),IF($B$11="u",CB61,IF($B$11="sl",CB61*EXP(-BM61),IF($B$11="su",CB61*EXP(BM61),IF($B$11="b",CB61*(1+EXP(BM61))^2/(($C$20-$C$19)*EXP(BM61)),NA()))))) -> 0.1124723578 | AX61: =IF(CC61="",NA(),IF($B$11="u",CC61,IF($B$11="sl",CC61*EXP(-BN61),IF($B$11="su",CC61*EXP(BN61),IF($B$11="b",CC61*(1+EXP(BN61))^2/(($C$20-$C$19)*EXP(BN61)),NA()))))) -> 0.1060602374 | AY61: =IF(CD61="",NA(),IF($B$11="u",CD61,IF($B$11="sl",CD61*EXP(-BO61),IF($B$11="su",CD61*EXP(BO61),IF($B$11="b",CD61*(1+EXP(BO61))^2/(($C$20-$C$19)*EXP(BO61)),NA()))))) -> 0.09062193054 | AZ61: =IF(CE61="",NA(),IF($B$11="u",CE61,IF($B$11="sl",CE61*EXP(-BP61),IF($B$11="su",CE61*EXP(BP61),IF($B$11="b",CE61*(1+EXP(BP61))^2/(($C$20-$C$19)*EXP(BP61)),NA()))))) -> 0.08886806143 | BA61: =IF(CF61="",NA(),IF($B$11="u",CF61,IF($B$11="sl",CF61*EXP(-BQ61),IF($B$11="su",CF61*EXP(BQ61),IF($B$11="b",CF61*(1+EXP(BQ61))^2/(($C$20-$C$19)*EXP(BQ61)),NA()))))) -> 0.0854706492 | BB61: =IF(CG61="",NA(),IF($B$11="u",CG61,IF($B$11="sl",CG61*EXP(-BR61),IF($B$11="su",CG61*EXP(BR61),IF($B$11="b",CG61*(1+EXP(BR61))^2/(($C$20-$C$19)*EXP(BR61)),NA()))))) -> 0.07992069586 | BC61: =IF(CH61="",NA(),IF($B$11="u",CH61,IF($B$11="sl",CH61*EXP(-BS61),IF($B$11="su",CH61*EXP(BS61),IF($B$11="b",CH61*(1+EXP(BS61))^2/(($C$20-$C$19)*EXP(BS61)),NA()))))) -> 0.08232190072 | BD61: =IF(CI61="",NA(),IF($B$11="u",CI61,IF($B$11="sl",CI61*EXP(-BT61),IF($B$11="su",CI61*EXP(BT61),IF($B$11="b",CI61*(1+EXP(BT61))^2/(($C$20-$C$19)*EXP(BT61)),NA()))))) -> 0.07921287739 | BE61: =IF(CJ61="",NA(),IF($B$11="u",CJ61,IF($B$11="sl",CJ61*EXP(-BU61),IF($B$11="su",CJ61*EXP(BU61),IF($B$11="b",CJ61*(1+EXP(BU61))^2/(($C$20-$C$19)*EXP(BU61)),NA()))))) -> 0.07909257648 | BF61: =IF(CK61="",NA(),IF($B$11="u",CK61,IF($B$11="sl",CK61*EXP(-BV61),IF($B$11="su",CK61*EXP(BV61),IF($B$11="b",CK61*(1+EXP(BV61))^2/(($C$20-$C$19)*EXP(BV61)),NA()))))) -> 0.07889191062 | BG61: =IF(CL61="",NA(),IF($B$11="u",CL61,IF($B$11="sl",CL61*EXP(-BW61),IF($B$11="su",CL61*EXP(BW61),IF($B$11="b",CL61*(1+EXP(BW61))^2/(($C$20-$C$19)*EXP(BW61)),NA()))))) -> 0.0792524093 | BH61: =IF(CM61="",NA(),IF($B$11="u",CM61,IF($B$11="sl",CM61*EXP(-BX61),IF($B$11="su",CM61*EXP(BX61),IF($B$11="b",CM61*(1+EXP(BX61))^2/(($C$20-$C$19)*EXP(BX61)),NA()))))) -> 0.0811183155 | BI61: =IF(CN61="",NA(),IF($B$11="u",CN61,IF($B$11="sl",CN61*EXP(-BY61),IF($B$11="su",CN61*EXP(BY61),IF($B$11="b",CN61*(1+EXP(BY61))^2/(($C$20-$C$19)*EXP(BY61)),NA()))))) -> 0.08106204396 | BJ61: =IF(CO61="",NA(),IF($B$11="u",CO61,IF($B$11="sl",CO61*EXP(-BZ61),IF($B$11="su",CO61*EXP(BZ61),IF($B$11="b",CO61*(1+EXP(BZ61))^2/(($C$20-$C$19)*EXP(BZ61)),NA()))))) -> 0.08850410258 | BL61: 2.045557011 | BM61: 2.056821844 | BN61: 2.030773658 | BO61: 2.035625731 | BP61: 2.058486132 | BQ61: 2.06442747 | BR61: 2.059900168 | BS61: 2.065867548 | BT61: =IF(CI61="","",EK$90+EK$91*LN($AD61/(1-$AD61))+EK$92*($AD61-0.5)*LN($AD61/(1-$AD61))+EK$93*($AD61-0.5)+EK$94*($AD61-0.5)^2+EK$95*($AD61-0.5)^2*LN($AD61/(1-$AD61))+EK$96*($AD61-0.5)^3+EK$97*($AD61-0.5)^3*LN($AD61/(1-$AD61))+EK$98*($AD61-0.5)^4+EK$99*($AD61-0.5)^4*LN($AD61/(1-$AD61))+EK$100*($AD61-0.5)^5+EK$101*($AD61-0.5)^5*LN($AD61/(1-$AD61))+EK$102*($AD61-0.5)^6+EK$103*($AD61-0.5)^6*LN($AD61/(1-$AD61))+EK$104*($AD61-0.5)^7+EK$105*($AD61-0.5)^7*LN($AD61/(1-$AD61))) -> 2.067287468 | BU61: 2.067253827 | BV61: 2.069959621 | BW61: =IF(CL61="","",EN$90+EN$91*LN($AD61/(1-$AD61))+EN$92*($AD61-0.5)*LN($AD61/(1-$AD61))+EN$93*($AD61-0.5)+EN$94*($AD61-0.5)^2+EN$95*($AD61-0.5)^2*LN($AD61/(1-$AD61))+EN$96*($AD61-0.5)^3+EN$97*($AD61-0.5)^3*LN($AD61/(1-$AD61))+EN$98*($AD61-0.5)^4+EN$99*($AD61-0.5)^4*LN($AD61/(1-$AD61))+EN$100*($AD61-0.5)^5+EN$101*($AD61-0.5)^5*LN($AD61/(1-$AD61))+EN$102*($AD61-0.5)^6+EN$103*($AD61-0.5)^6*LN($AD61/(1-$AD61))+EN$104*($AD61-0.5)^7+EN$105*($AD61-0.5)^7*LN($AD61/(1-$AD61))) -> 2.069491058 | BX61: =IF(CM61="","",EO$90+EO$91*LN($AD61/(1-$AD61))+EO$92*($AD61-0.5)*LN($AD61/(1-$AD61))+EO$93*($AD61-0.5)+EO$94*($AD61-0.5)^2+EO$95*($AD61-0.5)^2*LN($AD61/(1-$AD61))+EO$96*($AD61-0.5)^3+EO$97*($AD61-0.5)^3*LN($AD61/(1-$AD61))+EO$98*($AD61-0.5)^4+EO$99*($AD61-0.5)^4*LN($AD61/(1-$AD61))+EO$100*($AD61-0.5)^5+EO$101*($AD61-0.5)^5*LN($AD61/(1-$AD61))+EO$102*($AD61-0.5)^6+EO$103*($AD61-0.5)^6*LN($AD61/(1-$AD61))+EO$104*($AD61-0.5)^7+EO$105*($AD61-0.5)^7*LN($AD61/(1-$AD61))) -> 2.071486038 | BY61: =IF(CN61="","",EP$90+EP$91*LN($AD61/(1-$AD61))+EP$92*($AD61-0.5)*LN($AD61/(1-$AD61))+EP$93*($AD61-0.5)+EP$94*($AD61-0.5)^2+EP$95*($AD61-0.5)^2*LN($AD61/(1-$AD61))+EP$96*($AD61-0.5)^3+EP$97*($AD61-0.5)^3*LN($AD61/(1-$AD61))+EP$98*($AD61-0.5)^4+EP$99*($AD61-0.5)^4*LN($AD61/(1-$AD61))+EP$100*($AD61-0.5)^5+EP$101*($AD61-0.5)^5*LN($AD61/(1-$AD61))+EP$102*($AD61-0.5)^6+EP$103*($AD61-0.5)^6*LN($AD61/(1-$AD61))+EP$104*($AD61-0.5)^7+EP$105*($AD61-0.5)^7*LN($AD61/(1-$AD61))) -> 2.071052755 | BZ61: =IF(CO61="","",EQ$90+EQ$91*LN($AD61/(1-$AD61))+EQ$92*($AD61-0.5)*LN($AD61/(1-$AD61))+EQ$93*($AD61-0.5)+EQ$94*($AD61-0.5)^2+EQ$95*($AD61-0.5)^2*LN($AD61/(1-$AD61))+EQ$96*($AD61-0.5)^3+EQ$97*($AD61-0.5)^3*LN($AD61/(1-$AD61))+EQ$98*($AD61-0.5)^4+EQ$99*($AD61-0.5)^4*LN($AD61/(1-$AD61))+EQ$100*($AD61-0.5)^5+EQ$101*($AD61-0.5)^5*LN($AD61/(1-$AD61))+EQ$102*($AD61-0.5)^6+EQ$103*($AD61-0.5)^6*LN($AD61/(1-$AD61))+EQ$104*($AD61-0.5)^7+EQ$105*($AD61-0.5)^7*LN($AD61/(1-$AD61))) -> 2.069018323 | CA61: 0.9300286735 | CB61: 0.8796545966 | CC61: 0.8081768176 | CD61: 0.693895917 | CE61: 0.6962013722 | CF61: 0.6735757777 | CG61: 0.62699277 | CH61: 0.6496961086 | CI61: 0.6260475624 | CJ61: 0.6250757534 | CK61: 0.6251791925 | CL61: 0.6277417597 | CM61: 0.6438043093 | CN61: 0.6430790086 | CO61: 0.700691168 | CQ61: 0.8928275266 | CR61: 0.8405567809 | CS61: 0.7818510488 | CT61: 0.6684458741 | CU61: 0.6552709357 | CV61: 0.6278696414 | CW61: 0.5897293779 | CX61: 0.6013923707 | CY61: 0.578732627 | CZ61: 0.5779919718 | DA61: 0.5727476395 | DB61: 0.5761218001 | DC61: 0.5826379094 | DD61: 0.5839033831 | DE61: 0.6369272349 | DG61: 1 | DH61: -4.678362561 | DI61: 2.296099956 | DJ61: -0.4907913669 | DK61: 0.2408761658 | DL61: -1.126906036 | DM61: -0.1182199427 | DN61: 0.5530757538 | DO61: 0.05802132726 | DP61: -0.2714448052 | DQ61: -0.02847636652 | DR61: 0.133222767 | DS61: 0.01397595485 | DT61: -0.06538458391 | DU61: -0.006859277984 | DV61: 0.03209018931 | DW61: 1.386294361 | DY61: 0.004604316547 | DZ61: 3 | EC61: =IF($B$11="u","",IF($B$11="sl"," log",IF($B$11="b"," logit",""))) -> log | ED61: log | EE61: log | EF61: log | EG61: log | EH61: log | EI61: log | EJ61: log | EK61: log | EL61: log | EM61: log | EN61: log | EO61: log | EP61: log | EQ61: log
B62: 29 | C62: 4 | AB62: 0.01007194245 | AC62: =IF(C$34="","",IF(ROW()-ROW(S$27)>B$17,"",SMALL(INDEX($C$34:$C$10033,1,1):INDEX($C$34:$C$10033,B$17,1),ROW()-ROW(S$27)))) -> 4 | AD62: 0.31 | AE62: 8.02803017 | AF62: 0.08124437251 | AG62: 7.816289129 | AH62: 7.909553437 | AI62: 7.714128117 | AJ62: 7.767174923 | AK62: 7.945754278 | AL62: 7.996583056 | AM62: 7.969325866 | AN62: 8.012176792 | AO62: 8.02803017 | AP62: 8.027960415 | AQ62: 8.049382564 | AR62: 8.045171457 | AS62: 8.057735467 | AT62: 8.054487175 | AU62: 8.028496982 | AV62: 0.1211957003 | AW62: 0.1135527908 | AX62: 0.1063563896 | AY62: 0.09097634725 | AZ62: 0.09026612858 | BA62: 0.08726462686 | BB62: 0.08121163528 | BC62: 0.08432337497 | BD62: 0.08124437251 | BE62: 0.08111314909 | BF62: 0.08131234168 | BG62: 0.08158974526 | BH62: 0.08404339349 | BI62: 0.08383803811 | BJ62: 0.09090709698 | BL62: 2.056209906 | BM62: 2.068071325 | BN62: 2.043053468 | BO62: 2.04990651 | BP62: 2.072637733 | BQ62: 2.079014332 | BR62: 2.075599905 | BS62: 2.080962483 | BT62: 2.082939189 | BU62: 2.0829305 | BV62: 2.085595388 | BW62: 2.085072092 | BX62: 2.086632558 | BY62: 2.086229349 | BZ62: 2.082997335 | CA62: 0.9473006346 | CB62: 0.898151867 | CC62: 0.8204468156 | CD62: 0.7066292029 | CE62: 0.7172324773 | CF62: 0.6978188365 | CG62: 0.6472019857 | CH62: 0.675613788 | CI62: 0.6522322736 | CJ62: 0.65117315 | CK62: 0.6545141454 | CL62: 0.6564034897 | CM62: 0.6771994325 | CN62: 0.6752724027 | CO62: 0.7298473537 | CQ62: 0.9118709709 | CR62: 0.8604546495 | CS62: 0.7953172446 | CT62: 0.6811727916 | CU62: 0.6755454958 | CV62: 0.6502615667 | CW62: 0.6078495547 | CX62: 0.6249499492 | CY62: 0.601561912 | CZ62: 0.6006977602 | DA62: 0.5979356138 | DB62: 0.6009909446 | DC62: 0.6122285689 | DD62: 0.6125812814 | DE62: 0.6695190122 | DG62: 1 | DH62: -4.647300415 | DI62: 2.279517571 | DJ62: -0.4905035971 | DK62: 0.2405937788 | DL62: -1.118111568 | DM62: -0.1180121139 | DN62: 0.5484377461 | DO62: 0.05788536639 | DP62: -0.2690106873 | DQ62: -0.02839298044 | DR62: 0.1319507098 | DS62: 0.01392685904 | DT62: -0.06472229779 | DU62: -0.006831174454 | DV62: 0.03174651988 | DW62: 1.386294361 | DY62: 0.004892086331 | DZ62: 3 | EB62: y | EC62: M2 | ED62: M3 | EE62: M4 | EF62: M5 | EG62: M6 | EH62: M7 | EI62: M8 | EJ62: M9 | EK62: M10 | EL62: M11 | EM62: M12 | EN62: M13 | EO62: M14 | EP62: M15 | EQ62: M16
B63: 30 | C63: 4 | AB63: 0.01035971223 | AC63: =IF(C$34="","",IF(ROW()-ROW(S$27)>B$17,"",SMALL(INDEX($C$34:$C$10033,1,1):INDEX($C$34:$C$10033,B$17,1),ROW()-ROW(S$27)))) -> 4 | AD63: 0.32 | AE63: 8.149490241 | AF63: 0.08345914485 | AG63: 7.898518003 | AH63: 7.997234149 | AI63: 7.808049561 | AJ63: 7.876881204 | AK63: 8.055675385 | AL63: 8.109967198 | AM63: 8.091419632 | AN63: 8.129318342 | AO63: 8.149490241 | AP63: 8.149620468 | AQ63: 8.170435164 | AR63: 8.165891418 | AS63: 8.174608983 | AT63: 8.171747008 | AU63: 8.137230921 | AV63: 0.1220085659 | AW63: 0.1145322604 | AX63: 0.1065749926 | AY63: 0.09132860888 | AZ63: 0.09169047613 | BA63: 0.08914830653 | BB63: 0.08262079698 | BC63: 0.0864370732 | BD63: 0.08345914485 | BE63: 0.08332022599 | BF63: 0.08395592429 | BG63: 0.08412920066 | BH63: 0.08712325758 | BI63: 0.08676275181 | BJ63: 0.09297896458 | BL63: 2.066675147 | BM63: 2.07909575 | BN63: 2.055155197 | BO63: 2.063932039 | BP63: 2.08637686 | BQ63: 2.093093824 | BR63: 2.090804195 | BS63: 2.095477075 | BT63: 2.097955378 | BU63: 2.097971358 | BV63: 2.100522171 | BW63: 2.099965896 | BX63: 2.101032885 | BY63: 2.100682718 | BZ63: 2.09644994 | CA63: =IF(AND($EC$41=0,CQ$26="yes"),CQ65,"") -> 0.9636868541 | CB63: 0.9159413041 | CC63: 0.8321428242 | CD63: 0.7193846027 | CE63: 0.7386287116 | CF63: 0.7229898417 | CG63: 0.6685195386 | CH63: 0.7026744846 | CI63: 0.6801494864 | CJ63: 0.6790282192 | CK63: 0.6859564361 | CL63: 0.6869899177 | CM63: 0.7121985641 | CN63: 0.7090032575 | CO63: 0.7565913056 | CQ63: 0.9300286735 | CR63: 0.8796545966 | CS63: 0.8081768176 | CT63: 0.693895917 | CU63: 0.6962013722 | CV63: 0.6735757777 | CW63: 0.62699277 | CX63: 0.6496961086 | CY63: =IF(OR(DP$26="",DP$26="no"),"",(EK$91/($AD61*(1-$AD61))+EK$92*(($AD61-0.5)/($AD61*(1-$AD61))+LN($AD61/(1-$AD61)))+EK$93+2*EK$94*($AD61-0.5)+EK$95*(($AD61-0.5)^2/($AD61*(1-$AD61))+2*($AD61-0.5)*LN($AD61/(1-$AD61)))+3*EK$96*($AD61-0.5)^2+EK$97*(($AD61-0.5)^3/($AD61*(1-$AD61))+3*($AD61-0.5)^2*LN($AD61/(1-$AD61)))+4*EK$98*($AD61-0.5)^3+EK$99*(($AD61-0.5)^4/($AD61*(1-$AD61))+4*($AD61-0.5)^3*LN($AD61/(1-$AD61)))+5*EK$100*($AD61-0.5)^4+EK$101*(($AD61-0.5)^5/($AD61*(1-$AD61))+5*($AD61-0.5)^4*LN($AD61/(1-$AD61)))+6*EK$102*($AD61-0.5)^5+EK$103*(($AD61-0.5)^6/($AD61*(1-$AD61))+6*($AD61-0.5)^5*LN($AD61/(1-$AD61)))+7*EK$104*($AD61-0.5)^6+EK$105*(($AD61-0.5)^7/($AD61*(1-$AD61))+7*($AD61-0.5)^6*LN($AD61/(1-$AD61))))^-1) -> 0.6260475624 | CZ63: 0.6250757534 | DA63: 0.6251791925 | DB63: =IF(OR(DS$26="",DS$26="no"),"",(EN$91/($AD61*(1-$AD61))+EN$92*(($AD61-0.5)/($AD61*(1-$AD61))+LN($AD61/(1-$AD61)))+EN$93+2*EN$94*($AD61-0.5)+EN$95*(($AD61-0.5)^2/($AD61*(1-$AD61))+2*($AD61-0.5)*LN($AD61/(1-$AD61)))+3*EN$96*($AD61-0.5)^2+EN$97*(($AD61-0.5)^3/($AD61*(1-$AD61))+3*($AD61-0.5)^2*LN($AD61/(1-$AD61)))+4*EN$98*($AD61-0.5)^3+EN$99*(($AD61-0.5)^4/($AD61*(1-$AD61))+4*($AD61-0.5)^3*LN($AD61/(1-$AD61)))+5*EN$100*($AD61-0.5)^4+EN$101*(($AD61-0.5)^5/($AD61*(1-$AD61))+5*($AD61-0.5)^4*LN($AD61/(1-$AD61)))+6*EN$102*($AD61-0.5)^5+EN$103*(($AD61-0.5)^6/($AD61*(1-$AD61))+6*($AD61-0.5)^5*LN($AD61/(1-$AD61)))+7*EN$104*($AD61-0.5)^6+EN$105*(($AD61-0.5)^7/($AD61*(1-$AD61))+7*($AD61-0.5)^6*LN($AD61/(1-$AD61))))^-1) -> 0.6277417597 | DC63: =IF(OR(DT$26="",DT$26="no"),"",(EO$91/($AD61*(1-$AD61))+EO$92*(($AD61-0.5)/($AD61*(1-$AD61))+LN($AD61/(1-$AD61)))+EO$93+2*EO$94*($AD61-0.5)+EO$95*(($AD61-0.5)^2/($AD61*(1-$AD61))+2*($AD61-0.5)*LN($AD61/(1-$AD61)))+3*EO$96*($AD61-0.5)^2+EO$97*(($AD61-0.5)^3/($AD61*(1-$AD61))+3*($AD61-0.5)^2*LN($AD61/(1-$AD61)))+4*EO$98*($AD61-0.5)^3+EO$99*(($AD61-0.5)^4/($AD61*(1-$AD61))+4*($AD61-0.5)^3*LN($AD61/(1-$AD61)))+5*EO$100*($AD61-0.5)^4+EO$101*(($AD61-0.5)^5/($AD61*(1-$AD61))+5*($AD61-0.5)^4*LN($AD61/(1-$AD61)))+6*EO$102*($AD61-0.5)^5+EO$103*(($AD61-0.5)^6/($AD61*(1-$AD61))+6*($AD61-0.5)^5*LN($AD61/(1-$AD61)))+7*EO$104*($AD61-0.5)^6+EO$105*(($AD61-0.5)^7/($AD61*(1-$AD61))+7*($AD61-0.5)^6*LN($AD61/(1-$AD61))))^-1) -> 0.6438043093 | DD63: =IF(OR(DU$26="",DU$26="no"),"",(EP$91/($AD61*(1-$AD61))+EP$92*(($AD61-0.5)/($AD61*(1-$AD61))+LN($AD61/(1-$AD61)))+EP$93+2*EP$94*($AD61-0.5)+EP$95*(($AD61-0.5)^2/($AD61*(1-$AD61))+2*($AD61-0.5)*LN($AD61/(1-$AD61)))+3*EP$96*($AD61-0.5)^2+EP$97*(($AD61-0.5)^3/($AD61*(1-$AD61))+3*($AD61-0.5)^2*LN($AD61/(1-$AD61)))+4*EP$98*($AD61-0.5)^3+EP$99*(($AD61-0.5)^4/($AD61*(1-$AD61))+4*($AD61-0.5)^3*LN($AD61/(1-$AD61)))+5*EP$100*($AD61-0.5)^4+EP$101*(($AD61-0.5)^5/($AD61*(1-$AD61))+5*($AD61-0.5)^4*LN($AD61/(1-$AD61)))+6*EP$102*($AD61-0.5)^5+EP$103*(($AD61-0.5)^6/($AD61*(1-$AD61))+6*($AD61-0.5)^5*LN($AD61/(1-$AD61)))+7*EP$104*($AD61-0.5)^6+EP$105*(($AD61-0.5)^7/($AD61*(1-$AD61))+7*($AD61-0.5)^6*LN($AD61/(1-$AD61))))^-1) -> 0.6430790086 | DE63: =IF(OR(DV$26="",DV$26="no"),"",(EQ$91/($AD61*(1-$AD61))+EQ$92*(($AD61-0.5)/($AD61*(1-$AD61))+LN($AD61/(1-$AD61)))+EQ$93+2*EQ$94*($AD61-0.5)+EQ$95*(($AD61-0.5)^2/($AD61*(1-$AD61))+2*($AD61-0.5)*LN($AD61/(1-$AD61)))+3*EQ$96*($AD61-0.5)^2+EQ$97*(($AD61-0.5)^3/($AD61*(1-$AD61))+3*($AD61-0.5)^2*LN($AD61/(1-$AD61)))+4*EQ$98*($AD61-0.5)^3+EQ$99*(($AD61-0.5)^4/($AD61*(1-$AD61))+4*($AD61-0.5)^3*LN($AD61/(1-$AD61)))+5*EQ$100*($AD61-0.5)^4+EQ$101*(($AD61-0.5)^5/($AD61*(1-$AD61))+5*($AD61-0.5)^4*LN($AD61/(1-$AD61)))+6*EQ$102*($AD61-0.5)^5+EQ$103*(($AD61-0.5)^6/($AD61*(1-$AD61))+6*($AD61-0.5)^5*LN($AD61/(1-$AD61)))+7*EQ$104*($AD61-0.5)^6+EQ$105*(($AD61-0.5)^7/($AD61*(1-$AD61))+7*($AD61-0.5)^6*LN($AD61/(1-$AD61))))^-1) -> 0.700691168 | DG63: 1 | DH63: -4.617156881 | DI63: 2.26340338 | DJ63: -0.4902158273 | DK63: 0.2403115574 | DL63: -1.109556161 | DM63: -0.1178045289 | DN63: 0.5439219913 | DO63: 0.05774964461 | DP63: -0.266639169 | DQ63: -0.02830978981 | DR63: 0.1307107408 | DS63: 0.01387790703 | DT63: -0.06407647395 | DU63: -0.006803169678 | DV63: 0.03141130169 | DW63: 1.386294361 | DY63: 0.005179856115 | DZ63: 3 | EB63: 0.01 | EC63: =IF(EC71="","",IF($B$11="u",EC71,IF($B$11="sl",$C$19+EXP(EC71),IF($B$11="su",$C$20-EXP(-EC71),IF($B$11="b",($C$19+$C$20*EXP(EC71))/(1+EXP(EC71)),""))))) -> 3.317796036 | ED63: 3.124664582 | EE63: 3.380090739 | EF63: 3.567816704 | EG63: 3.587858269 | EH63: 3.644239215 | EI63: 3.670034228 | EJ63: 3.737300221 | EK63: 3.694468333 | EL63: 3.695151479 | EM63: 3.670382393 | EN63: 3.669250632 | EO63: 3.658525976 | EP63: 3.654154391 | EQ63: 3.6154641
B64: 31 | C64: 4 | V64: ` | AB64: 0.01064748201 | AC64: =IF(C$34="","",IF(ROW()-ROW(S$27)>B$17,"",SMALL(INDEX($C$34:$C$10033,1,1):INDEX($C$34:$C$10033,B$17,1),ROW()-ROW(S$27)))) -> 4 | AD64: 0.33 | AE64: 8.267642558 | AF64: 0.08585512353 | AG64: 7.980240996 | AH64: 8.084205818 | AI64: 7.901811266 | AJ64: 7.986165755 | AK64: 8.163887732 | AL64: 8.220926932 | AM64: 8.211362543 | AN64: 8.243560728 | AO64: 8.267642558 | AP64: 8.267970259 | AQ64: 8.287585649 | AR64: 8.282886361 | AS64: 8.287342238 | AT64: 8.285037737 | AU64: 8.243761367 | AV64: 0.1227014739 | AW64: 0.1154123715 | AX64: 0.1067197162 | AY64: 0.09168006382 | AZ64: 0.09313890559 | BA64: 0.09111855098 | BB64: 0.08415002506 | BC64: 0.08865540033 | BD64: 0.08585512353 | BE64: 0.08571224947 | BF64: 0.08681598201 | BG64: 0.08686507726 | BH64: 0.09032266719 | BI64: 0.08980973919 | BJ64: 0.09471018447 | BL64: 2.076968611 | BM64: 2.089912259 | BN64: 2.067092007 | BO64: 2.077710764 | BP64: 2.099720493 | BQ64: 2.106682968 | BR64: 2.105518871 | BS64: 2.109432378 | BT64: 2.112349409 | BU64: 2.112389045 | BV64: 2.11475869 | BW64: 2.114191502 | BX64: 2.114729319 | BY64: 2.114451206 | BZ64: 2.109456716 | CA64: 0.979187332 | CB64: 0.9330173654 | CC64: 0.843279056 | CD64: 0.732172186 | CE64: 0.7603755687 | CF64: 0.7490789497 | CG64: 0.6909863637 | CH64: 0.7308361765 | CI64: 0.7098194731 | CJ64: 0.7086663295 | CK64: 0.7194948866 | CL64: 0.7194935637 | CM64: 0.7485348549 | CN64: 0.7440770784 | CO64: 0.7807681598 | CQ64: 0.9473006346 | CR64: 0.898151867 | CS64: 0.8204468156 | CT64: 0.7066292029 | CU64: 0.7172324773 | CV64: 0.6978188365 | CW64: 0.6472019857 | CX64: 0.675613788 | CY64: 0.6522322736 | CZ64: 0.65117315 | DA64: 0.6545141454 | DB64: 0.6564034897 | DC64: 0.6771994325 | DD64: 0.6752724027 | DE64: 0.7298473537 | DG64: 1 | DH64: -4.587878689 | DI64: 2.247730494 | DJ64: -0.4899280576 | DK64: 0.2400295016 | DL64: -1.101226235 | DM64: -0.1175971875 | DN64: 0.5395216302 | DO64: 0.05761416163 | DP64: -0.2643267843 | DQ64: -0.02822679429 | DR64: 0.129501108 | DS64: 0.0138290985 | DT64: -0.06344622629 | DU64: -0.006775263366 | DV64: 0.03108408641 | DW64: 1.386294361 | DY64: 0.005467625899 | DZ64: 3 | EB64: 0.05 | EC64: =IF(EC72="","",IF($B$11="u",EC72,IF($B$11="sl",$C$19+EXP(EC72),IF($B$11="su",$C$20-EXP(-EC72),IF($B$11="b",($C$19+$C$20*EXP(EC72))/(1+EXP(EC72)),""))))) -> 4.816384854 | ED64: 4.682128891 | EE64: 4.682423715 | EF64: 4.572943741 | EG64: 4.409654454 | EH64: 4.41881093 | EI64: 4.487350461 | EJ64: 4.468689007 | EK64: 4.497646641 | EL64: 4.497178711 | EM64: 4.5166576 | EN64: 4.516376948 | EO64: 4.532430983 | EP64: 4.534803674 | EQ64: 4.578439984
B65: 32 | C65: 4 | AB65: 0.0109352518 | AC65: =IF(C$34="","",IF(ROW()-ROW(S$27)>B$17,"",SMALL(INDEX($C$34:$C$10033,1,1):INDEX($C$34:$C$10033,B$17,1),ROW()-ROW(S$27)))) -> 4 | AD65: 0.34 | AE65: 8.382425597 | AF65: 0.08842843171 | AG65: 8.061542697 | AH65: 8.170553295 | AI65: 7.995477059 | AJ65: 8.095032101 | AK65: 8.270417766 | AL65: 8.329464046 | AM65: 8.329061393 | AN65: 8.354919503 | AO65: 8.382425597 | AP65: 8.382942159 | AQ65: 8.400805694 | AR65: 8.396131918 | AS65: 8.396099746 | AT65: 8.394489849 | AU65: 8.348540175 | AV65: 0.1232769093 | AW65: 0.1161945957 | AX65: 0.1067939316 | AY65: 0.09203178089 | AZ65: 0.09460872765 | BA65: 0.09317114724 | BB65: 0.08580090396 | BC65: 0.09096930478 | BD65: 0.08842843171 | BE65: 0.08828585977 | BF65: 0.08988219633 | BG65: 0.08978885837 | BH65: 0.09360199549 | BI65: 0.09294937354 | BJ65: 0.09612146201 | BL65: 2.08710494 | BM65: 2.100536629 | BN65: 2.078876014 | BO65: 2.091250553 | BP65: 2.112685024 | BQ65: 2.119799114 | BR65: 2.119750772 | BS65: 2.122850527 | BT65: 2.126137323 | BU65: 2.126198946 | BV65: 2.128327617 | BW65: 2.127771114 | BX65: 2.127767282 | BY65: 2.12757552 | BZ65: 2.122086694 | CA65: 0.9938020683 | CB65: 0.9493741364 | CC65: 0.8538684304 | CD65: 0.7450002206 | CE65: 0.782453702 | CF65: 0.776065721 | CG65: 0.7146409967 | CH65: 0.7600412187 | CI65: 0.7412447495 | CJ65: 0.7400952559 | CK65: 0.7550828668 | CL65: 0.7538790996 | CM65: 0.7858916905 | CN65: 0.7802625727 | CO65: 0.8024738872 | CQ65: 0.9636868541 | CR65: 0.9159413041 | CS65: 0.8321428242 | CT65: 0.7193846027 | CU65: 0.7386287116 | CV65: 0.7229898417 | CW65: 0.6685195386 | CX65: 0.7026744846 | CY65: 0.6801494864 | CZ65: 0.6790282192 | DA65: 0.6859564361 | DB65: 0.6869899177 | DC65: 0.7121985641 | DD65: 0.7090032575 | DE65: 0.7565913056 | DG65: 1 | DH65: -4.559417072 | DI65: 2.232474287 | DJ65: -0.4896402878 | DK65: 0.2397476114 | DL65: -1.093109352 | DM65: -0.1173900894 | DN65: 0.5352303779 | DO65: 0.05747891718 | DP65: -0.2620703562 | DQ65: -0.02814399355 | DR65: 0.1283202046 | DS65: 0.0137804331 | DT65: -0.06283074193 | DU65: -0.006747455228 | DV65: 0.03076446256 | DW65: 1.386294361 | DY65: 0.005755395683 | DZ65: 3 | EB65: 0.5 | EC65: =IF(EC73="","",IF($B$11="u",EC73,IF($B$11="sl",$C$19+EXP(EC73),IF($B$11="su",$C$20-EXP(-EC73),IF($B$11="b",($C$19+$C$20*EXP(EC73))/(1+EXP(EC73)),""))))) -> 9.364036389 | ED65: 9.525183203 | EE65: 9.525183203 | EF65: 9.781703221 | EG65: 9.781703221 | EH65: 9.781703221 | EI65: 9.883762807 | EJ65: 9.817972685 | EK65: 9.817972685 | EL65: 9.817972685 | EM65: 9.792858123 | EN65: 9.798203997 | EO65: 9.798203997 | EP65: 9.798203986 | EQ65: 9.852749952
B66: 33 | C66: 4 | AB66: 0.01122302158 | AC66: =IF(C$34="","",IF(ROW()-ROW(S$27)>B$17,"",SMALL(INDEX($C$34:$C$10033,1,1):INDEX($C$34:$C$10033,B$17,1),ROW()-ROW(S$27)))) -> 4 | AD66: 0.35 | AE66: 8.493809323 | AF66: 0.09117284976 | AG66: 8.142503584 | AH66: 8.256356992 | AI66: 8.089107537 | AJ66: 8.203482624 | AK66: 8.375295167 | AL66: 8.435592162 | AM66: 8.444435622 | AN66: 8.463430084 | AO66: 8.493809323 | AP66: 8.49450046 | AQ66: 8.510111923 | AR66: 8.505641926 | AS66: 8.501087507 | AT66: 8.500268957 | AU66: 8.451942414 | AV66: 0.1237372575 | AW66: 0.1168802832 | AX66: 0.1068007367 | AY66: 0.0923845708 | AZ66: 0.09609672749 | BA66: 0.09530063633 | BB66: 0.0875746297 | BC66: 0.09336808719 | BD66: 0.09117284976 | BE66: 0.09103534034 | BF66: 0.09313969045 | BG66: 0.09288846981 | BH66: 0.09691801322 | BI66: 0.09614909903 | BJ66: 0.09725974953 | BL66: 2.097097698 | BM66: 2.110983448 | BN66: 2.090518408 | BO66: 2.104558774 | BP66: 2.125286321 | BQ66: 2.132459917 | BR66: 2.133507718 | BS66: 2.135754539 | BT66: 2.139337583 | BU66: 2.139418949 | BV66: 2.141255094 | BW66: 2.140729699 | BX66: 2.140194097 | BY66: 2.140097805 | BZ66: 2.134396286 | CA66: 1.007531063 | CB66: 0.9650053437 | CC66: 0.8639226445 | CD66: 0.7578752213 | CE66: 0.8048384573 | CF66: 0.8039173009 | CG66: 0.7395183227 | CH66: 0.7902142779 | CI66: 0.7744048013 | CJ66: 0.7732997404 | CK66: 0.7926291902 | CL66: 0.7900760633 | CM66: 0.8239085114 | CN66: 0.8172932017 | CO66: 0.8220338023 | CQ66: 0.979187332 | CR66: 0.9330173654 | CS66: 0.843279056 | CT66: 0.732172186 | CU66: 0.7603755687 | CV66: 0.7490789497 | CW66: 0.6909863637 | CX66: 0.7308361765 | CY66: 0.7098194731 | CZ66: 0.7086663295 | DA66: 0.7194948866 | DB66: 0.7194935637 | DC66: 0.7485348549 | DD66: 0.7440770784 | DE66: 0.7807681598 | DG66: 1 | DH66: -4.531727273 | DI66: 2.217612152 | DJ66: -0.489352518 | DK66: 0.2394658869 | DL66: -1.085194091 | DM66: -0.1171832347 | DN66: 0.5310424607 | DO66: 0.05734391097 | DP66: -0.2598669653 | DQ66: -0.02806138722 | DR66: 0.1271665538 | DS66: 0.0137319105 | DT66: -0.06222927331 | DU66: -0.006719744978 | DV66: 0.03045205159 | DW66: 1.386294361 | DY66: 0.006043165468 | DZ66: 3 | EB66: 0.95 | EC66: =IF(EC74="","",IF($B$11="u",EC74,IF($B$11="sl",$C$19+EXP(EC74),IF($B$11="su",$C$20-EXP(-EC74),IF($B$11="b",($C$19+$C$20*EXP(EC74))/(1+EXP(EC74)),""))))) -> 18.20560029 | ED66: 17.69812207 | EE66: 17.69700773 | EF66: 17.28323314 | EG66: 17.92323041 | EH66: 17.88609064 | EI66: 18.16351918 | EJ66: 18.08798292 | EK66: 17.97152531 | EL66: 17.97339524 | EM66: 18.05124446 | EN66: 18.05012274 | EO66: 17.98618855 | EP66: 17.97677842 | EQ66: 18.14944187
B67: 34 | C67: 4 | AB67: 0.01151079137 | AC67: =IF(C$34="","",IF(ROW()-ROW(S$27)>B$17,"",SMALL(INDEX($C$34:$C$10033,1,1):INDEX($C$34:$C$10033,B$17,1),ROW()-ROW(S$27)))) -> 4 | AD67: 0.36 | AE67: 8.601794374 | AF67: 0.09407922626 | AG67: 8.223200638 | AH67: 8.341693513 | AI67: 8.182760557 | AJ67: 8.31151888 | AK67: 8.478552995 | AL67: 8.539336615 | AM67: 8.557417778 | AN67: 8.569146352 | AO67: 8.601794374 | AP67: 8.602640686 | AQ67: 8.615563415 | AR67: 8.611466344 | AS67: 8.602543406 | AT67: 8.60256859 | AU67: 8.554255643 | AV67: 0.1240848133 | AW67: 0.117470675 | AX67: 0.1067429786 | AY67: 0.09273900265 | AZ67: 0.09759912785 | BA67: 0.09750013293 | BB67: 0.08947185395 | BC67: 0.09583923036 | BD67: 0.09407922626 | BE67: 0.09395200385 | BF67: 0.09656809729 | BG67: 0.09614751208 | BH67: 0.1002251238 | BI67: 0.09937392446 | BJ67: 0.09819184765 | BL67: 2.106959505 | BM67: 2.121266255 | BN67: 2.10202957 | BO67: 2.11764237 | BP67: 2.137539798 | BQ67: 2.144683325 | BR67: 2.146798483 | BS67: 2.148168119 | BT67: 2.15197083 | BU67: 2.152069213 | BV67: 2.153570267 | BW67: 2.153094611 | BX67: 2.152057904 | BY67: 2.152060832 | BZ67: 2.146428895 | CA67: 1.020374316 | CB67: 0.9799043676 | CC67: 0.8734522352 | CD67: 0.7708019715 | CE67: 0.8274993777 | CF67: 0.8325864551 | CG67: 0.7656480336 | CH67: 0.8212603912 | CI67: 0.8092501591 | CJ67: 0.8082353309 | CK67: 0.8319885661 | CL67: 0.8279710643 | CM67: 0.8621909775 | CN67: 0.8548710013 | CO67: 0.8399581668 | CQ67: 0.9938020683 | CR67: 0.9493741364 | CS67: 0.8538684304 | CT67: 0.7450002206 | CU67: 0.782453702 | CV67: 0.776065721 | CW67: 0.7146409967 | CX67: 0.7600412187 | CY67: 0.7412447495 | CZ67: 0.7400952559 | DA67: 0.7550828668 | DB67: 0.7538790996 | DC67: 0.7858916905 | DD67: 0.7802625727 | DE67: 0.8024738872 | DG67: 1 | DH67: -4.504768117 | DI67: 2.203123285 | DJ67: -0.4890647482 | DK67: 0.2391843279 | DL67: -1.077469935 | DM67: -0.1169766231 | DN67: 0.5269525623 | DO67: 0.05720914273 | DP67: -0.2577139222 | DQ67: -0.02797897498 | DR67: 0.1260387945 | DS67: 0.01368353036 | DT67: -0.06164113127 | DU67: -0.006692132328 | DV67: 0.03014650435 | DW67: 1.386294361 | DY67: 0.006330935252 | DZ67: 3 | EB67: 0.99 | EC67: =IF(EC75="","",IF($B$11="u",EC75,IF($B$11="sl",$C$19+EXP(EC75),IF($B$11="su",$C$20-EXP(-EC75),IF($B$11="b",($C$19+$C$20*EXP(EC75))/(1+EXP(EC75)),""))))) -> 26.42874262 | ED67: 24.89030523 | EE67: 23.00939862 | EF67: 24.28731152 | EG67: 24.15164402 | EH67: 23.77798783 | EI67: 23.94629553 | EJ67: 24.38519371 | EK67: 24.66790391 | EL67: 24.6633434 | EM67: 24.49802181 | EN67: 24.49046769 | EO67: 24.5622594 | EP67: 24.59164508 | EQ67: 24.33046149
B68: 35 | C68: 4 | AB68: 0.01179856115 | AC68: =IF(C$34="","",IF(ROW()-ROW(S$27)>B$17,"",SMALL(INDEX($C$34:$C$10033,1,1):INDEX($C$34:$C$10033,B$17,1),ROW()-ROW(S$27)))) -> 4 | AD68: 0.37 | AE68: 8.706411005 | AF68: 0.0971348503 | AG68: 8.303707906 | AH68: 8.426636213 | AI68: 8.276491658 | AJ68: 8.419141903 | AK68: 8.580227818 | AL68: 8.64073429 | AM68: 8.667953909 | AN68: 8.672139235 | AO68: 8.706411005 | AP68: 8.707388651 | AQ68: 8.71725883 | AR68: 8.713688947 | AS68: 8.70072805 | AT68: 8.701603459 | AU68: 8.655674505 | AV68: 0.1243217897 | AW68: 0.1179669121 | AX68: 0.1066232737 | AY68: 0.09309541598 | AZ68: 0.09911155095 | BA68: 0.09976113908 | BB68: 0.09149249763 | BC68: 0.09836826048 | BD68: 0.0971348503 | BE68: 0.09702353144 | BF68: 0.1001406741 | BG68: 0.09954450078 | BH68: 0.1034769947 | BI68: 0.1025871507 | BJ68: 0.09899707533 | BL68: 2.116702151 | BM68: 2.131397667 | BN68: 2.113419166 | BO68: 2.130507911 | BP68: 2.149460465 | BQ68: 2.156487566 | BR68: 2.159632766 | BS68: 2.1601155 | BT68: 2.164059651 | BU68: 2.164171935 | BV68: 2.165304834 | BW68: 2.164895231 | BX68: 2.163406706 | BY68: 2.163507314 | BZ68: 2.158215118 | CA68: 1.032331828 | CB68: 0.9940642536 | CC68: 0.8824666354 | CD68: 0.7837835176 | CE68: 0.8503996865 | CF68: 0.8620094953 | CG68: 0.7930527525 | CH68: 0.8530632512 | CI68: 0.8456959297 | CJ68: 0.8448215965 | CK68: 0.8729521755 | CL68: 0.8673998162 | CM68: 0.9003251901 | CN68: 0.8926727053 | CO68: 0.856886461 | CQ68: 1.007531063 | CR68: 0.9650053437 | CS68: 0.8639226445 | CT68: 0.7578752213 | CU68: 0.8048384573 | CV68: 0.8039173009 | CW68: 0.7395183227 | CX68: 0.7902142779 | CY68: 0.7744048013 | CZ68: 0.7732997404 | DA68: 0.7926291902 | DB68: 0.7900760633 | DC68: 0.8239085114 | DD68: 0.8172932017 | DE68: 0.8220338023 | DG68: 1 | DH68: -4.478501637 | DI68: 2.188988498 | DJ68: -0.4887769784 | DK68: 0.2389029346 | DL68: -1.069927184 | DM68: -0.1167702545 | DN68: 0.522955776 | DO68: 0.05707461218 | DP68: -0.2556087441 | DQ68: -0.02789675648 | DR68: 0.1249356696 | DS68: 0.01363529234 | DT68: -0.06106567907 | DU68: -0.006664616991 | DV68: 0.0298474981 | DW68: 1.386294361 | DY68: 0.006618705036 | DZ68: 3 | EC68: intermediate calculations
B69: 36 | C69: 4 | AB69: 0.01208633094 | AC69: =IF(C$34="","",IF(ROW()-ROW(S$27)>B$17,"",SMALL(INDEX($C$34:$C$10033,1,1):INDEX($C$34:$C$10033,B$17,1),ROW()-ROW(S$27)))) -> 4 | AD69: 0.38 | AE69: 8.807717814 | AF69: 0.100322808 | AG69: 8.384096992 | AH69: 8.511255705 | AI69: 8.370354448 | AJ69: 8.526352474 | AK69: 8.680359839 | AL69: 8.739833434 | AM69: 8.776003901 | AN69: 8.772495271 | AO69: 8.807717814 | AP69: 8.80879927 | AQ69: 8.815333196 | AR69: 8.812424845 | AS69: 8.79591626 | AT69: 8.797603277 | AU69: 8.756300251 | AV69: 0.1244503252 | AW69: 0.1183700455 | AX69: 0.1064440255 | AY69: 0.09345392909 | AZ69: 0.1006289802 | BA69: 0.1020733579 | BB69: 0.09363553069 | BC69: 0.1009386514 | BD69: 0.100322808 | BE69: 0.1002332881 | BF69: 0.1038235497 | BG69: 0.1030521693 | BH69: 0.1066284681 | BI69: 0.1057512993 | BJ69: 0.09976033861 | BL69: 2.126336696 | BM69: 2.141389488 | BN69: 2.124696231 | BO69: 2.143161659 | BP69: 2.161062984 | BQ69: 2.167891132 | BR69: 2.172021167 | BS69: 2.171621289 | BT69: 2.175628361 | BU69: 2.175751139 | BV69: 2.176492614 | BW69: 2.17616264 | BX69: 2.174287552 | BY69: 2.174479329 | BZ69: 2.16977347 | CA69: 1.043403598 | CB69: 1.007477725 | CC69: 0.8909742221 | CD69: 0.7968211396 | CE69: 0.873495758 | CF69: 0.8921041464 | CG69: 0.8217457825 | CH69: 0.8854838421 | CI69: 0.8836149829 | CJ69: 0.8829349152 | CK69: 0.9152391841 | CL69: 0.9081394969 | CM69: 0.9378950762 | CN69: 0.9303579771 | CO69: 0.873531478 | CQ69: 1.020374316 | CR69: 0.9799043676 | CS69: 0.8734522352 | CT69: 0.7708019715 | CU69: 0.8274993777 | CV69: 0.8325864551 | CW69: 0.7656480336 | CX69: 0.8212603912 | CY69: 0.8092501591 | CZ69: 0.8082353309 | DA69: 0.8319885661 | DB69: 0.8279710643 | DC69: 0.8621909775 | DD69: 0.8548710013 | DE69: 0.8399581668 | DG69: 1 | DH69: -4.452892751 | DI69: 2.175190056 | DJ69: -0.4884892086 | DK69: 0.238621707 | DL69: -1.062556869 | DM69: -0.1165641288 | DN69: 0.5190475641 | DO69: 0.05694031903 | DP69: -0.2535491338 | DQ69: -0.02781473138 | DR69: 0.1238560157 | DS69: 0.01358719612 | DT69: -0.06050232711 | DU69: -0.006637198681 | DV69: 0.02955473389 | DW69: 1.386294361 | DY69: 0.00690647482 | DZ69: 4
B70: 37 | C70: 4 | AB70: 0.01237410072 | AC70: =IF(C$34="","",IF(ROW()-ROW(S$27)>B$17,"",SMALL(INDEX($C$34:$C$10033,1,1):INDEX($C$34:$C$10033,B$17,1),ROW()-ROW(S$27)))) -> 4 | AD70: 0.39 | AE70: 8.905800286 | AF70: 0.1036213577 | AG70: 8.464437515 | AH70: 8.595620314 | AI70: 8.464400947 | AJ70: 8.633151385 | AK70: 8.778993007 | AL70: 8.836693431 | AM70: 8.88154175 | AN70: 8.870315187 | AO70: 8.905800286 | AP70: 8.906955171 | AQ70: 8.909954466 | AR70: 8.907817866 | AS70: 8.888389381 | AT70: 8.890807227 | AU70: 8.856144651 | AV70: 0.1244724914 | AW70: 0.1186810439 | AX70: 0.1062074404 | AY70: 0.09381444397 | AZ70: 0.1021457229 | BA70: 0.1044245151 | BB70: 0.09589871509 | BC70: 0.1035317846 | BD70: 0.1036213577 | BE70: 0.1035596498 | BF70: 0.1075752141 | BG70: 0.1066369055 | BH70: 0.109637576 | BI70: 0.1088291863 | BJ70: 0.100566466 | BL70: 2.135873565 | BM70: 2.151252808 | BN70: 2.135869245 | BO70: 2.155609605 | BP70: 2.172361709 | BQ70: 2.17891276 | BR70: 2.183975162 | BS70: 2.18271033 | BT70: 2.186702782 | BU70: 2.186832451 | BV70: 2.187169131 | BW70: 2.186929303 | BX70: 2.184745861 | BY70: 2.185017847 | BZ70: 2.181111529 | CA70: 1.053589626 | CB70: 1.020137192 | CC70: 0.8989823592 | CD70: 0.8099142969 | CE70: 0.8967365869 | CF70: 0.9227674262 | CG70: 0.8517284418 | CH70: 0.9183595609 | CI70: 0.9228311167 | CJ70: 0.9224011582 | CK70: 0.9584902594 | CL70: 0.9499021318 | CM70: 0.9745014666 | CN70: 0.9675793159 | CO70: 0.8906311702 | CQ70: 1.032331828 | CR70: 0.9940642536 | CS70: 0.8824666354 | CT70: 0.7837835176 | CU70: 0.8503996865 | CV70: 0.8620094953 | CW70: 0.7930527525 | CX70: 0.8530632512 | CY70: 0.8456959297 | CZ70: 0.8448215965 | DA70: 0.8729521755 | DB70: 0.8673998162 | DC70: 0.9003251901 | DD70: 0.8926727053 | DE70: 0.856886461 | DG70: 1 | DH70: -4.427908975 | DI70: 2.161711533 | DJ70: -0.4882014388 | DK70: 0.2383406449 | DL70: -1.055350681 | DM70: -0.1163582458 | DN70: 0.5152237207 | DO70: 0.05680626301 | DP70: -0.2515329618 | DQ70: -0.02773289934 | DR70: 0.1227987539 | DS70: 0.01353924136 | DT70: -0.05995052833 | DU70: -0.006609877113 | DV70: 0.02926793419 | DW70: 1.386294361 | DY70: 0.007194244604 | DZ70: 4 | EC70: M2 | ED70: M3 | EE70: M4 | EF70: M5 | EG70: M6 | EH70: M7 | EI70: M8 | EJ70: M9 | EK70: M10 | EL70: M11 | EM70: M12 | EN70: M13 | EO70: M14 | EP70: M15 | EQ70: M16
B71: 38 | C71: 4 | AB71: 0.0126618705 | AC71: =IF(C$34="","",IF(ROW()-ROW(S$27)>B$17,"",SMALL(INDEX($C$34:$C$10033,1,1):INDEX($C$34:$C$10033,B$17,1),ROW()-ROW(S$27)))) -> 4 | AD71: 0.4 | AE71: 9.000769179 | AF71: 0.1070033728 | AG71: 8.544797525 | AH71: 8.679796492 | AI71: 8.558681907 | AJ71: 8.739539675 | AK71: 8.876175133 | AL71: 8.931384557 | AM71: 8.984555784 | AN71: 8.965712489 | AO71: 9.000769179 | AP71: 9.00196513 | AQ71: 9.001319892 | AR71: 9.000037848 | AS71: 8.978428524 | AT71: 8.981459098 | AU71: 8.955137793 | AV71: 0.1243902982 | AW71: 0.1189008021 | AX71: 0.1059155422 | AY71: 0.0941766481 | AZ71: 0.103655376 | BA71: 0.1068001975 | BB71: 0.09827830879 | BC71: 0.1061269775 | BD71: 0.1070033728 | BE71: 0.1069753921 | BF71: 0.1113463782 | BG71: 0.1102584117 | BH71: 0.1124674517 | BI71: 0.111785063 | BJ71: 0.1014961426 | BL71: 2.145322621 | BM71: 2.160998083 | BN71: 2.146946195 | BO71: 2.167857519 | BP71: 2.183370736 | BQ71: 2.189571428 | BR71: 2.195507079 | BS71: 2.193407578 | BT71: 2.197310038 | BU71: 2.197442901 | BV71: 2.197371221 | BW71: 2.197228783 | BX71: 2.19482487 | BY71: 2.195162352 | BZ71: 2.192227423 | CA71: 1.062889913 | CB71: 1.032034765 | CC71: 0.9064974349 | CD71: 0.8230605525 | CE71: 0.920063271 | CF71: 0.9538736344 | CG71: 0.8829869477 | CH71: 0.9515039674 | CI71: 0.9631126596 | CJ71: 0.9629887495 | CK71: 1.002264369 | CL71: 0.9923298785 | CM71: 1.009780976 | CN71: 1.003992971 | CO71: 0.9089119421 | CQ71: 1.043403598 | CR71: 1.007477725 | CS71: 0.8909742221 | CT71: 0.7968211396 | CU71: 0.873495758 | CV71: 0.8921041464 | CW71: 0.8217457825 | CX71: 0.8854838421 | CY71: 0.8836149829 | CZ71: 0.8829349152 | DA71: 0.9152391841 | DB71: 0.9081394969 | DC71: 0.9378950762 | DD71: 0.9303579771 | DE71: 0.873531478 | DG71: 1 | DH71: -4.403520175 | DI71: 2.148537685 | DJ71: -0.4879136691 | DK71: 0.2380597485 | DL71: -1.048300905 | DM71: -0.1161526053 | DN71: 0.511480341 | DO71: 0.05667244384 | DP71: -0.2495582498 | DQ71: -0.02765126001 | DR71: 0.1217628813 | DS71: 0.01349142772 | DT71: -0.05940977418 | DU71: -0.006582652002 | DV71: 0.0289868409 | DW71: 1.386294361 | DY71: 0.007482014388 | DZ71: 4 | EC71: =IF(CA$29="","",EC$90+EC$91*LN($EB63/(1-$EB63))) -> 1.199300718 | ED71: =IF(CB$29="","",ED$90+ED$91*LN($EB63/(1-$EB63))+ED$92*($EB63-0.5)*LN($EB63/(1-$EB63))) -> 1.139326944 | EE71: =IF(CC$29="","",EE$90+EE$91*LN($EB63/(1-$EB63))+EE$92*($EB63-0.5)*LN($EB63/(1-$EB63))+EE$93*($EB63-0.5)) -> 1.217902555 | EF71: =IF(CD$29="","",EF$90+EF$91*LN($EB63/(1-$EB63))+EF$92*($EB63-0.5)*LN($EB63/(1-$EB63))+EF$93*($EB63-0.5)+EF$94*($EB63-0.5)^2) -> 1.271953841 | EG71: =IF(CE$29="","",EG$90+EG$91*LN($EB63/(1-$EB63))+EG$92*($EB63-0.5)*LN($EB63/(1-$EB63))+EG$93*($EB63-0.5)+EG$94*($EB63-0.5)^2+EG$95*($EB63-0.5)^2*LN($EB63/(1-$EB63))) -> 1.277555442 | EH71: =IF(CF$29="","",EH$90+EH$91*LN($EB63/(1-$EB63))+EH$92*($EB63-0.5)*LN($EB63/(1-$EB63))+EH$93*($EB63-0.5)+EH$94*($EB63-0.5)^2+EH$95*($EB63-0.5)^2*LN($EB63/(1-$EB63))+EH$96*($EB63-0.5)^3) -> 1.293147624 | EI71: =IF(CG$29="","",EI$90+EI$91*LN($EB63/(1-$EB63))+EI$92*($EB63-0.5)*LN($EB63/(1-$EB63))+EI$93*($EB63-0.5)+EI$94*($EB63-0.5)^2+EI$95*($EB63-0.5)^2*LN($EB63/(1-$EB63))+EI$96*($EB63-0.5)^3+EI$97*($EB63-0.5)^3*LN($EB63/(1-$EB63))) -> 1.300200989 | EJ71: =IF(CH$29="","",EJ$90+EJ$91*LN($EB63/(1-$EB63))+EJ$92*($EB63-0.5)*LN($EB63/(1-$EB63))+EJ$93*($EB63-0.5)+EJ$94*($EB63-0.5)^2+EJ$95*($EB63-0.5)^2*LN($EB63/(1-$EB63))+EJ$96*($EB63-0.5)^3+EJ$97*($EB63-0.5)^3*LN($EB63/(1-$EB63))+EJ$98*($EB63-0.5)^4) -> 1.318363485 | EK71: =IF(CI$29="","",EK$90+EK$91*LN($EB63/(1-$EB63))+EK$92*($EB63-0.5)*LN($EB63/(1-$EB63))+EK$93*($EB63-0.5)+EK$94*($EB63-0.5)^2+EK$95*($EB63-0.5)^2*LN($EB63/(1-$EB63))+EK$96*($EB63-0.5)^3+EK$97*($EB63-0.5)^3*LN($EB63/(1-$EB63))+EK$98*($EB63-0.5)^4+EK$99*($EB63-0.5)^4*LN($EB63/(1-$EB63))+EK$100*($EB63-0.5)^5+EK$101*($EB63-0.5)^5*LN($EB63/(1-$EB63))+EK$102*($EB63-0.5)^6+EK$103*($EB63-0.5)^6*LN($EB63/(1-$EB63))+EK$104*($EB63-0.5)^7+EK$105*($EB63-0.5)^7*LN($EB63/(1-$EB63))) -> 1.306836656 | EL71: 1.307021549 | EM71: 1.300295851 | EN71: =IF(CL$29="","",EN$90+EN$91*LN($EB63/(1-$EB63))+EN$92*($EB63-0.5)*LN($EB63/(1-$EB63))+EN$93*($EB63-0.5)+EN$94*($EB63-0.5)^2+EN$95*($EB63-0.5)^2*LN($EB63/(1-$EB63))+EN$96*($EB63-0.5)^3+EN$97*($EB63-0.5)^3*LN($EB63/(1-$EB63))+EN$98*($EB63-0.5)^4+EN$99*($EB63-0.5)^4*LN($EB63/(1-$EB63))+EN$100*($EB63-0.5)^5+EN$101*($EB63-0.5)^5*LN($EB63/(1-$EB63))+EN$102*($EB63-0.5)^6+EN$103*($EB63-0.5)^6*LN($EB63/(1-$EB63))+EN$104*($EB63-0.5)^7+EN$105*($EB63-0.5)^7*LN($EB63/(1-$EB63))) -> 1.299987454 | EO71: 1.297060328 | EP71: 1.29586471 | EQ71: 1.285220229
B72: 39 | C72: 4 | AB72: 0.01294964029 | AC72: =IF(C$34="","",IF(ROW()-ROW(S$27)>B$17,"",SMALL(INDEX($C$34:$C$10033,1,1):INDEX($C$34:$C$10033,B$17,1),ROW()-ROW(S$27)))) -> 4 | AD72: 0.41 | AE72: 9.092758789 | AF72: 0.1104359137 | AG72: 8.625243887 | AH72: 8.763849201 | AI72: 8.653247102 | AJ72: 8.845518867 | AK72: 8.971958001 | AL72: 9.023987714 | AM72: 9.085048825 | AN72: 9.058812089 | AO72: 9.092758789 | AP72: 9.093962349 | AQ72: 9.089652301 | AR72: 9.089277883 | AS72: 9.066308811 | AT72: 9.06980312 | AU72: 9.053139184 | AV72: 0.1242057004 | AW72: 0.1190301476 | AX72: 0.1055701844 | AY72: 0.09454001361 | AZ72: 0.1051507957 | BA72: 0.1091837224 | BB72: 0.1007687298 | BC72: 0.1087015931 | BD72: 0.1104359137 | BE72: 0.1104472074 | BF72: 0.1150803364 | BG72: 0.1138696883 | BH72: 0.1150879223 | BI72: 0.1145857324 | BJ72: 0.1026233312 | BL72: 2.154693239 | BM72: 2.170635215 | BN72: 2.157934638 | BO72: 2.179910988 | BP72: 2.194103935 | BQ72: 2.199886333 | BR72: 2.206630076 | BS72: 2.203737995 | BT72: 2.207478359 | BU72: 2.207610715 | BV72: 2.207136657 | BW72: 2.207095464 | BX72: 2.204565214 | BY72: 2.204950557 | BZ72: 2.203111569 | CA72: 1.071304458 | CB72: 1.043162264 | CC72: 0.9135248926 | CD72: 0.8362554741 | CE72: 0.943408523 | CF72: 0.98527257 | CG72: 0.9154888299 | CH72: 0.9847073057 | CI72: 1.004167125 | CJ72: 1.004402745 | CK72: 1.046040244 | CL72: 1.034993239 | CM72: 1.043422644 | CN72: 1.039270033 | CO72: 0.9290633008 | CQ72: 1.053589626 | CR72: 1.020137192 | CS72: 0.8989823592 | CT72: 0.8099142969 | CU72: 0.8967365869 | CV72: 0.9227674262 | CW72: 0.8517284418 | CX72: 0.9183595609 | CY72: 0.9228311167 | CZ72: 0.9224011582 | DA72: 0.9584902594 | DB72: 0.9499021318 | DC72: 0.9745014666 | DD72: 0.9675793159 | DE72: 0.8906311702 | DG72: 1 | DH72: -4.379698345 | DI72: 2.135654344 | DJ72: -0.4876258993 | DK72: 0.2377790176 | DL72: -1.04140037 | DM72: -0.1159472073 | DN72: 0.507813792 | DO72: 0.05653886123 | DP72: -0.247623157 | DQ72: -0.02756981305 | DR72: 0.1207474646 | DS72: 0.01344375488 | DT72: -0.05887959101 | DU72: -0.006555523065 | DV72: 0.02871121352 | DW72: 1.386294361 | DY72: 0.007769784173 | DZ72: 4 | EC72: =IF(CA$29="","",EC$90+EC$91*LN($EB64/(1-$EB64))) -> 1.572023616 | ED72: =IF(CB$29="","",ED$90+ED$91*LN($EB64/(1-$EB64))+ED$92*($EB64-0.5)*LN($EB64/(1-$EB64))) -> 1.543752898 | EE72: =IF(CC$29="","",EE$90+EE$91*LN($EB64/(1-$EB64))+EE$92*($EB64-0.5)*LN($EB64/(1-$EB64))+EE$93*($EB64-0.5)) -> 1.543815864 | EF72: =IF(CD$29="","",EF$90+EF$91*LN($EB64/(1-$EB64))+EF$92*($EB64-0.5)*LN($EB64/(1-$EB64))+EF$93*($EB64-0.5)+EF$94*($EB64-0.5)^2) -> 1.520157142 | EG72: =IF(CE$29="","",EG$90+EG$91*LN($EB64/(1-$EB64))+EG$92*($EB64-0.5)*LN($EB64/(1-$EB64))+EG$93*($EB64-0.5)+EG$94*($EB64-0.5)^2+EG$95*($EB64-0.5)^2*LN($EB64/(1-$EB64))) -> 1.483796331 | EH72: =IF(CF$29="","",EH$90+EH$91*LN($EB64/(1-$EB64))+EH$92*($EB64-0.5)*LN($EB64/(1-$EB64))+EH$93*($EB64-0.5)+EH$94*($EB64-0.5)^2+EH$95*($EB64-0.5)^2*LN($EB64/(1-$EB64))+EH$96*($EB64-0.5)^3) -> 1.48587064 | EI72: =IF(CG$29="","",EI$90+EI$91*LN($EB64/(1-$EB64))+EI$92*($EB64-0.5)*LN($EB64/(1-$EB64))+EI$93*($EB64-0.5)+EI$94*($EB64-0.5)^2+EI$95*($EB64-0.5)^2*LN($EB64/(1-$EB64))+EI$96*($EB64-0.5)^3+EI$97*($EB64-0.5)^3*LN($EB64/(1-$EB64))) -> 1.50126243 | EJ72: =IF(CH$29="","",EJ$90+EJ$91*LN($EB64/(1-$EB64))+EJ$92*($EB64-0.5)*LN($EB64/(1-$EB64))+EJ$93*($EB64-0.5)+EJ$94*($EB64-0.5)^2+EJ$95*($EB64-0.5)^2*LN($EB64/(1-$EB64))+EJ$96*($EB64-0.5)^3+EJ$97*($EB64-0.5)^3*LN($EB64/(1-$EB64))+EJ$98*($EB64-0.5)^4) -> 1.497095079 | EK72: 1.503554291 | EL72: 1.503450247 | EM72: 1.507772251 | EN72: 1.507710112 | EO72: 1.511258436 | EP72: 1.511781791 | EQ72: 1.521358325
B73: 40 | C73: 4 | AB73: 0.01323741007 | AC73: =IF(C$34="","",IF(ROW()-ROW(S$27)>B$17,"",SMALL(INDEX($C$34:$C$10033,1,1):INDEX($C$34:$C$10033,B$17,1),ROW()-ROW(S$27)))) -> 4 | AD73: 0.42 | AE73: 9.181925114 | AF73: 0.1138800046 | AG73: 8.705842643 | AH73: 8.847842274 | AI73: 8.7481456 | AJ73: 8.951091196 | AK73: 9.066397478 | AL73: 9.114594159 | AM73: 9.183038309 | AN73: 9.149748981 | AO73: 9.181925114 | AP73: 9.183102629 | AQ73: 9.175196335 | AR73: 9.17575154 | AS73: 9.152294662 | AT73: 9.156080491 | AU73: 9.14995158 | AV73: 0.123920602 | AW73: 0.1190698474 | AX73: 0.1051730619 | AY73: 0.09490379376 | AZ73: 0.1066240735 | BA73: 0.1115560503 | BB73: 0.1033621813 | BC73: 0.1112312396 | BD73: 0.1138800046 | BE73: 0.1139354295 | BF73: 0.1187139524 | BG73: 0.1174174439 | BH73: 0.1174766023 | BI73: 0.117201546 | BJ73: 0.1040137911 | BL73: 2.163994368 | BM73: 2.180173618 | BN73: 2.168841747 | BO73: 2.191775446 | BP73: 2.204574994 | BQ73: 2.209876883 | BR73: 2.21735812 | BS73: 2.213726445 | BT73: 2.21723689 | BU73: 2.217365125 | BV73: 2.216503793 | BW73: 2.216564302 | BX73: 2.214004631 | BY73: 2.214418193 | BZ73: 2.213748587 | CA73: 1.078833261 | CB73: 1.05351123 | CC73: 0.9200692586 | CD73: 0.8494925128 | CE73: 0.9666962315 | CF73: 1.016788124 | CG73: 0.9491788703 | CH73: 1.017737921 | CI73: 1.045637674 | CJ73: 1.046280742 | CK73: 1.089223821 | CL73: 1.077393291 | CM73: 1.07518048 | CN73: 1.073106789 | CO73: 0.9517211525 | CQ73: 1.062889913 | CR73: 1.032034765 | CS73: 0.9064974349 | CT73: 0.8230605525 | CU73: 0.920063271 | CV73: 0.9538736344 | CW73: 0.8829869477 | CX73: 0.9515039674 | CY73: 0.9631126596 | CZ73: 0.9629887495 | DA73: 1.002264369 | DB73: 0.9923298785 | DC73: 1.009780976 | DD73: 1.003992971 | DE73: 0.9089119421 | DG73: 1 | DH73: -4.356417409 | DI73: 2.123048311 | DJ73: -0.4873381295 | DK73: 0.2374984525 | DL73: -1.034642393 | DM73: -0.1157420516 | DN73: 0.5042206885 | DO73: 0.05640551492 | DP73: -0.2457259672 | DQ73: -0.02748855814 | DR73: 0.1197516332 | DS73: 0.0133962225 | DT73: -0.05835953693 | DU73: -0.006528490017 | DV73: 0.02844082757 | DW73: 1.386294361 | DY73: 0.008057553957 | DZ73: 4 | EC73: =IF(CA$29="","",EC$90+EC$91*LN($EB65/(1-$EB65))) -> 2.236876436 | ED73: =IF(CB$29="","",ED$90+ED$91*LN($EB65/(1-$EB65))+ED$92*($EB65-0.5)*LN($EB65/(1-$EB65))) -> 2.253939155 | EE73: =IF(CC$29="","",EE$90+EE$91*LN($EB65/(1-$EB65))+EE$92*($EB65-0.5)*LN($EB65/(1-$EB65))+EE$93*($EB65-0.5)) -> 2.253939155 | EF73: =IF(CD$29="","",EF$90+EF$91*LN($EB65/(1-$EB65))+EF$92*($EB65-0.5)*LN($EB65/(1-$EB65))+EF$93*($EB65-0.5)+EF$94*($EB65-0.5)^2) -> 2.280513622 | EG73: =IF(CE$29="","",EG$90+EG$91*LN($EB65/(1-$EB65))+EG$92*($EB65-0.5)*LN($EB65/(1-$EB65))+EG$93*($EB65-0.5)+EG$94*($EB65-0.5)^2+EG$95*($EB65-0.5)^2*LN($EB65/(1-$EB65))) -> 2.280513622 | EH73: =IF(CF$29="","",EH$90+EH$91*LN($EB65/(1-$EB65))+EH$92*($EB65-0.5)*LN($EB65/(1-$EB65))+EH$93*($EB65-0.5)+EH$94*($EB65-0.5)^2+EH$95*($EB65-0.5)^2*LN($EB65/(1-$EB65))+EH$96*($EB65-0.5)^3) -> 2.280513622 | EI73: =IF(CG$29="","",EI$90+EI$91*LN($EB65/(1-$EB65))+EI$92*($EB65-0.5)*LN($EB65/(1-$EB65))+EI$93*($EB65-0.5)+EI$94*($EB65-0.5)^2+EI$95*($EB65-0.5)^2*LN($EB65/(1-$EB65))+EI$96*($EB65-0.5)^3+EI$97*($EB65-0.5)^3*LN($EB65/(1-$EB65))) -> 2.29089329 | EJ73: =IF(CH$29="","",EJ$90+EJ$91*LN($EB65/(1-$EB65))+EJ$92*($EB65-0.5)*LN($EB65/(1-$EB65))+EJ$93*($EB65-0.5)+EJ$94*($EB65-0.5)^2+EJ$95*($EB65-0.5)^2*LN($EB65/(1-$EB65))+EJ$96*($EB65-0.5)^3+EJ$97*($EB65-0.5)^3*LN($EB65/(1-$EB65))+EJ$98*($EB65-0.5)^4) -> 2.284214653 | EK73: 2.284214653 | EL73: 2.284214653 | EM73: 2.281653357 | EN73: 2.282199103 | EO73: 2.282199103 | EP73: 2.282199102 | EQ73: 2.287750599
B74: 41 | C74: 4 | AB74: 0.01352517986 | AC74: =IF(C$34="","",IF(ROW()-ROW(S$27)>B$17,"",SMALL(INDEX($C$34:$C$10033,1,1):INDEX($C$34:$C$10033,B$17,1),ROW()-ROW(S$27)))) -> 4 | AD74: 0.43 | AE74: 9.268443951 | AF74: 0.1172906965 | AG74: 8.78665936 | AH74: 8.931838752 | AI74: 8.843426021 | AJ74: 9.056259832 | AK74: 9.159553637 | AL74: 9.203305209 | AM74: 9.278556351 | AN74: 9.238666971 | AO74: 9.268443951 | AP74: 9.269562447 | AQ74: 9.258214708 | AR74: 9.259690098 | AS74: 9.236636144 | AT74: 9.240526586 | AU74: 9.245336938 | AV74: 0.1235368618 | AW74: 0.1190206141 | AX74: 0.1047257207 | AY74: 0.09526701714 | AZ74: 0.1080665209 | BA74: 0.1138957575 | BB74: 0.1060482429 | BC74: 0.1136900676 | BD74: 0.1172906965 | BE74: 0.1173940581 | BF74: 0.1221793468 | BG74: 0.1208430228 | BH74: 0.1196193642 | BI74: 0.1196071947 | BJ74: 0.1057241732 | BL74: 2.173234589 | BM74: 2.189622281 | BN74: 2.179674361 | BO74: 2.203456213 | BP74: 2.214797448 | BQ74: 2.219562681 | BR74: 2.227705969 | BS74: 2.223397608 | BT74: 2.226615507 | BU74: 2.226736177 | BV74: 2.225511234 | BW74: 2.225670581 | BX74: 2.223177766 | BY74: 2.223598874 | BZ74: 2.22411931 | CA74: 1.085476323 | CB74: 1.063072934 | CC74: 0.9261341639 | CD74: 0.8627628607 | CE74: 0.989841095 | CF74: 1.048217418 | CG74: 0.9839745976 | CH74: 1.050344673 | CI74: 1.087102247 | CJ74: 1.088191553 | CK74: 1.131162626 | CL74: 1.118968942 | CM74: 1.104880542 | CN74: 1.105233463 | CO74: 0.9774556039 | CQ74: 1.071304458 | CR74: 1.043162264 | CS74: 0.9135248926 | CT74: 0.8362554741 | CU74: 0.943408523 | CV74: 0.98527257 | CW74: 0.9154888299 | CX74: 0.9847073057 | CY74: 1.004167125 | CZ74: 1.004402745 | DA74: 1.046040244 | DB74: 1.034993239 | DC74: 1.043422644 | DD74: 1.039270033 | DE74: 0.9290633008 | DG74: 1 | DH74: -4.33365305 | DI74: 2.110707277 | DJ74: -0.4870503597 | DK74: 0.2372180529 | DL74: -1.028020739 | DM74: -0.115537138 | DN74: 0.5006978705 | DO74: 0.05627240462 | DP74: -0.2438650779 | DQ74: -0.02740749491 | DR74: 0.1187745739 | DS74: 0.01334883026 | DT74: -0.05784919896 | DU74: -0.006501552578 | DV74: 0.02817547316 | DW74: 1.386294361 | DY74: 0.008345323741 | DZ74: 4 | EC74: =IF(CA$29="","",EC$90+EC$91*LN($EB66/(1-$EB66))) -> 2.901729255 | ED74: =IF(CB$29="","",ED$90+ED$91*LN($EB66/(1-$EB66))+ED$92*($EB66-0.5)*LN($EB66/(1-$EB66))) -> 2.873458536 | EE74: =IF(CC$29="","",EE$90+EE$91*LN($EB66/(1-$EB66))+EE$92*($EB66-0.5)*LN($EB66/(1-$EB66))+EE$93*($EB66-0.5)) -> 2.87339557 | EF74: =IF(CD$29="","",EF$90+EF$91*LN($EB66/(1-$EB66))+EF$92*($EB66-0.5)*LN($EB66/(1-$EB66))+EF$93*($EB66-0.5)+EF$94*($EB66-0.5)^2) -> 2.849736849 | EG74: =IF(CE$29="","",EG$90+EG$91*LN($EB66/(1-$EB66))+EG$92*($EB66-0.5)*LN($EB66/(1-$EB66))+EG$93*($EB66-0.5)+EG$94*($EB66-0.5)^2+EG$95*($EB66-0.5)^2*LN($EB66/(1-$EB66))) -> 2.88609766 | EH74: =IF(CF$29="","",EH$90+EH$91*LN($EB66/(1-$EB66))+EH$92*($EB66-0.5)*LN($EB66/(1-$EB66))+EH$93*($EB66-0.5)+EH$94*($EB66-0.5)^2+EH$95*($EB66-0.5)^2*LN($EB66/(1-$EB66))+EH$96*($EB66-0.5)^3) -> 2.884023352 | EI74: =IF(CG$29="","",EI$90+EI$91*LN($EB66/(1-$EB66))+EI$92*($EB66-0.5)*LN($EB66/(1-$EB66))+EI$93*($EB66-0.5)+EI$94*($EB66-0.5)^2+EI$95*($EB66-0.5)^2*LN($EB66/(1-$EB66))+EI$96*($EB66-0.5)^3+EI$97*($EB66-0.5)^3*LN($EB66/(1-$EB66))) -> 2.899415142 | EJ74: =IF(CH$29="","",EJ$90+EJ$91*LN($EB66/(1-$EB66))+EJ$92*($EB66-0.5)*LN($EB66/(1-$EB66))+EJ$93*($EB66-0.5)+EJ$94*($EB66-0.5)^2+EJ$95*($EB66-0.5)^2*LN($EB66/(1-$EB66))+EJ$96*($EB66-0.5)^3+EJ$97*($EB66-0.5)^3*LN($EB66/(1-$EB66))+EJ$98*($EB66-0.5)^4) -> 2.895247791 | EK74: 2.888788578 | EL74: 2.888892622 | EM74: 2.893214627 | EN74: 2.893152485 | EO74: 2.889604161 | EP74: 2.889080837 | EQ74: 2.898639809
B75: 42 | C75: 4 | AB75: 0.01381294964 | AC75: =IF(C$34="","",IF(ROW()-ROW(S$27)>B$17,"",SMALL(INDEX($C$34:$C$10033,1,1):INDEX($C$34:$C$10033,B$17,1),ROW()-ROW(S$27)))) -> 4 | AD75: 0.44 | AE75: 9.352508953 | AF75: 0.120617502 | AG75: 8.867759455 | AH75: 9.015901201 | AI75: 8.939136782 | AJ75: 9.1610291 | AK75: 9.25149087 | AL75: 9.290231955 | AM75: 9.371649784 | AN75: 9.325717465 | AO75: 9.352508953 | AP75: 9.353536976 | AQ75: 9.338984535 | AR75: 9.341339831 | AS75: 9.319566343 | AT75: 9.323368817 | AU75: 9.339033867 | AV75: 0.1230562973 | AW75: 0.1188831117 | AX75: 0.1042295677 | AY75: 0.09562847969 | AZ75: 0.1094686649 | BA75: 0.1161790878 | BB75: 0.1088134354 | BC75: 0.1160511661 | BD75: 0.120617502 | BE75: 0.1207711739 | BF75: 0.1254062976 | BG75: 0.1240839087 | BH75: 0.1215101503 | BI75: 0.1217822277 | BJ75: 0.1078011466 | BL75: 2.182422166 | BM75: 2.198989819 | BN75: 2.190439028 | BO75: 2.214958519 | BP75: 2.224784714 | BQ75: 2.228963521 | BR75: 2.237689152 | BS75: 2.232775903 | BT75: 2.235644645 | BU75: 2.235754558 | BV75: 2.234197524 | BW75: 2.234449693 | BX75: 2.232116098 | BY75: 2.232524024 | BZ75: 2.234202807 | CA75: 1.091233644 | CB75: 1.071838389 | CC75: 0.9317223621 | CD75: 0.8760552852 | CE75: 1.012748354 | CF75: 1.079330674 | CG75: 1.019761408 | CH75: 1.082260386 | CI75: 1.128076268 | CJ75: 1.129637641 | CK75: 1.171167474 | CL75: 1.159109959 | CM75: 1.132421907 | CN75: 1.135420624 | CO75: 1.006758559 | CQ75: 1.078833261 | CR75: 1.05351123 | CS75: 0.9200692586 | CT75: 0.8494925128 | CU75: 0.9666962315 | CV75: 1.016788124 | CW75: 0.9491788703 | CX75: 1.017737921 | CY75: 1.045637674 | CZ75: 1.046280742 | DA75: 1.089223821 | DB75: 1.077393291 | DC75: 1.07518048 | DD75: 1.073106789 | DE75: 0.9517211525 | DG75: 1 | DH75: -4.311382556 | DI75: 2.098619739 | DJ75: -0.4867625899 | DK75: 0.236937819 | DL75: -1.021529579 | DM75: -0.1153324664 | DN75: 0.4972423838 | DO75: 0.05613953005 | DP75: -0.2420389906 | DQ75: -0.02732662304 | DR75: 0.1178155259 | DS75: 0.01330157781 | DT75: -0.05734819052 | DU75: -0.006474710464 | DV75: 0.02791495375 | DW75: 1.386294361 | DY75: 0.008633093525 | DZ75: 4 | EC75: =IF(CA$29="","",EC$90+EC$91*LN($EB67/(1-$EB67))) -> 3.274452154 | ED75: =IF(CB$29="","",ED$90+ED$91*LN($EB67/(1-$EB67))+ED$92*($EB67-0.5)*LN($EB67/(1-$EB67))) -> 3.214478379 | EE75: =IF(CC$29="","",EE$90+EE$91*LN($EB67/(1-$EB67))+EE$92*($EB67-0.5)*LN($EB67/(1-$EB67))+EE$93*($EB67-0.5)) -> 3.135902768 | EF75: =IF(CD$29="","",EF$90+EF$91*LN($EB67/(1-$EB67))+EF$92*($EB67-0.5)*LN($EB67/(1-$EB67))+EF$93*($EB67-0.5)+EF$94*($EB67-0.5)^2) -> 3.189954054 | EG75: =IF(CE$29="","",EG$90+EG$91*LN($EB67/(1-$EB67))+EG$92*($EB67-0.5)*LN($EB67/(1-$EB67))+EG$93*($EB67-0.5)+EG$94*($EB67-0.5)^2+EG$95*($EB67-0.5)^2*LN($EB67/(1-$EB67))) -> 3.184352453 | EH75: =IF(CF$29="","",EH$90+EH$91*LN($EB67/(1-$EB67))+EH$92*($EB67-0.5)*LN($EB67/(1-$EB67))+EH$93*($EB67-0.5)+EH$94*($EB67-0.5)^2+EH$95*($EB67-0.5)^2*LN($EB67/(1-$EB67))+EH$96*($EB67-0.5)^3) -> 3.168760272 | EI75: =IF(CG$29="","",EI$90+EI$91*LN($EB67/(1-$EB67))+EI$92*($EB67-0.5)*LN($EB67/(1-$EB67))+EI$93*($EB67-0.5)+EI$94*($EB67-0.5)^2+EI$95*($EB67-0.5)^2*LN($EB67/(1-$EB67))+EI$96*($EB67-0.5)^3+EI$97*($EB67-0.5)^3*LN($EB67/(1-$EB67))) -> 3.175813637 | EJ75: =IF(CH$29="","",EJ$90+EJ$91*LN($EB67/(1-$EB67))+EJ$92*($EB67-0.5)*LN($EB67/(1-$EB67))+EJ$93*($EB67-0.5)+EJ$94*($EB67-0.5)^2+EJ$95*($EB67-0.5)^2*LN($EB67/(1-$EB67))+EJ$96*($EB67-0.5)^3+EJ$97*($EB67-0.5)^3*LN($EB67/(1-$EB67))+EJ$98*($EB67-0.5)^4) -> 3.193976133 | EK75: 3.205502962 | EL75: 3.205318068 | EM75: 3.198592372 | EN75: 3.198283968 | EO75: 3.201211094 | EP75: 3.202406755 | EQ75: 3.191729124
B76: 43 | C76: 4 | AB76: 0.01410071942 | AC76: =IF(C$34="","",IF(ROW()-ROW(S$27)>B$17,"",SMALL(INDEX($C$34:$C$10033,1,1):INDEX($C$34:$C$10033,B$17,1),ROW()-ROW(S$27)))) -> 4 | AD76: 0.45 | AE76: 9.43432967 | AF76: 0.123805271 | AG76: 8.949208522 | AH76: 9.100092032 | AI76: 9.035326331 | AJ76: 9.265404703 | AK76: 9.342278027 | AL76: 9.375494973 | AM76: 9.462380145 | AN76: 9.411058346 | AO76: 9.43432967 | AP76: 9.435238076 | AQ76: 9.417793784 | AR76: 9.420959351 | AS76: 9.401299742 | AT76: 9.404825109 | AU76: 9.43077592 | AV76: 0.1224806886 | AW76: 0.1186579608 | AX76: 0.1036858779 | AY76: 0.09598673454 | AZ76: 0.110820257 | BA76: 0.1183800975 | BB76: 0.1116407742 | BC76: 0.1182870517 | BD76: 0.123805271 | BE76: 0.1240098258 | BF76: 0.1283252681 | BG76: 0.1270758082 | BH76: 0.1231501665 | BI76: 0.1237112618 | BJ76: 0.1102800374 | BL76: 2.191565095 | BM76: 2.208284527 | BN76: 2.201142042 | BO76: 2.22628754 | BP76: 2.234550123 | BQ76: 2.238099368 | BR76: 2.247323952 | BS76: 2.241885418 | BT76: 2.244355129 | BU76: 2.244451412 | BV76: 2.242600856 | BW76: 2.242936925 | BX76: 2.24084795 | BY76: 2.241222867 | BZ76: 2.243978375 | CA76: 1.096105222 | CB76: 1.079798364 | CC76: 0.9368357432 | CD76: 0.8893559416 | CE76: 1.035313652 | CF76: 1.109872009 | CG76: 1.056387445 | CH76: 1.113206346 | CI76: 1.168019741 | CJ76: 1.17006223 | CK76: 1.208540912 | CL76: 1.197176024 | CM76: 1.157771628 | CN76: 1.163482782 | CO76: 1.040026321 | CQ76: 1.085476323 | CR76: 1.063072934 | CS76: 0.9261341639 | CT76: 0.8627628607 | CU76: 0.989841095 | CV76: 1.048217418 | CW76: 0.9839745976 | CX76: 1.050344673 | CY76: 1.087102247 | CZ76: 1.088191553 | DA76: 1.131162626 | DB76: 1.118968942 | DC76: 1.104880542 | DD76: 1.105233463 | DE76: 0.9774556039 | DG76: 1 | DH76: -4.289584678 | DI76: 2.086774935 | DJ76: -0.4864748201 | DK76: 0.2366577506 | DL76: -1.015163461 | DM76: -0.1151280367 | DN76: 0.4938514621 | DO76: 0.05600689094 | DP76: -0.2402463012 | DQ76: -0.02724594219 | DR76: 0.1168737762 | DS76: 0.01325446483 | DT76: -0.05685614924 | DU76: -0.006447963394 | DV76: 0.02765908498 | DW76: 1.386294361 | DY76: 0.008920863309 | DZ76: 4
B77: 44 | C77: 4 | AB77: 0.01438848921 | AC77: =IF(C$34="","",IF(ROW()-ROW(S$27)>B$17,"",SMALL(INDEX($C$34:$C$10033,1,1):INDEX($C$34:$C$10033,B$17,1),ROW()-ROW(S$27)))) -> 4 | AD77: 0.46 | AE77: 9.514129591 | AF77: 0.1267955531 | AG77: 9.031072645 | AH77: 9.184473798 | AI77: 9.132043387 | AJ77: 9.369393953 | AK77: 9.431988553 | AL77: 9.459224037 | AM77: 9.550823644 | AN77: 9.494852918 | AO77: 9.514129591 | AP77: 9.51489227 | AQ77: 9.494937873 | AR77: 9.498817037 | AS77: 9.482031539 | AT77: 9.485102951 | AU77: 9.520310083 | AV77: 0.1218117828 | AW77: 0.1183457443 | AX77: 0.1030958027 | AY77: 0.09634008004 | AZ77: 0.1121102985 | BA77: 0.1204709132 | BB77: 0.1145093319 | BC77: 0.1203702412 | BD77: 0.1267955531 | BE77: 0.1270494446 | BF77: 0.1308708707 | BG77: 0.12975525 | BH77: 0.1245465718 | BI77: 0.1253838767 | BJ77: 0.11318251 | BL77: 2.200671147 | BM77: 2.217514428 | BN77: 2.21178948 | BO77: 2.237448415 | BP77: 2.24410695 | BQ77: 2.246990354 | BR77: 2.256627396 | BS77: 2.250749854 | BT77: 2.252778019 | BU77: 2.252858179 | BV77: 2.250758801 | BW77: 2.251167268 | BX77: 2.249398591 | BY77: 2.249722457 | BZ77: 2.25342742 | CA77: 1.10009106 | CB77: 1.086943388 | CC77: 0.9414753433 | CD77: 0.9026481633 | CE77: 1.057423052 | CF77: 1.139561357 | CG77: 1.093658435 | CH77: 1.142897736 | CI77: 1.206349324 | CJ77: 1.208861778 | CK77: 1.242610787 | CL77: 1.232521379 | CM77: 1.180954522 | CN77: 1.189278979 | CO77: 1.077532591 | CQ77: 1.091233644 | CR77: 1.071838389 | CS77: 0.9317223621 | CT77: 0.8760552852 | CU77: 1.012748354 | CV77: 1.079330674 | CW77: 1.019761408 | CX77: 1.082260386 | CY77: 1.128076268 | CZ77: 1.129637641 | DA77: 1.171167474 | DB77: 1.159109959 | DC77: 1.132421907 | DD77: 1.135420624 | DE77: 1.006758559 | DG77: 1 | DH77: -4.268239511 | DI77: 2.075162778 | DJ77: -0.4861870504 | DK77: 0.2363778479 | DL77: -1.00891727 | DM77: -0.1149238487 | DN77: 0.4905225116 | DO77: 0.055874487 | DP77: -0.238485693 | DQ77: -0.02716545202 | DR77: 0.1159486557 | DS77: 0.01320749099 | DT77: -0.05637273489 | DU77: -0.006421311087 | DV77: 0.0274076937 | DW77: 1.386294361 | DY77: 0.009208633094 | DZ77: 4 | EC77: simulation
B78: 45 | C78: 4 | E78: m_QF_formula | AB78: 0.01467625899 | AC78: =IF(C$34="","",IF(ROW()-ROW(S$27)>B$17,"",SMALL(INDEX($C$34:$C$10033,1,1):INDEX($C$34:$C$10033,B$17,1),ROW()-ROW(S$27)))) -> 4 | AD78: 0.47 | AE78: 9.592144223 | AF78: 0.1295284493 | AG78: 9.113418715 | AH78: 9.269109496 | AI78: 9.22933716 | AJ78: 9.473006001 | AK78: 9.520700643 | AL78: 9.541557844 | AM78: 9.6370711 | AN78: 9.577268945 | AO78: 9.592144223 | AP78: 9.592738744 | AQ78: 9.570716466 | AR78: 9.575188567 | AS78: 9.561937836 | AT78: 9.564398978 | AU78: 9.607414789 | AV78: 0.121051297 | AW78: 0.1179470118 | AX78: 0.1024603754 | AY78: 0.09668654588 | AZ78: 0.1133270852 | BA78: 0.122422112 | BB78: 0.1173938401 | BC78: 0.122273884 | BD78: 0.1295284493 | BE78: 0.1298277891 | BF78: 0.1329854707 | BG78: 0.1320625475 | BH78: 0.1257108202 | BI78: 0.1267942216 | BJ78: 0.1165128925 | BL78: 2.209747911 | BM78: 2.226687312 | BN78: 2.222387232 | BO78: 2.24844628 | BP78: 2.253468443 | BQ78: 2.255656768 | BR78: 2.265617235 | BS78: 2.259392473 | BT78: 2.260944453 | BU78: 2.261006431 | BV78: 2.258708069 | BW78: 2.259175229 | BX78: 2.257790409 | BY78: 2.258047765 | BZ78: 2.262535174 | CA78: 1.103191155 | CB78: 1.093263767 | CC78: 0.9456413502 | CD78: 0.9159122293 | CE78: 1.078953253 | CF78: 1.168097663 | CG78: 1.131332783 | CH78: 1.171049872 | CI78: 1.242455567 | CJ78: 1.245404063 | CK78: 1.272766234 | CL78: 1.264523795 | CM78: 1.202039048 | CN78: 1.212710524 | CO78: 1.119387686 | CQ78: 1.096105222 | CR78: 1.079798364 | CS78: 0.9368357432 | CT78: 0.8893559416 | CU78: 1.035313652 | CV78: 1.109872009 | CW78: 1.056387445 | CX78: 1.113206346 | CY78: 1.168019741 | CZ78: 1.17006223 | DA78: 1.208540912 | DB78: 1.197176024 | DC78: 1.157771628 | DD78: 1.163482782 | DE78: 1.040026321 | DG78: 1 | DH78: -4.247328381 | DI78: 2.063773805 | DJ78: -0.4858992806 | DK78: 0.2360981109 | DL78: -1.002786207 | DM78: -0.1147199022 | DN78: 0.4872530965 | DO78: 0.05574231795 | DP78: -0.2367559291 | DQ78: -0.02708515219 | DR78: 0.1150395356 | DS78: 0.01316065596 | DT78: -0.05589762759 | DU78: -0.006394753265 | DV78: 0.02716061703 | DW78: 1.386294361 | DY78: =IF(AB60="",NA(),AB60) -> 0.009496402878 | DZ78: =IF(AC60="",NA(),AC60) -> 4 | EC78: =IF($B$11="u","",IF($B$11="sl"," log",IF($B$11="b"," logit",""))) -> log | ED78: log | EE78: log | EF78: log | EG78: log | EH78: log | EI78: log | EJ78: log | EK78: log | EL78: log | EM78: log | EN78: log | EO78: log | EP78: log | EQ78: log
B79: 46 | C79: 4 | E79: metalog probability density function (PDF) | AB79: 0.01496402878 | AC79: =IF(C$34="","",IF(ROW()-ROW(S$27)>B$17,"",SMALL(INDEX($C$34:$C$10033,1,1):INDEX($C$34:$C$10033,B$17,1),ROW()-ROW(S$27)))) -> 4 | AD79: 0.48 | AE79: 9.668619211 | AF79: 0.1319448954 | AG79: 9.19631475 | AH79: 9.354062871 | AI79: 9.327257588 | AJ79: 9.576252082 | AK79: 9.608497414 | AL79: 9.622643755 | AM79: 9.721227863 | AN79: 9.658477779 | AO79: 9.668619211 | AP79: 9.669027376 | AQ79: 9.645430466 | AR79: 9.650354568 | AS79: 9.64117663 | AT79: 9.642899031 | AU79: 9.691916799 | AV79: 0.1202009217 | AW79: 0.1174622848 | AX79: 0.1017805177 | AY79: 0.09702387767 | AZ79: 0.1144582729 | BA79: 0.1242032347 | BB79: 0.1202643674 | BC79: 0.123972432 | BD79: 0.1319448954 | BE79: 0.1322833695 | BF79: 0.1346225656 | BG79: 0.1339448984 | BH79: 0.1266568281 | BI79: 0.1279403882 | BJ79: 0.1202528726 | BL79: 2.218802833 | BM79: 2.235810781 | BN79: 2.232941037 | BO79: 2.259286292 | BP79: 2.262647854 | BQ79: 2.264119046 | BR79: 2.274311934 | BS79: 2.267836056 | BT79: 2.268885508 | BU79: 2.268927723 | BV79: 2.266484276 | BW79: 2.266994657 | BX79: 2.266043158 | BY79: 2.266221793 | BZ79: 2.271292218 | CA79: 1.105405509 | CB79: 1.098749597 | CC79: 0.9493331058 | CD79: 0.9291251105 | CE79: 1.09977202 | CF79: 1.195163481 | CG79: 1.169117319 | CH79: 1.19738498 | CI79: 1.275724951 | CJ79: 1.279051521 | CK79: 1.298492596 | CL79: 1.292615762 | CM79: 1.221120851 | CN79: 1.233716246 | CO79: 1.165480836 | CQ79: 1.10009106 | CR79: 1.086943388 | CS79: 0.9414753433 | CT79: 0.9026481633 | CU79: 1.057423052 | CV79: 1.139561357 | CW79: 1.093658435 | CX79: 1.142897736 | CY79: =IF(OR(DP$26="",DP$26="no"),"",(EK$91/($AD77*(1-$AD77))+EK$92*(($AD77-0.5)/($AD77*(1-$AD77))+LN($AD77/(1-$AD77)))+EK$93+2*EK$94*($AD77-0.5)+EK$95*(($AD77-0.5)^2/($AD77*(1-$AD77))+2*($AD77-0.5)*LN($AD77/(1-$AD77)))+3*EK$96*($AD77-0.5)^2+EK$97*(($AD77-0.5)^3/($AD77*(1-$AD77))+3*($AD77-0.5)^2*LN($AD77/(1-$AD77)))+4*EK$98*($AD77-0.5)^3+EK$99*(($AD77-0.5)^4/($AD77*(1-$AD77))+4*($AD77-0.5)^3*LN($AD77/(1-$AD77)))+5*EK$100*($AD77-0.5)^4+EK$101*(($AD77-0.5)^5/($AD77*(1-$AD77))+5*($AD77-0.5)^4*LN($AD77/(1-$AD77)))+6*EK$102*($AD77-0.5)^5+EK$103*(($AD77-0.5)^6/($AD77*(1-$AD77))+6*($AD77-0.5)^5*LN($AD77/(1-$AD77)))+7*EK$104*($AD77-0.5)^6+EK$105*(($AD77-0.5)^7/($AD77*(1-$AD77))+7*($AD77-0.5)^6*LN($AD77/(1-$AD77))))^-1) -> 1.206349324 | CZ79: 1.208861778 | DA79: 1.242610787 | DB79: 1.232521379 | DC79: 1.180954522 | DD79: 1.189278979 | DE79: 1.077532591 | DG79: 1 | DH79: -4.226833745 | DI79: 2.052599121 | DJ79: -0.4856115108 | DK79: 0.2358185394 | DL79: -0.9967657602 | DM79: -0.1145161972 | DN79: 0.4840409267 | DO79: 0.05561038353 | DP79: -0.2350558457 | DQ79: -0.02700504236 | DR79: 0.1141458243 | DS79: 0.01311395942 | DT79: -0.05543052621 | DU79: -0.006368289647 | DV79: 0.02691770158 | DW79: 1.386294361 | DY79: 0.009784172662 | DZ79: 4 | EB79: y | EC79: M2 | ED79: M3 | EE79: M4 | EF79: M5 | EG79: M6 | EH79: M7 | EI79: M8 | EJ79: M9 | EK79: M10 | EL79: M11 | EM79: M12 | EN79: M13 | EO79: M14 | EP79: M15 | EQ79: M16
B80: 47 | C80: 4 | E80: =IF(y=0,0,IF(AND(y>0,y<1),(-1.17126481622616/(y*(1-y))+-1.55381809260157*((y-0.5)/(y*(1-y))+LN(y/(1-y)))+5.43612836023054+2*5.54620259847493*(y-0.5)+7.01805500937502*((y-0.5)^2/(y*(1-y))+2*(y-0.5)*LN(y/(1-y)))+3*-16.8519521518132*(y-0.5)^2+5.79673462024699*((y-0.5)^3/(y*(1-y))+3*(y-0.5)^2*LN(y/(1-y)))+4*-17.2577976441278*(y-0.5)^3+-7.89956157442085*((y-0.5)^4/(y*(1-y))+4*(y-0.5)^3*LN(y/(1-y))))^-1*EXP(-(2.28421465348733+-1.17126481622616*LN(y/(1-y))+-1.55381809260157*(y-0.5)*LN(y/(1-y))+5.43612836023054*(y-0.5)+5.54620259847493*(y-0.5)^2+7.01805500937502*(y-0.5)^2*LN(y/(1-y))+-16.8519521518132*(y-0.5)^3+5.79673462024699*(y-0.5)^3*LN(y/(1-y))+-17.2577976441278*(y-0.5)^4+-7.89956157442085*(y-0.5)^4*LN(y/(1-y)))),"n/a")) | AB80: 0.01525179856 | AC80: =IF(C$34="","",IF(ROW()-ROW(S$27)>B$17,"",SMALL(INDEX($C$34:$C$10033,1,1):INDEX($C$34:$C$10033,B$17,1),ROW()-ROW(S$27)))) -> 4 | AD80: 0.49 | AE80: 9.743808517 | AF80: 0.1339892574 | AG80: 9.279830222 | AH80: 9.43939872 | AI80: 9.42585557 | AJ80: 9.679145765 | AK80: 9.695467092 | AL80: 9.702637554 | AM80: 9.803413723 | AN80: 9.738653588 | AO80: 9.743808517 | AP80: 9.744016824 | AQ80: 9.719379245 | AR80: 9.724598386 | AS80: 9.719889514 | AT80: 9.720778656 | AU80: 9.773706341 | AV80: 0.1192623243 | AW80: 0.1168920609 | AX80: 0.1010570443 | AY80: 0.09734951993 | AZ80: 0.1154909679 | BA80: 0.125783428 | BB80: 0.1230861236 | BC80: 0.1254423108 | BD80: 0.1339892574 | BE80: 0.1343582174 | BF80: 0.1357495575 | BG80: 0.1353593317 | BH80: 0.1273991308 | BI80: 0.1288236177 | BJ80: 0.1243545334 | BL80: 2.227843252 | BM80: 2.244892283 | BN80: 2.243456506 | BO80: 2.26997365 | BP80: 2.271658466 | BQ80: 2.272397761 | BR80: 2.282730664 | BS80: 2.276102873 | BT80: 2.276632059 | BU80: 2.276653438 | BV80: 2.274121753 | BW80: 2.274658592 | BX80: 2.274174252 | BY80: 2.274265724 | BZ80: 2.279695754 | CA80: =IF(AND($EC$41=0,CQ$26="yes"),CQ82,"") -> 1.106734121 | CB80: 1.10339077 | CC80: 0.9525491038 | CD80: 0.9422601936 | CE80: 1.119738879 | CF80: 1.220431012 | CG80: 1.206664193 | CH80: 1.221639211 | CI80: 1.305565667 | CJ80: 1.309188731 | CK80: 1.319401432 | CL80: 1.316315139 | CM80: 1.238305475 | CN80: 1.252265874 | CO80: 1.215404691 | CQ80: 1.103191155 | CR80: 1.093263767 | CS80: 0.9456413502 | CT80: 0.9159122293 | CU80: 1.078953253 | CV80: 1.168097663 | CW80: 1.131332783 | CX80: 1.171049872 | CY80: 1.242455567 | CZ80: 1.245404063 | DA80: 1.272766234 | DB80: 1.264523795 | DC80: 1.202039048 | DD80: 1.212710524 | DE80: 1.119387686 | DG80: 1 | DH80: -4.206739105 | DI80: 2.04163036 | DJ80: -0.485323741 | DK80: 0.2355391336 | DL80: -0.9908516839 | DM80: -0.1143127335 | DN80: 0.480883846 | DO80: 0.05547868345 | DP80: -0.2333843471 | DQ80: -0.0269251222 | DR80: 0.1132669644 | DS80: 0.01306740103 | DT80: -0.05497114692 | DU80: -0.006341919954 | DV80: 0.02667880267 | DW80: 1.386294361 | DY80: 0.01007194245 | DZ80: 4 | EB80: =RAND() -> 0.7465455131 | EC80: =IF(EC84="","",IF($B$11="u",EC84,IF($B$11="sl",$C$19+EXP(EC84),IF($B$11="b",($C$19+$C$20*EXP(EC84))/(1+EXP(EC84)),"")))) -> 11.95083767 | ED80: 12.04622904 | EE80: 12.41417959 | EF80: 12.34847236 | EG80: 12.09010896 | EH80: 12.05719812 | EI80: 11.94697025 | EJ80: 12.03384824 | EK80: 12.05291363 | EL80: 12.05447451 | EM80: 12.07676802 | EN80: 12.0769481 | EO80: 12.04495774 | EP80: 12.04765574 | EQ80: 12.09873339
B81: 48 | C81: 4 | AB81: 0.01553956835 | AC81: =IF(C$34="","",IF(ROW()-ROW(S$27)>B$17,"",SMALL(INDEX($C$34:$C$10033,1,1):INDEX($C$34:$C$10033,B$17,1),ROW()-ROW(S$27)))) -> 4 | AD81: 0.5 | AE81: 9.817972685 | AF81: 0.1356120523 | AG81: 9.364036389 | AH81: 9.525183203 | AI81: 9.525183203 | AJ81: 9.781703221 | AK81: 9.781703221 | AL81: 9.781703221 | AM81: 9.883762807 | AN81: 9.817972685 | AO81: 9.817972685 | AP81: 9.817972685 | AQ81: 9.792858123 | AR81: 9.798203997 | AS81: 9.798203997 | AT81: 9.798203986 | AU81: 9.852749952 | AV81: 0.1182371518 | AW81: 0.1162368186 | AX81: 0.1002906679 | AY81: 0.09766059788 | AZ81: 0.1164118428 | BA81: 0.1271322083 | BB81: 0.125819443 | BC81: 0.1266625577 | BD81: 0.1356120523 | BE81: 0.1360008031 | BF81: 0.136349588 | BG81: 0.136275196 | BH81: 0.1279511677 | BI81: 0.1294474229 | BJ81: 0.1287321408 | BL81: 2.236876436 | BM81: 2.253939155 | BN81: 2.253939155 | BO81: 2.280513622 | BP81: 2.280513622 | BQ81: 2.280513622 | BR81: 2.29089329 | BS81: 2.284214653 | BT81: 2.284214653 | BU81: 2.284214653 | BV81: 2.281653357 | BW81: 2.282199103 | BX81: 2.282199103 | BY81: 2.282199102 | BZ81: 2.287750599 | CA81: 1.107176992 | CB81: 1.107176992 | CC81: 0.9552869848 | CD81: 0.9552869848 | CE81: 1.138706098 | CF81: 1.243569532 | CG81: 1.243569532 | CH81: 1.243569532 | CI81: 1.331435425 | CJ81: 1.33525217 | CK81: 1.33525217 | CL81: 1.33525217 | CM81: 1.253691643 | CN81: 1.268352255 | CO81: 1.268365594 | CQ81: 1.105405509 | CR81: 1.098749597 | CS81: 0.9493331058 | CT81: 0.9291251105 | CU81: 1.09977202 | CV81: 1.195163481 | CW81: 1.169117319 | CX81: 1.19738498 | CY81: 1.275724951 | CZ81: 1.279051521 | DA81: 1.298492596 | DB81: 1.292615762 | DC81: 1.221120851 | DD81: 1.233716246 | DE81: 1.165480836 | DG81: 1 | DH81: -4.18702892 | DI81: 2.030859639 | DJ81: -0.4850359712 | DK81: 0.2352598934 | DL81: -0.9850399773 | DM81: -0.1141095109 | DN81: 0.4777798221 | DO81: 0.05534721743 | DP81: -0.2317404 | DQ81: -0.02684539136 | DR81: 0.11240243 | DS81: 0.01302098047 | DT81: -0.0545192218 | DU81: -0.00631564391 | DV81: 0.0264437837 | DW81: 1.386294361 | DY81: 0.01035971223 | DZ81: 4 | EC81: intermediate calculations
B82: 49 | C82: 4 | AB82: 0.01582733813 | AC82: =IF(C$34="","",IF(ROW()-ROW(S$27)>B$17,"",SMALL(INDEX($C$34:$C$10033,1,1):INDEX($C$34:$C$10033,B$17,1),ROW()-ROW(S$27)))) -> 4 | AD82: 0.51 | AE82: 9.891377188 | AF82: 0.136772561 | AG82: 9.449006653 | AH82: 9.611484172 | AI82: 9.625294035 | AJ82: 9.883943511 | AK82: 9.867304903 | AL82: 9.860012748 | AM82: 9.96242349 | AN82: 9.896612957 | AO82: 9.891377188 | AP82: 9.89116573 | AQ82: 9.866156088 | AR82: 9.871454045 | AS82: 9.876236344 | AT82: 9.875332962 | AU82: 9.929100517 | AV82: 0.1171270338 | AW82: 0.1154970217 | AX82: 0.09948200264 | AY82: 0.09795389809 | AZ82: 0.1172072798 | BA82: 0.1282203238 | BB82: 0.1284200097 | BC82: 0.1276153889 | BD82: 0.136772561 | BE82: 0.1371688413 | BF82: 0.1364222167 | BG82: 0.1366759074 | BH82: 0.1283238 | BI82: 0.129816701 | BJ82: 0.1332538315 | BL82: 2.24590962 | BM82: 2.262958651 | BN82: 2.264394429 | BO82: 2.290911573 | BP82: 2.289226757 | BQ82: 2.288487462 | BR82: 2.298820364 | BS82: 2.292192573 | BT82: 2.291663387 | BU82: 2.291642008 | BV82: 2.289110323 | BW82: 2.289647162 | BX82: 2.290131502 | BY82: 2.290040028 | BZ82: 2.295469892 | CA82: 1.106734121 | CB82: 1.110097796 | CC82: 0.9575435266 | CD82: 0.9681707954 | CE82: 1.156519967 | CF82: 1.264254027 | CG82: 1.279374521 | CH82: 1.262960111 | CI82: 1.35286899 | CJ82: 1.356759742 | CK82: 1.345962884 | CL82: 1.349189939 | CM82: 1.267356177 | CN82: 1.281983146 | CO82: 1.323090687 | CQ82: 1.106734121 | CR82: 1.10339077 | CS82: 0.9525491038 | CT82: 0.9422601936 | CU82: 1.119738879 | CV82: 1.220431012 | CW82: 1.206664193 | CX82: 1.221639211 | CY82: 1.305565667 | CZ82: 1.309188731 | DA82: 1.319401432 | DB82: 1.316315139 | DC82: 1.238305475 | DD82: 1.252265874 | DE82: 1.215404691 | DG82: 1 | DH82: -4.167688541 | DI82: 2.020279524 | DJ82: -0.4847482014 | DK82: 0.2349808188 | DL82: -0.9793268658 | DM82: -0.1139065293 | DN82: 0.4747269368 | DO82: 0.0552159852 | DP82: -0.2301230288 | DQ82: -0.02676584952 | DR82: 0.1115517243 | DS82: 0.01297469741 | DT82: -0.05407449773 | DU82: -0.006289461236 | DV82: 0.02621251552 | DW82: 1.386294361 | DY82: 0.01064748201 | DZ82: 4
B83: 50 | C83: 4 | AB83: 0.01611510791 | AC83: =IF(C$34="","",IF(ROW()-ROW(S$27)>B$17,"",SMALL(INDEX($C$34:$C$10033,1,1):INDEX($C$34:$C$10033,B$17,1),ROW()-ROW(S$27)))) -> 4 | AD83: 0.52 | AE83: 9.964290877 | AF83: 0.1374410783 | AG83: 9.534816922 | AH83: 9.698371509 | AI83: 9.726243323 | AJ83: 9.985888885 | AK83: 9.952377058 | AL83: 9.937745973 | AM83: 10.03955831 | AN83: 9.974753414 | AO83: 9.964290877 | AP83: 9.963870248 | AQ83: 9.939553785 | AR83: 9.94462804 | AS83: 9.954094849 | AT83: 9.952316843 | AU83: 10.00290415 | AV83: 0.1159335851 | AW83: 0.1146731233 | AX83: 0.09863156817 | AY83: 0.09822584855 | AZ83: 0.1178635419 | BA83: 0.1290206807 | BB83: 0.1308393832 | BC83: 0.1282866627 | BD83: 0.1374410783 | BE83: 0.1378317059 | BF83: 0.1359828818 | BG83: 0.136559758 | BH83: 0.1285241346 | BI83: 0.1299369094 | BJ83: 0.1377353831 | BL83: 2.254950038 | BM83: 2.271957986 | BN83: 2.274827729 | BO83: 2.301172985 | BP83: 2.297811423 | BQ83: 2.296340232 | BR83: 2.30653312 | BS83: 2.300057242 | BT83: 2.29900779 | BU83: 2.298965575 | BV83: 2.296522129 | BW83: 2.29703251 | BX83: 2.297984009 | BY83: 2.297805373 | BZ83: 2.302875466 | CA83: 1.105405509 | CB83: 1.112142552 | CC83: 0.9593146313 | CD83: 0.9808724093 | CE83: 1.17302241 | CF83: 1.28217475 | CG83: 1.313569616 | CH83: 1.279627827 | CI83: 1.369502883 | CJ83: 1.373337233 | CK83: 1.351609168 | CL83: 1.358035998 | CM83: 1.279341426 | CN83: 1.293173292 | CO83: 1.377753835 | CQ83: 1.107176992 | CR83: 1.107176992 | CS83: 0.9552869848 | CT83: 0.9552869848 | CU83: 1.138706098 | CV83: 1.243569532 | CW83: 1.243569532 | CX83: 1.243569532 | CY83: 1.331435425 | CZ83: 1.33525217 | DA83: 1.33525217 | DB83: 1.33525217 | DC83: 1.253691643 | DD83: 1.268352255 | DE83: 1.268365594 | DG83: 1 | DH83: -4.148704138 | DI83: 2.009882998 | DJ83: -0.4844604317 | DK83: 0.2347019098 | DL83: -0.9737087846 | DM83: -0.1137037886 | DN83: 0.4717233781 | DO83: 0.05508498648 | DP83: -0.2285313114 | DQ83: -0.02668649633 | DR83: 0.1107143778 | DS83: 0.01292855153 | DT83: -0.05363673524 | DU83: -0.006263371655 | DV83: 0.02598487591 | DW83: 1.386294361 | DY83: 0.0109352518 | DZ83: 4 | EC83: M2 | ED83: M3 | EE83: M4 | EF83: M5 | EG83: M6 | EH83: M7 | EI83: M8 | EJ83: M9 | EK83: M10 | EL83: M11 | EM83: M12 | EN83: M13 | EO83: M14 | EP83: M15 | EQ83: M16
B84: 51 | C84: 4 | AB84: 0.0164028777 | AC84: =IF(C$34="","",IF(ROW()-ROW(S$27)>B$17,"",SMALL(INDEX($C$34:$C$10033,1,1):INDEX($C$34:$C$10033,B$17,1),ROW()-ROW(S$27)))) -> 4 | AD84: 0.53 | AE84: 10.03698454 | AF84: 0.1376005623 | AG84: 9.621546014 | AH84: 9.785917482 | AI84: 9.828088312 | AJ84: 10.08756511 | AK84: 10.03703072 | AL84: 10.01509045 | AM84: 10.11534388 | AN84: 10.05257384 | AO84: 10.03698454 | AP84: 10.03636248 | AQ84: 10.01332177 | AR84: 10.01800069 | AS84: 10.03188342 | AT84: 10.02930196 | AU84: 10.07440364 | AV84: 0.1146584087 | AW84: 0.1137655706 | AX84: 0.09773979215 | AY84: 0.0984724983 | AZ84: 0.1183669701 | BA84: 0.1295092893 | BB84: 0.1330258777 | BC84: 0.1286662091 | BD84: 0.1376005623 | BE84: 0.1379721893 | BF84: 0.1350612425 | BG84: 0.1359396944 | BH84: 0.1285547014 | BI84: 0.1298133602 | BJ84: 0.1419393967 | BL84: 2.26400496 | BM84: 2.280944361 | BN84: 2.28524444 | BO84: 2.311303489 | BP84: 2.306281326 | BQ84: 2.304093001 | BR84: 2.314053467 | BS84: 2.307828705 | BT84: 2.306276724 | BU84: 2.306214746 | BV84: 2.303916383 | BW84: 2.304383543 | BX84: 2.305768363 | BY84: 2.305511005 | BZ84: 2.309997914 | CA84: 1.103191155 | CB84: 1.113300486 | CC84: 0.9605953088 | CD84: 0.9933477385 | CE84: 1.188052915 | CF84: 1.297047247 | CG84: 1.345602499 | CH84: 1.293426568 | CI84: 1.381094717 | CJ84: 1.384738905 | CK84: 1.352411679 | CL84: 1.361843952 | CM84: 1.289645777 | CN84: 1.301937389 | CO84: 1.429954775 | CQ84: 1.106734121 | CR84: 1.110097796 | CS84: 0.9575435266 | CT84: 0.9681707954 | CU84: 1.156519967 | CV84: 1.264254027 | CW84: 1.279374521 | CX84: 1.262960111 | CY84: 1.35286899 | CZ84: 1.356759742 | DA84: 1.345962884 | DB84: 1.349189939 | DC84: 1.267356177 | DD84: 1.281983146 | DE84: 1.323090687 | DG84: 1 | DH84: -4.130062645 | DI84: 1.999663424 | DJ84: -0.4841726619 | DK84: 0.2344231665 | DL84: -0.9681823631 | DM84: -0.1135012885 | DN84: 0.4687674319 | DO84: 0.05495422099 | DP84: -0.2269643753 | DQ84: -0.02660733146 | DR84: 0.1098899457 | DS84: 0.0128825425 | DT84: -0.05320570754 | DU84: -0.006237374893 | DV84: 0.02576074905 | DW84: 1.386294361 | DY84: 0.01122302158 | DZ84: 4 | EC84: =IF(CA$29="","",EC$90+EC$91*LN($EB80/(1-$EB80))) -> 2.480801373 | ED84: =IF(CB$29="","",ED$90+ED$91*LN($EB80/(1-$EB80))+ED$92*($EB80-0.5)*LN($EB80/(1-$EB80))) -> 2.488751668 | EE84: =IF(CC$29="","",EE$90+EE$91*LN($EB80/(1-$EB80))+EE$92*($EB80-0.5)*LN($EB80/(1-$EB80))+EE$93*($EB80-0.5)) -> 2.518839334 | EF84: =IF(CD$29="","",EF$90+EF$91*LN($EB80/(1-$EB80))+EF$92*($EB80-0.5)*LN($EB80/(1-$EB80))+EF$93*($EB80-0.5)+EF$94*($EB80-0.5)^2) -> 2.51353236 | EG84: =IF(CE$29="","",EG$90+EG$91*LN($EB80/(1-$EB80))+EG$92*($EB80-0.5)*LN($EB80/(1-$EB80))+EG$93*($EB80-0.5)+EG$94*($EB80-0.5)^2+EG$95*($EB80-0.5)^2*LN($EB80/(1-$EB80))) -> 2.492387677 | EH84: =IF(CF$29="","",EH$90+EH$91*LN($EB80/(1-$EB80))+EH$92*($EB80-0.5)*LN($EB80/(1-$EB80))+EH$93*($EB80-0.5)+EH$94*($EB80-0.5)^2+EH$95*($EB80-0.5)^2*LN($EB80/(1-$EB80))+EH$96*($EB80-0.5)^3) -> 2.489661836 | EI84: =IF(CG$29="","",EI$90+EI$91*LN($EB80/(1-$EB80))+EI$92*($EB80-0.5)*LN($EB80/(1-$EB80))+EI$93*($EB80-0.5)+EI$94*($EB80-0.5)^2+EI$95*($EB80-0.5)^2*LN($EB80/(1-$EB80))+EI$96*($EB80-0.5)^3+EI$97*($EB80-0.5)^3*LN($EB80/(1-$EB80))) -> 2.480477711 | EJ84: =IF(CH$29="","",EJ$90+EJ$91*LN($EB80/(1-$EB80))+EJ$92*($EB80-0.5)*LN($EB80/(1-$EB80))+EJ$93*($EB80-0.5)+EJ$94*($EB80-0.5)^2+EJ$95*($EB80-0.5)^2*LN($EB80/(1-$EB80))+EJ$96*($EB80-0.5)^3+EJ$97*($EB80-0.5)^3*LN($EB80/(1-$EB80))+EJ$98*($EB80-0.5)^4) -> 2.487723366 | EK84: =IF(CI$29="","",EK$90+EK$91*LN($EB80/(1-$EB80))+EK$92*($EB80-0.5)*LN($EB80/(1-$EB80))+EK$93*($EB80-0.5)+EK$94*($EB80-0.5)^2+EK$95*($EB80-0.5)^2*LN($EB80/(1-$EB80))+EK$96*($EB80-0.5)^3+EK$97*($EB80-0.5)^3*LN($EB80/(1-$EB80))+EK$98*($EB80-0.5)^4+EK$99*($EB80-0.5)^4*LN($EB80/(1-$EB80))+EK$100*($EB80-0.5)^5+EK$101*($EB80-0.5)^5*LN($EB80/(1-$EB80))+EK$102*($EB80-0.5)^6+EK$103*($EB80-0.5)^6*LN($EB80/(1-$EB80))+EK$104*($EB80-0.5)^7+EK$105*($EB80-0.5)^7*LN($EB80/(1-$EB80))) -> 2.489306426 | EL84: 2.48943592 | EM84: 2.491283609 | EN84: =IF(CL$29="","",EN$90+EN$91*LN($EB80/(1-$EB80))+EN$92*($EB80-0.5)*LN($EB80/(1-$EB80))+EN$93*($EB80-0.5)+EN$94*($EB80-0.5)^2+EN$95*($EB80-0.5)^2*LN($EB80/(1-$EB80))+EN$96*($EB80-0.5)^3+EN$97*($EB80-0.5)^3*LN($EB80/(1-$EB80))+EN$98*($EB80-0.5)^4+EN$99*($EB80-0.5)^4*LN($EB80/(1-$EB80))+EN$100*($EB80-0.5)^5+EN$101*($EB80-0.5)^5*LN($EB80/(1-$EB80))+EN$102*($EB80-0.5)^6+EN$103*($EB80-0.5)^6*LN($EB80/(1-$EB80))+EN$104*($EB80-0.5)^7+EN$105*($EB80-0.5)^7*LN($EB80/(1-$EB80))) -> 2.49129852 | EO84: =IF(CM$29="","",EO$90+EO$91*LN($EB80/(1-$EB80))+EO$92*($EB80-0.5)*LN($EB80/(1-$EB80))+EO$93*($EB80-0.5)+EO$94*($EB80-0.5)^2+EO$95*($EB80-0.5)^2*LN($EB80/(1-$EB80))+EO$96*($EB80-0.5)^3+EO$97*($EB80-0.5)^3*LN($EB80/(1-$EB80))+EO$98*($EB80-0.5)^4+EO$99*($EB80-0.5)^4*LN($EB80/(1-$EB80))+EO$100*($EB80-0.5)^5+EO$101*($EB80-0.5)^5*LN($EB80/(1-$EB80))+EO$102*($EB80-0.5)^6+EO$103*($EB80-0.5)^6*LN($EB80/(1-$EB80))+EO$104*($EB80-0.5)^7+EO$105*($EB80-0.5)^7*LN($EB80/(1-$EB80))) -> 2.488646128 | EP84: =IF(CN$29="","",EP$90+EP$91*LN($EB80/(1-$EB80))+EP$92*($EB80-0.5)*LN($EB80/(1-$EB80))+EP$93*($EB80-0.5)+EP$94*($EB80-0.5)^2+EP$95*($EB80-0.5)^2*LN($EB80/(1-$EB80))+EP$96*($EB80-0.5)^3+EP$97*($EB80-0.5)^3*LN($EB80/(1-$EB80))+EP$98*($EB80-0.5)^4+EP$99*($EB80-0.5)^4*LN($EB80/(1-$EB80))+EP$100*($EB80-0.5)^5+EP$101*($EB80-0.5)^5*LN($EB80/(1-$EB80))+EP$102*($EB80-0.5)^6+EP$103*($EB80-0.5)^6*LN($EB80/(1-$EB80))+EP$104*($EB80-0.5)^7+EP$105*($EB80-0.5)^7*LN($EB80/(1-$EB80))) -> 2.488870097 | EQ84: =IF(CO$29="","",EQ$90+EQ$91*LN($EB80/(1-$EB80))+EQ$92*($EB80-0.5)*LN($EB80/(1-$EB80))+EQ$93*($EB80-0.5)+EQ$94*($EB80-0.5)^2+EQ$95*($EB80-0.5)^2*LN($EB80/(1-$EB80))+EQ$96*($EB80-0.5)^3+EQ$97*($EB80-0.5)^3*LN($EB80/(1-$EB80))+EQ$98*($EB80-0.5)^4+EQ$99*($EB80-0.5)^4*LN($EB80/(1-$EB80))+EQ$100*($EB80-0.5)^5+EQ$101*($EB80-0.5)^5*LN($EB80/(1-$EB80))+EQ$102*($EB80-0.5)^6+EQ$103*($EB80-0.5)^6*LN($EB80/(1-$EB80))+EQ$104*($EB80-0.5)^7+EQ$105*($EB80-0.5)^7*LN($EB80/(1-$EB80))) -> 2.493100768
B85: 52 | C85: 4 | AB85: 0.01669064748 | AC85: =IF(C$34="","",IF(ROW()-ROW(S$27)>B$17,"",SMALL(INDEX($C$34:$C$10033,1,1):INDEX($C$34:$C$10033,B$17,1),ROW()-ROW(S$27)))) -> 4 | AD85: 0.54 | AE85: 10.10972956 | AF85: 0.1372475008 | AG85: 9.709276069 | AH85: 9.874197137 | AI85: 9.930888525 | AJ85: 10.18900184 | AK85: 10.12138339 | AL85: 10.09224138 | AM85: 10.18997089 | AN85: 10.13025457 | AO85: 10.10972956 | AP85: 10.1089192 | AQ85: 10.08771903 | AR85: 10.09184037 | AS85: 10.10970538 | AT85: 10.10643169 | AU85: 10.14393831 | AV85: 0.1133030982 | AW85: 0.1127748088 | AX85: 0.09680701309 | AY85: 0.09868949721 | AZ85: 0.1187042066 | BA85: 0.1296661762 | BB85: 0.1349258281 | BC85: 0.1287480078 | BD85: 0.1372475008 | BE85: 0.1375874084 | BF85: 0.1336986441 | BG85: 0.134842112 | BH85: 0.1284130133 | BI85: 0.1294506795 | BJ85: 0.1455839614 | BL85: 2.273081724 | BM85: 2.289925005 | BN85: 2.295649953 | BO85: 2.321308888 | BP85: 2.314650353 | BQ85: 2.311766948 | BR85: 2.321403991 | BS85: 2.315526448 | BT85: 2.313498283 | BU85: 2.313418123 | BV85: 2.311318746 | BW85: 2.311727213 | BX85: 2.313495891 | BY85: 2.313172022 | BZ85: 2.316876316 | CA85: 1.10009106 | CB85: 1.113560695 | CC85: 0.9613796555 | CD85: 1.005547469 | CE85: 1.201450785 | CF85: 1.308622349 | CG85: 1.374890261 | CH85: 1.304250095 | CI85: 1.387535115 | CJ85: 1.390859994 | CK85: 1.348714356 | CL85: 1.36080507 | CM85: 1.298217731 | CN85: 1.30828445 | CO85: 1.476794722 | CQ85: 1.105405509 | CR85: 1.112142552 | CS85: 0.9593146313 | CT85: 0.9808724093 | CU85: 1.17302241 | CV85: 1.28217475 | CW85: 1.313569616 | CX85: 1.279627827 | CY85: 1.369502883 | CZ85: 1.373337233 | DA85: 1.351609168 | DB85: 1.358035998 | DC85: 1.279341426 | DD85: 1.293173292 | DE85: 1.377753835 | DG85: 1 | DH85: -4.111751699 | DI85: 1.989614527 | DJ85: -0.4838848921 | DK85: 0.2341445888 | DL85: -0.9627444107 | DM85: -0.1132990291 | DN85: 0.4658574753 | DO85: 0.05482368846 | DP85: -0.2254213942 | DQ85: -0.02652835457 | DR85: 0.109078007 | DS85: 0.01283666999 | DT85: -0.05278119964 | DU85: -0.006211470673 | DV85: 0.02554002509 | DW85: 1.386294361 | DY85: 0.01151079137 | DZ85: 4
B86: 53 | C86: 4 | AB86: 0.01697841727 | AC86: =IF(C$34="","",IF(ROW()-ROW(S$27)>B$17,"",SMALL(INDEX($C$34:$C$10033,1,1):INDEX($C$34:$C$10033,B$17,1),ROW()-ROW(S$27)))) -> 4 | AD86: 0.55 | AE86: 10.18279673 | AF86: 0.1363919011 | AG86: 9.798093014 | AH86: 9.963288704 | AI86: 10.03470609 | AJ86: 10.29023298 | AK86: 10.20555937 | AL86: 10.16940154 | AM86: 10.26364405 | AN86: 10.20797638 | AO86: 10.18279673 | AP86: 10.18181635 | AQ86: 10.16299175 | AR86: 10.1664078 | AS86: 10.18766737 | AT86: 10.18384854 | AU86: 10.21194033 | AV86: 0.1118692403 | AW86: 0.1117012857 | AX86: 0.09583348243 | AY86: 0.09887207657 | AZ86: 0.1188624382 | BA86: 0.1294762027 | BB86: 0.1364852448 | BC86: 0.1285302047 | BD86: 0.1363919011 | BE86: 0.1366887533 | BF86: 0.1319450342 | BG86: 0.1333048256 | BH86: 0.1280915276 | BI86: 0.1288524586 | BJ86: 0.1483643035 | BL86: 2.282187776 | BM86: 2.298907208 | BN86: 2.306049693 | BO86: 2.331195191 | BP86: 2.322932608 | BQ86: 2.319383363 | BR86: 2.328607948 | BS86: 2.323169413 | BT86: 2.320699701 | BU86: 2.320603419 | BV86: 2.318752863 | BW86: 2.319088932 | BX86: 2.321177908 | BY86: 2.320802989 | BZ86: 2.323557657 | CA86: 1.096105222 | CB86: 1.112912158 | CC86: 0.9616608297 | CD86: 1.017416703 | CE86: 1.21305767 | CF86: 1.316695495 | CG86: 1.400835972 | CH86: 1.312033293 | CI86: 1.388851004 | CJ86: 1.391739783 | CK86: 1.340956294 | CL86: 1.355231219 | CM86: 1.304953876 | CN86: 1.312213923 | CO86: 1.515087415 | CQ86: 1.103191155 | CR86: 1.113300486 | CS86: 0.9605953088 | CT86: 0.9933477385 | CU86: 1.188052915 | CV86: 1.297047247 | CW86: 1.345602499 | CX86: 1.293426568 | CY86: 1.381094717 | CZ86: 1.384738905 | DA86: 1.352411679 | DB86: 1.361843952 | DC86: 1.289645777 | DD86: 1.301937389 | DE86: 1.429954775 | DG86: 1 | DH86: -4.093759596 | DI86: 1.97973036 | DJ86: -0.4835971223 | DK86: 0.2338661767 | DL86: -0.957391905 | DM86: -0.1130970101 | DN86: 0.4629919702 | DO86: 0.0546933886 | DP86: -0.2239015844 | DQ86: -0.02644956534 | DR86: 0.1082781619 | DS86: 0.01279093368 | DT86: -0.05236300751 | DU86: -0.006185658721 | DV86: 0.02532259975 | DW86: 1.386294361 | DY86: 0.01179856115 | DZ86: 4 | EB86: Press "Recalculate" (F9) for new simulation.
B87: 54 | C87: 4 | AB87: 0.01726618705 | AC87: =IF(C$34="","",IF(ROW()-ROW(S$27)>B$17,"",SMALL(INDEX($C$34:$C$10033,1,1):INDEX($C$34:$C$10033,B$17,1),ROW()-ROW(S$27)))) -> 4 | AD87: 0.56 | AE87: 10.25645515 | AF87: 0.1350564131 | AG87: 9.888087058 | AH87: 10.05327405 | AI87: 10.13960607 | AJ87: 10.39129712 | AK87: 10.28969023 | AL87: 10.24678132 | AM87: 10.33658217 | AN87: 10.28592052 | AO87: 10.25645515 | AP87: 10.25532789 | AQ87: 10.23937243 | AR87: 10.2419548 | AS87: 10.26588328 | AT87: 10.26169639 | AU87: 10.27892759 | AV87: 0.1103584179 | AW87: 0.1105454556 | AX87: 0.09481936634 | AY87: 0.09901503098 | AZ87: 0.1188296561 | BA87: 0.1289297341 | BB87: 0.1376518232 | BC87: 0.1280149704 | BD87: 0.1350564131 | BE87: 0.1353008957 | BF87: 0.1298556785 | BG87: 0.1313744644 | BH87: 0.1275780202 | BI87: 0.1280211137 | BJ87: 0.1499881525 | BL87: 2.291330705 | BM87: 2.307898357 | BN87: 2.316449148 | BO87: 2.34096864 | BP87: 2.331142446 | BQ87: 2.326963639 | BR87: 2.33568927 | BS87: 2.33077602 | BT87: 2.327907278 | BU87: 2.327797365 | BV87: 2.326240331 | BW87: 2.3264925 | BX87: 2.328826095 | BY87: 2.328418167 | BZ87: 2.330095934 | CA87: 1.091233644 | CB87: 1.11134376 | CC87: 0.9614310224 | CD87: 1.028894606 | CE87: 1.222720352 | CF87: 1.321114791 | CG87: 1.42284938 | CH87: 1.316751811 | CI87: 1.385200044 | CJ87: 1.38755505 | CK87: 1.329640653 | CL87: 1.345531326 | CM87: 1.309701065 | CN87: 1.3137138 | CO87: 1.541717359 | CQ87: 1.10009106 | CR87: 1.113560695 | CS87: 0.9613796555 | CT87: 1.005547469 | CU87: 1.201450785 | CV87: 1.308622349 | CW87: 1.374890261 | CX87: 1.304250095 | CY87: 1.387535115 | CZ87: 1.390859994 | DA87: 1.348714356 | DB87: 1.36080507 | DC87: 1.298217731 | DD87: 1.30828445 | DE87: 1.476794722 | DG87: 1 | DH87: -4.076075242 | DI87: 1.970005286 | DJ87: -0.4833093525 | DK87: 0.2335879302 | DL87: -0.9521219791 | DM87: -0.1128952313 | DN87: 0.4601694573 | DO87: 0.05456332115 | DP87: -0.2224042024 | DQ87: -0.02637096342 | DR87: 0.1074900311 | DS87: 0.01274533325 | DT87: -0.05195093732 | DU87: -0.006159938763 | DV87: 0.02510837388 | DW87: 1.386294361 | DY87: 0.01208633094 | DZ87: 4
B88: 55 | C88: 4 | AB88: 0.01755395683 | AC88: =IF(C$34="","",IF(ROW()-ROW(S$27)>B$17,"",SMALL(INDEX($C$34:$C$10033,1,1):INDEX($C$34:$C$10033,B$17,1),ROW()-ROW(S$27)))) -> 4 | AD88: 0.57 | AE88: 10.33097129 | AF88: 0.1332746958 | AG88: 9.979353235 | AH88: 10.14423916 | AI88: 10.24565685 | AJ88: 10.49223801 | AK88: 10.3739153 | AL88: 10.32459877 | AM88: 10.4090182 | AN88: 10.36426886 | AO88: 10.33097129 | AP88: 10.32972473 | AQ88: 10.31707914 | AR88: 10.31872327 | AS88: 10.34447804 | AT88: 10.34012279 | AU88: 10.34549324 | AV88: 0.1087722118 | AW88: 0.1093077844 | AX88: 0.09376474714 | AY88: 0.09911270268 | AZ88: 0.1185949251 | BA88: 0.1280231063 | BB88: 0.1383772174 | BC88: 0.1272082148 | BD88: 0.1332746958 | BE88: 0.1334599845 | BF88: 0.1274879957 | BG88: 0.1291035803 | BH88: 0.1268563778 | BI88: 0.1269579555 | BJ88: 0.1502204453 | BL88: 2.300518282 | BM88: 2.316905974 | BN88: 2.326853894 | BO88: 2.350635746 | BP88: 2.339294511 | BQ88: 2.334529278 | BR88: 2.342672565 | BS88: 2.338364204 | BT88: 2.335146305 | BU88: 2.335025635 | BV88: 2.333800691 | BW88: 2.333960039 | BX88: 2.336452854 | BY88: 2.336031745 | BZ88: 2.336550989 | CA88: 1.085476323 | CB88: 1.108844307 | CC88: 0.960681424 | CD88: 1.039914066 | CE88: 1.230293707 | CF88: 1.321787206 | CG88: 1.440370974 | CH88: 1.31842014 | CI88: 1.376857056 | CJ88: 1.378604902 | CK88: 1.315303741 | CL88: 1.332184119 | CM88: 1.312263014 | CN88: 1.31276085 | CO88: 1.554104602 | CQ88: 1.096105222 | CR88: 1.112912158 | CS88: 0.9616608297 | CT88: 1.017416703 | CU88: 1.21305767 | CV88: 1.316695495 | CW88: 1.400835972 | CX88: 1.312033293 | CY88: 1.388851004 | CZ88: 1.391739783 | DA88: 1.340956294 | DB88: 1.355231219 | DC88: 1.304953876 | DD88: 1.312213923 | DE88: 1.515087415 | DG88: 1 | DH88: -4.058688111 | DI88: 1.960433955 | DJ88: -0.4830215827 | DK88: 0.2333098494 | DL88: -0.9469319119 | DM88: -0.1126936927 | DN88: 0.4573885508 | DO88: 0.05443348582 | DP88: -0.2209285417 | DQ88: -0.02629254847 | DR88: 0.1067132539 | DS88: 0.01269986838 | DT88: -0.0515448048 | DU88: -0.006134310525 | DV88: 0.0248972532 | DW88: 1.386294361 | DY88: 0.01237410072 | DZ88: 4 | EB88: ceofficients
B89: 56 | C89: 4 | AB89: 0.01784172662 | AC89: =IF(C$34="","",IF(ROW()-ROW(S$27)>B$17,"",SMALL(INDEX($C$34:$C$10033,1,1):INDEX($C$34:$C$10033,B$17,1),ROW()-ROW(S$27)))) -> 4 | AD89: 0.58 | AE89: 10.40660818 | AF89: 0.1310892177 | AG89: 10.07199201 | AH89: 10.23627468 | AI89: 10.35293055 | AJ89: 10.59310507 | AK89: 10.45838215 | AL89: 10.40307971 | AM89: 10.48119947 | AN89: 10.4432042 | AO89: 10.40660818 | AP89: 10.40527378 | AQ89: 10.39631524 | AR89: 10.39694434 | AS89: 10.42359119 | AT89: 10.41928126 | AU89: 10.4122925 | AV89: 0.1071122039 | AW89: 0.1079887536 | AX89: 0.09266962437 | AY89: 0.09915896909 | AZ89: 0.1181486535 | BA89: 0.1267588532 | BB89: 0.1386194446 | BC89: 0.126119179 | BD89: 0.1310892177 | BE89: 0.1312112432 | BF89: 0.1248987557 | BG89: 0.1265477492 | BH89: 0.1259077953 | BI89: 0.1256634596 | BJ89: 0.1489272056 | BL89: 2.309758503 | BM89: 2.325937753 | BN89: 2.337269625 | BO89: 2.360203325 | BP89: 2.347403777 | BQ89: 2.342101888 | BR89: 2.349583126 | BS89: 2.345951451 | BT89: 2.342441006 | BU89: 2.342312772 | BV89: 2.34145144 | BW89: 2.341511949 | BX89: 2.344071621 | BY89: 2.343658057 | BZ89: 2.342987079 | CA89: 1.078833261 | CB89: 1.105402544 | CC89: 0.9594021857 | CD89: 1.050401379 | CE89: 1.235643769 | CF89: 1.318682454 | CG89: 1.45289805 | CH89: 1.317088339 | CI89: 1.364194125 | CJ89: 1.365288908 | CK89: 1.298486838 | CL89: 1.315709904 | CM89: 1.312411386 | CN89: 1.309322929 | CO89: 1.550673626 | CQ89: 1.091233644 | CR89: 1.11134376 | CS89: 0.9614310224 | CT89: 1.028894606 | CU89: 1.222720352 | CV89: 1.321114791 | CW89: 1.42284938 | CX89: 1.316751811 | CY89: 1.385200044 | CZ89: 1.38755505 | DA89: 1.329640653 | DB89: 1.345531326 | DC89: 1.309701065 | DD89: 1.3137138 | DE89: 1.541717359 | DG89: 1 | DH89: -4.04158821 | DI89: 1.951011287 | DJ89: -0.4827338129 | DK89: 0.2330319342 | DL89: -0.9418191176 | DM89: -0.1124923941 | DN89: 0.4546479338 | DO89: 0.05430388234 | DP89: -0.2194739306 | DQ89: -0.02621432018 | DR89: 0.1059474874 | DS89: 0.01265453873 | DT89: -0.05114443455 | DU89: -0.006108773734 | DV89: 0.0246891479 | DW89: 1.386294361 | DY89: 0.0126618705 | DZ89: 4 | EB89: n --> | EC89: 2 | ED89: 3 | EE89: 4 | EF89: 5 | EG89: 6 | EH89: 7 | EI89: 8 | EJ89: 9 | EK89: 10 | EL89: 11 | EM89: 12 | EN89: 13 | EO89: 14 | EP89: 15 | EQ89: 16
B90: 57 | C90: 4 | AB90: 0.0181294964 | AC90: =IF(C$34="","",IF(ROW()-ROW(S$27)>B$17,"",SMALL(INDEX($C$34:$C$10033,1,1):INDEX($C$34:$C$10033,B$17,1),ROW()-ROW(S$27)))) -> 4 | AD90: 0.59 | AE90: 10.4836247 | AF90: 0.1285487286 | AG90: 10.16610993 | AH90: 10.32947654 | AI90: 10.46150348 | AJ90: 10.693954 | AK90: 10.54324729 | AL90: 10.48245796 | AM90: 10.55338786 | AN90: 10.5229107 | AO90: 10.4836247 | AP90: 10.48223723 | AQ90: 10.47726921 | AR90: 10.47683763 | AS90: 10.50338022 | AT90: 10.49933358 | AU90: 10.48002686 | AV90: 0.1053799797 | AW90: 0.1065888648 | AX90: 0.09153391557 | AY90: 0.09914723492 | AZ90: 0.1174828555 | BA90: 0.1251456721 | BB90: 0.1383452357 | BC90: 0.1247599351 | BD90: 0.1285487286 | BE90: 0.1286062331 | BF90: 0.1221417919 | BG90: 0.1237628983 | BH90: 0.1247123463 | BI90: 0.1241377146 | BJ90: 0.1461052742 | BL90: 2.319059632 | BM90: 2.335001608 | BN90: 2.347702185 | BO90: 2.369678535 | BP90: 2.355485587 | BQ90: 2.34970319 | BR90: 2.356446932 | BS90: 2.353554852 | BT90: 2.349814488 | BU90: 2.349682132 | BV90: 2.349208073 | BW90: 2.349166881 | BX90: 2.351697131 | BY90: 2.351311787 | BZ90: 2.349471241 | CA90: 1.071304458 | CB90: 1.101007178 | CC90: 0.9575823765 | CD90: 1.060275969 | CE90: 1.238650798 | CF90: 1.311834247 | CG90: 1.460010931 | CH90: 1.312837656 | CI90: 1.347656626 | CJ90: 1.348081044 | CK90: 1.279712436 | CL90: 1.296643791 | CM90: 1.309901191 | CN90: 1.303363276 | CO90: 1.531187197 | CQ90: 1.085476323 | CR90: 1.108844307 | CS90: 0.960681424 | CT90: 1.039914066 | CU90: 1.230293707 | CV90: 1.321787206 | CW90: 1.440370974 | CX90: 1.31842014 | CY90: 1.376857056 | CZ90: 1.378604902 | DA90: 1.315303741 | DB90: 1.332184119 | DC90: 1.312263014 | DD90: 1.31276085 | DE90: 1.554104602 | DG90: 1 | DH90: -4.024766039 | DI90: 1.94173245 | DJ90: -0.4824460432 | DK90: 0.2327541846 | DL90: -0.9367811375 | DM90: -0.1122913354 | DN90: 0.4519463531 | DO90: 0.05417451043 | DP90: -0.2180397298 | DQ90: -0.0261362782 | DR90: 0.1051924049 | DS90: 0.012609344 | DT90: -0.05074965951 | DU90: -0.00608332812 | DV90: 0.02448397242 | DW90: 1.386294361 | DY90: 0.01294964029 | DZ90: 4 | EB90: a1 | EC90: =IF(OR(EC40<>0,B17<EC89),"",IF(DH27=0,"determ",IFERROR(MMULT(MMULT(MINVERSE(INDEX(EB43:EQ58,1,1):INDEX(EB43:EQ58,2,2)+MMULT(TRANSPOSE(INDEX(DG30:DP10029,1,1):INDEX(DG30:DP10029,$B$17,2)),INDEX(DG30:DP10029,1,1):INDEX(DG30:DP10029,$B$17,2))),TRANSPOSE(INDEX(DG30:DP10029,1,1):INDEX(DG30:DP10029,$B$17,2))),INDEX(DW30:DW10029,1,1):INDEX(DW30:DW10029,$B$17,1)),"error"))) -> 2.236876436 | ED90: =IF(OR(EC40<>0,B17<ED89),"",IF(DI27=0,"determ",IFERROR(MMULT(MMULT(MINVERSE(INDEX(EB43:EQ58,1,1):INDEX(EB43:EQ58,3,3)+MMULT(TRANSPOSE(INDEX(DG30:DP10029,1,1):INDEX(DG30:DP10029,$B$17,3)),INDEX(DG30:DP10029,1,1):INDEX(DG30:DP10029,$B$17,3))),TRANSPOSE(INDEX(DG30:DP10029,1,1):INDEX(DG30:DP10029,$B$17,3))),INDEX(DW30:DW10029,1,1):INDEX(DW30:DW10029,$B$17,1)),"error"))) -> 2.253939155 | EE90: =IF(OR(EC40<>0,B17<EE89),"",IF(DJ27=0,"determ",IFERROR(MMULT(MMULT(MINVERSE(INDEX(EB43:EQ58,1,1):INDEX(EB43:EQ58,4,4)+MMULT(TRANSPOSE(INDEX(DG30:DP10029,1,1):INDEX(DG30:DP10029,$B$17,4)),INDEX(DG30:DP10029,1,1):INDEX(DG30:DP10029,$B$17,4))),TRANSPOSE(INDEX(DG30:DP10029,1,1):INDEX(DG30:DP10029,$B$17,4))),INDEX(DW30:DW10029,1,1):INDEX(DW30:DW10029,$B$17,1)),"error"))) -> 2.253939155 | EF90: =IF(OR(EC40<>0,B17<EF89),"",IF(DK27=0,"determ",IFERROR(MMULT(MMULT(MINVERSE(INDEX(EB43:EQ58,1,1):INDEX(EB43:EQ58,5,5)+MMULT(TRANSPOSE(INDEX(DG30:DP10029,1,1):INDEX(DG30:DP10029,$B$17,5)),INDEX(DG30:DP10029,1,1):INDEX(DG30:DP10029,$B$17,5))),TRANSPOSE(INDEX(DG30:DP10029,1,1):INDEX(DG30:DP10029,$B$17,5))),INDEX(DW30:DW10029,1,1):INDEX(DW30:DW10029,$B$17,1)),"error"))) -> 2.280513622 | EG90: =IF(OR(EC40<>0,B17<EG89),"",IF(DL27=0,"determ",IFERROR(MMULT(MMULT(MINVERSE(INDEX(EB43:EQ58,1,1):INDEX(EB43:EQ58,6,6)+MMULT(TRANSPOSE(INDEX(DG30:DP10029,1,1):INDEX(DG30:DP10029,$B$17,6)),INDEX(DG30:DP10029,1,1):INDEX(DG30:DP10029,$B$17,6))),TRANSPOSE(INDEX(DG30:DP10029,1,1):INDEX(DG30:DP10029,$B$17,6))),INDEX(DW30:DW10029,1,1):INDEX(DW30:DW10029,$B$17,1)),"error"))) -> 2.280513622 | EH90: =IF(OR(EC40<>0,B17<EH89),"",IF(DM27=0,"determ",IFERROR(MMULT(MMULT(MINVERSE(INDEX(EB43:EQ58,1,1):INDEX(EB43:EQ58,7,7)+MMULT(TRANSPOSE(INDEX(DG30:DP10029,1,1):INDEX(DG30:DP10029,$B$17,7)),INDEX(DG30:DP10029,1,1):INDEX(DG30:DP10029,$B$17,7))),TRANSPOSE(INDEX(DG30:DP10029,1,1):INDEX(DG30:DP10029,$B$17,7))),INDEX(DW30:DW10029,1,1):INDEX(DW30:DW10029,$B$17,1)),"error"))) -> 2.280513622 | EI90: =IF(OR(EC40<>0,B17<EI89),"",IF(DN27=0,"determ",IFERROR(MMULT(MMULT(MINVERSE(INDEX(EB43:EQ58,1,1):INDEX(EB43:EQ58,8,8)+MMULT(TRANSPOSE(INDEX(DG30:DP10029,1,1):INDEX(DG30:DP10029,$B$17,8)),INDEX(DG30:DP10029,1,1):INDEX(DG30:DP10029,$B$17,8))),TRANSPOSE(INDEX(DG30:DP10029,1,1):INDEX(DG30:DP10029,$B$17,8))),INDEX(DW30:DW10029,1,1):INDEX(DW30:DW10029,$B$17,1)),"error"))) -> 2.29089329 | EJ90: =IF(OR(EC40<>0,B17<EJ89),"",IF(DO27=0,"determ",IFERROR(MMULT(MMULT(MINVERSE(INDEX(EB43:EQ58,1,1):INDEX(EB43:EQ58,9,9)+MMULT(TRANSPOSE(INDEX(DG30:DP10029,1,1):INDEX(DG30:DP10029,$B$17,9)),INDEX(DG30:DP10029,1,1):INDEX(DG30:DP10029,$B$17,9))),TRANSPOSE(INDEX(DG30:DP10029,1,1):INDEX(DG30:DP10029,$B$17,9))),INDEX(DW30:DW10029,1,1):INDEX(DW30:DW10029,$B$17,1)),"error"))) -> 2.284214653 | EK90: =IF(OR($EC$40<>0,$B$17<10),"",IF(DP27=0,"determ",IFERROR(MMULT(MMULT(MINVERSE(INDEX(EB43:EQ58,1,1):INDEX(EB43:EQ58,10,10)+MMULT(TRANSPOSE(INDEX($DG$30:$DV$10029,1,1):INDEX($DG$30:$DV$10029,$B$17,10)),INDEX($DG$30:$DV$10029,1,1):INDEX($DG$30:$DV$10029,$B$17,10))),TRANSPOSE(INDEX($DG$30:$DV$10029,1,1):INDEX($DG$30:$DV$10029,$B$17,10))),INDEX($DW$30:$DW$10029,1,1):INDEX($DW$30:$DW$10029,$B$17,1)),"error"))) -> 2.284214653 | EL90: =IF(OR($EC$40<>0,$B$17<11),"",IF(DQ27=0,"determ",IFERROR(MMULT(MMULT(MINVERSE(INDEX(EB43:EQ58,1,1):INDEX(EB43:EQ58,11,11)+MMULT(TRANSPOSE(INDEX($DG$30:$DV$10029,1,1):INDEX($DG$30:$DV$10029,$B$17,11)),INDEX($DG$30:$DV$10029,1,1):INDEX($DG$30:$DV$10029,$B$17,11))),TRANSPOSE(INDEX($DG$30:$DV$10029,1,1):INDEX($DG$30:$DV$10029,$B$17,11))),INDEX($DW$30:$DW$10029,1,1):INDEX($DW$30:$DW$10029,$B$17,1)),"error"))) -> 2.284214653 | EM90: =IF(OR($EC$40<>0,$B$17<12),"",IF(DR27=0,"determ",IFERROR(MMULT(MMULT(MINVERSE(INDEX(EB43:EQ58,1,1):INDEX(EB43:EQ58,12,12)+MMULT(TRANSPOSE(INDEX($DG$30:$DV$10029,1,1):INDEX($DG$30:$DV$10029,$B$17,12)),INDEX($DG$30:$DV$10029,1,1):INDEX($DG$30:$DV$10029,$B$17,12))),TRANSPOSE(INDEX($DG$30:$DV$10029,1,1):INDEX($DG$30:$DV$10029,$B$17,12))),INDEX($DW$30:$DW$10029,1,1):INDEX($DW$30:$DW$10029,$B$17,1)),"error"))) -> 2.281653357 | EN90: =IF(OR($EC$40<>0,$B$17<13),"",IF(DS27=0,"determ",IFERROR(MMULT(MMULT(MINVERSE(INDEX(EB43:EQ58,1,1):INDEX(EB43:EQ58,13,13)+MMULT(TRANSPOSE(INDEX($DG$30:$DV$10029,1,1):INDEX($DG$30:$DV$10029,$B$17,13)),INDEX($DG$30:$DV$10029,1,1):INDEX($DG$30:$DV$10029,$B$17,13))),TRANSPOSE(INDEX($DG$30:$DV$10029,1,1):INDEX($DG$30:$DV$10029,$B$17,13))),INDEX($DW$30:$DW$10029,1,1):INDEX($DW$30:$DW$10029,$B$17,1)),"error"))) -> 2.282199103 | EO90: =IF(OR($EC$40<>0,$B$17<14),"",IF(DT27=0,"determ",IFERROR(MMULT(MMULT(MINVERSE(INDEX(EB43:EQ58,1,1):INDEX(EB43:EQ58,14,14)+MMULT(TRANSPOSE(INDEX($DG$30:$DV$10029,1,1):INDEX($DG$30:$DV$10029,$B$17,14)),INDEX($DG$30:$DV$10029,1,1):INDEX($DG$30:$DV$10029,$B$17,14))),TRANSPOSE(INDEX($DG$30:$DV$10029,1,1):INDEX($DG$30:$DV$10029,$B$17,14))),INDEX($DW$30:$DW$10029,1,1):INDEX($DW$30:$DW$10029,$B$17,1)),"error"))) -> 2.282199103 | EP90: =IF(OR($EC$40<>0,$B$17<15),"",IF(DU27=0,"determ",IFERROR(MMULT(MMULT(MINVERSE(INDEX(EB43:EQ58,1,1):INDEX(EB43:EQ58,15,15)+MMULT(TRANSPOSE(INDEX($DG$30:$DV$10029,1,1):INDEX($DG$30:$DV$10029,$B$17,15)),INDEX($DG$30:$DV$10029,1,1):INDEX($DG$30:$DV$10029,$B$17,15))),TRANSPOSE(INDEX($DG$30:$DV$10029,1,1):INDEX($DG$30:$DV$10029,$B$17,15))),INDEX($DW$30:$DW$10029,1,1):INDEX($DW$30:$DW$10029,$B$17,1)),"error"))) -> 2.282199102 | EQ90: =IF(OR($EC$40<>0,$B$17<16),"",IF(DV27=0,"determ",IFERROR(MMULT(MMULT(MINVERSE(INDEX(EB43:EQ58,1,1):INDEX(EB43:EQ58,16,16)+MMULT(TRANSPOSE(INDEX($DG$30:$DV$10029,1,1):INDEX($DG$30:$DV$10029,$B$17,16)),INDEX($DG$30:$DV$10029,1,1):INDEX($DG$30:$DV$10029,$B$17,16))),TRANSPOSE(INDEX($DG$30:$DV$10029,1,1):INDEX($DG$30:$DV$10029,$B$17,16))),INDEX($DW$30:$DW$10029,1,1):INDEX($DW$30:$DW$10029,$B$17,1)),"error"))) -> 2.287750599
B91: 58 | C91: 4 | AB91: 0.01841726619 | AC91: =IF(C$34="","",IF(ROW()-ROW(S$27)>B$17,"",SMALL(INDEX($C$34:$C$10033,1,1):INDEX($C$34:$C$10033,B$17,1),ROW()-ROW(S$27)))) -> 4 | AD91: 0.6 | AE91: 10.56227515 | AF91: 0.1257056423 | AG91: 10.26182039 | AH91: 10.42394655 | AI91: 10.57145664 | AJ91: 10.79484735 | AK91: 10.6286768 | AL91: 10.56297555 | AM91: 10.62586013 | AN91: 10.60357453 | AO91: 10.56227515 | AP91: 10.5608719 | AQ91: 10.56011492 | AR91: 10.55861086 | AS91: 10.58402338 | AT91: 10.58045205 | AU91: 10.54942627 | AV91: 0.1035771307 | AW91: 0.105108645 | AX91: 0.09035745668 | AY91: 0.09907043009 | AZ91: 0.116591394 | BA91: 0.1231981281 | BB91: 0.1375321233 | BC91: 0.1231448276 | BD91: 0.1257056423 | BE91: 0.1257000476 | BF91: 0.1192662906 | BG91: 0.1208030273 | BH91: 0.1232508538 | BI91: 0.1223810165 | BJ91: 0.1418871381 | BL91: 2.32843025 | BM91: 2.344105712 | BN91: 2.358157599 | BO91: 2.379068923 | BP91: 2.363555707 | BQ91: 2.357355014 | BR91: 2.363290665 | BS91: 2.361191164 | BT91: 2.357288704 | BU91: 2.357155841 | BV91: 2.357084161 | BW91: 2.356941723 | BX91: 2.359345636 | BY91: 2.359008152 | BZ91: 2.356071476 | CA91: 1.062889913 | CB91: 1.095646897 | CC91: 0.9552099352 | CD91: 1.06945017 | CE91: 1.239212244 | CF91: 1.301338814 | CG91: 1.461397105 | CH91: 1.305775358 | CI91: 1.327737582 | CJ91: 1.327502101 | CK91: 1.259465735 | CL91: 1.275512157 | CM91: 1.304489918 | CN91: 1.294846476 | CO91: 1.496827902 | CQ91: 1.078833261 | CR91: 1.105402544 | CS91: 0.9594021857 | CT91: 1.050401379 | CU91: 1.235643769 | CV91: 1.318682454 | CW91: 1.45289805 | CX91: 1.317088339 | CY91: 1.364194125 | CZ91: 1.365288908 | DA91: 1.298486838 | DB91: 1.315709904 | DC91: 1.312411386 | DD91: 1.309322929 | DE91: 1.550673626 | DG91: 1 | DH91: -4.008212564 | DI91: 1.932592849 | DJ91: -0.4821582734 | DK91: 0.2324766006 | DL91: -0.9318156313 | DM91: -0.1120905163 | DN91: 0.4492826159 | DO91: 0.05404536982 | DP91: -0.2166253303 | DQ91: -0.0260584222 | DR91: 0.1044476952 | DS91: 0.01256428385 | DT91: -0.0503603204 | DU91: -0.006057973409 | DV91: 0.02428164513 | DW91: 1.386294361 | DY91: 0.01323741007 | DZ91: 4 | EB91: a2 | EC91: 0.2257994898 | ED91: 0.2257994898 | EE91: 0.1692770225 | EF91: 0.1692770225 | EG91: -0.08322629515 | EH91: 0.3798508507 | EI91: 0.3798508507 | EJ91: 0.3798508507 | EK91: -1.171264816 | EL91: -0.8619621256 | EM91: -0.8619621261 | EN91: -0.8619621263 | EO91: 35.06862274 | EP91: 70.73807943 | EQ91: 70.73787341
B92: 59 | C92: 4 | AB92: =IF(AC92="","",(ROW()-ROW($AB$27))/($B$17+1)) -> 0.01870503597 | AC92: =IF(C$34="","",IF(ROW()-ROW(S$27)>B$17,"",SMALL(INDEX($C$34:$C$10033,1,1):INDEX($C$34:$C$10033,B$17,1),ROW()-ROW(S$27)))) -> 4 | AD92: 0.61 | AE92: 10.64280879 | AF92: 0.1226135504 | AG92: 10.35924447 | AH92: 10.5197932 | AI92: 10.68287628 | AJ92: 10.89585533 | AK92: 10.71484719 | AL92: 10.64488309 | AM92: 10.69890841 | AN92: 10.68538463 | AO92: 10.64280879 | AP92: 10.64142883 | AQ92: 10.64501219 | AR92: 10.64245952 | AS92: 10.6657221 | AT92: 10.66282156 | AU92: 10.62122983 | AV92: 0.1017052575 | AW92: 0.103548651 | AX92: 0.08914000226 | AY92: 0.09892101516 | AZ92: 0.1154701947 | BA92: 0.1209361152 | BB92: 0.1361700564 | BC92: 0.1212898889 | BD92: 0.1226135504 | BE92: 0.1225486736 | BF92: 0.1163156453 | BG92: 0.1177184112 | BH92: 0.121506949 | BI92: 0.1203945628 | BJ92: 0.1365183648 | BL92: 2.337879306 | BM92: 2.353258549 | BN92: 2.368642112 | BO92: 2.388382472 | BP92: 2.371630367 | BQ92: 2.365079316 | BR92: 2.370141718 | BS92: 2.368876885 | BT92: 2.364884433 | BU92: 2.364754764 | BV92: 2.365091443 | BW92: 2.364851615 | BX92: 2.367035057 | BY92: 2.366763071 | BZ92: 2.362854812 | CA92: 1.053589626 | CB92: 1.089310394 | CC92: 0.9522716158 | CD92: 1.07782907 | CE92: 1.237245491 | CF92: 1.287350808 | CG92: 1.456870961 | CH92: 1.296029115 | CI92: 1.304952572 | CJ92: 1.304092989 | CK92: 1.238181462 | CL92: 1.252813426 | CM92: 1.295959351 | CN92: 1.28374574 | CO92: 1.449992928 | CQ92: 1.071304458 | CR92: 1.101007178 | CS92: 0.9575823765 | CT92: 1.060275969 | CU92: 1.238650798 | CV92: 1.311834247 | CW92: 1.460010931 | CX92: 1.312837656 | CY92: 1.347656626 | CZ92: 1.348081044 | DA92: 1.279712436 | DB92: 1.296643791 | DC92: 1.309901191 | DD92: 1.303363276 | DE92: 1.531187197 | DG92: 1 | DH92: -3.991919182 | DI92: 1.923588107 | DJ92: -0.4818705036 | DK92: 0.2321991822 | DL92: -0.9269203697 | DM92: -0.1118899369 | DN92: 0.4466555853 | DO92: 0.05391646023 | DP92: -0.2152301518 | DQ92: -0.02598075184 | DR92: 0.1037130617 | DS92: 0.01251935797 | DT92: -0.04997626525 | DU92: -0.006032709332 | DV92: 0.0240820881 | DW92: 1.386294361 | DY92: 0.01352517986 | DZ92: 4 | EB92: a3 | EC92: 0 | ED92: -0.03421397881 | EE92: -0.03421397881 | EF92: 0.09367160049 | EG92: 0.09367160049 | EH92: 0.09367160049 | EI92: -0.2691099291 | EJ92: -1.553818093 | EK92: -1.553818093 | EL92: -1.553818093 | EM92: 1.408666552 | EN92: 5.180475374 | EO92: 5.180475358 | EP92: 5.180475353 | EQ92: -226.0710474
B93: 60 | C93: 4 | AB93: 0.01899280576 | AC93: =IF(C$34="","",IF(ROW()-ROW(S$27)>B$17,"",SMALL(INDEX($C$34:$C$10033,1,1):INDEX($C$34:$C$10033,B$17,1),ROW()-ROW(S$27)))) -> 4 | AD93: 0.62 | AE93: =INDEX(AG93:AU93,1,$C$17-1) -> 10.72546976 | AF93: =INDEX(AV93:BJ93,1,$C$17-1) -> 0.1193250284 | AG93: =IF(BL93="",NA(),IF($B$11="u",BL93,IF($B$11="sl",$C$19+EXP(BL93),IF($B$11="su",$C$20-EXP(-BL93),IF($B$11="b",($C$19+$C$20*EXP(BL93))/(1+EXP(BL93)),NA()))))) -> 10.45851182 | AH93: =IF(BM93="",NA(),IF($B$11="u",BM93,IF($B$11="sl",$C$19+EXP(BM93),IF($B$11="su",$C$20-EXP(-BM93),IF($B$11="b",($C$19+$C$20*EXP(BM93))/(1+EXP(BM93)),NA()))))) -> 10.61713247 | AI93: =IF(BN93="",NA(),IF($B$11="u",BN93,IF($B$11="sl",$C$19+EXP(BN93),IF($B$11="su",$C$20-EXP(-BN93),IF($B$11="b",($C$19+$C$20*EXP(BN93))/(1+EXP(BN93)),NA()))))) -> 10.79585457 | AJ93: =IF(BO93="",NA(),IF($B$11="u",BO93,IF($B$11="sl",$C$19+EXP(BO93),IF($B$11="su",$C$20-EXP(-BO93),IF($B$11="b",($C$19+$C$20*EXP(BO93))/(1+EXP(BO93)),NA()))))) -> 10.99705656 | AK93: =IF(BP93="",NA(),IF($B$11="u",BP93,IF($B$11="sl",$C$19+EXP(BP93),IF($B$11="su",$C$20-EXP(-BP93),IF($B$11="b",($C$19+$C$20*EXP(BP93))/(1+EXP(BP93)),NA()))))) -> 10.80194625 | AL93: =IF(BQ93="",NA(),IF($B$11="u",BQ93,IF($B$11="sl",$C$19+EXP(BQ93),IF($B$11="su",$C$20-EXP(-BQ93),IF($B$11="b",($C$19+$C$20*EXP(BQ93))/(1+EXP(BQ93)),NA()))))) -> 10.72844021 | AM93: =IF(BR93="",NA(),IF($B$11="u",BR93,IF($B$11="sl",$C$19+EXP(BR93),IF($B$11="su",$C$20-EXP(-BR93),IF($B$11="b",($C$19+$C$20*EXP(BR93))/(1+EXP(BR93)),NA()))))) -> 10.77284068 | AN93: =IF(BS93="",NA(),IF($B$11="u",BS93,IF($B$11="sl",$C$19+EXP(BS93),IF($B$11="su",$C$20-EXP(-BS93),IF($B$11="b",($C$19+$C$20*EXP(BS93))/(1+EXP(BS93)),NA()))))) -> 10.76853372 | AO93: =IF(BT93="",NA(),IF($B$11="u",BT93,IF($B$11="sl",$C$19+EXP(BT93),IF($B$11="su",$C$20-EXP(-BT93),IF($B$11="b",($C$19+$C$20*EXP(BT93))/(1+EXP(BT93)),NA()))))) -> 10.72546976 | AP93: =IF(BU93="",NA(),IF($B$11="u",BU93,IF($B$11="sl",$C$19+EXP(BU93),IF($B$11="su",$C$20-EXP(-BU93),IF($B$11="b",($C$19+$C$20*EXP(BU93))/(1+EXP(BU93)),NA()))))) -> 10.724153 | AQ93: =IF(BV93="",NA(),IF($B$11="u",BV93,IF($B$11="sl",$C$19+EXP(BV93),IF($B$11="su",$C$20-EXP(-BV93),IF($B$11="b",($C$19+$C$20*EXP(BV93))/(1+EXP(BV93)),NA()))))) -> 10.73210764 | AR93: =IF(BW93="",NA(),IF($B$11="u",BW93,IF($B$11="sl",$C$19+EXP(BW93),IF($B$11="su",$C$20-EXP(-BW93),IF($B$11="b",($C$19+$C$20*EXP(BW93))/(1+EXP(BW93)),NA()))))) -> 10.72856691 | AS93: =IF(BX93="",NA(),IF($B$11="u",BX93,IF($B$11="sl",$C$19+EXP(BX93),IF($B$11="su",$C$20-EXP(-BX93),IF($B$11="b",($C$19+$C$20*EXP(BX93))/(1+EXP(BX93)),NA()))))) -> 10.74870278 | AT93: =IF(BY93="",NA(),IF($B$11="u",BY93,IF($B$11="sl",$C$19+EXP(BY93),IF($B$11="su",$C$20-EXP(-BY93),IF($B$11="b",($C$19+$C$20*EXP(BY93))/(1+EXP(BY93)),NA()))))) -> 10.74664162 | AU93: =IF(BZ93="",NA(),IF($B$11="u",BZ93,IF($B$11="sl",$C$19+EXP(BZ93),IF($B$11="su",$C$20-EXP(-BZ93),IF($B$11="b",($C$19+$C$20*EXP(BZ93))/(1+EXP(BZ93)),NA()))))) -> 10.69616535 | AV93: =IF(CA93="",NA(),IF($B$11="u",CA93,IF($B$11="sl",CA93*EXP(-BL93),IF($B$11="su",CA93*EXP(BL93),IF($B$11="b",CA93*(1+EXP(BL93))^2/(($C$20-$C$19)*EXP(BL93)),NA()))))) -> 0.099765972 | AW93: =IF(CB93="",NA(),IF($B$11="u",CB93,IF($B$11="sl",CB93*EXP(-BM93),IF($B$11="su",CB93*EXP(BM93),IF($B$11="b",CB93*(1+EXP(BM93))^2/(($C$20-$C$19)*EXP(BM93)),NA()))))) -> 0.1019094746 | AX93: =IF(CC93="",NA(),IF($B$11="u",CC93,IF($B$11="sl",CC93*EXP(-BN93),IF($B$11="su",CC93*EXP(BN93),IF($B$11="b",CC93*(1+EXP(BN93))^2/(($C$20-$C$19)*EXP(BN93)),NA()))))) -> 0.08788122532 | AY93: =IF(CD93="",NA(),IF($B$11="u",CD93,IF($B$11="sl",CD93*EXP(-BO93),IF($B$11="su",CD93*EXP(BO93),IF($B$11="b",CD93*(1+EXP(BO93))^2/(($C$20-$C$19)*EXP(BO93)),NA()))))) -> 0.098690996 | AZ93: =IF(CE93="",NA(),IF($B$11="u",CE93,IF($B$11="sl",CE93*EXP(-BP93),IF($B$11="su",CE93*EXP(BP93),IF($B$11="b",CE93*(1+EXP(BP93))^2/(($C$20-$C$19)*EXP(BP93)),NA()))))) -> 0.1141174215 | BA93: =IF(CF93="",NA(),IF($B$11="u",CF93,IF($B$11="sl",CF93*EXP(-BQ93),IF($B$11="su",CF93*EXP(BQ93),IF($B$11="b",CF93*(1+EXP(BQ93))^2/(($C$20-$C$19)*EXP(BQ93)),NA()))))) -> 0.118384114 | BB93: =IF(CG93="",NA(),IF($B$11="u",CG93,IF($B$11="sl",CG93*EXP(-BR93),IF($B$11="su",CG93*EXP(BR93),IF($B$11="b",CG93*(1+EXP(BR93))^2/(($C$20-$C$19)*EXP(BR93)),NA()))))) -> 0.1342623585 | BC93: =IF(CH93="",NA(),IF($B$11="u",CH93,IF($B$11="sl",CH93*EXP(-BS93),IF($B$11="su",CH93*EXP(BS93),IF($B$11="b",CH93*(1+EXP(BS93))^2/(($C$20-$C$19)*EXP(BS93)),NA()))))) -> 0.1192122606 | BD93: =IF(CI93="",NA(),IF($B$11="u",CI93,IF($B$11="sl",CI93*EXP(-BT93),IF($B$11="su",CI93*EXP(BT93),IF($B$11="b",CI93*(1+EXP(BT93))^2/(($C$20-$C$19)*EXP(BT93)),NA()))))) -> 0.1193250284 | BE93: =IF(CJ93="",NA(),IF($B$11="u",CJ93,IF($B$11="sl",CJ93*EXP(-BU93),IF($B$11="su",CJ93*EXP(BU93),IF($B$11="b",CJ93*(1+EXP(BU93))^2/(($C$20-$C$19)*EXP(BU93)),NA()))))) -> 0.1192066928 | BF93: =IF(CK93="",NA(),IF($B$11="u",CK93,IF($B$11="sl",CK93*EXP(-BV93),IF($B$11="su",CK93*EXP(BV93),IF($B$11="b",CK93*(1+EXP(BV93))^2/(($C$20-$C$19)*EXP(BV93)),NA()))))) -> 0.1133268118 | BG93: =IF(CL93="",NA(),IF($B$11="u",CL93,IF($B$11="sl",CL93*EXP(-BW93),IF($B$11="su",CL93*EXP(BW93),IF($B$11="b",CL93*(1+EXP(BW93))^2/(($C$20-$C$19)*EXP(BW93)),NA()))))) -> 0.1145543067 | BH93: =IF(CM93="",NA(),IF($B$11="u",CM93,IF($B$11="sl",CM93*EXP(-BX93),IF($B$11="su",CM93*EXP(BX93),IF($B$11="b",CM93*(1+EXP(BX93))^2/(($C$20-$C$19)*EXP(BX93)),NA()))))) -> 0.1194691553 | BI93: =IF(CN93="",NA(),IF($B$11="u",CN93,IF($B$11="sl",CN93*EXP(-BY93),IF($B$11="su",CN93*EXP(BY93),IF($B$11="b",CN93*(1+EXP(BY93))^2/(($C$20-$C$19)*EXP(BY93)),NA()))))) -> 0.1181811928 | BJ93: =IF(CO93="",NA(),IF($B$11="u",CO93,IF($B$11="sl",CO93*EXP(-BZ93),IF($B$11="su",CO93*EXP(BZ93),IF($B$11="b",CO93*(1+EXP(BZ93))^2/(($C$20-$C$19)*EXP(BZ93)),NA()))))) -> 0.1303150361 | BL93: =IF(CA93="","",EC$90+EC$91*LN($AD93/(1-$AD93))) -> 2.347416175 | BM93: =IF(CB93="","",ED$90+ED$91*LN($AD93/(1-$AD93))+ED$92*($AD93-0.5)*LN($AD93/(1-$AD93))) -> 2.362468967 | BN93: =IF(CC93="","",EE$90+EE$91*LN($AD93/(1-$AD93))+EE$92*($AD93-0.5)*LN($AD93/(1-$AD93))+EE$93*($AD93-0.5)) -> 2.379162224 | BO93: =IF(CD93="","",EF$90+EF$91*LN($AD93/(1-$AD93))+EF$92*($AD93-0.5)*LN($AD93/(1-$AD93))+EF$93*($AD93-0.5)+EF$94*($AD93-0.5)^2) -> 2.397627652 | BP93: =IF(CE93="","",EG$90+EG$91*LN($AD93/(1-$AD93))+EG$92*($AD93-0.5)*LN($AD93/(1-$AD93))+EG$93*($AD93-0.5)+EG$94*($AD93-0.5)^2+EG$95*($AD93-0.5)^2*LN($AD93/(1-$AD93))) -> 2.379726327 | BQ93: =IF(CF93="","",EH$90+EH$91*LN($AD93/(1-$AD93))+EH$92*($AD93-0.5)*LN($AD93/(1-$AD93))+EH$93*($AD93-0.5)+EH$94*($AD93-0.5)^2+EH$95*($AD93-0.5)^2*LN($AD93/(1-$AD93))+EH$96*($AD93-0.5)^3) -> 2.372898179 | BR93: =IF(CG93="","",EI$90+EI$91*LN($AD93/(1-$AD93))+EI$92*($AD93-0.5)*LN($AD93/(1-$AD93))+EI$93*($AD93-0.5)+EI$94*($AD93-0.5)^2+EI$95*($AD93-0.5)^2*LN($AD93/(1-$AD93))+EI$96*($AD93-0.5)^3+EI$97*($AD93-0.5)^3*LN($AD93/(1-$AD93))) -> 2.377028215 | BS93: =IF(CH93="","",EJ$90+EJ$91*LN($AD93/(1-$AD93))+EJ$92*($AD93-0.5)*LN($AD93/(1-$AD93))+EJ$93*($AD93-0.5)+EJ$94*($AD93-0.5)^2+EJ$95*($AD93-0.5)^2*LN($AD93/(1-$AD93))+EJ$96*($AD93-0.5)^3+EJ$97*($AD93-0.5)^3*LN($AD93/(1-$AD93))+EJ$98*($AD93-0.5)^4) -> 2.376628337 | BT93: =IF(CI93="","",EK$90+EK$91*LN($AD93/(1-$AD93))+EK$92*($AD93-0.5)*LN($AD93/(1-$AD93))+EK$93*($AD93-0.5)+EK$94*($AD93-0.5)^2+EK$95*($AD93-0.5)^2*LN($AD93/(1-$AD93))+EK$96*($AD93-0.5)^3+EK$97*($AD93-0.5)^3*LN($AD93/(1-$AD93))+EK$98*($AD93-0.5)^4+EK$99*($AD93-0.5)^4*LN($AD93/(1-$AD93))+EK$100*($AD93-0.5)^5+EK$101*($AD93-0.5)^5*LN($AD93/(1-$AD93))+EK$102*($AD93-0.5)^6+EK$103*($AD93-0.5)^6*LN($AD93/(1-$AD93))+EK$104*($AD93-0.5)^7+EK$105*($AD93-0.5)^7*LN($AD93/(1-$AD93))) -> 2.372621265 | BU93: 2.372498487 | BV93: 2.373239962 | BW93: =IF(CL93="","",EN$90+EN$91*LN($AD93/(1-$AD93))+EN$92*($AD93-0.5)*LN($AD93/(1-$AD93))+EN$93*($AD93-0.5)+EN$94*($AD93-0.5)^2+EN$95*($AD93-0.5)^2*LN($AD93/(1-$AD93))+EN$96*($AD93-0.5)^3+EN$97*($AD93-0.5)^3*LN($AD93/(1-$AD93))+EN$98*($AD93-0.5)^4+EN$99*($AD93-0.5)^4*LN($AD93/(1-$AD93))+EN$100*($AD93-0.5)^5+EN$101*($AD93-0.5)^5*LN($AD93/(1-$AD93))+EN$102*($AD93-0.5)^6+EN$103*($AD93-0.5)^6*LN($AD93/(1-$AD93))+EN$104*($AD93-0.5)^7+EN$105*($AD93-0.5)^7*LN($AD93/(1-$AD93))) -> 2.372909988 | BX93: =IF(CM93="","",EO$90+EO$91*LN($AD93/(1-$AD93))+EO$92*($AD93-0.5)*LN($AD93/(1-$AD93))+EO$93*($AD93-0.5)+EO$94*($AD93-0.5)^2+EO$95*($AD93-0.5)^2*LN($AD93/(1-$AD93))+EO$96*($AD93-0.5)^3+EO$97*($AD93-0.5)^3*LN($AD93/(1-$AD93))+EO$98*($AD93-0.5)^4+EO$99*($AD93-0.5)^4*LN($AD93/(1-$AD93))+EO$100*($AD93-0.5)^5+EO$101*($AD93-0.5)^5*LN($AD93/(1-$AD93))+EO$102*($AD93-0.5)^6+EO$103*($AD93-0.5)^6*LN($AD93/(1-$AD93))+EO$104*($AD93-0.5)^7+EO$105*($AD93-0.5)^7*LN($AD93/(1-$AD93))) -> 2.374785076 | BY93: =IF(CN93="","",EP$90+EP$91*LN($AD93/(1-$AD93))+EP$92*($AD93-0.5)*LN($AD93/(1-$AD93))+EP$93*($AD93-0.5)+EP$94*($AD93-0.5)^2+EP$95*($AD93-0.5)^2*LN($AD93/(1-$AD93))+EP$96*($AD93-0.5)^3+EP$97*($AD93-0.5)^3*LN($AD93/(1-$AD93))+EP$98*($AD93-0.5)^4+EP$99*($AD93-0.5)^4*LN($AD93/(1-$AD93))+EP$100*($AD93-0.5)^5+EP$101*($AD93-0.5)^5*LN($AD93/(1-$AD93))+EP$102*($AD93-0.5)^6+EP$103*($AD93-0.5)^6*LN($AD93/(1-$AD93))+EP$104*($AD93-0.5)^7+EP$105*($AD93-0.5)^7*LN($AD93/(1-$AD93))) -> 2.374593298 | BZ93: =IF(CO93="","",EQ$90+EQ$91*LN($AD93/(1-$AD93))+EQ$92*($AD93-0.5)*LN($AD93/(1-$AD93))+EQ$93*($AD93-0.5)+EQ$94*($AD93-0.5)^2+EQ$95*($AD93-0.5)^2*LN($AD93/(1-$AD93))+EQ$96*($AD93-0.5)^3+EQ$97*($AD93-0.5)^3*LN($AD93/(1-$AD93))+EQ$98*($AD93-0.5)^4+EQ$99*($AD93-0.5)^4*LN($AD93/(1-$AD93))+EQ$100*($AD93-0.5)^5+EQ$101*($AD93-0.5)^5*LN($AD93/(1-$AD93))+EQ$102*($AD93-0.5)^6+EQ$103*($AD93-0.5)^6*LN($AD93/(1-$AD93))+EQ$104*($AD93-0.5)^7+EQ$105*($AD93-0.5)^7*LN($AD93/(1-$AD93))) -> 2.369885299 | CA93: 1.043403598 | CB93: 1.081986392 | CC93: 0.9487529279 | CD93: 1.085310465 | CE93: 1.232690254 | CF93: 1.270076889 | CG93: 1.446386997 | CH93: 1.283741248 | CI93: 1.279816984 | CJ93: 1.278390812 | CK93: 1.216235543 | CL93: 1.229003544 | CM93: 1.284138441 | CN93: 1.270050925 | CO93: 1.393871174 | CQ93: 1.062889913 | CR93: 1.095646897 | CS93: 0.9552099352 | CT93: 1.06945017 | CU93: 1.239212244 | CV93: 1.301338814 | CW93: 1.461397105 | CX93: 1.305775358 | CY93: 1.327737582 | CZ93: 1.327502101 | DA93: 1.259465735 | DB93: 1.275512157 | DC93: 1.304489918 | DD93: 1.294846476 | DE93: 1.496827902 | DG93: 1 | DH93: -3.975877699 | DI93: 1.914714052 | DJ93: -0.4815827338 | DK93: 0.2319219295 | DL93: -0.9220932274 | DM93: -0.1116895968 | DN93: 0.4440641773 | DO93: 0.05378778139 | DP93: -0.2138536405 | DQ93: -0.02590326681 | DR93: 0.1029882208 | DS93: 0.01247456604 | DT93: -0.04959734894 | DU93: -0.006007535618 | DV93: 0.02388522689 | DW93: 1.386294361 | DY93: 0.01381294964 | DZ93: 4 | EB93: a4 | EC93: 0 | ED93: 0 | EE93: 0.3696977558 | EF93: 0.3696977558 | EG93: 1.21109491 | EH93: -0.7152666219 | EI93: -0.7152666219 | EJ93: -0.7152666219 | EK93: 5.43612836 | EL93: 4.196770708 | EM93: 4.19677071 | EN93: 4.196770711 | EO93: -139.4768467 | EP93: -282.1638932 | EQ93: -282.1630774
B94: 61 | C94: 4 | AB94: 0.01928057554 | AC94: =IF(C$34="","",IF(ROW()-ROW(S$27)>B$17,"",SMALL(INDEX($C$34:$C$10033,1,1):INDEX($C$34:$C$10033,B$17,1),ROW()-ROW(S$27)))) -> 4 | AD94: 0.63 | AE94: 10.81049704 | AF94: 0.1158898427 | AG94: 10.5597618 | AH94: 10.71608878 | AI94: 10.91049028 | AJ94: 11.09853905 | AK94: 10.89017415 | AL94: 10.81391605 | AM94: 10.84798152 | AN94: 10.85321947 | AO94: 10.81049704 | AP94: 10.80928326 | AQ94: 10.82153602 | AR94: 10.8171044 | AS94: 10.83321792 | AT94: 10.83212807 | AU94: 10.77492847 | AV94: 0.09776090102 | AW94: 0.100191748 | AX94: 0.08658071692 | AY94: 0.09837194951 | AZ94: 0.1125336025 | BA94: 0.1155702961 | BB94: 0.131825905 | BC94: 0.1169296498 | BD94: 0.1158898427 | BE94: 0.1157254299 | BF94: 0.1103300725 | BG94: 0.1113501313 | BH94: 0.1171327989 | BI94: 0.1157461088 | BJ94: 0.123614664 | BL94: 2.357050721 | BM94: 2.371746237 | BN94: 2.389724737 | BO94: 2.406813483 | BP94: 2.387860929 | BQ94: 2.380833828 | BR94: 2.383979027 | BS94: 2.384461761 | BT94: 2.38051761 | BU94: 2.380405326 | BV94: 2.381538225 | BW94: 2.381128622 | BX94: 2.382617147 | BY94: 2.382516539 | BZ94: 2.377221997 | CA94: 1.032331828 | CB94: 1.073663667 | CC94: 0.9446380703 | CD94: 1.091784923 | CE94: 1.225510529 | CF94: 1.249767479 | CG94: 1.430044981 | CH94: 1.269063152 | CI94: 1.252826801 | CJ94: 1.250908952 | CK94: 1.193940854 | CL94: 1.204485995 | CM94: 1.268925136 | CN94: 1.253776674 | CO94: 1.331939162 | CQ94: 1.053589626 | CR94: 1.089310394 | CS94: 0.9522716158 | CT94: 1.07782907 | CU94: 1.237245491 | CV94: 1.287350808 | CW94: 1.456870961 | CX94: 1.296029115 | CY94: 1.304952572 | CZ94: 1.304092989 | DA94: 1.238181462 | DB94: 1.252813426 | DC94: 1.295959351 | DD94: 1.28374574 | DE94: 1.449992928 | DG94: =IF(AB92="","",1) -> 1 | DH94: =IF(AB92="","",LN(AB92/(1-AB92))) -> -3.9600803 | DI94: =IF(AB92="","",(AB92-0.5)*DH94) -> 1.905966706 | DJ94: =IF(AB92="","",AB92-0.5) -> -0.481294964 | DK94: =IF(AB92="","",DJ94^2) -> 0.2316448424 | DL94: =IF(AB92="","",DH94*DK94) -> -0.9173321771 | DM94: =IF(AB92="","",DJ94^3) -> -0.1114894961 | DN94: =IF(AB92="","",DH94*DM94) -> 0.4415073572 | DO94: =IF(AB92="","",DJ94^4) -> 0.05365933301 | DP94: -0.2124952676 | DQ94: =IF(AB92="","",DJ94^5) -> -0.02582596675 | DR94: =IF($AB92="","",DH94*DQ94) -> 0.1022729022 | DS94: =IF(AB92="","",DJ94^6) -> 0.01242990774 | DT94: =IF($AB92="","",DH94*DS94) -> -0.04922343277 | DU94: =IF(AB92="","",DJ94^7) -> -0.005982451998 | DV94: =IF($AB92="","",DH94*DU94) -> 0.0236909903 | DW94: =IF(AB92="","",IF($B$11="u",AC92,IF($B$11="sl",LN(AC92-$C$19),IF($B$11="su",-LN($C$20-AC92),IF($B$11="b",LN((AC92-$C$19)/($C$20-AC92)),""))))) -> 1.386294361 | DY94: 0.01410071942 | DZ94: 4 | EB94: a5 | EC94: 0 | ED94: 0 | EE94: 0 | EF94: -1.084845763 | EG94: -1.084845763 | EH94: -1.084845763 | EI94: -0.1016035952 | EJ94: 5.546202598 | EK94: 5.546202598 | EL94: 5.546202598 | EM94: -6.007122026 | EN94: -21.18365164 | EO94: -21.18365157 | EP94: -21.18365149 | EQ94: 902.6027805
B95: 62 | C95: 4 | AB95: 0.01956834532 | AC95: =IF(C$34="","",IF(ROW()-ROW(S$27)>B$17,"",SMALL(INDEX($C$34:$C$10033,1,1):INDEX($C$34:$C$10033,B$17,1),ROW()-ROW(S$27)))) -> 4 | AD95: 0.64 | AE95: 10.89812468 | AF95: 0.1123536007 | AG95: 10.6631446 | AH95: 10.81679605 | AI95: 11.02688961 | AJ95: 11.20040121 | AK95: 10.97974456 | AL95: 10.90158994 | AM95: 10.92467293 | AN95: 10.939646 | AO95: 10.89812468 | AP95: 10.89705255 | AQ95: 10.9134219 | AR95: 10.9082321 | AS95: 10.9195466 | AT95: 10.91951463 | AU95: 10.85816171 | AV95: 0.09569168891 | AW95: 0.09839614933 | AX95: 0.08523798556 | AY95: 0.09795506263 | AZ95: 0.1107217007 | BA95: 0.1125255365 | BB95: 0.1288904789 | BC95: 0.1144598397 | BD95: 0.1123536007 | BE95: 0.112151588 | BF95: 0.1073491076 | BG95: 0.1081390468 | BH95: 0.1145015297 | BI95: 0.1130975123 | BJ95: 0.1167336676 | BL95: 2.366793366 | BM95: 2.381100116 | BN95: 2.4003368 | BO95: 2.4159496 | BP95: 2.396052171 | BQ95: 2.388908644 | BR95: 2.391023802 | BS95: 2.392393438 | BT95: 2.388590727 | BU95: 2.388492344 | BV95: 2.389993399 | BW95: 2.389517742 | BX95: 2.390554449 | BY95: 2.390551522 | BZ95: 2.384917028 | CA95: 1.020374316 | CB95: 1.064331079 | CC95: 0.9399098578 | CD95: 1.097136002 | CE95: 1.215695991 | CF95: 1.226707256 | CG95: 1.408086325 | CH95: 1.252150128 | CI95: 1.224443549 | CJ95: 1.222121747 | CK95: 1.171546102 | CL95: 1.179605822 | CM95: 1.250304789 | CN95: 1.234969941 | CO95: 1.26751304 | CQ95: =IF(OR(DH$26="",DH$26="no"),"",(EC$91/($AD93*(1-$AD93)))^-1) -> 1.043403598 | CR95: =IF(OR(DI$26="",DI$26="no"),"",(ED$91/($AD93*(1-$AD93))+ED$92*(($AD93-0.5)/($AD93*(1-$AD93))+LN($AD93/(1-$AD93))))^-1) -> 1.081986392 | CS95: =IF(OR(DJ$26="",DJ$26="no"),"",(EE$91/($AD93*(1-$AD93))+EE$92*(($AD93-0.5)/($AD93*(1-$AD93))+LN($AD93/(1-$AD93)))+EE$93)^-1) -> 0.9487529279 | CT95: =IF(OR(DK$26="",DK$26="no"),"",(EF$91/($AD93*(1-$AD93))+EF$92*(($AD93-0.5)/($AD93*(1-$AD93))+LN($AD93/(1-$AD93)))+EF$93+2*EF$94*($AD93-0.5))^-1) -> 1.085310465 | CU95: =IF(OR(DL$26="",DL$26="no"),"",(EG$91/($AD93*(1-$AD93))+EG$92*(($AD93-0.5)/($AD93*(1-$AD93))+LN($AD93/(1-$AD93)))+EG$93+2*EG$94*($AD93-0.5)+EG$95*(($AD93-0.5)^2/($AD93*(1-$AD93))+2*($AD93-0.5)*LN($AD93/(1-$AD93))))^-1) -> 1.232690254 | CV95: =IF(OR(DM$26="",DM$26="no"),"",(EH$91/($AD93*(1-$AD93))+EH$92*(($AD93-0.5)/($AD93*(1-$AD93))+LN($AD93/(1-$AD93)))+EH$93+2*EH$94*($AD93-0.5)+EH$95*(($AD93-0.5)^2/($AD93*(1-$AD93))+2*($AD93-0.5)*LN($AD93/(1-$AD93)))+3*EH$96*($AD93-0.5)^2)^-1) -> 1.270076889 | CW95: =IF(OR(DN$26="",DN$26="no"),"",(EI$91/($AD93*(1-$AD93))+EI$92*(($AD93-0.5)/($AD93*(1-$AD93))+LN($AD93/(1-$AD93)))+EI$93+2*EI$94*($AD93-0.5)+EI$95*(($AD93-0.5)^2/($AD93*(1-$AD93))+2*($AD93-0.5)*LN($AD93/(1-$AD93)))+3*EI$96*($AD93-0.5)^2+EI$97*(($AD93-0.5)^3/($AD93*(1-$AD93))+3*($AD93-0.5)^2*LN($AD93/(1-$AD93))))^-1) -> 1.446386997 | CX95: =IF(OR(DO$26="",DO$26="no"),"",(EJ$91/($AD93*(1-$AD93))+EJ$92*(($AD93-0.5)/($AD93*(1-$AD93))+LN($AD93/(1-$AD93)))+EJ$93+2*EJ$94*($AD93-0.5)+EJ$95*(($AD93-0.5)^2/($AD93*(1-$AD93))+2*($AD93-0.5)*LN($AD93/(1-$AD93)))+3*EJ$96*($AD93-0.5)^2+EJ$97*(($AD93-0.5)^3/($AD93*(1-$AD93))+3*($AD93-0.5)^2*LN($AD93/(1-$AD93)))+4*EJ$98*($AD93-0.5)^3)^-1) -> 1.283741248 | CY95: =IF(OR(DP$26="",DP$26="no"),"",(EK$91/($AD93*(1-$AD93))+EK$92*(($AD93-0.5)/($AD93*(1-$AD93))+LN($AD93/(1-$AD93)))+EK$93+2*EK$94*($AD93-0.5)+EK$95*(($AD93-0.5)^2/($AD93*(1-$AD93))+2*($AD93-0.5)*LN($AD93/(1-$AD93)))+3*EK$96*($AD93-0.5)^2+EK$97*(($AD93-0.5)^3/($AD93*(1-$AD93))+3*($AD93-0.5)^2*LN($AD93/(1-$AD93)))+4*EK$98*($AD93-0.5)^3+EK$99*(($AD93-0.5)^4/($AD93*(1-$AD93))+4*($AD93-0.5)^3*LN($AD93/(1-$AD93)))+5*EK$100*($AD93-0.5)^4+EK$101*(($AD93-0.5)^5/($AD93*(1-$AD93))+5*($AD93-0.5)^4*LN($AD93/(1-$AD93)))+6*EK$102*($AD93-0.5)^5+EK$103*(($AD93-0.5)^6/($AD93*(1-$AD93))+6*($AD93-0.5)^5*LN($AD93/(1-$AD93)))+7*EK$104*($AD93-0.5)^6+EK$105*(($AD93-0.5)^7/($AD93*(1-$AD93))+7*($AD93-0.5)^6*LN($AD93/(1-$AD93))))^-1) -> 1.279816984 | CZ95: 1.278390812 | DA95: 1.216235543 | DB95: =IF(OR(DS$26="",DS$26="no"),"",(EN$91/($AD93*(1-$AD93))+EN$92*(($AD93-0.5)/($AD93*(1-$AD93))+LN($AD93/(1-$AD93)))+EN$93+2*EN$94*($AD93-0.5)+EN$95*(($AD93-0.5)^2/($AD93*(1-$AD93))+2*($AD93-0.5)*LN($AD93/(1-$AD93)))+3*EN$96*($AD93-0.5)^2+EN$97*(($AD93-0.5)^3/($AD93*(1-$AD93))+3*($AD93-0.5)^2*LN($AD93/(1-$AD93)))+4*EN$98*($AD93-0.5)^3+EN$99*(($AD93-0.5)^4/($AD93*(1-$AD93))+4*($AD93-0.5)^3*LN($AD93/(1-$AD93)))+5*EN$100*($AD93-0.5)^4+EN$101*(($AD93-0.5)^5/($AD93*(1-$AD93))+5*($AD93-0.5)^4*LN($AD93/(1-$AD93)))+6*EN$102*($AD93-0.5)^5+EN$103*(($AD93-0.5)^6/($AD93*(1-$AD93))+6*($AD93-0.5)^5*LN($AD93/(1-$AD93)))+7*EN$104*($AD93-0.5)^6+EN$105*(($AD93-0.5)^7/($AD93*(1-$AD93))+7*($AD93-0.5)^6*LN($AD93/(1-$AD93))))^-1) -> 1.229003544 | DC95: =IF(OR(DT$26="",DT$26="no"),"",(EO$91/($AD93*(1-$AD93))+EO$92*(($AD93-0.5)/($AD93*(1-$AD93))+LN($AD93/(1-$AD93)))+EO$93+2*EO$94*($AD93-0.5)+EO$95*(($AD93-0.5)^2/($AD93*(1-$AD93))+2*($AD93-0.5)*LN($AD93/(1-$AD93)))+3*EO$96*($AD93-0.5)^2+EO$97*(($AD93-0.5)^3/($AD93*(1-$AD93))+3*($AD93-0.5)^2*LN($AD93/(1-$AD93)))+4*EO$98*($AD93-0.5)^3+EO$99*(($AD93-0.5)^4/($AD93*(1-$AD93))+4*($AD93-0.5)^3*LN($AD93/(1-$AD93)))+5*EO$100*($AD93-0.5)^4+EO$101*(($AD93-0.5)^5/($AD93*(1-$AD93))+5*($AD93-0.5)^4*LN($AD93/(1-$AD93)))+6*EO$102*($AD93-0.5)^5+EO$103*(($AD93-0.5)^6/($AD93*(1-$AD93))+6*($AD93-0.5)^5*LN($AD93/(1-$AD93)))+7*EO$104*($AD93-0.5)^6+EO$105*(($AD93-0.5)^7/($AD93*(1-$AD93))+7*($AD93-0.5)^6*LN($AD93/(1-$AD93))))^-1) -> 1.284138441 | DD95: =IF(OR(DU$26="",DU$26="no"),"",(EP$91/($AD93*(1-$AD93))+EP$92*(($AD93-0.5)/($AD93*(1-$AD93))+LN($AD93/(1-$AD93)))+EP$93+2*EP$94*($AD93-0.5)+EP$95*(($AD93-0.5)^2/($AD93*(1-$AD93))+2*($AD93-0.5)*LN($AD93/(1-$AD93)))+3*EP$96*($AD93-0.5)^2+EP$97*(($AD93-0.5)^3/($AD93*(1-$AD93))+3*($AD93-0.5)^2*LN($AD93/(1-$AD93)))+4*EP$98*($AD93-0.5)^3+EP$99*(($AD93-0.5)^4/($AD93*(1-$AD93))+4*($AD93-0.5)^3*LN($AD93/(1-$AD93)))+5*EP$100*($AD93-0.5)^4+EP$101*(($AD93-0.5)^5/($AD93*(1-$AD93))+5*($AD93-0.5)^4*LN($AD93/(1-$AD93)))+6*EP$102*($AD93-0.5)^5+EP$103*(($AD93-0.5)^6/($AD93*(1-$AD93))+6*($AD93-0.5)^5*LN($AD93/(1-$AD93)))+7*EP$104*($AD93-0.5)^6+EP$105*(($AD93-0.5)^7/($AD93*(1-$AD93))+7*($AD93-0.5)^6*LN($AD93/(1-$AD93))))^-1) -> 1.270050925 | DE95: =IF(OR(DV$26="",DV$26="no"),"",(EQ$91/($AD93*(1-$AD93))+EQ$92*(($AD93-0.5)/($AD93*(1-$AD93))+LN($AD93/(1-$AD93)))+EQ$93+2*EQ$94*($AD93-0.5)+EQ$95*(($AD93-0.5)^2/($AD93*(1-$AD93))+2*($AD93-0.5)*LN($AD93/(1-$AD93)))+3*EQ$96*($AD93-0.5)^2+EQ$97*(($AD93-0.5)^3/($AD93*(1-$AD93))+3*($AD93-0.5)^2*LN($AD93/(1-$AD93)))+4*EQ$98*($AD93-0.5)^3+EQ$99*(($AD93-0.5)^4/($AD93*(1-$AD93))+4*($AD93-0.5)^3*LN($AD93/(1-$AD93)))+5*EQ$100*($AD93-0.5)^4+EQ$101*(($AD93-0.5)^5/($AD93*(1-$AD93))+5*($AD93-0.5)^4*LN($AD93/(1-$AD93)))+6*EQ$102*($AD93-0.5)^5+EQ$103*(($AD93-0.5)^6/($AD93*(1-$AD93))+6*($AD93-0.5)^5*LN($AD93/(1-$AD93)))+7*EQ$104*($AD93-0.5)^6+EQ$105*(($AD93-0.5)^7/($AD93*(1-$AD93))+7*($AD93-0.5)^6*LN($AD93/(1-$AD93))))^-1) -> 1.393871174 | DG95: 1 | DH95: -3.94451953 | DI95: 1.897342272 | DJ95: -0.4810071942 | DK95: 0.2313679209 | DL95: -0.9126352827 | DM95: -0.1112896345 | DN95: 0.4389841367 | DO95: 0.05353111483 | DP95: =IF(AB93="","",DH95*DO95) -> -0.2111545279 | DQ95: -0.02574885135 | DR95: 0.101566847 | DS95: 0.01238538274 | DT95: -0.04885438411 | DU95: -0.005957458202 | DV95: 0.02349931023 | DW95: 1.386294361 | DY95: 0.01438848921 | DZ95: 4 | EB95: a6 | EC95: 0 | ED95: 0 | EE95: 0 | EF95: 0 | EG95: 0.6728946701 | EH95: -0.9934160155 | EI95: -0.9934160155 | EJ95: -0.9934160155 | EK95: 7.018055009 | EL95: 4.999648494 | EM95: 4.999648497 | EN95: 4.999648497 | EO95: -280.1405992 | EP95: -612.9681016 | EQ95: -612.966167
B96: 63 | C96: 4 | AB96: 0.01985611511 | AC96: =IF(C$34="","",IF(ROW()-ROW(S$27)>B$17,"",SMALL(INDEX($C$34:$C$10033,1,1):INDEX($C$34:$C$10033,B$17,1),ROW()-ROW(S$27)))) -> 4 | AD96: 0.65 | AE96: 10.98858234 | AF96: 0.1087568384 | AG96: 10.76882271 | AH96: 10.9193989 | AI96: 11.14516713 | AJ96: 11.30275305 | AK96: 11.07088603 | AL96: 10.99175215 | AM96: 11.00327536 | AN96: 11.02802554 | AO96: 10.98858234 | AP96: 10.98768828 | AQ96: 11.0078818 | AR96: 11.00209983 | AS96: 11.00799416 | AT96: 11.0090542 | AU96: 10.94643411 | AV96: 0.09356000096 | AW96: 0.09652340836 | AX96: 0.08385245631 | AY96: 0.09743118674 | AZ96: 0.1086871229 | BA96: 0.1092823958 | BB96: 0.1254973548 | BC96: 0.1118202731 | BD96: 0.1087568384 | BE96: 0.1085263542 | BF96: 0.1044012793 | BG96: 0.1049478644 | BH96: 0.1115882511 | BI96: 0.1102470863 | BJ96: 0.1099391807 | BL96: 2.376655173 | BM96: 2.390540923 | BN96: 2.411005963 | BO96: 2.425046329 | BP96: 2.404318782 | BQ96: 2.397145187 | BR96: 2.398192989 | BS96: 2.400439809 | BT96: 2.396856765 | BU96: 2.396775398 | BV96: 2.398611543 | BW96: 2.398086148 | BX96: 2.39862175 | BY96: 2.398718044 | BZ96: 2.393013751 | CA96: 1.007531063 | CB96: 1.053977599 | CC96: 0.9345496401 | CD96: 1.101240643 | CE96: 1.203262751 | CF96: 1.201205009 | CG96: 1.380881952 | CH96: 1.233156828 | CI96: 1.195083474 | CJ96: 1.19245375 | CK96: 1.149236942 | CL96: 1.154646881 | CM96: 1.228362816 | CN96: 1.213716149 | CO96: 1.203441997 | CQ96: 1.032331828 | CR96: 1.073663667 | CS96: 0.9446380703 | CT96: 1.091784923 | CU96: 1.225510529 | CV96: 1.249767479 | CW96: 1.430044981 | CX96: 1.269063152 | CY96: 1.252826801 | CZ96: 1.250908952 | DA96: 1.193940854 | DB96: 1.204485995 | DC96: 1.268925136 | DD96: 1.253776674 | DE96: 1.331939162 | DG96: 1 | DH96: -3.929188269 | DI96: 1.888837123 | DJ96: -0.4807194245 | DK96: 0.2310911651 | DL96: -0.9080006947 | DM96: -0.1110900119 | DN96: 0.4364935714 | DO96: 0.05340312657 | DP96: -0.2098309384 | DQ96: -0.02567192027 | DR96: 0.1008698079 | DS96: 0.01234099074 | DT96: -0.04849007602 | DU96: -0.005932553964 | DV96: 0.02331012144 | DW96: 1.386294361 | DY96: 0.01467625899 | DZ96: 4 | EB96: a7 | EC96: 0 | ED96: 0 | EE96: 0 | EF96: 0 | EG96: 0 | EH96: 5.430144137 | EI96: 5.430144137 | EJ96: 5.430144137 | EK96: -16.85195215 | EL96: -10.33716427 | EM96: -10.33716428 | EN96: -10.33716429 | EO96: 935.7086728 | EP96: 2077.507756 | EQ96: 2077.501071
B97: 64 | C97: 4 | AB97: 0.02014388489 | AC97: =IF(C$34="","",IF(ROW()-ROW(S$27)>B$17,"",SMALL(INDEX($C$34:$C$10033,1,1):INDEX($C$34:$C$10033,B$17,1),ROW()-ROW(S$27)))) -> 4 | AD97: 0.66 | AE97: 11.08209598 | AF97: 0.1051345029 | AG97: 10.87697241 | AH97: 11.02405409 | AI97: 11.26544681 | AJ97: 11.40571761 | AK97: 11.16384357 | AL97: 11.08470482 | AM97: 11.08416897 | AN97: 11.11858049 | AO97: 11.08209598 | AP97: 11.0814131 | AQ97: 11.10502691 | AR97: 11.09884864 | AS97: 11.09889117 | AT97: 11.10101973 | AU97: 11.04022197 | AV97: 0.09136752681 | AW97: 0.09457431272 | AX97: 0.08242346966 | AY97: 0.09679090955 | AZ97: 0.1064376654 | BA97: 0.1058741289 | BB97: 0.1216972453 | BC97: 0.1090277159 | BD97: 0.1051345029 | BE97: 0.1048849242 | BF97: 0.1014980449 | BG97: 0.101797183 | BH97: 0.1084153106 | BI97: 0.107210267 | BJ97: 0.1034365455 | BL97: 2.386647932 | BM97: 2.400079621 | BN97: 2.421740236 | BO97: 2.434114775 | BP97: 2.412680304 | BQ97: 2.405566214 | BR97: 2.405517872 | BS97: 2.408617627 | BT97: 2.405330831 | BU97: 2.405269209 | BV97: 2.40739788 | BW97: 2.406841377 | BX97: 2.406845209 | BY97: 2.407036972 | BZ97: 2.401545147 | CA97: =IF(AND($EC$41=0,CQ$26="yes"),CQ99,"") -> 0.9938020683 | CB97: 1.042592339 | CC97: 0.9285372131 | CD97: 1.103969782 | CE97: 1.188253447 | CF97: 1.173583466 | CG97: 1.34891283 | CH97: 1.212233435 | CI97: 1.165110652 | CJ97: 1.162273173 | CK97: 1.127138519 | CL97: 1.129831526 | CM97: 1.203289733 | CN97: 1.190143289 | CO97: 1.141962422 | CQ97: 1.020374316 | CR97: 1.064331079 | CS97: 0.9399098578 | CT97: 1.097136002 | CU97: 1.215695991 | CV97: 1.226707256 | CW97: 1.408086325 | CX97: 1.252150128 | CY97: 1.224443549 | CZ97: 1.222121747 | DA97: 1.171546102 | DB97: 1.179605822 | DC97: 1.250304789 | DD97: 1.234969941 | DE97: 1.26751304 | DG97: 1 | DH97: -3.914079712 | DI97: 1.880447793 | DJ97: -0.4804316547 | DK97: 0.2308145748 | DL97: -0.9034266446 | DM97: -0.1108906281 | DN97: 0.4340347578 | DO97: 0.05327536795 | DP97: -0.2085240369 | DQ97: -0.02559517318 | DR97: 0.1001815481 | DS97: 0.0122967314 | DT97: -0.04813038691 | DU97: -0.005907739014 | DV97: 0.02312336142 | DW97: 1.386294361 | DY97: 0.01496402878 | DZ97: 4 | EB97: a8 | EC97: 0 | ED97: 0 | EE97: 0 | EF97: 0 | EG97: 0 | EH97: 0 | EI97: 1.06812299 | EJ97: 5.79673462 | EK97: 5.79673462 | EL97: 5.79673462 | EM97: -10.07900776 | EN97: -35.25597015 | EO97: -35.25597005 | EP97: -35.25597024 | EQ97: 1837.511927
B98: 65 | C98: 4 | AB98: 0.02043165468 | AC98: =IF(C$34="","",IF(ROW()-ROW(S$27)>B$17,"",SMALL(INDEX($C$34:$C$10033,1,1):INDEX($C$34:$C$10033,B$17,1),ROW()-ROW(S$27)))) -> 4 | AD98: 0.67 | AE98: 11.17888903 | AF98: 0.101515765 | AG98: 10.98778565 | AH98: 11.1309321 | AI98: 11.38786324 | AJ98: 11.5094325 | AK98: 11.25888042 | AL98: 11.18076301 | AM98: 11.16775509 | AN98: 11.2115458 | AO98: 11.17888903 | AP98: 11.17844595 | AQ98: 11.20496632 | AR98: 11.19861279 | AS98: 11.19259161 | AT98: 11.19570487 | AU98: 11.13989146 | AV98: 0.08911598416 | AW98: 0.09254971443 | AX98: 0.08095028027 | AY98: 0.0960246467 | AZ98: 0.1039833957 | BA98: 0.1023337697 | BB98: 0.1175478082 | BC98: 0.1060980068 | BD98: 0.101515765 | BE98: 0.1012563691 | BF98: 0.09864543677 | BG98: 0.09870168216 | BH98: 0.1050138888 | BI98: 0.1040062617 | BJ98: 0.09736935111 | BL98: 2.396784261 | BM98: 2.409727909 | BN98: 2.43254816 | BO98: 2.443166917 | BP98: 2.421157188 | BQ98: 2.414194713 | BR98: 2.413030616 | BS98: 2.416944123 | BT98: 2.414027091 | BU98: 2.413987456 | BV98: 2.416357101 | BW98: 2.415789913 | BX98: 2.415252096 | BY98: 2.415530211 | BZ98: 2.410532491 | CA98: 0.979187332 | CB98: 1.030164587 | CC98: 0.921850721 | CD98: 1.10518919 | CE98: 1.170736617 | CF98: 1.144169627 | CG98: 1.312745133 | CH98: 1.189522663 | CI98: 1.134833471 | CJ98: 1.131888849 | CK98: 1.105318796 | CL98: 1.105321921 | CM98: 1.17537757 | CN98: 1.164423411 | CO98: 1.084684003 | CQ98: 1.007531063 | CR98: 1.053977599 | CS98: 0.9345496401 | CT98: 1.101240643 | CU98: 1.203262751 | CV98: 1.201205009 | CW98: 1.380881952 | CX98: 1.233156828 | CY98: 1.195083474 | CZ98: 1.19245375 | DA98: 1.149236942 | DB98: 1.154646881 | DC98: 1.228362816 | DD98: 1.213716149 | DE98: 1.203441997 | DG98: 1 | DH98: -3.899187357 | DI98: 1.872170965 | DJ98: -0.4801438849 | DK98: 0.2305381502 | DL98: -0.8989114405 | DM98: -0.1106914831 | DN98: 0.4316068312 | DO98: 0.0531478387 | DP98: -0.2072333807 | DQ98: -0.02551860975 | DR98: 0.09950184048 | DS98: 0.01225260442 | DT98: -0.04777520024 | DU98: -0.005883013086 | DV98: 0.02293897025 | DW98: 1.386294361 | DY98: 0.01525179856 | DZ98: 4 | EB98: a9 | EC98: 0 | ED98: 0 | EE98: 0 | EF98: 0 | EG98: 0 | EH98: 0 | EI98: 0 | EJ98: -17.25779764 | EK98: -17.25779764 | EL98: -17.25779764 | EM98: 25.46404287 | EN98: 108.2665562 | EO98: 108.2665559 | EP98: 108.2665566 | EQ98: -6107.863841
B99: 66 | C99: 4 | AB99: 0.02071942446 | AC99: =IF(C$34="","",IF(ROW()-ROW(S$27)>B$17,"",SMALL(INDEX($C$34:$C$10033,1,1):INDEX($C$34:$C$10033,B$17,1),ROW()-ROW(S$27)))) -> 4 | AD99: 0.68 | AE99: 11.27918384 | AF99: 0.09792408793 | AG99: 11.10147213 | AH99: 11.24021899 | AI99: 11.51256308 | AJ99: 11.61405176 | AK99: 11.3562801 | AL99: 11.28025599 | AM99: 11.25445794 | AN99: 11.30717174 | AO99: 11.27918384 | AP99: 11.2790036 | AQ99: 11.30781096 | AR99: 11.30152245 | AS99: 11.28947028 | AT99: 11.29342419 | AU99: 11.24568366 | AV99: 0.08680712274 | AW99: 0.09045053676 | AX99: 0.07943205545 | AY99: 0.09512275483 | AZ99: 0.101336475 | BA99: 0.09869332908 | BB99: 0.1131109474 | BC99: 0.1030458922 | BD99: 0.09792408793 | BE99: 0.09766376354 | BF99: 0.09584456436 | BG99: 0.0956705009 | BH99: 0.101422628 | BI99: 0.1006577923 | BJ99: 0.09182717909 | BL99: 2.407077724 | BM99: 2.419498327 | BN99: 2.443438881 | BO99: 2.452215724 | BP99: 2.429770903 | BQ99: 2.42305394 | BR99: 2.420764312 | BS99: 2.425437191 | BT99: 2.422958889 | BU99: 2.422942909 | BV99: 2.425493722 | BW99: 2.424937447 | BX99: 2.423870458 | BY99: 2.424220627 | BZ99: 2.41998438 | CA99: 0.9636868541 | CB99: 1.016683841 | CC99: 0.9144665494 | CD99: 1.104760599 | CE99: 1.150805394 | CF99: 1.113286016 | CG99: 1.2730024 | CH99: 1.1651576 | CI99: 1.10450379 | CJ99: 1.10154994 | CK99: 1.083792215 | CL99: 1.081222314 | CM99: 1.145007744 | CN99: 1.136771147 | CO99: 1.032659407 | CQ99: 0.9938020683 | CR99: 1.042592339 | CS99: 0.9285372131 | CT99: 1.103969782 | CU99: 1.188253447 | CV99: 1.173583466 | CW99: 1.34891283 | CX99: 1.212233435 | CY99: 1.165110652 | CZ99: 1.162273173 | DA99: 1.127138519 | DB99: 1.129831526 | DC99: 1.203289733 | DD99: 1.190143289 | DE99: 1.141962422 | DG99: 1 | DH99: -3.884504977 | DI99: 1.864003467 | DJ99: -0.4798561151 | DK99: 0.2302618912 | DL99: -0.8944534623 | DM99: -0.1104925766 | DN99: 0.4292089636 | DO99: 0.05302053854 | DP99: -0.2059585458 | DQ99: -0.02544222965 | DR99: 0.09883046767 | DS99: 0.01220860948 | DT99: -0.04742440427 | DU99: -0.005858375915 | DV99: 0.0227568904 | DW99: 1.386294361 | DY99: 0.01553956835 | DZ99: 4 | EB99: a10 | EC99: 0 | ED99: 0 | EE99: 0 | EF99: 0 | EG99: 0 | EH99: 0 | EI99: 0 | EJ99: 0 | EK99: -7.899561574 | EL99: -4.740162762 | EM99: -4.740162762 | EN99: -4.74016277 | EO99: 646.8460361 | EP99: 1634.690169 | EQ99: 1634.684239
B100: =B99+1 -> 67 | C100: 4 | AB100: 0.02100719424 | AC100: =IF(C$34="","",IF(ROW()-ROW(S$27)>B$17,"",SMALL(INDEX($C$34:$C$10033,1,1):INDEX($C$34:$C$10033,B$17,1),ROW()-ROW(S$27)))) -> 4 | AD100: 0.69 | AE100: 11.38320367 | AF100: 0.09437747986 | AG100: 11.21826177 | AH100: 11.35211856 | AI100: 11.63970666 | AJ100: 11.71974801 | AK100: 11.45634885 | AL100: 11.38352872 | AM100: 11.34472677 | AN100: 11.40572717 | AO100: 11.38320367 | AP100: 11.38330258 | AQ100: 11.41367826 | AR100: 11.4077071 | AS100: 11.38991965 | AT100: 11.39451312 | AU100: 11.35770314 | AV100: 0.08444272867 | AW100: 0.08827778166 | AX100: 0.07786787361 | AY100: 0.09407566767 | AZ100: 0.09851092726 | BA100: 0.09498312802 | BB100: 0.1084501345 | BC100: 0.09988494093 | BD100: 0.09437747986 | BE100: 0.09412449564 | BF100: 0.09309211097 | BG100: 0.09270765182 | BH100: 0.09768564366 | BI100: 0.09719056955 | BJ100: 0.08685660935 | BL100: 2.417542965 | BM100: 2.429404384 | BN100: 2.454422241 | BO100: 2.461275283 | BP100: 2.438544061 | BQ100: 2.432167461 | BR100: 2.428753034 | BS100: 2.434115612 | BT100: 2.432138907 | BU100: 2.432147596 | BV100: 2.434812484 | BW100: 2.434289188 | BX100: 2.432728723 | BY100: 2.433131934 | BZ100: 2.429896205 | CA100: 0.9473006346 | CB100: 1.002139844 | CC100: 0.9063592069 | CD100: 1.102543119 | CE100: 1.128575548 | CF100: 1.081243166 | CG100: 1.230337144 | CH100: 1.139260384 | CI100: 1.074318075 | CJ100: 1.071447614 | CK100: 1.062523404 | CL100: 1.057581737 | CM100: 1.112631632 | CN100: 1.107439219 | CO100: 0.9864915849 | CQ100: 0.979187332 | CR100: 1.030164587 | CS100: 0.921850721 | CT100: 1.10518919 | CU100: 1.170736617 | CV100: 1.144169627 | CW100: 1.312745133 | CX100: 1.189522663 | CY100: 1.134833471 | CZ100: 1.131888849 | DA100: 1.105318796 | DB100: 1.105321921 | DC100: 1.17537757 | DD100: 1.164423411 | DE100: 1.084684003 | DG100: 1 | DH100: -3.870026613 | DI100: 1.855942259 | DJ100: -0.4795683453 | DK100: 0.2299857978 | DL100: -0.8900511582 | DM100: -0.1102939085 | DN100: 0.4268403612 | DO100: 0.05289346721 | DP100: -0.2046991257 | DQ100: -0.02536603255 | DR100: 0.09816722101 | DS100: 0.01216474626 | DT100: -0.04707789175 | DU100: -0.005833827233 | DV100: 0.02257706665 | DW100: 1.386294361 | DY100: 0.01582733813 | DZ100: 4 | EB100: a11 | EC100: 0 | ED100: 0 | EE100: 0 | EF100: 0 | EG100: 0 | EH100: 0 | EI100: 0 | EJ100: 0 | EK100: 0 | EL100: -6.750319737 | EM100: -6.750319733 | EN100: -6.750319732 | EO100: -1508.380579 | EP100: -4156.583367 | EQ100: -4156.567178
B101: 68 | C101: 4 | AB101: 0.02129496403 | AC101: =IF(C$34="","",IF(ROW()-ROW(S$27)>B$17,"",SMALL(INDEX($C$34:$C$10033,1,1):INDEX($C$34:$C$10033,B$17,1),ROW()-ROW(S$27)))) -> 4 | AD101: 0.7 | AE101: 11.49117524 | AF101: 0.09088886522 | AG101: 11.33840755 | AH101: 11.46685492 | AI101: 11.76946986 | AJ101: 11.82671495 | AK101: 11.55941839 | AL101: 11.4909436 | AM101: 11.43903822 | AN101: 11.50750338 | AO101: 11.49117524 | AP101: 11.49156181 | AQ101: 11.52269771 | AR101: 11.51729986 | AS101: 11.49434597 | AT101: 11.49932739 | AU101: 11.47591101 | AV101: 0.0820246291 | AW101: 0.08603253767 | AX101: 0.07625672247 | AY101: 0.09287405602 | AZ101: 0.09552236365 | BA101: 0.09123127914 | BB101: 0.1036279532 | BC101: 0.09662753402 | BD101: 0.09088886522 | BE101: 0.09065068904 | BF101: 0.090380817 | BG101: 0.08981243598 | BH101: 0.09385013917 | BI101: 0.09363253078 | BJ101: 0.08247235617 | BL101: 2.42819586 | BM101: 2.439460693 | BN101: 2.465508879 | BO101: 2.470360951 | BP101: 2.44750055 | BQ101: 2.441559212 | BR101: 2.437031911 | BS101: 2.44299929 | BT101: 2.44157937 | BU101: 2.44161301 | BV101: 2.444318804 | BW101: 2.443850241 | BX101: 2.44185526 | BY101: 2.442288546 | BZ101: 2.440250144 | CA101: 0.9300286735 | CB101: 0.986522628 | CC101: 0.8975011968 | CD101: 1.098394987 | CE101: 1.104182967 | CF101: 1.048333483 | CG101: 1.185404117 | CH101: 1.111941674 | CI101: 1.044419877 | CJ101: 1.041717996 | CK101: 1.041430833 | CL101: 1.034396756 | CM101: 1.078745969 | CN101: 1.076711126 | CO101: 0.9464454202 | CQ101: 0.9636868541 | CR101: 1.016683841 | CS101: 0.9144665494 | CT101: 1.104760599 | CU101: 1.150805394 | CV101: 1.113286016 | CW101: 1.2730024 | CX101: 1.1651576 | CY101: 1.10450379 | CZ101: 1.10154994 | DA101: 1.083792215 | DB101: 1.081222314 | DC101: 1.145007744 | DD101: 1.136771147 | DE101: 1.032659407 | DG101: 1 | DH101: -3.855746555 | DI101: 1.847984428 | DJ101: -0.4792805755 | DK101: 0.2297098701 | DL101: -0.8857030404 | DM101: -0.1100954787 | DN101: 0.4245002629 | DO101: 0.05276662442 | DP101: -0.2034547303 | DQ101: -0.02529001812 | DR101: 0.09751190025 | DS101: 0.01212101444 | DT101: -0.04673555968 | DU101: -0.005809366777 | DV101: 0.02239944594 | DW101: 1.386294361 | DY101: 0.01611510791 | DZ101: 4 | EB101: a12 | EC101: 0 | ED101: 0 | EE101: 0 | EF101: 0 | EG101: 0 | EH101: 0 | EI101: 0 | EJ101: 0 | EK101: 0 | EL101: 0 | EM101: 17.09703743 | EN101: 57.78100744 | EO101: 57.78100727 | EP101: 57.78100801 | EQ101: -4357.763478
B102: 69 | C102: 4 | AB102: 0.02158273381 | AC102: =IF(C$34="","",IF(ROW()-ROW(S$27)>B$17,"",SMALL(INDEX($C$34:$C$10033,1,1):INDEX($C$34:$C$10033,B$17,1),ROW()-ROW(S$27)))) -> 4 | AD102: 0.71 | AE102: 11.60333191 | AF102: 0.087466522 | AG102: 11.4621889 | AH102: 11.58467541 | AI102: 11.90204641 | AJ102: 11.93517032 | AK102: 11.66584921 | AL102: 11.60288256 | AM102: 11.53789923 | AN102: 11.61281855 | AO102: 11.60333191 | AP102: 11.60400589 | AQ102: 11.63501731 | AR102: 11.63044293 | AS102: 11.60316514 | AT102: 11.60824239 | AU102: 11.60012362 | AV102: 0.0795546975 | AW102: 0.08371598847 | AX102: 0.07459749731 | AY102: 0.09150901168 | AZ102: 0.09238767378 | BA102: 0.08746331401 | BB102: 0.09870401227 | BC102: 0.0932849194 | BD102: 0.087466522 | BE102: 0.0872496826 | BF102: 0.08769995327 | BG102: 0.08697983986 | BH102: 0.08996387993 | BI102: 0.0900128937 | BJ102: 0.07866676563 | BL102: 2.439053697 | BM102: 2.449683139 | BN102: 2.476710352 | BO102: 2.47948953 | BP102: 2.456665703 | BQ102: 2.451253564 | BR102: 2.445637202 | BS102: 2.452109535 | BT102: 2.45129229 | BU102: 2.451350374 | BV102: 2.454019285 | BW102: 2.453626051 | BX102: 2.451277918 | BY102: 2.451715397 | BZ102: 2.451015755 | CA102: 0.9118709709 | CB102: 0.9698225527 | CC102: 0.8878628748 | CD102: 1.09217564 | CE102: 1.077780671 | CF102: 1.014826561 | CG102: 1.138836948 | CH102: 1.083300842 | CI102: 1.014903085 | CJ102: 1.012445831 | CK102: 1.020390475 | CL102: 1.011614064 | CM102: 1.043865755 | CN102: 1.044891488 | CO102: 0.9125442065 | CQ102: 0.9473006346 | CR102: 1.002139844 | CS102: 0.9063592069 | CT102: 1.102543119 | CU102: 1.128575548 | CV102: 1.081243166 | CW102: 1.230337144 | CX102: 1.139260384 | CY102: 1.074318075 | CZ102: 1.071447614 | DA102: 1.062523404 | DB102: 1.057581737 | DC102: 1.112631632 | DD102: 1.107439219 | DE102: 0.9864915849 | DG102: 1 | DH102: -3.841659332 | DI102: 1.840127182 | DJ102: -0.4789928058 | DK102: 0.229434108 | DL102: -0.8814076819 | DM102: -0.1098972871 | DN102: 0.4221879386 | DO102: 0.0526400099 | DP102: -0.2022249853 | DQ102: -0.02521418604 | DR102: 0.09686431308 | DS102: 0.01207741371 | DT102: -0.0463973091 | DU102: -0.005784994281 | DV102: 0.02222397726 | DW102: 1.386294361 | DY102: 0.0164028777 | DZ102: 4 | EB102: a13 | EC102: 0 | ED102: 0 | EE102: 0 | EF102: 0 | EG102: 0 | EH102: 0 | EI102: 0 | EJ102: 0 | EK102: 0 | EL102: 0 | EM102: 0 | EN102: -93.40664826 | EO102: -93.40664789 | EP102: -93.40664954 | EQ102: 10071.36066
B103: 70 | C103: 4 | AB103: 0.0218705036 | AC103: =IF(C$34="","",IF(ROW()-ROW(S$27)>B$17,"",SMALL(INDEX($C$34:$C$10033,1,1):INDEX($C$34:$C$10033,B$17,1),ROW()-ROW(S$27)))) -> 4 | AD103: 0.72 | AE103: 11.71991778 | AF103: 0.0841145442 | AG103: 11.58991572 | AH103: 11.70585414 | AI103: 12.03765046 | AJ103: 12.0453594 | AK103: 11.77603436 | AL103: 11.71974946 | AM103: 11.64185041 | AN103: 11.72202303 | AO103: 11.71991778 | AP103: 11.72086929 | AQ103: 11.75081129 | AR103: 11.74729422 | AS103: 11.71679819 | AT103: 11.72165212 | AU103: 11.73001844 | AV103: 0.07703485931 | AW103: 0.08132942208 | AX103: 0.07288899918 | AY103: 0.08997225445 | AZ103: 0.08912469526 | BA103: 0.08370194805 | BB103: 0.09373331638 | BC103: 0.08986732217 | BD103: 0.0841145442 | BE103: 0.0839245261 | BF103: 0.08503580092 | BG103: 0.08420091157 | BH103: 0.08607277306 | BI103: 0.08636109651 | BJ103: 0.07541691542 | BL103: 2.450135385 | BM103: 2.46008907 | BN103: 2.488039276 | BO103: 2.488679473 | BP103: 2.46606648 | BQ103: 2.461275407 | BR103: 2.4546064 | BS103: 2.461469382 | BT103: 2.461289769 | BU103: 2.461370953 | BV103: 2.463922284 | BW103: 2.463622935 | BX103: 2.461023555 | BY103: 2.46143774 | BZ103: 2.462151235 | CA103: 0.8928275266 | CB103: 0.9520303521 | CC103: 0.8774122945 | CD103: 1.08374814 | CE103: 1.049535474 | CF103: 0.9809658601 | CG103: 1.091229248 | CH103: 1.05342682 | CI103: 0.985815542 | CJ103: 0.9836684005 | CK103: 0.9992396496 | CL103: 0.9891328822 | CM103: 1.008497311 | CN103: 1.01229473 | CO103: 0.8846418087 | CQ103: 0.9300286735 | CR103: 0.986522628 | CS103: 0.8975011968 | CT103: 1.098394987 | CU103: 1.104182967 | CV103: 1.048333483 | CW103: 1.185404117 | CX103: 1.111941674 | CY103: 1.044419877 | CZ103: 1.041717996 | DA103: 1.041430833 | DB103: 1.034396756 | DC103: 1.078745969 | DD103: 1.076711126 | DE103: 0.9464454202 | DG103: 1 | DH103: -3.827759692 | DI103: 1.832367841 | DJ103: -0.478705036 | DK103: 0.2291585115 | DL103: -0.8771637132 | DM103: -0.1096993335 | DN103: 0.4199026869 | DO103: 0.05251362338 | DP103: -0.2010095308 | DQ103: -0.02513853597 | DR103: 0.09622427469 | DS103: 0.01203394376 | DT103: -0.04606304488 | DU103: -0.005760709483 | DV103: 0.02205061155 | DW103: 1.386294361 | DY103: 0.01669064748 | DZ103: 4 | EB103: a14 | EC103: 0 | ED103: 0 | EE103: 0 | EF103: 0 | EG103: 0 | EH103: 0 | EI103: 0 | EJ103: 0 | EK103: 0 | EL103: 0 | EM103: 0 | EN103: 0 | EO103: -339.5994094 | EP103: -1247.577243 | EQ103: -1247.571632
B104: 71 | C104: 4 | AB104: 0.02215827338 | AC104: =IF(C$34="","",IF(ROW()-ROW(S$27)>B$17,"",SMALL(INDEX($C$34:$C$10033,1,1):INDEX($C$34:$C$10033,B$17,1),ROW()-ROW(S$27)))) -> 4 | AD104: 0.73 | AE104: 11.84119278 | AF104: 0.08083330221 | AG104: 11.72193304 | AH104: 11.83069619 | AI104: 12.17651976 | AJ104: 12.15755914 | AK104: 11.89040397 | AL104: 11.84197299 | AM104: 11.75147 | AN104: 11.8355055 | AO104: 11.84119278 | AP104: 11.84240157 | AQ104: 11.87028902 | AR104: 11.86803559 | AS104: 11.83566701 | AT104: 11.83996819 | AU104: 11.86514849 | AV104: 0.07446709836 | AW104: 0.07887424095 | AX104: 0.07112993321 | AY104: 0.08825635997 | AZ104: 0.08575187433 | BA104: 0.07996696648 | BB104: 0.08876512294 | BC104: 0.08638410012 | BD104: 0.08083330221 | BE104: 0.08067446498 | BF104: 0.08237216406 | BG104: 0.08146312807 | BH104: 0.08221874928 | BI104: 0.082705698 | BJ104: 0.07268914299 | BL104: 2.461461706 | BM104: 2.470697526 | BN104: 2.499509488 | BO104: 2.497951128 | BP104: 2.475731686 | BQ104: 2.471650253 | BR104: 2.463978339 | BS104: 2.471103954 | BT104: 2.471584366 | BU104: 2.471686444 | BV104: 2.474038557 | BW104: 2.473848701 | BX104: 2.471117601 | BY104: 2.471480943 | BZ104: 2.473605405 | CA104: 0.8728983407 | CB104: 0.9331371818 | CC104: 0.8661150373 | CD104: 1.072981916 | CE104: 1.019624427 | CF104: 0.9469666573 | CG104: 1.04312068 | CH104: 1.022399492 | CI104: 0.9571627146 | CJ104: 0.9553794108 | CK104: 0.9777813945 | CL104: 0.9668073029 | CM104: 0.9731137387 | CN104: 0.9792328332 | CO104: 0.8624674751 | CQ104: 0.9118709709 | CR104: 0.9698225527 | CS104: 0.8878628748 | CT104: 1.09217564 | CU104: 1.077780671 | CV104: 1.014826561 | CW104: 1.138836948 | CX104: 1.083300842 | CY104: 1.014903085 | CZ104: 1.012445831 | DA104: 1.020390475 | DB104: 1.011614064 | DC104: 1.043865755 | DD104: 1.044891488 | DE104: 0.9125442065 | DG104: 1 | DH104: -3.814042597 | DI104: 1.824703832 | DJ104: -0.4784172662 | DK104: 0.2288830806 | DL104: -0.8729698191 | DM104: -0.1095016177 | DN104: 0.4176438343 | DO104: 0.05238746458 | DP104: -0.1998080215 | DQ104: -0.02506306759 | DR104: 0.09559160739 | DS104: 0.01199060428 | DT104: -0.04573267548 | DU104: -0.005736512118 | DV104: 0.02187930158 | DW104: 1.386294361 | DY104: 0.01697841727 | DZ104: 4 | EB104: a15 | EC104: 0 | ED104: 0 | EE104: 0 | EF104: 0 | EG104: 0 | EH104: 0 | EI104: 0 | EJ104: 0 | EK104: 0 | EL104: 0 | EM104: 0 | EN104: 0 | EO104: 0 | EP104: 1439.182649 | EQ104: 1439.173684
B105: 72 | C105: 4 | AB105: 0.02244604317 | AC105: =IF(C$34="","",IF(ROW()-ROW(S$27)>B$17,"",SMALL(INDEX($C$34:$C$10033,1,1):INDEX($C$34:$C$10033,B$17,1),ROW()-ROW(S$27)))) -> 4 | AD105: 0.74 | AE105: 11.96743902 | AF105: 0.07761988496 | AG105: 11.85862679 | AH105: 11.95954258 | AI105: 12.31891936 | AJ105: 12.27208317 | AK105: 12.0094306 | AL105: 11.97001016 | AM105: 11.86737857 | AN105: 11.95370033 | AO105: 11.96743902 | AP105: 11.968874 | AQ105: 11.99370555 | AR105: 11.99288278 | AS105: 11.96019051 | AT105: 11.96361893 | AU105: 12.00496709 | AV105: 0.07185346401 | AW105: 0.07635197292 | AX105: 0.06931890709 | AY105: 0.08635500471 | AZ105: 0.08228792933 | BA105: 0.07627521213 | BB105: 0.08384226648 | BC105: 0.08284393353 | BD105: 0.07761988496 | BE105: 0.07749540008 | BF105: 0.07969094756 | BG105: 0.07875077879 | BH105: 0.07843806904 | BI105: 0.07907330698 | BJ105: 0.07044108254 | BL105: 2.473055602 | BM105: 2.481529502 | BN105: 2.51113624 | BO105: 2.507327022 | BP105: 2.485692225 | BQ105: 2.482404369 | BR105: 2.47379334 | BS105: 2.481040882 | BT105: 2.482189547 | BU105: 2.482309446 | BV105: 2.484381975 | BW105: 2.484313373 | BX105: 2.481583678 | BY105: 2.481870289 | BZ105: 2.485320488 | CA105: 0.8520834133 | CB105: 0.9131346711 | CC105: 0.8539340263 | CD105: 1.0597558 | CE105: 0.9882311768 | CF105: 0.9130150643 | CG105: 0.9949879168 | CH105: 0.9902915557 | CI105: 0.9289112402 | CJ105: 0.927532679 | CK105: 0.9557897604 | CL105: 0.9444488592 | CM105: 0.9381342492 | CN105: 0.9460029119 | CO105: 0.8456428775 | CQ105: 0.8928275266 | CR105: 0.9520303521 | CS105: 0.8774122945 | CT105: 1.08374814 | CU105: 1.049535474 | CV105: 0.9809658601 | CW105: 1.091229248 | CX105: 1.05342682 | CY105: 0.985815542 | CZ105: 0.9836684005 | DA105: 0.9992396496 | DB105: 0.9891328822 | DC105: 1.008497311 | DD105: 1.01229473 | DE105: 0.8846418087 | DG105: 1 | DH105: -3.800503209 | DI105: 1.817132686 | DJ105: -0.4781294964 | DK105: 0.2286078153 | DL105: -0.8688247359 | DM105: -0.1093041396 | DN105: 0.4154107334 | DO105: 0.05226153323 | DP105: -0.1986201248 | DQ105: -0.02498778056 | DR105: 0.09496614023 | DS105: 0.01194739494 | DT105: -0.0454061128 | DU105: -0.005712401925 | DV105: 0.02171000185 | DW105: 1.386294361 | DY105: 0.01726618705 | DZ105: 4 | EB105: a16 | EC105: 0 | ED105: 0 | EE105: 0 | EF105: 0 | EG105: 0 | EH105: 0 | EI105: 0 | EJ105: 0 | EK105: 0 | EL105: 0 | EM105: 0 | EN105: 0 | EO105: 0 | EP105: 0 | EQ105: 2477.969786
B106: 73 | C106: 4 | AB106: 0.02273381295 | AC106: =IF(C$34="","",IF(ROW()-ROW(S$27)>B$17,"",SMALL(INDEX($C$34:$C$10033,1,1):INDEX($C$34:$C$10033,B$17,1),ROW()-ROW(S$27)))) -> 4 | AD106: 0.75 | AE106: 12.09896872 | AF106: 0.07446851866 | AG106: 12.00043057 | AH106: 12.0927763 | AI106: 12.46514608 | AJ106: 12.38928779 | AK106: 12.13363562 | AL106: 12.10435039 | AM106: 11.9902446 | AN106: 12.07709624 | AO106: 12.09896872 | AP106: 12.10058771 | AQ106: 12.12137393 | AR106: 12.12209767 | AS106: 12.09078182 | AT106: 12.09304899 | AU106: 12.14886446 | AV106: 0.0691960792 | AW106: 0.07376428332 | AX106: 0.06745442987 | AY106: 0.08426322272 | AZ106: 0.07875152823 | BA106: 0.0726406535 | BB106: 0.07900089517 | BC106: 0.07925503832 | BD106: 0.07446851866 | BE106: 0.07438031886 | BF106: 0.0769728358 | BG106: 0.07604540421 | BH106: 0.07476009403 | BI106: 0.0754875965 | BJ106: 0.06862134843 | BL106: 2.48494253 | BM106: 2.492608275 | BN106: 2.522936436 | BO106: 2.516832211 | BP106: 2.495981399 | BQ106: 2.493564924 | BR106: 2.484093369 | BS106: 2.491310786 | BT106: 2.493120219 | BU106: 2.493254022 | BV106: 2.494970335 | BW106: 2.495030041 | BX106: 2.492443329 | BY106: 2.492630824 | BZ106: 2.497235705 | CA106: 0.8303827442 | CB106: 0.8920149774 | CC106: 0.8408293223 | CD106: 1.043961316 | CE106: 0.9555423477 | CF106: 0.8792679223 | CG106: 0.947240057 | CH106: 0.9571707251 | CI106: 0.9009922779 | CJ106: 0.9000455723 | CK106: 0.9330165255 | CL106: 0.9218298173 | CM106: 0.9039079857 | CN106: 0.9128752028 | CO106: 0.8336714613 | CQ106: 0.8728983407 | CR106: 0.9331371818 | CS106: 0.8661150373 | CT106: 1.072981916 | CU106: 1.019624427 | CV106: 0.9469666573 | CW106: 1.04312068 | CX106: 1.022399492 | CY106: 0.9571627146 | CZ106: 0.9553794108 | DA106: 0.9777813945 | DB106: 0.9668073029 | DC106: 0.9731137387 | DD106: 0.9792328332 | DE106: 0.8624674751 | DG106: 1 | DH106: -3.78713688 | DI106: 1.809652026 | DJ106: -0.4778417266 | DK106: 0.2283327157 | DL106: -0.8647272486 | DM106: -0.1091068991 | DN106: 0.4132027615 | DO106: 0.05213582906 | DP106: -0.197445521 | DQ106: -0.02491267458 | DR106: 0.09434770867 | DS106: 0.01190431543 | DT106: -0.04508327202 | DU106: -0.005688378641 | DV106: 0.02154266854 | DW106: 1.386294361 | DY106: 0.01755395683 | DZ106: 4
B107: 74 | C107: 4 | AB107: 0.02302158273 | AC107: =IF(C$34="","",IF(ROW()-ROW(S$27)>B$17,"",SMALL(INDEX($C$34:$C$10033,1,1):INDEX($C$34:$C$10033,B$17,1),ROW()-ROW(S$27)))) -> 4 | AD107: 0.76 | AE107: 12.2361341 | AF107: 0.07137096542 | AG107: 12.14783398 | AH107: 12.23082965 | AI107: 12.61553399 | AJ107: 12.50957921 | AK107: 12.26359679 | AL107: 12.2455205 | AM107: 12.12079109 | AN107: 12.20624665 | AO107: 12.2361341 | AP107: 12.23788394 | AQ107: 12.25367966 | AR107: 12.25600292 | AS107: 12.22784733 | AT107: 12.22871993 | AU107: 12.2962177 | AV107: 0.06649714958 | AW107: 0.07111298829 | AX107: 0.06553491132 | AY107: 0.08197766728 | AZ107: 0.07516098958 | BA107: 0.06907451227 | BB107: 0.07427054447 | BC107: 0.07562539134 | BD107: 0.07137096542 | BE107: 0.07131970496 | BF107: 0.07419810528 | BG107: 0.07332633874 | BH107: 0.07120649355 | BI107: 0.07196843848 | BJ107: 0.06716699887 | BL107: 2.497150881 | BM107: 2.503959784 | BN107: 2.534928911 | BO107: 2.526494688 | BP107: 2.506635264 | BQ107: 2.505160197 | BR107: 2.49492225 | BS107: 2.501947841 | BT107: 2.504393386 | BU107: 2.504536381 | BV107: 2.505826273 | BW107: 2.506015851 | BX107: 2.503715918 | BY107: 2.503787277 | BZ107: 2.509291711 | CA107: 0.8077963336 | CB107: 0.8697708455 | CC107: 0.8267579012 | CD107: 1.025506122 | CE107: 0.9217440706 | CF107: 0.845853356 | CG107: 0.9002177537 | CH107: 0.9231021794 | CI107: 0.8733047038 | CJ107: 0.8728022717 | CK107: 0.9091998137 | CL107: 0.8986878217 | CM107: 0.8707021317 | CN107: 0.8800818777 | CO107: 0.8259000402 | CQ107: 0.8520834133 | CR107: 0.9131346711 | CS107: 0.8539340263 | CT107: 1.0597558 | CU107: 0.9882311768 | CV107: 0.9130150643 | CW107: 0.9949879168 | CX107: 0.9902915557 | CY107: 0.9289112402 | CZ107: 0.927532679 | DA107: 0.9557897604 | DB107: 0.9444488592 | DC107: 0.9381342492 | DD107: 0.9460029119 | DE107: 0.8456428775 | DG107: 1 | DH107: -3.773939141 | DI107: 1.80225957 | DJ107: -0.4775539568 | DK107: 0.2280577817 | DL107: -0.8606761888 | DM107: -0.108909896 | DN107: 0.4110193195 | DO107: 0.05201035179 | DP107: -0.1962839024 | DQ107: -0.02483774929 | DR107: 0.09373615424 | DS107: 0.01186136545 | DT107: -0.04476407136 | DU107: -0.005664442006 | DV107: 0.0213772594 | DW107: 1.386294361 | DY107: 0.01784172662 | DZ107: 4 | EC107: Central moments (unbounded metalog only). Skewness and kurtosis are standardized.
B108: 75 | C108: 4 | AB108: 0.02330935252 | AC108: =IF(C$34="","",IF(ROW()-ROW(S$27)>B$17,"",SMALL(INDEX($C$34:$C$10033,1,1):INDEX($C$34:$C$10033,B$17,1),ROW()-ROW(S$27)))) -> 4 | AD108: 0.77 | AE108: 12.37933972 | AF108: 0.06831691369 | AG108: 12.30139277 | AH108: 12.3741931 | AI108: 12.77046095 | AJ108: 12.63342253 | AK108: 12.39995757 | AL108: 12.39409084 | AM108: 12.25980348 | AN108: 12.34178212 | AO108: 12.37933972 | AP108: 12.38115675 | AQ108: 12.39109775 | AR108: 12.39499987 | AS108: 12.37178851 | AT108: 12.37111235 | AU108: 12.44645524 | AV108: 0.06375897395 | AW108: 0.0684000697 | AX108: 0.06355866186 | AY108: 0.07949686857 | AZ108: 0.07153401431 | BA108: 0.06558543039 | BB108: 0.06967446512 | BC108: 0.07196295636 | BD108: 0.06831691369 | BE108: 0.06830194061 | BF108: 0.07134759512 | BG108: 0.0705714153 | BH108: 0.0677908032 | BI108: 0.06853117266 | BJ108: 0.06599899095 | BL108: 2.50971249 | BM108: 2.515613102 | BN108: 2.547134766 | BO108: 2.536345883 | BP108: 2.517693051 | BQ108: 2.517219814 | BR108: 2.506325901 | BS108: 2.512990427 | BT108: 2.516028931 | BU108: 2.5161757 | BV108: 2.516978292 | BW108: 2.517293155 | BX108: 2.515418761 | BY108: 2.515364106 | BZ108: 2.521435863 | CA108: 0.7843241813 | CB108: 0.8463956706 | CC108: 0.8116734094 | CD108: 1.00431753 | CE108: 0.8870187422 | CF108: 0.8128717823 | CG108: 0.8541952497 | CH108: 0.8881511284 | CI108: 0.8457182832 | CJ108: 0.845657033 | CK108: 0.8840750255 | CL108: 0.8747326838 | CM108: 0.8386934803 | CN108: 0.8478068365 | CO108: 0.821453487 | CQ108: 0.8303827442 | CR108: 0.8920149774 | CS108: 0.8408293223 | CT108: 1.043961316 | CU108: 0.9555423477 | CV108: 0.8792679223 | CW108: 0.947240057 | CX108: 0.9571707251 | CY108: 0.9009922779 | CZ108: 0.9000455723 | DA108: 0.9330165255 | DB108: 0.9218298173 | DC108: 0.9039079857 | DD108: 0.9128752028 | DE108: 0.8336714613 | DG108: 1 | DH108: -3.760905695 | DI108: 1.794953121 | DJ108: -0.4772661871 | DK108: 0.2277830133 | DL108: -0.8566704319 | DM108: -0.1087131302 | DN108: 0.4088598306 | DO108: 0.05188510115 | DP108: -0.1951349724 | DQ108: -0.02476300439 | DR108: 0.09313132423 | DS108: 0.01181854469 | DT108: -0.04444843201 | DU108: -0.005640591758 | DV108: 0.02121373367 | DW108: 1.386294361 | DY108: 0.0181294964 | DZ108: 4 | EC108: M2 | ED108: M3 | EE108: M4 | EF108: M5 | EG108: M6 | EH108: M7 | EI108: M8 | EJ108: M9 | EK108: M10 | EL108: M11 | EM108: M12 | EN108: M13 | EO108: M14 | EP108: M15 | EQ108: M16 | ER108: data
B109: 76 | C109: 4 | AB109: 0.0235971223 | AC109: =IF(C$34="","",IF(ROW()-ROW(S$27)>B$17,"",SMALL(INDEX($C$34:$C$10033,1,1):INDEX($C$34:$C$10033,B$17,1),ROW()-ROW(S$27)))) -> 4 | AD109: 0.78 | AE109: 12.52905789 | AF109: 0.06529437829 | AG109: 12.46174133 | AH109: 12.52342638 | AI109: 12.93035679 | AJ109: 12.76135266 | AK109: 12.54343826 | AL109: 12.55068273 | AM109: 12.40813918 | AN109: 12.48442536 | AO109: 12.52905789 | AP109: 12.53086895 | AQ109: 12.53421288 | AR109: 12.53959016 | AS109: 12.52300787 | AT109: 12.52073079 | AU109: 12.59913669 | AV109: 0.06098395621 | AW109: 0.06562769181 | AX109: 0.0615238937 | AY109: 0.07682147734 | AZ109: 0.06788745367 | BA109: 0.06217965948 | BB109: 0.06523012494 | BC109: 0.06827589934 | BD109: 0.06529437829 | BE109: 0.0653137242 | BF109: 0.06840384051 | BG109: 0.06775788945 | BH109: 0.06451822749 | BI109: 0.06518600408 | BJ109: 0.06501617265 | BL109: 2.522663257 | BM109: 2.527601001 | BN109: 2.559577786 | BO109: 2.54642128 | BP109: 2.529197681 | BQ109: 2.529775065 | BR109: 2.518352643 | BS109: 2.524481897 | BT109: 2.528050578 | BU109: 2.528195116 | BV109: 2.528461936 | BW109: 2.528890852 | BX109: 2.527567582 | BY109: 2.527385733 | BZ109: 2.533628295 | CA109: 0.7599662875 | CB109: 0.821883567 | CC109: 0.7955258967 | CD109: 0.9803459638 | CE109: 0.8515420838 | CF109: 0.7803971787 | CG109: 0.8093844691 | CH109: 0.8523853694 | CI109: 0.8180770455 | CJ109: 0.8184377187 | CK109: 0.857388299 | CL109: 0.8496561634 | CM109: 0.8079622705 | CN109: 0.8161764081 | CO109: 0.819147646 | CQ109: 0.8077963336 | CR109: 0.8697708455 | CS109: 0.8267579012 | CT109: 1.025506122 | CU109: 0.9217440706 | CV109: 0.845853356 | CW109: 0.9002177537 | CX109: 0.9231021794 | CY109: 0.8733047038 | CZ109: 0.8728022717 | DA109: 0.9091998137 | DB109: 0.8986878217 | DC109: 0.8707021317 | DD109: 0.8800818777 | DE109: 0.8259000402 | DG109: 1 | DH109: -3.748032405 | DI109: 1.787730565 | DJ109: -0.4769784173 | DK109: 0.2275084105 | DL109: -0.8527088952 | DM109: -0.1085166016 | DN109: 0.4067237392 | DO109: 0.05176007687 | DP109: -0.1939984454 | DQ109: -0.02468843954 | DR109: 0.09253307144 | DS109: 0.01177585282 | DT109: -0.04413627796 | DU109: -0.005616827639 | DV109: 0.021052052 | DW109: 1.386294361 | DY109: 0.01841726619 | DZ109: 4 | EB109: mean | EC109: =IF(OR(ISERROR(AV29),$B$11<>"u"),"",EC90 + (322*EC101 + 45*EC102 + 66*EC105 + 10080*EC92 + 1680*EC94 + 1680*EC97 + 252*EC98)/20160) ->  | ER109: =IF(N$9<>"(none)","",AVERAGE(INDEX(AC$28:AC$10027,1,1):INDEX(AC$28:AC$10027,B$17,1))) -> 10.17587795
B110: 77 | C110: 4 | AB110: 0.02388489209 | AC110: =IF(C$34="","",IF(ROW()-ROW(S$27)>B$17,"",SMALL(INDEX($C$34:$C$10033,1,1):INDEX($C$34:$C$10033,B$17,1),ROW()-ROW(S$27)))) -> 4 | AD110: 0.79 | AE110: 12.68584804 | AF110: 0.0622901341 | AG110: 12.62960825 | AH110: 12.67917211 | AI110: 13.09571335 | AJ110: 12.89398803 | AK110: 12.69484982 | AL110: 12.71597774 | AM110: 12.56673918 | AN110: 12.63500941 | AO110: 12.68584804 | AP110: 12.68757201 | AQ110: 12.68374343 | AR110: 12.69040188 | AS110: 12.68192064 | AT110: 12.67811239 | AU110: 12.75404782 | AV110: 0.05817461932 | AW110: 0.06279822011 | AX110: 0.05942872324 | AY110: 0.07395448323 | AZ110: 0.06423711626 | BA110: 0.05886125738 | BB110: 0.06094981304 | BC110: 0.06457278144 | BD110: 0.0622901341 | BE110: 0.06234053045 | BF110: 0.06535234572 | BG110: 0.06486363078 | BH110: 0.06138557731 | BI110: 0.06193750971 | BJ110: 0.06408916222 | BL110: 2.536043918 | BM110: 2.539960656 | BN110: 2.572284952 | BO110: 2.556761158 | BP110: 2.541196385 | BQ110: 2.542859292 | BR110: 2.531053576 | BS110: 2.536471485 | BT110: 2.540487045 | BU110: 2.540622933 | BV110: 2.540321129 | BW110: 2.54084595 | BX110: 2.540177407 | BY110: 2.539877073 | BZ110: 2.545848698 | CA110: 0.7347226521 | CB110: 0.7962294412 | CC110: 0.7782615246 | CD110: 0.9535682214 | CE110: 0.8154805436 | CF110: 0.7484784383 | CG110: 0.7659404033 | CH110: 0.8158777008 | CI110: 0.7902031757 | CJ110: 0.7909499695 | CK110: 0.8289123856 | CL110: 0.8231455421 | CM110: 0.7784870196 | CN110: 0.785250709 | CO110: 0.8173962399 | CQ110: 0.7843241813 | CR110: 0.8463956706 | CS110: 0.8116734094 | CT110: 1.00431753 | CU110: 0.8870187422 | CV110: 0.8128717823 | CW110: 0.8541952497 | CX110: 0.8881511284 | CY110: 0.8457182832 | CZ110: 0.845657033 | DA110: 0.8840750255 | DB110: 0.8747326838 | DC110: 0.8386934803 | DD110: 0.8478068365 | DE110: 0.821453487 | DG110: 1 | DH110: -3.735315291 | DI110: 1.780589865 | DJ110: -0.4766906475 | DK110: 0.2272339734 | DL110: -0.8487905355 | DM110: -0.1083203099 | DN110: 0.4046105099 | DO110: 0.05163527867 | DP110: -0.192874046 | DQ110: -0.02461405442 | DR110: 0.09194125385 | DS110: 0.01173328954 | DT110: -0.04382753583 | DU110: -0.005593149387 | DV110: 0.02089217643 | DW110: 1.386294361 | DY110: =IF(AB92="",NA(),AB92) -> 0.01870503597 | DZ110: =IF(AC92="",NA(),AC92) -> 4 | EB110: std dev | EC110: =IF(OR(ISERROR(AV29),$B$11<>"u"),"",SQRT(EC100^2/11264 + (461*EC101^2)/580608 + (499*EC101*EC102)/2128896 + (9*EC102^2)/652288 + (1627*EC100*EC103)/5322240 + (13063*EC103^2)/53222400 + (EC100*EC104)/26624 + (88069*EC103*EC104)/1291530240 + EC104^2/245760 + (257*EC101*EC105)/665280 + (69193*EC102*EC105)/1291530240 + (34847*EC105^2)/741312000 + (23*EC100*EC91)/720 + (7*EC103*EC91)/180 + (11*EC104*EC91)/1680 + (11*EC101*EC92)/480 + (29*EC102*EC92)/6720 + (521*EC105*EC92)/90720 + EC92^2/12 + (EC100*EC93)/224 + (11*EC103*EC93)/1680 + (EC104*EC93)/1152 + EC91*EC93 + EC93^2/12 + (47*EC101*EC94)/12096 + (EC102*EC94)/2016 + (49*EC105*EC94)/57600 + (EC92*EC94)/12 + EC94^2/180 + (11*EC100*EC95)/1680 + (409*EC103*EC95)/45360 + (563*EC104*EC95)/403200 + (2*EC91*EC95)/3 + (EC93*EC95)/6 + EC95^2/12 + (EC100*EC96)/1152 + (563*EC103*EC96)/403200 + (EC104*EC96)/5632 + (EC91*EC96)/6 + (EC93*EC96)/40 + (23*EC95*EC96)/720 + EC96^2/448 + (1153*EC101*EC97)/181440 + (59*EC102*EC97)/57600 + (313*EC105*EC97)/201600 + (EC92*EC97)/12 + (13*EC94*EC97)/720 + EC97^2/80 + (67*EC101*EC98)/67200 + (3*EC102*EC98)/24640 + (851*EC105*EC98)/3801600 + (7*EC92*EC98)/360 + (EC94*EC98)/420 + (EC97*EC98)/224 + EC98^2/3600 + (563*EC100*EC99)/403200 + (47*EC103*EC99)/22400 + (1627*EC104*EC99)/5322240 + (EC91*EC99)/6 + (23*EC93*EC99)/720 + (7*EC95*EC99)/180 + (11*EC96*EC99)/1680 + (409*EC99^2)/90720 + (EC101^2*PI()^2)/33792 + (EC103^2*PI()^2)/159744 + (EC101*EC105*PI()^2)/79872 + (EC105^2*PI()^2)/737280 + (EC103*EC91*PI()^2)/672 + (EC91^2*PI()^2)/3 + (EC101*EC92*PI()^2)/672 + (EC105*EC92*PI()^2)/3456 + (EC92^2*PI()^2)/36 + (EC103*EC95*PI()^2)/3456 + (EC91*EC95*PI()^2)/18 + (EC95^2*PI()^2)/240 + (EC101*EC97*PI()^2)/3456 + (EC105*EC97*PI()^2)/16896 + (EC92*EC97*PI()^2)/120 + (EC97^2*PI()^2)/1344 + (EC103*EC99*PI()^2)/16896 + (EC91*EC99*PI()^2)/120 + (EC95*EC99*PI()^2)/672 + (EC99^2*PI()^2)/6912)) ->  | ER110: =IF(ER109="","",STDEV(INDEX(AC$28:AC$10027,1,1):INDEX(AC$28:AC$10027,B$17,1))) -> 4.2286553
B111: 78 | C111: 4 | AB111: 0.02417266187 | AC111: =IF(C$34="","",IF(ROW()-ROW(S$27)>B$17,"",SMALL(INDEX($C$34:$C$10033,1,1):INDEX($C$34:$C$10033,B$17,1),ROW()-ROW(S$27)))) -> 4 | AD111: 0.8 | AE111: 12.85038108 | AF111: 0.05929021085 | AG111: 12.80583588 | AH111: 12.842173 | AI111: 13.26709712 | AJ111: 13.03204775 | AK111: 12.85511086 | AL111: 12.89072928 | AM111: 12.73664214 | AN111: 12.79449996 | AO111: 12.85038108 | AP111: 12.85193111 | AQ111: 12.8405702 | AR111: 12.84822153 | AS111: 12.84897468 | AT111: 12.84384149 | AU111: 12.91131036 | AV111: 0.05533362146 | AW111: 0.05991424285 | AX111: 0.05727117544 | AY111: 0.07090139607 | AZ111: 0.0605976152 | BA111: 0.05563227942 | BB111: 0.05684128728 | BC111: 0.06086271844 | BD111: 0.05929021085 | BE111: 0.05936714488 | BF111: 0.06218293556 | BG111: 0.06186860288 | BH111: 0.05838125987 | BI111: 0.05878423155 | BJ111: 0.06305689943 | BL111: 2.549900995 | BM111: 2.55273452 | BN111: 2.585287069 | BO111: 2.567411536 | BP111: 2.553741464 | BQ111: 2.556508393 | BR111: 2.544483047 | BS111: 2.549015388 | BT111: 2.553373467 | BU111: 2.553494081 | BV111: 2.552609706 | BW111: 2.5532054 | BX111: 2.553264016 | BY111: 2.552864435 | BZ111: 2.558103699 | CA111: 0.7085932751 | CB111: 0.7694290717 | CC111: 0.7598222469 | CD111: 0.9239903794 | CE111: 0.778989061 | CF111: 0.7171406534 | CG111: 0.7239671347 | CH111: 0.7787080488 | CI111: 0.7619018037 | CJ111: 0.7629824564 | CK111: 0.7984643496 | CL111: 0.7949015158 | CM111: 0.7501393295 | CN111: 0.7550153518 | CO111: 0.8141471986 | CQ111: 0.7599662875 | CR111: 0.821883567 | CS111: 0.7955258967 | CT111: 0.9803459638 | CU111: 0.8515420838 | CV111: 0.7803971787 | CW111: 0.8093844691 | CX111: 0.8523853694 | CY111: =IF(OR(DP$26="",DP$26="no"),"",(EK$91/($AD109*(1-$AD109))+EK$92*(($AD109-0.5)/($AD109*(1-$AD109))+LN($AD109/(1-$AD109)))+EK$93+2*EK$94*($AD109-0.5)+EK$95*(($AD109-0.5)^2/($AD109*(1-$AD109))+2*($AD109-0.5)*LN($AD109/(1-$AD109)))+3*EK$96*($AD109-0.5)^2+EK$97*(($AD109-0.5)^3/($AD109*(1-$AD109))+3*($AD109-0.5)^2*LN($AD109/(1-$AD109)))+4*EK$98*($AD109-0.5)^3+EK$99*(($AD109-0.5)^4/($AD109*(1-$AD109))+4*($AD109-0.5)^3*LN($AD109/(1-$AD109)))+5*EK$100*($AD109-0.5)^4+EK$101*(($AD109-0.5)^5/($AD109*(1-$AD109))+5*($AD109-0.5)^4*LN($AD109/(1-$AD109)))+6*EK$102*($AD109-0.5)^5+EK$103*(($AD109-0.5)^6/($AD109*(1-$AD109))+6*($AD109-0.5)^5*LN($AD109/(1-$AD109)))+7*EK$104*($AD109-0.5)^6+EK$105*(($AD109-0.5)^7/($AD109*(1-$AD109))+7*($AD109-0.5)^6*LN($AD109/(1-$AD109))))^-1) -> 0.8180770455 | CZ111: 0.8184377187 | DA111: 0.857388299 | DB111: 0.8496561634 | DC111: 0.8079622705 | DD111: 0.8161764081 | DE111: 0.819147646 | DG111: 1 | DH111: -3.722750518 | DI111: 1.773529059 | DJ111: -0.4764028777 | DK111: 0.2269597019 | DL111: -0.8449143476 | DM111: -0.1081242551 | DN111: 0.4025196266 | DO111: 0.05151070628 | DP111: -0.1917615085 | DQ111: -0.0245398487 | DR111: 0.09135573446 | DS111: 0.01169085454 | DT111: -0.04352213479 | DU111: -0.005569556746 | DV111: 0.02073407026 | DW111: 1.386294361 | DY111: 0.01899280576 | DZ111: 4 | EB111: skewness | EC111: =IF(OR(ISERROR(AV29),$B$11<>"u"),"",(EC112+EC113+EC114)/EC110^3) ->  | ER111: =IF(ER109="","",SKEW(INDEX(AC$28:AC$10027,1,1):INDEX(AC$28:AC$10027,B$17,1))) -> 1.188935786
